{"text_format":"1","workbook":"xlsx","n_sheets":5,"sheets":["Results","Fixtures","League Tables","Set-up","Offsets"],"not_rendered":{"charts":0,"images":0,"macros":1,"external_links":0,"defined_names":439,"comments":1,"pivot_tables":0},"unopened":[],"bounds":{"document_bytes":16777216,"sheet_cells":100000,"rows_first":2000,"rows_last":500,"rows_between":2000,"halvings":0,"cell_chars":16384,"cell_head_chars":4096},"cells_cut":0,"cells_raw":0,"read":"whole","date_system":"1900"}

{"sheet":"Results","index":0,"n_rows":72,"n_cols":609,"rows_kept":72,"cut":false,"hidden":false,"merged":[[2,533,2,545],[2,552,2,564],[3,521,3,526],[3,533,3,538],[3,540,3,545],[3,552,3,557],[3,559,3,564],[2,571,2,583],[2,590,2,602],[3,571,3,576],[3,578,3,583],[3,590,3,595],[3,597,3,602],[3,381,3,386],[3,388,3,393],[3,400,3,405],[3,407,3,412],[3,419,3,424],[3,495,3,500],[3,502,3,507],[3,514,3,519],[2,419,2,431],[2,438,2,450],[2,457,2,469],[2,476,2,488],[2,495,2,507],[3,426,3,431],[3,457,3,462],[3,464,3,469],[3,476,3,481],[3,483,3,488],[3,438,3,443],[3,445,3,450],[2,514,2,526],[2,20,2,32],[3,20,3,25],[3,27,3,32],[2,381,2,393],[2,400,2,412],[2,96,2,108],[3,96,3,101],[3,103,3,108],[3,39,3,44],[3,46,3,51],[3,210,3,215],[3,141,3,146],[2,115,2,127],[3,115,3,120],[3,122,3,127],[2,191,2,203],[3,191,3,196],[3,198,3,203],[2,172,2,184],[3,172,3,177],[3,179,3,184],[2,248,2,260],[2,229,2,241],[3,229,3,234],[3,236,3,241],[3,217,3,222],[3,362,3,367],[2,362,2,374],[3,369,3,374],[2,343,2,355],[3,343,3,348],[3,350,3,355],[2,324,2,336],[3,324,3,329],[3,331,3,336],[2,305,2,317],[3,305,3,310],[3,312,3,317],[2,286,2,298],[3,286,3,291],[3,293,3,298],[2,267,2,279],[3,267,3,272],[3,274,3,279],[2,1,2,13],[2,210,2,222],[2,153,2,165],[2,134,2,146],[3,153,3,158],[3,160,3,165],[2,77,2,89],[2,58,2,70],[2,39,2,51],[3,1,3,6],[3,8,3,13],[3,134,3,139],[3,77,3,82],[3,84,3,89],[3,58,3,63],[3,65,3,70]]}
[null,{"$f":"Competition","v":"Blacksticks Blue Challenge"},null,null,null,null,null,null,null,null,null,null,null,null,null,null,null,null,null,null,null,null,null,null,null,null,null,{"$f":"Age_Group","v":"U15s"},null,null,null,null,null,null,null,null,null,null,null,null,null,null,{"$f":"Season","v":"2015/6"},null,null,null,null,null,null,null,{"$f":"\" Sponsored by \"&Sponsor","v":" Sponsored by Butlers Farmhouse Cheeses"}]
[]
["Away",{"$f":"Pool_A_Team_1","v":"Ashton-u-Lyne"},null,null,null,null,null,null,null,null,null,null,null,null,null,null,null,null,null,null,{"$f":"Pool_A_Team_2","v":"Fylde"},null,null,null,null,null,null,null,null,null,null,null,null,null,null,null,null,null,null,{"$f":"Pool_A_Team_3","v":"Liverpool Collegiate"},null,null,null,null,null,null,null,null,null,null,null,null,null,null,null,null,null,null,{"$f":"Pool_A_Team_4","v":"Manchester"},null,null,null,null,null,null,null,null,null,null,null,null,null,null,null,null,null,null,{"$f":"Pool_A_Team_5","v":"Rochdale"},null,null,null,null,null,null,null,null,null,null,null,null,null,null,null,null,null,null,{"$f":"Pool_A_Team_6","v":"Southport"},null,null,null,null,null,null,null,null,null,null,null,null,null,null,null,null,null,null,{"$f":"Pool_A_Team_7","v":0},null,null,null,null,null,null,null,null,null,null,null,null,null,null,null,null,null,null,{"$f":"Pool_A_Team_8","v":0},null,null,null,null,null,null,null,null,null,null,null,null,null,null,null,null,null,null,{"$f":"Pool_B_Team_1","v":"Blackburn"},null,null,null,null,null,null,null,null,null,null,null,null,null,null,null,null,null,null,{"$f":"Pool_B_Team_2","v":"Bolton"},null,null,null,null,null,null,null,null,null,null,null,null,null,null,null,null,null,null,{"$f":"Pool_B_Team_3","v":"Eccles"},null,null,null,null,null,null,null,null,null,null,null,null,null,null,null,null,null,null,{"$f":"Pool_B_Team_4","v":"Ormskirk"},null,null,null,null,null,null,null,null,null,null,null,null,null,null,null,null,null,null,{"$f":"Pool_B_Team_5","v":"Sefton"},null,null,null,null,null,null,null,null,null,null,null,null,null,null,null,null,null,null,{"$f":"Pool_B_Team_6","v":"Vale of Lune"},null,null,null,null,null,null,null,null,null,null,null,null,null,null,null,null,null,null,{"$f":"Pool_B_Team_7","v":0},null,null,null,null,null,null,null,null,null,null,null,null,null,null,null,null,null,null,{"$f":"Pool_B_Team_8","v":0},null,null,null,null,null,null,null,null,null,null,null,null,null,null,null,null,null,null,{"$f":"Pool_C_Team_1","v":"Clitheroe"},null,null,null,null,null,null,null,null,null,null,null,null,null,null,null,null,null,null,{"$f":"Pool_C_Team_2","v":"Heaton Moor"},null,null,null,null,null,null,null,null,null,null,null,null,null,null,null,null,null,null,{"$f":"Pool_C_Team_3","v":"Preston Grasshoppers"},null,null,null,null,null,null,null,null,null,null,null,null,null,null,null,null,null,null,{"$f":"Pool_C_Team_4","v":"Rossendale"},null,null,null,null,null,null,null,null,null,null,null,null,null,null,null,null,null,null,{"$f":"Pool_C_Team_5","v":"Sedgley Park"},null,null,null,null,null,null,null,null,null,null,null,null,null,null,null,null,null,null,{"$f":"Pool_C_Team_6","v":"West Park"},null,null,null,null,null,null,null,null,null,null,null,null,null,null,null,null,null,null,{"$f":"Pool_C_Team_7","v":0},null,null,null,null,null,null,null,null,null,null,null,null,null,null,null,null,null,null,{"$f":"Pool_C_Team_8","v":0},null,null,null,null,null,null,null,null,null,null,null,null,null,null,null,null,null,null,{"$f":"Pool_D_Team_1","v":"Burnley"},null,null,null,null,null,null,null,null,null,null,null,null,null,null,null,null,null,null,{"$f":"Pool_D_Team_2","v":"Bury"},null,null,null,null,null,null,null,null,null,null,null,null,null,null,null,null,null,null,{"$f":"Pool_D_Team_3","v":"Didsbury Toc H"},null,null,null,null,null,null,null,null,null,null,null,null,null,null,null,null,null,null,{"$f":"Pool_D_Team_4","v":"Liverpool St Helens"},null,null,null,null,null,null,null,null,null,null,null,null,null,null,null,null,null,null,{"$f":"Pool_D_Team_5","v":"Orrell"},null,null,null,null,null,null,null,null,null,null,null,null,null,null,null,null,null,null,{"$f":"Pool_D_Team_6","v":"Waterloo"},null,null,null,null,null,null,null,null,null,null,null,null,null,null,null,null,null,null,{"$f":"Pool_D_Team_7","v":0},null,null,null,null,null,null,null,null,null,null,null,null,null,null,null,null,null,null,{"$f":"Pool_D_Team_8","v":0}]
[null,"H",null,null,null,null,null,null,"A",null,null,null,null,null,null,null,null,null,null,null,"H",null,null,null,null,null,null,"A",null,null,null,null,null,null,null,null,null,null,null,"H",null,null,null,null,null,null,"A",null,null,null,null,null,null,null,null,null,null,null,"H",null,null,null,null,null,null,"A",null,null,null,null,null,null,null,null,null,null,null,"H",null,null,null,null,null,null,"A",null,null,null,null,null,null,null,null,null,null,null,"H",null,null,null,null,null,null,"A",null,null,null,null,null,null,null,null,null,null,null,"H",null,null,null,null,null,null,"A",null,null,null,null,null,null,null,null,null,null,null,"H",null,null,null,null,null,null,"A",null,null,null,null,null,null,null,null,null,null,null,"H",null,null,null,null,null,null,"A",null,null,null,null,null,null,null,null,null,null,null,"H",null,null,null,null,null,null,"A",null,null,null,null,null,null,null,null,null,null,null,"H",null,null,null,null,null,null,"A",null,null,null,null,null,null,null,null,null,null,null,"H",null,null,null,null,null,null,"A",null,null,null,null,null,null,null,null,null,null,null,"H",null,null,null,null,null,null,"A",null,null,null,null,null,null,null,null,null,null,null,"H",null,null,null,null,null,null,"A",null,null,null,null,null,null,null,null,null,null,null,"H",null,null,null,null,null,null,"A",null,null,null,null,null,null,null,null,null,null,null,"H",null,null,null,null,null,null,"A",null,null,null,null,null,null,null,null,null,null,null,"H",null,null,null,null,null,null,"A",null,null,null,null,null,null,null,null,null,null,null,"H",null,null,null,null,null,null,"A",null,null,null,null,null,null,null,null,null,null,null,"H",null,null,null,null,null,null,"A",null,null,null,null,null,null,null,null,null,null,null,"H",null,null,null,null,null,null,"A",null,null,null,null,null,null,null,null,null,null,null,"H",null,null,null,null,null,null,"A",null,null,null,null,null,null,null,null,null,null,null,"H",null,null,null,null,null,null,"A",null,null,null,null,null,null,null,null,null,null,null,"H",null,null,null,null,null,null,"A",null,null,null,null,null,null,null,null,null,null,null,"H",null,null,null,null,null,null,"A",null,null,null,null,null,null,null,null,null,null,null,"H",null,null,null,null,null,null,"A",null,null,null,null,null,null,null,null,null,null,null,"H",null,null,null,null,null,null,"A",null,null,null,null,null,null,null,null,null,null,null,"H",null,null,null,null,null,null,"A",null,null,null,null,null,null,null,null,null,null,null,"H",null,null,null,null,null,null,"A",null,null,null,null,null,null,null,null,null,null,null,"H",null,null,null,null,null,null,"A",null,null,null,null,null,null,null,null,null,null,null,"H",null,null,null,null,null,null,"A",null,null,null,null,null,null,null,null,null,null,null,"H",null,null,null,null,null,null,"A",null,null,null,null,null,null,null,null,null,null,null,"H",null,null,null,null,null,null,"A"]
["Home","Pts","*","Tries","Y Cards","R Cards","Ded'ns","NG?","Pts","*","Tries","Y Cards","R Cards","Ded'ns","Result","Diff","HLBP","ALBP","HTBP","ATBP","Pts","*","Tries","Y Cards","R Cards","Ded'ns","NG?","Pts","*","Tries","Y Cards","R Cards","Ded'ns","Result","Diff","HLBP","ALBP","HTBP","ATBP","Pts","*","Tries","Y Cards","R Cards","Ded'ns","NG?","Pts","*","Tries","Y Cards","R Cards","Ded'ns","Result","Diff","HLBP","ALBP","HTBP","ATBP","Pts","*","Tries","Y Cards","R Cards","Ded'ns","NG?","Pts","*","Tries","Y Cards","R Cards","Ded'ns","Result","Diff","HLBP","ALBP","HTBP","ATBP","Pts","*","Tries","Y Cards","R Cards","Ded'ns","NG?","Pts","*","Tries","Y Cards","R Cards","Ded'ns","Result","Diff","HLBP","ALBP","HTBP","ATBP","Pts","*","Tries","Y Cards","R Cards","Ded'ns","NG?","Pts","*","Tries","Y Cards","R Cards","Ded'ns","Result","Diff","HLBP","ALBP","HTBP","ATBP","Pts","Tries","*","Y Cards","R Cards","Ded'ns","NG?","Pts","*","Tries","Y Cards","R Cards","Ded'ns","Result","Diff","HLBP","ALBP","HTBP","ATBP","Pts","*","Tries","Y Cards","R Cards","Ded'ns","NG?","Pts","*","Tries","Y Cards","R Cards","Ded'ns","Result","Diff","HLBP","ALBP","HTBP","ATBP","Pts","*","Tries","Y Cards","R Cards","Ded'ns","NG?","Pts","*","Tries","Y Cards","R Cards","Ded'ns","Result","Diff","HLBP","ALBP","HTBP","ATBP","Pts","*","Tries","Y Cards","R Cards","Ded'ns","NG?","Pts","*","Tries","Y Cards","R Cards","Ded'ns","Result","Diff","HLBP","ALBP","HTBP","ATBP","Pts","*","Tries","Y Cards","R Cards","Ded'ns","NG?","Pts","*","Tries","Y Cards","R Cards","Ded'ns","Result","Diff","HLBP","ALBP","HTBP","ATBP","Pts","*","Tries","Y Cards","R Cards","Ded'ns","NG?","Pts","*","Tries","Y Cards","R Cards","Ded'ns","Result","Diff","HLBP","ALBP","HTBP","ATBP","Pts","*","Tries","Y Cards","R Cards","Ded'ns","NG?","Pts","*","Tries","Y Cards","R Cards","Ded'ns","Result","Diff","HLBP","ALBP","HTBP","ATBP","Pts","*","Tries","Y Cards","R Cards","Ded'ns","NG?","Pts","*","Tries","Y Cards","R Cards","Ded'ns","Result","Diff","HLBP","ALBP","HTBP","ATBP","Pts","*","Tries","Y Cards","R Cards","Ded'ns","NG?","Pts","*","Tries","Y Cards","R Cards","Ded'ns","Result","Diff","HLBP","ALBP","HTBP","ATBP","Pts","*","Tries","Y Cards","R Cards","Ded'ns","NG?","Pts","*","Tries","Y Cards","R Cards","Ded'ns","Result","Diff","HLBP","ALBP","HTBP","ATBP","Pts","*","Tries","Y Cards","R Cards","Ded'ns","NG?","Pts","*","Tries","Y Cards","R Cards","Ded'ns","Result","Diff","HLBP","ALBP","HTBP","ATBP","Pts","*","Tries","Y Cards","R Cards","Ded'ns","NG?","Pts","*","Tries","Y Cards","R Cards","Ded'ns","Result","Diff","HLBP","ALBP","HTBP","ATBP","Pts","*","Tries","Y Cards","R Cards","Ded'ns","NG?","Pts","*","Tries","Y Cards","R Cards","Ded'ns","Result","Diff","HLBP","ALBP","HTBP","ATBP","Pts","*","Tries","Y Cards","R Cards","Ded'ns","NG?","Pts","*","Tries","Y Cards","R Cards","Ded'ns","Result","Diff","HLBP","ALBP","HTBP","ATBP","Pts","*","Tries","Y Cards","R Cards","Ded'ns","NG?","Pts","*","Tries","Y Cards","R Cards","Ded'ns","Result","Diff","HLBP","ALBP","HTBP","ATBP","Pts","*","Tries","Y Cards","R Cards","Ded'ns","NG?","Pts","*","Tries","Y Cards","R Cards","Ded'ns","Result","Diff","HLBP","ALBP","HTBP","ATBP","Pts","*","Tries","Y Cards","R Cards","Ded'ns","NG?","Pts","*","Tries","Y Cards","R Cards","Ded'ns","Result","Diff","HLBP","ALBP","HTBP","ATBP","Pts","*","Tries","Y Cards","R Cards","Ded'ns","NG?","Pts","*","Tries","Y Cards","R Cards","Ded'ns","Result","Diff","HLBP","ALBP","HTBP","ATBP","Pts","*","Tries","Y Cards","R Cards","Ded'ns","NG?","Pts","*","Tries","Y Cards","R Cards","Ded'ns","Result","Diff","HLBP","ALBP","HTBP","ATBP","Pts","*","Tries","Y Cards","R Cards","Ded'ns","NG?","Pts","*","Tries","Y Cards","R Cards","Ded'ns","Result","Diff","HLBP","ALBP","HTBP","ATBP","Pts","*","Tries","Y Cards","R Cards","Ded'ns","NG?","Pts","*","Tries","Y Cards","R Cards","Ded'ns","Result","Diff","HLBP","ALBP","HTBP","ATBP","Pts","*","Tries","Y Cards","R Cards","Ded'ns","NG?","Pts","*","Tries","Y Cards","R Cards","Ded'ns","Result","Diff","HLBP","ALBP","HTBP","ATBP","Pts","*","Tries","Y Cards","R Cards","Ded'ns","NG?","Pts","*","Tries","Y Cards","R Cards","Ded'ns","Result","Diff","HLBP","ALBP","HTBP","ATBP","Pts","*","Tries","Y Cards","R Cards","Ded'ns","NG?","Pts","*","Tries","Y Cards","R Cards","Ded'ns","Result","Diff","HLBP","ALBP","HTBP","ATBP","Pts","*","Tries","Y Cards","R Cards","Ded'ns","NG?","Pts","*","Tries","Y Cards","R Cards","Ded'ns","Result","Diff","HLBP","ALBP","HTBP","ATBP","Pts","*","Tries","Y Cards","R Cards","Ded'ns","NG?","Pts","*","Tries","Y Cards","R Cards","Ded'ns","Result","Diff","HLBP","ALBP","HTBP","ATBP"]
[{"$f":"Pool_A_Team_1","v":"Ashton-u-Lyne"},null,null,null,null,null,null,null,null,null,null,null,null,null,{"$f":"IF(H6=\"NG\",\"\",IF(B6=\"w/o\",\"H\",IF(I6=\"w/o\",\"A\",IF(ISBLANK(B6),\"\",IF(B6>I6,\"H\",IF(B6=I6,\"D\",\"A\"))))))","v":""},{"$f":"IF(OR(ISBLANK(B6),B6=\"w/o\",H6=\"NG\",I6=\"w/o\",O6=\"D\"),\"-\",IF(O6=\"H\",B6-I6,I6-B6))","v":"-"},{"$f":"IF(OR(H6=\"NG\",I6=\"w/o\",NOT(O6=\"A\")),\"\",IF(P6>10,1,2))","v":""},{"$f":"IF(OR(B6=\"w/o\",H6=\"NG\",NOT(O6=\"H\")),\"\",IF(P6>10,1,2))","v":""},{"$f":"IF(D6>3,\"HT\",\"\")","v":""},{"$f":"IF(K6>3,\"AT\",\"\")","v":""},null,null,null,null,null,null,null,null,null,null,null,null,null,{"$f":"IF(U6=\"w/o\",\"H\",IF(AB6=\"w/o\",\"A\",IF(ISBLANK(U6),\"\",IF(U6>AB6,\"H\",IF(U6=AB6,\"D\",\"A\")))))","v":""},{"$f":"IF(OR(ISBLANK(U6),U6=\"w/o\",AB6=\"w/o\",AH6=\"D\"),\"-\",IF(AH6=\"H\",U6-AB6,AB6-U6))","v":"-"},{"$f":"IF(OR(AB6=\"w/o\",NOT(AH6=\"A\")),\"\",IF(AI6>10,1,2))","v":""},{"$f":"IF(OR(U6=\"w/o\",NOT(AH6=\"H\")),\"\",IF(AI6>10,1,2))","v":""},{"$f":"IF(W6>3,\"HT\",\"\")","v":""},{"$f":"IF(AD6>3,\"AT\",\"\")","v":""},19,null,null,null,null,null,null,26,null,null,null,null,null,{"$f":"IF(AN6=\"w/o\",\"H\",IF(AU6=\"w/o\",\"A\",IF(ISBLANK(AN6),\"\",IF(AN6>AU6,\"H\",IF(AN6=AU6,\"D\",\"A\")))))","v":"A"},{"$f":"IF(OR(ISBLANK(AN6),AN6=\"w/o\",AU6=\"w/o\",BA6=\"D\"),\"-\",IF(BA6=\"H\",AN6-AU6,AU6-AN6))","v":7},{"$f":"IF(OR(AU6=\"w/o\",NOT(BA6=\"A\")),\"\",IF(BB6>10,1,2))","v":2},{"$f":"IF(OR(AN6=\"w/o\",NOT(BA6=\"H\")),\"\",IF(BB6>10,1,2))","v":""},{"$f":"IF(AP6>3,\"HT\",\"\")","v":""},{"$f":"IF(AW6>3,\"AT\",\"\")","v":""},null,null,null,null,null,null,null,null,null,null,null,null,null,{"$f":"IF(BG6=\"w/o\",\"H\",IF(BN6=\"w/o\",\"A\",IF(ISBLANK(BG6),\"\",IF(BG6>BN6,\"H\",IF(BG6=BN6,\"D\",\"A\")))))","v":""},{"$f":"IF(OR(ISBLANK(BG6),BG6=\"w/o\",BN6=\"w/o\",BT6=\"D\"),\"-\",IF(BT6=\"H\",BG6-BN6,BN6-BG6))","v":"-"},{"$f":"IF(OR(BN6=\"w/o\",NOT(BT6=\"A\")),\"\",IF(BU6>10,1,2))","v":""},{"$f":"IF(OR(BG6=\"w/o\",NOT(BT6=\"H\")),\"\",IF(BU6>10,1,2))","v":""},{"$f":"IF(BI6>3,\"HT\",\"\")","v":""},{"$f":"IF(BP6>3,\"AT\",\"\")","v":""},null,null,null,null,null,null,null,null,null,null,null,null,null,{"$f":"IF(BZ6=\"w/o\",\"H\",IF(CG6=\"w/o\",\"A\",IF(ISBLANK(BZ6),\"\",IF(BZ6>CG6,\"H\",IF(BZ6=CG6,\"D\",\"A\")))))","v":""},{"$f":"IF(OR(ISBLANK(BZ6),BZ6=\"w/o\",CG6=\"w/o\",CM6=\"D\"),\"-\",IF(CM6=\"H\",BZ6-CG6,CG6-BZ6))","v":"-"},{"$f":"IF(OR(CG6=\"w/o\",NOT(CM6=\"A\")),\"\",IF(CN6>10,1,2))","v":""},{"$f":"IF(OR(BZ6=\"w/o\",NOT(CM6=\"H\")),\"\",IF(CN6>10,1,2))","v":""},{"$f":"IF(CB6>3,\"HT\",\"\")","v":""},{"$f":"IF(CI6>3,\"AT\",\"\")","v":""},null,null,null,null,null,null,null,null,null,null,null,null,null,{"$f":"IF(CS6=\"w/o\",\"H\",IF(CZ6=\"w/o\",\"A\",IF(ISBLANK(CS6),\"\",IF(CS6>CZ6,\"H\",IF(CS6=CZ6,\"D\",\"A\")))))","v":""},{"$f":"IF(OR(ISBLANK(CS6),CS6=\"w/o\",CZ6=\"w/o\",DF6=\"D\"),\"-\",IF(DF6=\"H\",CS6-CZ6,CZ6-CS6))","v":"-"},{"$f":"IF(OR(CZ6=\"w/o\",NOT(DF6=\"A\")),\"\",IF(DG6>10,1,2))","v":""},{"$f":"IF(OR(CS6=\"w/o\",NOT(DF6=\"H\")),\"\",IF(DG6>10,1,2))","v":""},{"$f":"IF(CU6>3,\"HT\",\"\")","v":""},{"$f":"IF(DB6>3,\"AT\",\"\")","v":""},null,null,null,null,null,null,null,null,null,null,null,null,null,{"$f":"IF(DL6=\"w/o\",\"H\",IF(DS6=\"w/o\",\"A\",IF(ISBLANK(DL6),\"\",IF(DL6>DS6,\"H\",IF(DL6=DS6,\"D\",\"A\")))))","v":""},{"$f":"IF(OR(ISBLANK(DL6),DL6=\"w/o\",DS6=\"w/o\",DY6=\"D\"),\"-\",IF(DY6=\"H\",DL6-DS6,DS6-DL6))","v":"-"},{"$f":"IF(OR(DS6=\"w/o\",NOT(DY6=\"A\")),\"\",IF(DZ6>10,1,2))","v":""},{"$f":"IF(OR(DL6=\"w/o\",NOT(DY6=\"H\")),\"\",IF(DZ6>10,1,2))","v":""},{"$f":"IF(DM6>3,\"HT\",\"\")","v":""},{"$f":"IF(DU6>3,\"AT\",\"\")","v":""},null,null,null,null,null,null,null,null,null,null,null,null,null,{"$f":"IF(EE6=\"w/o\",\"H\",IF(EL6=\"w/o\",\"A\",IF(ISBLANK(EE6),\"\",IF(EE6>EL6,\"H\",IF(EE6=EL6,\"D\",\"A\")))))","v":""},{"$f":"IF(OR(ISBLANK(EE6),EE6=\"w/o\",EL6=\"w/o\",ER6=\"D\"),\"-\",IF(ER6=\"H\",EE6-EL6,EL6-EE6))","v":"-"},{"$f":"IF(OR(EL6=\"w/o\",NOT(ER6=\"A\")),\"\",IF(ES6>10,1,2))","v":""},{"$f":"IF(OR(EE6=\"w/o\",NOT(ER6=\"H\")),\"\",IF(ES6>10,1,2))","v":""},{"$f":"IF(EG6>3,\"HT\",\"\")","v":""},{"$f":"IF(EN6>3,\"AT\",\"\")","v":""},null,null,null,null,null,null,null,null,null,null,null,null,null,{"$f":"IF(EX6=\"w/o\",\"H\",IF(FE6=\"w/o\",\"A\",IF(ISBLANK(EX6),\"\",IF(EX6>FE6,\"H\",IF(EX6=FE6,\"D\",\"A\")))))","v":""},{"$f":"IF(OR(ISBLANK(EX6),EX6=\"w/o\",FE6=\"w/o\",FK6=\"D\"),\"-\",IF(FK6=\"H\",EX6-FE6,FE6-EX6))","v":"-"},{"$f":"IF(OR(FE6=\"w/o\",NOT(FK6=\"A\")),\"\",IF(FL6>10,1,2))","v":""},{"$f":"IF(OR(EX6=\"w/o\",NOT(FK6=\"H\")),\"\",IF(FL6>10,1,2))","v":""},{"$f":"IF(EZ6>3,\"HT\",\"\")","v":""},{"$f":"IF(FG6>3,\"AT\",\"\")","v":""},null,null,null,null,null,null,null,null,null,null,null,null,null,{"$f":"IF(FQ6=\"w/o\",\"H\",IF(FX6=\"w/o\",\"A\",IF(ISBLANK(FQ6),\"\",IF(FQ6>FX6,\"H\",IF(FQ6=FX6,\"D\",\"A\")))))","v":""},{"$f":"IF(OR(ISBLANK(FQ6),FQ6=\"w/o\",FX6=\"w/o\",GD6=\"D\"),\"-\",IF(GD6=\"H\",FQ6-FX6,FX6-FQ6))","v":"-"},{"$f":"IF(OR(FX6=\"w/o\",NOT(GD6=\"A\")),\"\",IF(GE6>10,1,2))","v":""},{"$f":"IF(OR(FQ6=\"w/o\",NOT(GD6=\"H\")),\"\",IF(GE6>10,1,2))","v":""},{"$f":"IF(FS6>3,\"HT\",\"\")","v":""},{"$f":"IF(FZ6>3,\"AT\",\"\")","v":""},null,null,null,null,null,null,null,null,null,null,null,null,null,{"$f":"IF(GJ6=\"w/o\",\"H\",IF(GQ6=\"w/o\",\"A\",IF(ISBLANK(GJ6),\"\",IF(GJ6>GQ6,\"H\",IF(GJ6=GQ6,\"D\",\"A\")))))","v":""},{"$f":"IF(OR(ISBLANK(GJ6),GJ6=\"w/o\",GQ6=\"w/o\",GW6=\"D\"),\"-\",IF(GW6=\"H\",GJ6-GQ6,GQ6-GJ6))","v":"-"},{"$f":"IF(OR(GQ6=\"w/o\",NOT(GW6=\"A\")),\"\",IF(GX6>10,1,2))","v":""},{"$f":"IF(OR(GJ6=\"w/o\",NOT(GW6=\"H\")),\"\",IF(GX6>10,1,2))","v":""},{"$f":"IF(GL6>3,\"HT\",\"\")","v":""},{"$f":"IF(GS6>3,\"AT\",\"\")","v":""},null,null,null,null,null,null,null,null,null,null,null,null,null,{"$f":"IF(HC6=\"w/o\",\"H\",IF(HJ6=\"w/o\",\"A\",IF(ISBLANK(HC6),\"\",IF(HC6>HJ6,\"H\",IF(HC6=HJ6,\"D\",\"A\")))))","v":""},{"$f":"IF(OR(ISBLANK(HC6),HC6=\"w/o\",HJ6=\"w/o\",HP6=\"D\"),\"-\",IF(HP6=\"H\",HC6-HJ6,HJ6-HC6))","v":"-"},{"$f":"IF(OR(HJ6=\"w/o\",NOT(HP6=\"A\")),\"\",IF(HQ6>10,1,2))","v":""},{"$f":"IF(OR(HC6=\"w/o\",NOT(HP6=\"H\")),\"\",IF(HQ6>10,1,2))","v":""},{"$f":"IF(HE6>3,\"HT\",\"\")","v":""},{"$f":"IF(HL6>3,\"AT\",\"\")","v":""},null,null,null,null,null,null,null,null,null,null,null,null,null,{"$f":"IF(HV6=\"w/o\",\"H\",IF(IC6=\"w/o\",\"A\",IF(ISBLANK(HV6),\"\",IF(HV6>IC6,\"H\",IF(HV6=IC6,\"D\",\"A\")))))","v":""},{"$f":"IF(OR(ISBLANK(HV6),HV6=\"w/o\",IC6=\"w/o\",II6=\"D\"),\"-\",IF(II6=\"H\",HV6-IC6,IC6-HV6))","v":"-"},{"$f":"IF(OR(IC6=\"w/o\",NOT(II6=\"A\")),\"\",IF(IJ6>10,1,2))","v":""},{"$f":"IF(OR(HV6=\"w/o\",NOT(II6=\"H\")),\"\",IF(IJ6>10,1,2))","v":""},{"$f":"IF(HX6>3,\"HT\",\"\")","v":""},{"$f":"IF(IE6>3,\"AT\",\"\")","v":""},null,null,null,null,null,null,null,null,null,null,null,null,null,{"$f":"IF(IO6=\"w/o\",\"H\",IF(IV6=\"w/o\",\"A\",IF(ISBLANK(IO6),\"\",IF(IO6>IV6,\"H\",IF(IO6=IV6,\"D\",\"A\")))))","v":""},{"$f":"IF(OR(ISBLANK(IO6),IO6=\"w/o\",IV6=\"w/o\",JB6=\"D\"),\"-\",IF(JB6=\"H\",IO6-IV6,IV6-IO6))","v":"-"},{"$f":"IF(OR(IV6=\"w/o\",NOT(JB6=\"A\")),\"\",IF(JC6>10,1,2))","v":""},{"$f":"IF(OR(IO6=\"w/o\",NOT(JB6=\"H\")),\"\",IF(JC6>10,1,2))","v":""},{"$f":"IF(IQ6>3,\"HT\",\"\")","v":""},{"$f":"IF(IX6>3,\"AT\",\"\")","v":""},null,null,null,null,null,null,null,null,null,null,null,null,null,{"$f":"IF(JH6=\"w/o\",\"H\",IF(JO6=\"w/o\",\"A\",IF(ISBLANK(JH6),\"\",IF(JH6>JO6,\"H\",IF(JH6=JO6,\"D\",\"A\")))))","v":""},{"$f":"IF(OR(ISBLANK(JH6),JH6=\"w/o\",JO6=\"w/o\",JU6=\"D\"),\"-\",IF(JU6=\"H\",JH6-JO6,JO6-JH6))","v":"-"},{"$f":"IF(OR(JO6=\"w/o\",NOT(JU6=\"A\")),\"\",IF(JV6>10,1,2))","v":""},{"$f":"IF(OR(JH6=\"w/o\",NOT(JU6=\"H\")),\"\",IF(JV6>10,1,2))","v":""},{"$f":"IF(JJ6>3,\"HT\",\"\")","v":""},{"$f":"IF(JQ6>3,\"AT\",\"\")","v":""},null,null,null,null,null,null,null,null,null,null,null,null,null,{"$f":"IF(KA6=\"w/o\",\"H\",IF(KH6=\"w/o\",\"A\",IF(ISBLANK(KA6),\"\",IF(KA6>KH6,\"H\",IF(KA6=KH6,\"D\",\"A\")))))","v":""},{"$f":"IF(OR(ISBLANK(KA6),KA6=\"w/o\",KH6=\"w/o\",KN6=\"D\"),\"-\",IF(KN6=\"H\",KA6-KH6,KH6-KA6))","v":"-"},{"$f":"IF(OR(KH6=\"w/o\",NOT(KN6=\"A\")),\"\",IF(KO6>10,1,2))","v":""},{"$f":"IF(OR(KA6=\"w/o\",NOT(KN6=\"H\")),\"\",IF(KO6>10,1,2))","v":""},{"$f":"IF(KC6>3,\"HT\",\"\")","v":""},{"$f":"IF(KJ6>3,\"AT\",\"\")","v":""},null,null,null,null,null,null,null,null,null,null,null,null,null,{"$f":"IF(KT6=\"w/o\",\"H\",IF(LA6=\"w/o\",\"A\",IF(ISBLANK(KT6),\"\",IF(KT6>LA6,\"H\",IF(KT6=LA6,\"D\",\"A\")))))","v":""},{"$f":"IF(OR(ISBLANK(KT6),KT6=\"w/o\",LA6=\"w/o\",LG6=\"D\"),\"-\",IF(LG6=\"H\",KT6-LA6,LA6-KT6))","v":"-"},{"$f":"IF(OR(LA6=\"w/o\",NOT(LG6=\"A\")),\"\",IF(LH6>10,1,2))","v":""},{"$f":"IF(OR(KT6=\"w/o\",NOT(LG6=\"H\")),\"\",IF(LH6>10,1,2))","v":""},{"$f":"IF(KV6>3,\"HT\",\"\")","v":""},{"$f":"IF(LC6>3,\"AT\",\"\")","v":""},null,null,null,null,null,null,null,null,null,null,null,null,null,{"$f":"IF(LM6=\"w/o\",\"H\",IF(LT6=\"w/o\",\"A\",IF(ISBLANK(LM6),\"\",IF(LM6>LT6,\"H\",IF(LM6=LT6,\"D\",\"A\")))))","v":""},{"$f":"IF(OR(ISBLANK(LM6),LM6=\"w/o\",LT6=\"w/o\",LZ6=\"D\"),\"-\",IF(LZ6=\"H\",LM6-LT6,LT6-LM6))","v":"-"},{"$f":"IF(OR(LT6=\"w/o\",NOT(LZ6=\"A\")),\"\",IF(MA6>10,1,2))","v":""},{"$f":"IF(OR(LM6=\"w/o\",NOT(LZ6=\"H\")),\"\",IF(MA6>10,1,2))","v":""},{"$f":"IF(LO6>3,\"HT\",\"\")","v":""},{"$f":"IF(LV6>3,\"AT\",\"\")","v":""},null,null,null,null,null,null,null,null,null,null,null,null,null,{"$f":"IF(MF6=\"w/o\",\"H\",IF(MM6=\"w/o\",\"A\",IF(ISBLANK(MF6),\"\",IF(MF6>MM6,\"H\",IF(MF6=MM6,\"D\",\"A\")))))","v":""},{"$f":"IF(OR(ISBLANK(MF6),MF6=\"w/o\",MM6=\"w/o\",MS6=\"D\"),\"-\",IF(MS6=\"H\",MF6-MM6,MM6-MF6))","v":"-"},{"$f":"IF(OR(MM6=\"w/o\",NOT(MS6=\"A\")),\"\",IF(MT6>10,1,2))","v":""},{"$f":"IF(OR(MF6=\"w/o\",NOT(MS6=\"H\")),\"\",IF(MT6>10,1,2))","v":""},{"$f":"IF(MH6>3,\"HT\",\"\")","v":""},{"$f":"IF(MO6>3,\"AT\",\"\")","v":""},null,null,null,null,null,null,null,null,null,null,null,null,null,{"$f":"IF(MY6=\"w/o\",\"H\",IF(NF6=\"w/o\",\"A\",IF(ISBLANK(MY6),\"\",IF(MY6>NF6,\"H\",IF(MY6=NF6,\"D\",\"A\")))))","v":""},{"$f":"IF(OR(ISBLANK(MY6),MY6=\"w/o\",NF6=\"w/o\",NL6=\"D\"),\"-\",IF(NL6=\"H\",MY6-NF6,NF6-MY6))","v":"-"},{"$f":"IF(OR(NF6=\"w/o\",NOT(NL6=\"A\")),\"\",IF(NM6>10,1,2))","v":""},{"$f":"IF(OR(MY6=\"w/o\",NOT(NL6=\"H\")),\"\",IF(NM6>10,1,2))","v":""},{"$f":"IF(NA6>3,\"HT\",\"\")","v":""},{"$f":"IF(NH6>3,\"AT\",\"\")","v":""},null,null,null,null,null,null,null,null,null,null,null,null,null,{"$f":"IF(NR6=\"w/o\",\"H\",IF(NY6=\"w/o\",\"A\",IF(ISBLANK(NR6),\"\",IF(NR6>NY6,\"H\",IF(NR6=NY6,\"D\",\"A\")))))","v":""},{"$f":"IF(OR(ISBLANK(NR6),NR6=\"w/o\",NY6=\"w/o\",OE6=\"D\"),\"-\",IF(OE6=\"H\",NR6-NY6,NY6-NR6))","v":"-"},{"$f":"IF(OR(NY6=\"w/o\",NOT(OE6=\"A\")),\"\",IF(OF6>10,1,2))","v":""},{"$f":"IF(OR(NR6=\"w/o\",NOT(OE6=\"H\")),\"\",IF(OF6>10,1,2))","v":""},{"$f":"IF(NT6>3,\"HT\",\"\")","v":""},{"$f":"IF(OA6>3,\"AT\",\"\")","v":""},null,null,null,null,null,null,null,null,null,null,null,null,null,{"$f":"IF(OK6=\"w/o\",\"H\",IF(OR6=\"w/o\",\"A\",IF(ISBLANK(OK6),\"\",IF(OK6>OR6,\"H\",IF(OK6=OR6,\"D\",\"A\")))))","v":""},{"$f":"IF(OR(ISBLANK(OK6),OK6=\"w/o\",OR6=\"w/o\",OX6=\"D\"),\"-\",IF(OX6=\"H\",OK6-OR6,OR6-OK6))","v":"-"},{"$f":"IF(OR(OR6=\"w/o\",NOT(OX6=\"A\")),\"\",IF(OY6>10,1,2))","v":""},{"$f":"IF(OR(OK6=\"w/o\",NOT(OX6=\"H\")),\"\",IF(OY6>10,1,2))","v":""},{"$f":"IF(OM6>3,\"HT\",\"\")","v":""},{"$f":"IF(OT6>3,\"AT\",\"\")","v":""},null,null,null,null,null,null,null,null,null,null,null,null,null,{"$f":"IF(PD6=\"w/o\",\"H\",IF(PK6=\"w/o\",\"A\",IF(ISBLANK(PD6),\"\",IF(PD6>PK6,\"H\",IF(PD6=PK6,\"D\",\"A\")))))","v":""},{"$f":"IF(OR(ISBLANK(PD6),PD6=\"w/o\",PK6=\"w/o\",PQ6=\"D\"),\"-\",IF(PQ6=\"H\",PD6-PK6,PK6-PD6))","v":"-"},{"$f":"IF(OR(PK6=\"w/o\",NOT(PQ6=\"A\")),\"\",IF(PR6>10,1,2))","v":""},{"$f":"IF(OR(PD6=\"w/o\",NOT(PQ6=\"H\")),\"\",IF(PR6>10,1,2))","v":""},{"$f":"IF(PF6>3,\"HT\",\"\")","v":""},{"$f":"IF(PM6>3,\"AT\",\"\")","v":""},null,null,null,null,null,null,null,null,null,null,null,null,null,{"$f":"IF(PW6=\"w/o\",\"H\",IF(QD6=\"w/o\",\"A\",IF(ISBLANK(PW6),\"\",IF(PW6>QD6,\"H\",IF(PW6=QD6,\"D\",\"A\")))))","v":""},{"$f":"IF(OR(ISBLANK(PW6),PW6=\"w/o\",QD6=\"w/o\",QJ6=\"D\"),\"-\",IF(QJ6=\"H\",PW6-QD6,QD6-PW6))","v":"-"},{"$f":"IF(OR(QD6=\"w/o\",NOT(QJ6=\"A\")),\"\",IF(QK6>10,1,2))","v":""},{"$f":"IF(OR(PW6=\"w/o\",NOT(QJ6=\"H\")),\"\",IF(QK6>10,1,2))","v":""},{"$f":"IF(PY6>3,\"HT\",\"\")","v":""},{"$f":"IF(QF6>3,\"AT\",\"\")","v":""},null,null,null,null,null,null,null,null,null,null,null,null,null,{"$f":"IF(QP6=\"w/o\",\"H\",IF(QW6=\"w/o\",\"A\",IF(ISBLANK(QP6),\"\",IF(QP6>QW6,\"H\",IF(QP6=QW6,\"D\",\"A\")))))","v":""},{"$f":"IF(OR(ISBLANK(QP6),QP6=\"w/o\",QW6=\"w/o\",RC6=\"D\"),\"-\",IF(RC6=\"H\",QP6-QW6,QW6-QP6))","v":"-"},{"$f":"IF(OR(QW6=\"w/o\",NOT(RC6=\"A\")),\"\",IF(RD6>10,1,2))","v":""},{"$f":"IF(OR(QP6=\"w/o\",NOT(RC6=\"H\")),\"\",IF(RD6>10,1,2))","v":""},{"$f":"IF(QR6>3,\"HT\",\"\")","v":""},{"$f":"IF(QY6>3,\"AT\",\"\")","v":""},null,null,null,null,null,null,null,null,null,null,null,null,null,{"$f":"IF(RI6=\"w/o\",\"H\",IF(RP6=\"w/o\",\"A\",IF(ISBLANK(RI6),\"\",IF(RI6>RP6,\"H\",IF(RI6=RP6,\"D\",\"A\")))))","v":""},{"$f":"IF(OR(ISBLANK(RI6),RI6=\"w/o\",RP6=\"w/o\",RV6=\"D\"),\"-\",IF(RV6=\"H\",RI6-RP6,RP6-RI6))","v":"-"},{"$f":"IF(OR(RP6=\"w/o\",NOT(RV6=\"A\")),\"\",IF(RW6>10,1,2))","v":""},{"$f":"IF(OR(RI6=\"w/o\",NOT(RV6=\"H\")),\"\",IF(RW6>10,1,2))","v":""},{"$f":"IF(RK6>3,\"HT\",\"\")","v":""},{"$f":"IF(RR6>3,\"AT\",\"\")","v":""},null,null,null,null,null,null,null,null,null,null,null,null,null,{"$f":"IF(SB6=\"w/o\",\"H\",IF(SI6=\"w/o\",\"A\",IF(ISBLANK(SB6),\"\",IF(SB6>SI6,\"H\",IF(SB6=SI6,\"D\",\"A\")))))","v":""},{"$f":"IF(OR(ISBLANK(SB6),SB6=\"w/o\",SI6=\"w/o\",SO6=\"D\"),\"-\",IF(SO6=\"H\",SB6-SI6,SI6-SB6))","v":"-"},{"$f":"IF(OR(SI6=\"w/o\",NOT(SO6=\"A\")),\"\",IF(SP6>10,1,2))","v":""},{"$f":"IF(OR(SB6=\"w/o\",NOT(SO6=\"H\")),\"\",IF(SP6>10,1,2))","v":""},{"$f":"IF(SD6>3,\"HT\",\"\")","v":""},{"$f":"IF(SK6>3,\"AT\",\"\")","v":""},null,null,null,null,null,null,null,null,null,null,null,null,null,{"$f":"IF(SU6=\"w/o\",\"H\",IF(TB6=\"w/o\",\"A\",IF(ISBLANK(SU6),\"\",IF(SU6>TB6,\"H\",IF(SU6=TB6,\"D\",\"A\")))))","v":""},{"$f":"IF(OR(ISBLANK(SU6),SU6=\"w/o\",TB6=\"w/o\",TH6=\"D\"),\"-\",IF(TH6=\"H\",SU6-TB6,TB6-SU6))","v":"-"},{"$f":"IF(OR(TB6=\"w/o\",NOT(TH6=\"A\")),\"\",IF(TI6>10,1,2))","v":""},{"$f":"IF(OR(SU6=\"w/o\",NOT(TH6=\"H\")),\"\",IF(TI6>10,1,2))","v":""},{"$f":"IF(SW6>3,\"HT\",\"\")","v":""},{"$f":"IF(TD6>3,\"AT\",\"\")","v":""},null,null,null,null,null,null,null,null,null,null,null,null,null,{"$f":"IF(TN6=\"w/o\",\"H\",IF(TU6=\"w/o\",\"A\",IF(ISBLANK(TN6),\"\",IF(TN6>TU6,\"H\",IF(TN6=TU6,\"D\",\"A\")))))","v":""},{"$f":"IF(OR(ISBLANK(TN6),TN6=\"w/o\",TU6=\"w/o\",UA6=\"D\"),\"-\",IF(UA6=\"H\",TN6-TU6,TU6-TN6))","v":"-"},{"$f":"IF(OR(TU6=\"w/o\",NOT(UA6=\"A\")),\"\",IF(UB6>10,1,2))","v":""},{"$f":"IF(OR(TN6=\"w/o\",NOT(UA6=\"H\")),\"\",IF(UB6>10,1,2))","v":""},{"$f":"IF(TP6>3,\"HT\",\"\")","v":""},{"$f":"IF(TW6>3,\"AT\",\"\")","v":""},null,null,null,null,null,null,null,null,null,null,null,null,null,{"$f":"IF(UG6=\"w/o\",\"H\",IF(UN6=\"w/o\",\"A\",IF(ISBLANK(UG6),\"\",IF(UG6>UN6,\"H\",IF(UG6=UN6,\"D\",\"A\")))))","v":""},{"$f":"IF(OR(ISBLANK(UG6),UG6=\"w/o\",UN6=\"w/o\",UT6=\"D\"),\"-\",IF(UT6=\"H\",UG6-UN6,UN6-UG6))","v":"-"},{"$f":"IF(OR(UN6=\"w/o\",NOT(UT6=\"A\")),\"\",IF(UU6>10,1,2))","v":""},{"$f":"IF(OR(UG6=\"w/o\",NOT(UT6=\"H\")),\"\",IF(UU6>10,1,2))","v":""},{"$f":"IF(UI6>3,\"HT\",\"\")","v":""},{"$f":"IF(UP6>3,\"AT\",\"\")","v":""},null,null,null,null,null,null,null,null,null,null,null,null,null,{"$f":"IF(UZ6=\"w/o\",\"H\",IF(VG6=\"w/o\",\"A\",IF(ISBLANK(UZ6),\"\",IF(UZ6>VG6,\"H\",IF(UZ6=VG6,\"D\",\"A\")))))","v":""},{"$f":"IF(OR(ISBLANK(UZ6),UZ6=\"w/o\",VG6=\"w/o\",VM6=\"D\"),\"-\",IF(VM6=\"H\",UZ6-VG6,VG6-UZ6))","v":"-"},{"$f":"IF(OR(VG6=\"w/o\",NOT(VM6=\"A\")),\"\",IF(VN6>10,1,2))","v":""},{"$f":"IF(OR(UZ6=\"w/o\",NOT(VM6=\"H\")),\"\",IF(VN6>10,1,2))","v":""},{"$f":"IF(VB6>3,\"HT\",\"\")","v":""},{"$f":"IF(VI6>3,\"AT\",\"\")","v":""},null,null,null,null,null,null,null,null,null,null,null,null,null,{"$f":"IF(VS6=\"w/o\",\"H\",IF(VZ6=\"w/o\",\"A\",IF(ISBLANK(VS6),\"\",IF(VS6>VZ6,\"H\",IF(VS6=VZ6,\"D\",\"A\")))))","v":""},{"$f":"IF(OR(ISBLANK(VS6),VS6=\"w/o\",VZ6=\"w/o\",WF6=\"D\"),\"-\",IF(WF6=\"H\",VS6-VZ6,VZ6-VS6))","v":"-"},{"$f":"IF(OR(VZ6=\"w/o\",NOT(WF6=\"A\")),\"\",IF(WG6>10,1,2))","v":""},{"$f":"IF(OR(VS6=\"w/o\",NOT(WF6=\"H\")),\"\",IF(WG6>10,1,2))","v":""},{"$f":"IF(VU6>3,\"HT\",\"\")","v":""},{"$f":"IF(WB6>3,\"AT\",\"\")","v":""}]
[{"$f":"Pool_A_Team_2","v":"Fylde"},30,"*",null,null,null,null,null,0,null,null,null,null,null,"H",30,"",1,{"$f":"IF(D7>3,\"HT\",\"\")","v":""},{"$f":"IF(K7>3,\"AT\",\"\")","v":""},null,null,null,null,null,null,null,null,null,null,null,null,null,{"$f":"IF(U7=\"w/o\",\"H\",IF(AB7=\"w/o\",\"A\",IF(ISBLANK(U7),\"\",IF(U7>AB7,\"H\",IF(U7=AB7,\"D\",\"A\")))))","v":""},{"$f":"IF(OR(ISBLANK(U7),U7=\"w/o\",AB7=\"w/o\",AH7=\"D\"),\"-\",IF(AH7=\"H\",U7-AB7,AB7-U7))","v":"-"},{"$f":"IF(OR(AB7=\"w/o\",NOT(AH7=\"A\")),\"\",IF(AI7>10,1,2))","v":""},{"$f":"IF(OR(U7=\"w/o\",NOT(AH7=\"H\")),\"\",IF(AI7>10,1,2))","v":""},"","",null,null,null,null,null,null,null,null,null,null,null,null,null,{"$f":"IF(AN7=\"w/o\",\"H\",IF(AU7=\"w/o\",\"A\",IF(ISBLANK(AN7),\"\",IF(AN7>AU7,\"H\",IF(AN7=AU7,\"D\",\"A\")))))","v":""},{"$f":"IF(OR(ISBLANK(AN7),AN7=\"w/o\",AU7=\"w/o\",BA7=\"D\"),\"-\",IF(BA7=\"H\",AN7-AU7,AU7-AN7))","v":"-"},{"$f":"IF(OR(AU7=\"w/o\",NOT(BA7=\"A\")),\"\",IF(BB7>10,1,2))","v":""},{"$f":"IF(OR(AN7=\"w/o\",NOT(BA7=\"H\")),\"\",IF(BB7>10,1,2))","v":""},"","",28,null,null,null,null,null,null,32,null,null,null,null,null,{"$f":"IF(BG7=\"w/o\",\"H\",IF(BN7=\"w/o\",\"A\",IF(ISBLANK(BG7),\"\",IF(BG7>BN7,\"H\",IF(BG7=BN7,\"D\",\"A\")))))","v":"A"},{"$f":"IF(OR(ISBLANK(BG7),BG7=\"w/o\",BN7=\"w/o\",BT7=\"D\"),\"-\",IF(BT7=\"H\",BG7-BN7,BN7-BG7))","v":4},{"$f":"IF(OR(BN7=\"w/o\",NOT(BT7=\"A\")),\"\",IF(BU7>10,1,2))","v":2},{"$f":"IF(OR(BG7=\"w/o\",NOT(BT7=\"H\")),\"\",IF(BU7>10,1,2))","v":""},"","",null,null,null,null,null,null,null,null,null,null,null,null,null,{"$f":"IF(BZ7=\"w/o\",\"H\",IF(CG7=\"w/o\",\"A\",IF(ISBLANK(BZ7),\"\",IF(BZ7>CG7,\"H\",IF(BZ7=CG7,\"D\",\"A\")))))","v":""},{"$f":"IF(OR(ISBLANK(BZ7),BZ7=\"w/o\",CG7=\"w/o\",CM7=\"D\"),\"-\",IF(CM7=\"H\",BZ7-CG7,CG7-BZ7))","v":"-"},{"$f":"IF(OR(CG7=\"w/o\",NOT(CM7=\"A\")),\"\",IF(CN7>10,1,2))","v":""},{"$f":"IF(OR(BZ7=\"w/o\",NOT(CM7=\"H\")),\"\",IF(CN7>10,1,2))","v":""},"","",null,null,null,null,null,null,null,null,null,null,null,null,null,{"$f":"IF(CS7=\"w/o\",\"H\",IF(CZ7=\"w/o\",\"A\",IF(ISBLANK(CS7),\"\",IF(CS7>CZ7,\"H\",IF(CS7=CZ7,\"D\",\"A\")))))","v":""},{"$f":"IF(OR(ISBLANK(CS7),CS7=\"w/o\",CZ7=\"w/o\",DF7=\"D\"),\"-\",IF(DF7=\"H\",CS7-CZ7,CZ7-CS7))","v":"-"},{"$f":"IF(OR(CZ7=\"w/o\",NOT(DF7=\"A\")),\"\",IF(DG7>10,1,2))","v":""},{"$f":"IF(OR(CS7=\"w/o\",NOT(DF7=\"H\")),\"\",IF(DG7>10,1,2))","v":""},"","",null,null,null,null,null,null,null,null,null,null,null,null,null,{"$f":"IF(DL7=\"w/o\",\"H\",IF(DS7=\"w/o\",\"A\",IF(ISBLANK(DL7),\"\",IF(DL7>DS7,\"H\",IF(DL7=DS7,\"D\",\"A\")))))","v":""},{"$f":"IF(OR(ISBLANK(DL7),DL7=\"w/o\",DS7=\"w/o\",DY7=\"D\"),\"-\",IF(DY7=\"H\",DL7-DS7,DS7-DL7))","v":"-"},{"$f":"IF(OR(DS7=\"w/o\",NOT(DY7=\"A\")),\"\",IF(DZ7>10,1,2))","v":""},{"$f":"IF(OR(DL7=\"w/o\",NOT(DY7=\"H\")),\"\",IF(DZ7>10,1,2))","v":""},"","",null,null,null,null,null,null,null,null,null,null,null,null,null,{"$f":"IF(EE7=\"w/o\",\"H\",IF(EL7=\"w/o\",\"A\",IF(ISBLANK(EE7),\"\",IF(EE7>EL7,\"H\",IF(EE7=EL7,\"D\",\"A\")))))","v":""},{"$f":"IF(OR(ISBLANK(EE7),EE7=\"w/o\",EL7=\"w/o\",ER7=\"D\"),\"-\",IF(ER7=\"H\",EE7-EL7,EL7-EE7))","v":"-"},{"$f":"IF(OR(EL7=\"w/o\",NOT(ER7=\"A\")),\"\",IF(ES7>10,1,2))","v":""},{"$f":"IF(OR(EE7=\"w/o\",NOT(ER7=\"H\")),\"\",IF(ES7>10,1,2))","v":""},"","",null,null,null,null,null,null,null,null,null,null,null,null,null,{"$f":"IF(EX7=\"w/o\",\"H\",IF(FE7=\"w/o\",\"A\",IF(ISBLANK(EX7),\"\",IF(EX7>FE7,\"H\",IF(EX7=FE7,\"D\",\"A\")))))","v":""},{"$f":"IF(OR(ISBLANK(EX7),EX7=\"w/o\",FE7=\"w/o\",FK7=\"D\"),\"-\",IF(FK7=\"H\",EX7-FE7,FE7-EX7))","v":"-"},{"$f":"IF(OR(FE7=\"w/o\",NOT(FK7=\"A\")),\"\",IF(FL7>10,1,2))","v":""},{"$f":"IF(OR(EX7=\"w/o\",NOT(FK7=\"H\")),\"\",IF(FL7>10,1,2))","v":""},"","",null,null,null,null,null,null,null,null,null,null,null,null,null,{"$f":"IF(FQ7=\"w/o\",\"H\",IF(FX7=\"w/o\",\"A\",IF(ISBLANK(FQ7),\"\",IF(FQ7>FX7,\"H\",IF(FQ7=FX7,\"D\",\"A\")))))","v":""},{"$f":"IF(OR(ISBLANK(FQ7),FQ7=\"w/o\",FX7=\"w/o\",GD7=\"D\"),\"-\",IF(GD7=\"H\",FQ7-FX7,FX7-FQ7))","v":"-"},{"$f":"IF(OR(FX7=\"w/o\",NOT(GD7=\"A\")),\"\",IF(GE7>10,1,2))","v":""},{"$f":"IF(OR(FQ7=\"w/o\",NOT(GD7=\"H\")),\"\",IF(GE7>10,1,2))","v":""},"","",null,null,null,null,null,null,null,null,null,null,null,null,null,{"$f":"IF(GJ7=\"w/o\",\"H\",IF(GQ7=\"w/o\",\"A\",IF(ISBLANK(GJ7),\"\",IF(GJ7>GQ7,\"H\",IF(GJ7=GQ7,\"D\",\"A\")))))","v":""},{"$f":"IF(OR(ISBLANK(GJ7),GJ7=\"w/o\",GQ7=\"w/o\",GW7=\"D\"),\"-\",IF(GW7=\"H\",GJ7-GQ7,GQ7-GJ7))","v":"-"},{"$f":"IF(OR(GQ7=\"w/o\",NOT(GW7=\"A\")),\"\",IF(GX7>10,1,2))","v":""},{"$f":"IF(OR(GJ7=\"w/o\",NOT(GW7=\"H\")),\"\",IF(GX7>10,1,2))","v":""},"","",null,null,null,null,null,null,null,null,null,null,null,null,null,{"$f":"IF(HC7=\"w/o\",\"H\",IF(HJ7=\"w/o\",\"A\",IF(ISBLANK(HC7),\"\",IF(HC7>HJ7,\"H\",IF(HC7=HJ7,\"D\",\"A\")))))","v":""},{"$f":"IF(OR(ISBLANK(HC7),HC7=\"w/o\",HJ7=\"w/o\",HP7=\"D\"),\"-\",IF(HP7=\"H\",HC7-HJ7,HJ7-HC7))","v":"-"},{"$f":"IF(OR(HJ7=\"w/o\",NOT(HP7=\"A\")),\"\",IF(HQ7>10,1,2))","v":""},{"$f":"IF(OR(HC7=\"w/o\",NOT(HP7=\"H\")),\"\",IF(HQ7>10,1,2))","v":""},"","",null,null,null,null,null,null,null,null,null,null,null,null,null,{"$f":"IF(HV7=\"w/o\",\"H\",IF(IC7=\"w/o\",\"A\",IF(ISBLANK(HV7),\"\",IF(HV7>IC7,\"H\",IF(HV7=IC7,\"D\",\"A\")))))","v":""},{"$f":"IF(OR(ISBLANK(HV7),HV7=\"w/o\",IC7=\"w/o\",II7=\"D\"),\"-\",IF(II7=\"H\",HV7-IC7,IC7-HV7))","v":"-"},{"$f":"IF(OR(IC7=\"w/o\",NOT(II7=\"A\")),\"\",IF(IJ7>10,1,2))","v":""},{"$f":"IF(OR(HV7=\"w/o\",NOT(II7=\"H\")),\"\",IF(IJ7>10,1,2))","v":""},"","",null,null,null,null,null,null,null,null,null,null,null,null,null,{"$f":"IF(IO7=\"w/o\",\"H\",IF(IV7=\"w/o\",\"A\",IF(ISBLANK(IO7),\"\",IF(IO7>IV7,\"H\",IF(IO7=IV7,\"D\",\"A\")))))","v":""},{"$f":"IF(OR(ISBLANK(IO7),IO7=\"w/o\",IV7=\"w/o\",JB7=\"D\"),\"-\",IF(JB7=\"H\",IO7-IV7,IV7-IO7))","v":"-"},{"$f":"IF(OR(IV7=\"w/o\",NOT(JB7=\"A\")),\"\",IF(JC7>10,1,2))","v":""},{"$f":"IF(OR(IO7=\"w/o\",NOT(JB7=\"H\")),\"\",IF(JC7>10,1,2))","v":""},"","",null,null,null,null,null,null,null,null,null,null,null,null,null,{"$f":"IF(JH7=\"w/o\",\"H\",IF(JO7=\"w/o\",\"A\",IF(ISBLANK(JH7),\"\",IF(JH7>JO7,\"H\",IF(JH7=JO7,\"D\",\"A\")))))","v":""},{"$f":"IF(OR(ISBLANK(JH7),JH7=\"w/o\",JO7=\"w/o\",JU7=\"D\"),\"-\",IF(JU7=\"H\",JH7-JO7,JO7-JH7))","v":"-"},{"$f":"IF(OR(JO7=\"w/o\",NOT(JU7=\"A\")),\"\",IF(JV7>10,1,2))","v":""},{"$f":"IF(OR(JH7=\"w/o\",NOT(JU7=\"H\")),\"\",IF(JV7>10,1,2))","v":""},"","",null,null,null,null,null,null,null,null,null,null,null,null,null,{"$f":"IF(KA7=\"w/o\",\"H\",IF(KH7=\"w/o\",\"A\",IF(ISBLANK(KA7),\"\",IF(KA7>KH7,\"H\",IF(KA7=KH7,\"D\",\"A\")))))","v":""},{"$f":"IF(OR(ISBLANK(KA7),KA7=\"w/o\",KH7=\"w/o\",KN7=\"D\"),\"-\",IF(KN7=\"H\",KA7-KH7,KH7-KA7))","v":"-"},{"$f":"IF(OR(KH7=\"w/o\",NOT(KN7=\"A\")),\"\",IF(KO7>10,1,2))","v":""},{"$f":"IF(OR(KA7=\"w/o\",NOT(KN7=\"H\")),\"\",IF(KO7>10,1,2))","v":""},"","",null,null,null,null,null,null,null,null,null,null,null,null,null,"","-","","","","",null,null,null,null,null,null,null,null,null,null,null,null,null,{"$f":"IF(LM7=\"w/o\",\"H\",IF(LT7=\"w/o\",\"A\",IF(ISBLANK(LM7),\"\",IF(LM7>LT7,\"H\",IF(LM7=LT7,\"D\",\"A\")))))","v":""},{"$f":"IF(OR(ISBLANK(LM7),LM7=\"w/o\",LT7=\"w/o\",LZ7=\"D\"),\"-\",IF(LZ7=\"H\",LM7-LT7,LT7-LM7))","v":"-"},{"$f":"IF(OR(LT7=\"w/o\",NOT(LZ7=\"A\")),\"\",IF(MA7>10,1,2))","v":""},{"$f":"IF(OR(LM7=\"w/o\",NOT(LZ7=\"H\")),\"\",IF(MA7>10,1,2))","v":""},"","",null,null,null,null,null,null,null,null,null,null,null,null,null,{"$f":"IF(MF7=\"w/o\",\"H\",IF(MM7=\"w/o\",\"A\",IF(ISBLANK(MF7),\"\",IF(MF7>MM7,\"H\",IF(MF7=MM7,\"D\",\"A\")))))","v":""},{"$f":"IF(OR(ISBLANK(MF7),MF7=\"w/o\",MM7=\"w/o\",MS7=\"D\"),\"-\",IF(MS7=\"H\",MF7-MM7,MM7-MF7))","v":"-"},{"$f":"IF(OR(MM7=\"w/o\",NOT(MS7=\"A\")),\"\",IF(MT7>10,1,2))","v":""},{"$f":"IF(OR(MF7=\"w/o\",NOT(MS7=\"H\")),\"\",IF(MT7>10,1,2))","v":""},"","",null,null,null,null,null,null,null,null,null,null,null,null,null,{"$f":"IF(MY7=\"w/o\",\"H\",IF(NF7=\"w/o\",\"A\",IF(ISBLANK(MY7),\"\",IF(MY7>NF7,\"H\",IF(MY7=NF7,\"D\",\"A\")))))","v":""},{"$f":"IF(OR(ISBLANK(MY7),MY7=\"w/o\",NF7=\"w/o\",NL7=\"D\"),\"-\",IF(NL7=\"H\",MY7-NF7,NF7-MY7))","v":"-"},{"$f":"IF(OR(NF7=\"w/o\",NOT(NL7=\"A\")),\"\",IF(NM7>10,1,2))","v":""},{"$f":"IF(OR(MY7=\"w/o\",NOT(NL7=\"H\")),\"\",IF(NM7>10,1,2))","v":""},{"$f":"IF(NA7>3,\"HT\",\"\")","v":""},{"$f":"IF(NH7>3,\"AT\",\"\")","v":""},null,null,null,null,null,null,null,null,null,null,null,null,null,{"$f":"IF(NR7=\"w/o\",\"H\",IF(NY7=\"w/o\",\"A\",IF(ISBLANK(NR7),\"\",IF(NR7>NY7,\"H\",IF(NR7=NY7,\"D\",\"A\")))))","v":""},{"$f":"IF(OR(ISBLANK(NR7),NR7=\"w/o\",NY7=\"w/o\",OE7=\"D\"),\"-\",IF(OE7=\"H\",NR7-NY7,NY7-NR7))","v":"-"},{"$f":"IF(OR(NY7=\"w/o\",NOT(OE7=\"A\")),\"\",IF(OF7>10,1,2))","v":""},{"$f":"IF(OR(NR7=\"w/o\",NOT(OE7=\"H\")),\"\",IF(OF7>10,1,2))","v":""},"","",null,null,null,null,null,null,null,null,null,null,null,null,null,{"$f":"IF(OK7=\"w/o\",\"H\",IF(OR7=\"w/o\",\"A\",IF(ISBLANK(OK7),\"\",IF(OK7>OR7,\"H\",IF(OK7=OR7,\"D\",\"A\")))))","v":""},{"$f":"IF(OR(ISBLANK(OK7),OK7=\"w/o\",OR7=\"w/o\",OX7=\"D\"),\"-\",IF(OX7=\"H\",OK7-OR7,OR7-OK7))","v":"-"},{"$f":"IF(OR(OR7=\"w/o\",NOT(OX7=\"A\")),\"\",IF(OY7>10,1,2))","v":""},{"$f":"IF(OR(OK7=\"w/o\",NOT(OX7=\"H\")),\"\",IF(OY7>10,1,2))","v":""},"","",null,null,null,null,null,null,null,null,null,null,null,null,null,{"$f":"IF(PD7=\"w/o\",\"H\",IF(PK7=\"w/o\",\"A\",IF(ISBLANK(PD7),\"\",IF(PD7>PK7,\"H\",IF(PD7=PK7,\"D\",\"A\")))))","v":""},{"$f":"IF(OR(ISBLANK(PD7),PD7=\"w/o\",PK7=\"w/o\",PQ7=\"D\"),\"-\",IF(PQ7=\"H\",PD7-PK7,PK7-PD7))","v":"-"},{"$f":"IF(OR(PK7=\"w/o\",NOT(PQ7=\"A\")),\"\",IF(PR7>10,1,2))","v":""},{"$f":"IF(OR(PD7=\"w/o\",NOT(PQ7=\"H\")),\"\",IF(PR7>10,1,2))","v":""},"","",null,null,null,null,null,null,null,null,null,null,null,null,null,{"$f":"IF(PW7=\"w/o\",\"H\",IF(QD7=\"w/o\",\"A\",IF(ISBLANK(PW7),\"\",IF(PW7>QD7,\"H\",IF(PW7=QD7,\"D\",\"A\")))))","v":""},{"$f":"IF(OR(ISBLANK(PW7),PW7=\"w/o\",QD7=\"w/o\",QJ7=\"D\"),\"-\",IF(QJ7=\"H\",PW7-QD7,QD7-PW7))","v":"-"},{"$f":"IF(OR(QD7=\"w/o\",NOT(QJ7=\"A\")),\"\",IF(QK7>10,1,2))","v":""},{"$f":"IF(OR(PW7=\"w/o\",NOT(QJ7=\"H\")),\"\",IF(QK7>10,1,2))","v":""},"","",null,null,null,null,null,null,null,null,null,null,null,null,null,{"$f":"IF(QP7=\"w/o\",\"H\",IF(QW7=\"w/o\",\"A\",IF(ISBLANK(QP7),\"\",IF(QP7>QW7,\"H\",IF(QP7=QW7,\"D\",\"A\")))))","v":""},{"$f":"IF(OR(ISBLANK(QP7),QP7=\"w/o\",QW7=\"w/o\",RC7=\"D\"),\"-\",IF(RC7=\"H\",QP7-QW7,QW7-QP7))","v":"-"},{"$f":"IF(OR(QW7=\"w/o\",NOT(RC7=\"A\")),\"\",IF(RD7>10,1,2))","v":""},{"$f":"IF(OR(QP7=\"w/o\",NOT(RC7=\"H\")),\"\",IF(RD7>10,1,2))","v":""},"","",null,null,null,null,null,null,null,null,null,null,null,null,null,{"$f":"IF(RI7=\"w/o\",\"H\",IF(RP7=\"w/o\",\"A\",IF(ISBLANK(RI7),\"\",IF(RI7>RP7,\"H\",IF(RI7=RP7,\"D\",\"A\")))))","v":""},{"$f":"IF(OR(ISBLANK(RI7),RI7=\"w/o\",RP7=\"w/o\",RV7=\"D\"),\"-\",IF(RV7=\"H\",RI7-RP7,RP7-RI7))","v":"-"},{"$f":"IF(OR(RP7=\"w/o\",NOT(RV7=\"A\")),\"\",IF(RW7>10,1,2))","v":""},{"$f":"IF(OR(RI7=\"w/o\",NOT(RV7=\"H\")),\"\",IF(RW7>10,1,2))","v":""},"","",null,null,null,null,null,null,null,null,null,null,null,null,null,{"$f":"IF(SB7=\"w/o\",\"H\",IF(SI7=\"w/o\",\"A\",IF(ISBLANK(SB7),\"\",IF(SB7>SI7,\"H\",IF(SB7=SI7,\"D\",\"A\")))))","v":""},{"$f":"IF(OR(ISBLANK(SB7),SB7=\"w/o\",SI7=\"w/o\",SO7=\"D\"),\"-\",IF(SO7=\"H\",SB7-SI7,SI7-SB7))","v":"-"},{"$f":"IF(OR(SI7=\"w/o\",NOT(SO7=\"A\")),\"\",IF(SP7>10,1,2))","v":""},{"$f":"IF(OR(SB7=\"w/o\",NOT(SO7=\"H\")),\"\",IF(SP7>10,1,2))","v":""},"","",null,null,null,null,null,null,null,null,null,null,null,null,null,{"$f":"IF(SU7=\"w/o\",\"H\",IF(TB7=\"w/o\",\"A\",IF(ISBLANK(SU7),\"\",IF(SU7>TB7,\"H\",IF(SU7=TB7,\"D\",\"A\")))))","v":""},{"$f":"IF(OR(ISBLANK(SU7),SU7=\"w/o\",TB7=\"w/o\",TH7=\"D\"),\"-\",IF(TH7=\"H\",SU7-TB7,TB7-SU7))","v":"-"},{"$f":"IF(OR(TB7=\"w/o\",NOT(TH7=\"A\")),\"\",IF(TI7>10,1,2))","v":""},{"$f":"IF(OR(SU7=\"w/o\",NOT(TH7=\"H\")),\"\",IF(TI7>10,1,2))","v":""},"","",null,null,null,null,null,null,null,null,null,null,null,null,null,{"$f":"IF(TN7=\"w/o\",\"H\",IF(TU7=\"w/o\",\"A\",IF(ISBLANK(TN7),\"\",IF(TN7>TU7,\"H\",IF(TN7=TU7,\"D\",\"A\")))))","v":""},{"$f":"IF(OR(ISBLANK(TN7),TN7=\"w/o\",TU7=\"w/o\",UA7=\"D\"),\"-\",IF(UA7=\"H\",TN7-TU7,TU7-TN7))","v":"-"},{"$f":"IF(OR(TU7=\"w/o\",NOT(UA7=\"A\")),\"\",IF(UB7>10,1,2))","v":""},{"$f":"IF(OR(TN7=\"w/o\",NOT(UA7=\"H\")),\"\",IF(UB7>10,1,2))","v":""},"","",null,null,null,null,null,null,null,null,null,null,null,null,null,{"$f":"IF(UG7=\"w/o\",\"H\",IF(UN7=\"w/o\",\"A\",IF(ISBLANK(UG7),\"\",IF(UG7>UN7,\"H\",IF(UG7=UN7,\"D\",\"A\")))))","v":""},{"$f":"IF(OR(ISBLANK(UG7),UG7=\"w/o\",UN7=\"w/o\",UT7=\"D\"),\"-\",IF(UT7=\"H\",UG7-UN7,UN7-UG7))","v":"-"},{"$f":"IF(OR(UN7=\"w/o\",NOT(UT7=\"A\")),\"\",IF(UU7>10,1,2))","v":""},{"$f":"IF(OR(UG7=\"w/o\",NOT(UT7=\"H\")),\"\",IF(UU7>10,1,2))","v":""},{"$f":"IF(UI7>3,\"HT\",\"\")","v":""},{"$f":"IF(UP7>3,\"AT\",\"\")","v":""},null,null,null,null,null,null,null,null,null,null,null,null,null,{"$f":"IF(UZ7=\"w/o\",\"H\",IF(VG7=\"w/o\",\"A\",IF(ISBLANK(UZ7),\"\",IF(UZ7>VG7,\"H\",IF(UZ7=VG7,\"D\",\"A\")))))","v":""},{"$f":"IF(OR(ISBLANK(UZ7),UZ7=\"w/o\",VG7=\"w/o\",VM7=\"D\"),\"-\",IF(VM7=\"H\",UZ7-VG7,VG7-UZ7))","v":"-"},{"$f":"IF(OR(VG7=\"w/o\",NOT(VM7=\"A\")),\"\",IF(VN7>10,1,2))","v":""},{"$f":"IF(OR(UZ7=\"w/o\",NOT(VM7=\"H\")),\"\",IF(VN7>10,1,2))","v":""},"","",null,null,null,null,null,null,null,null,null,null,null,null,null,{"$f":"IF(VS7=\"w/o\",\"H\",IF(VZ7=\"w/o\",\"A\",IF(ISBLANK(VS7),\"\",IF(VS7>VZ7,\"H\",IF(VS7=VZ7,\"D\",\"A\")))))","v":""},{"$f":"IF(OR(ISBLANK(VS7),VS7=\"w/o\",VZ7=\"w/o\",WF7=\"D\"),\"-\",IF(WF7=\"H\",VS7-VZ7,VZ7-VS7))","v":"-"},{"$f":"IF(OR(VZ7=\"w/o\",NOT(WF7=\"A\")),\"\",IF(WG7>10,1,2))","v":""},{"$f":"IF(OR(VS7=\"w/o\",NOT(WF7=\"H\")),\"\",IF(WG7>10,1,2))","v":""},{"$f":"IF(VU7>3,\"HT\",\"\")","v":""},{"$f":"IF(WB7>3,\"AT\",\"\")","v":""}]
[{"$f":"Pool_A_Team_3","v":"Liverpool Collegiate"},null,null,null,null,null,null,null,null,null,null,null,null,null,"","-","","","","",17,null,null,null,null,null,null,3,null,null,null,null,null,"H",14,"",1,"","",null,null,null,null,null,null,null,null,null,null,null,null,null,"","-","","","","",18,null,null,null,null,null,null,17,null,null,null,null,null,"H",1,"",2,"","",null,null,null,null,null,null,null,null,null,null,null,null,null,"","-","","","","",null,null,null,null,null,null,null,null,null,null,null,null,null,"","-","","","","",null,null,null,null,null,null,null,null,null,null,null,null,null,"","-","","","","",null,null,null,null,null,null,null,null,null,null,null,null,null,"","-","","","","",null,null,null,null,null,null,null,null,null,null,null,null,null,"","-","","","","",null,null,null,null,null,null,null,null,null,null,null,null,null,"","-","","","","",null,null,null,null,null,null,null,null,null,null,null,null,null,"","-","","","","",null,null,null,null,null,null,null,null,null,null,null,null,null,"","-","","","","",null,null,null,null,null,null,null,null,null,null,null,null,null,"","-","","","","",null,null,null,null,null,null,null,null,null,null,null,null,null,"","-","","","","",null,null,null,null,null,null,null,null,null,null,null,null,null,"","-","","","","",null,null,null,null,null,null,null,null,null,null,null,null,null,"","-","","","","",null,null,null,null,null,null,null,null,null,null,null,null,null,"","-","","","","",null,null,null,null,null,null,null,null,null,null,null,null,null,"","-","","","","",null,null,null,null,null,null,null,null,null,null,null,null,null,"","-","","","","",null,null,null,null,null,null,null,null,null,null,null,null,null,"","-","","","","",null,null,null,null,null,null,null,null,null,null,null,null,null,"","-","","","","",null,null,null,null,null,null,null,null,null,null,null,null,null,"","-","","","","",null,null,null,null,null,null,null,null,null,null,null,null,null,"","-","","","","",null,null,null,null,null,null,null,null,null,null,null,null,null,"","-","","","","",null,null,null,null,null,null,null,null,null,null,null,null,null,"","-","","","","",null,null,null,null,null,null,null,null,null,null,null,null,null,"","-","","","","",null,null,null,null,null,null,null,null,null,null,null,null,null,"","-","","","","",null,null,null,null,null,null,null,null,null,null,null,null,null,"","-","","","","",null,null,null,null,null,null,null,null,null,null,null,null,null,"","-","","","","",null,null,null,null,null,null,null,null,null,null,null,null,null,"","-","","","","",null,null,null,null,null,null,null,null,null,null,null,null,null,"","-","","","","",null,null,null,null,null,null,null,null,null,null,null,null,null,"","-","","","",""]
[{"$f":"Pool_A_Team_4","v":"Manchester"},30,null,null,null,null,null,null,0,null,null,null,null,null,{"$f":"IF(H9=\"NG\",\"\",IF(B9=\"w/o\",\"H\",IF(I9=\"w/o\",\"A\",IF(ISBLANK(B9),\"\",IF(B9>I9,\"H\",IF(B9=I9,\"D\",\"A\"))))))","v":"H"},{"$f":"IF(OR(ISBLANK(B9),B9=\"w/o\",H9=\"NG\",I9=\"w/o\",O9=\"D\"),\"-\",IF(O9=\"H\",B9-I9,I9-B9))","v":30},{"$f":"IF(OR(H9=\"NG\",I9=\"w/o\",NOT(O9=\"A\")),\"\",IF(P9>10,1,2))","v":""},{"$f":"IF(OR(B9=\"w/o\",H9=\"NG\",NOT(O9=\"H\")),\"\",IF(P9>10,1,2))","v":1},"","",null,null,null,null,null,null,null,null,null,null,null,null,null,"","-","","","","",null,null,null,null,null,null,null,null,null,null,null,null,null,"","-","","","","",null,null,null,null,null,null,null,null,null,null,null,null,null,"","-","","","","",null,null,null,null,null,null,null,null,null,null,null,null,null,"","-","","","","",7,null,null,null,null,null,null,26,null,null,null,null,null,"A",19,1,"","","",null,null,null,null,null,null,null,null,null,null,null,null,null,"","-","","","","",null,null,null,null,null,null,null,null,null,null,null,null,null,"","-","","","","",null,null,null,null,null,null,null,null,null,null,null,null,null,"","-","","","","",null,null,null,null,null,null,null,null,null,null,null,null,null,"","-","","","","",null,null,null,null,null,null,null,null,null,null,null,null,null,"","-","","","","",null,null,null,null,null,null,null,null,null,null,null,null,null,"","-","","","","",null,null,null,null,null,null,null,null,null,null,null,null,null,"","-","","","","",null,null,null,null,null,null,null,null,null,null,null,null,null,"","-","","","","",null,null,null,null,null,null,null,null,null,null,null,null,null,"","-","","","","",null,null,null,null,null,null,null,null,null,null,null,null,null,"","-","","","","",null,null,null,null,null,null,null,null,null,null,null,null,null,"","-","","","","",null,null,null,null,null,null,null,null,null,null,null,null,null,"","-","","","","",null,null,null,null,null,null,null,null,null,null,null,null,null,"","-","","","","",null,null,null,null,null,null,null,null,null,null,null,null,null,"","-","","","","",null,null,null,null,null,null,null,null,null,null,null,null,null,"","-","","","","",null,null,null,null,null,null,null,null,null,null,null,null,null,"","-","","","","",null,null,null,null,null,null,null,null,null,null,null,null,null,"","-","","","","",null,null,null,null,null,null,null,null,null,null,null,null,null,"","-","","","","",null,null,null,null,null,null,null,null,null,null,null,null,null,"","-","","","","",null,null,null,null,null,null,null,null,null,null,null,null,null,"","-","","","","",null,null,null,null,null,null,null,null,null,null,null,null,null,"","-","","","","",null,null,null,null,null,null,null,null,null,null,null,null,null,"","-","","","","",null,null,null,null,null,null,null,null,null,null,null,null,null,"","-","","","","",null,null,null,null,null,null,null,null,null,null,null,null,null,"","-","","","","",null,null,null,null,null,null,null,null,null,null,null,null,null,"","-","","","","",null,null,null,null,null,null,null,null,null,null,null,null,null,"","-","","","",""]
[{"$f":"Pool_A_Team_5","v":"Rochdale"},null,null,null,null,null,null,null,null,null,null,null,null,null,{"$f":"IF(H10=\"NG\",\"\",IF(B10=\"w/o\",\"H\",IF(I10=\"w/o\",\"A\",IF(ISBLANK(B10),\"\",IF(B10>I10,\"H\",IF(B10=I10,\"D\",\"A\"))))))","v":""},{"$f":"IF(OR(ISBLANK(B10),B10=\"w/o\",H10=\"NG\",I10=\"w/o\",O10=\"D\"),\"-\",IF(O10=\"H\",B10-I10,I10-B10))","v":"-"},{"$f":"IF(OR(H10=\"NG\",I10=\"w/o\",NOT(O10=\"A\")),\"\",IF(P10>10,1,2))","v":""},{"$f":"IF(OR(B10=\"w/o\",H10=\"NG\",NOT(O10=\"H\")),\"\",IF(P10>10,1,2))","v":""},"","",null,null,null,null,null,null,null,null,null,null,null,null,null,"","-","","","","",19,null,null,null,null,null,null,24,null,null,1,null,null,"A",5,2,"","","",null,null,null,null,null,null,null,null,null,null,null,null,null,"","-","","","","",null,null,null,null,null,null,null,null,null,null,null,null,null,"","-","","","","",null,null,null,null,null,null,null,null,null,null,null,null,null,"","-","","","","",null,null,null,null,null,null,null,null,null,null,null,null,null,"","-","","","","",null,null,null,null,null,null,null,null,null,null,null,null,null,"","-","","","","",null,null,null,null,null,null,null,null,null,null,null,null,null,"","-","","","","",null,null,null,null,null,null,null,null,null,null,null,null,null,"","-","","","","",null,null,null,null,null,null,null,null,null,null,null,null,null,"","-","","","","",null,null,null,null,null,null,null,null,null,null,null,null,null,"","-","","","","",null,null,null,null,null,null,null,null,null,null,null,null,null,"","-","","","","",null,null,null,null,null,null,null,null,null,null,null,null,null,"","-","","","","",null,null,null,null,null,null,null,null,null,null,null,null,null,"","-","","","","",null,null,null,null,null,null,null,null,null,null,null,null,null,"","-","","","","",null,null,null,null,null,null,null,null,null,null,null,null,null,"","-","","","","",null,null,null,null,null,null,null,null,null,null,null,null,null,"","-","","","","",null,null,null,null,null,null,null,null,null,null,null,null,null,"","-","","","","",null,null,null,null,null,null,null,null,null,null,null,null,null,"","-","","","","",null,null,null,null,null,null,null,null,null,null,null,null,null,"","-","","","","",null,null,null,null,null,null,null,null,null,null,null,null,null,"","-","","","","",null,null,null,null,null,null,null,null,null,null,null,null,null,"","-","","","","",null,null,null,null,null,null,null,null,null,null,null,null,null,"","-","","","","",null,null,null,null,null,null,null,null,null,null,null,null,null,"","-","","","","",null,null,null,null,null,null,null,null,null,null,null,null,null,"","-","","","","",null,null,null,null,null,null,null,null,null,null,null,null,null,"","-","","","","",null,null,null,null,null,null,null,null,null,null,null,null,null,"","-","","","","",null,null,null,null,null,null,null,null,null,null,null,null,null,"","-","","","","",null,null,null,null,null,null,null,null,null,null,null,null,null,"","-","","","","",null,null,null,null,null,null,null,null,null,null,null,null,null,"","-","","","","",null,null,null,null,null,null,null,null,null,null,null,null,null,"","-","","","",""]
[{"$f":"Pool_A_Team_6","v":"Southport"},null,null,null,null,null,null,null,null,null,null,null,null,null,"","-","","","","",null,null,null,null,null,null,null,null,null,null,null,null,null,"","-","","","","",null,null,null,null,null,null,null,null,null,null,null,null,null,"","-","","","","",null,null,null,null,null,null,null,null,null,null,null,null,null,"","-","","","","",35,null,null,null,null,null,null,5,null,null,null,null,null,"H",30,"",1,"","",null,null,null,null,null,null,null,null,null,null,null,null,null,"","-","","","","",null,null,null,null,null,null,null,null,null,null,null,null,null,"","-","","","","",null,null,null,null,null,null,null,null,null,null,null,null,null,"","-","","","","",null,null,null,null,null,null,null,null,null,null,null,null,null,"","-","","","","",null,null,null,null,null,null,null,null,null,null,null,null,null,"","-","","","","",null,null,null,null,null,null,null,null,null,null,null,null,null,"","-","","","","",null,null,null,null,null,null,null,null,null,null,null,null,null,"","-","","","","",null,null,null,null,null,null,null,null,null,null,null,null,null,"","-","","","","",null,null,null,null,null,null,null,null,null,null,null,null,null,"","-","","","","",null,null,null,null,null,null,null,null,null,null,null,null,null,"","-","","","","",null,null,null,null,null,null,null,null,null,null,null,null,null,"","-","","","","",null,null,null,null,null,null,null,null,null,null,null,null,null,"","-","","","","",null,null,null,null,null,null,null,null,null,null,null,null,null,"","-","","","","",null,null,null,null,null,null,null,null,null,null,null,null,null,"","-","","","","",null,null,null,null,null,null,null,null,null,null,null,null,null,"","-","","","","",null,null,null,null,null,null,null,null,null,null,null,null,null,"","-","","","","",null,null,null,null,null,null,null,null,null,null,null,null,null,"","-","","","","",null,null,null,null,null,null,null,null,null,null,null,null,null,"","-","","","","",null,null,null,null,null,null,null,null,null,null,null,null,null,"","-","","","","",null,null,null,null,null,null,null,null,null,null,null,null,null,"","-","","","","",null,null,null,null,null,null,null,null,null,null,null,null,null,"","-","","","","",null,null,null,null,null,null,null,null,null,null,null,null,null,"","-","","","","",null,null,null,null,null,null,null,null,null,null,null,null,null,"","-","","","","",null,null,null,null,null,null,null,null,null,null,null,null,null,"","-","","","","",null,null,null,null,null,null,null,null,null,null,null,null,null,"","-","","","","",null,null,null,null,null,null,null,null,null,null,null,null,null,"","-","","","","",null,null,null,null,null,null,null,null,null,null,null,null,null,"","-","","","",""]
[{"$f":"Pool_A_Team_7","v":0},null,null,null,null,null,null,null,null,null,null,null,null,null,"","-","","","","",null,null,null,null,null,null,null,null,null,null,null,null,null,"","-","","","","",null,null,null,null,null,null,null,null,null,null,null,null,null,"","-","","","","",null,null,null,null,null,null,null,null,null,null,null,null,null,"","-","","","","",null,null,null,null,null,null,null,null,null,null,null,null,null,"","-","","","","",null,null,null,null,null,null,null,null,null,null,null,null,null,"","-","","","","",null,null,null,null,null,null,null,null,null,null,null,null,null,"","-","","","","",null,null,null,null,null,null,null,null,null,null,null,null,null,"","-","","","","",null,null,null,null,null,null,null,null,null,null,null,null,null,"","-","","","","",null,null,null,null,null,null,null,null,null,null,null,null,null,"","-","","","","",null,null,null,null,null,null,null,null,null,null,null,null,null,"","-","","","","",null,null,null,null,null,null,null,null,null,null,null,null,null,"","-","","","","",null,null,null,null,null,null,null,null,null,null,null,null,null,"","-","","","","",null,null,null,null,null,null,null,null,null,null,null,null,null,"","-","","","","",null,null,null,null,null,null,null,null,null,null,null,null,null,"","-","","","","",null,null,null,null,null,null,null,null,null,null,null,null,null,"","-","","","","",null,null,null,null,null,null,null,null,null,null,null,null,null,"","-","","","","",null,null,null,null,null,null,null,null,null,null,null,null,null,"","-","","","","",null,null,null,null,null,null,null,null,null,null,null,null,null,"","-","","","","",null,null,null,null,null,null,null,null,null,null,null,null,null,"","-","","","","",null,null,null,null,null,null,null,null,null,null,null,null,null,"","-","","","","",null,null,null,null,null,null,null,null,null,null,null,null,null,"","-","","","","",null,null,null,null,null,null,null,null,null,null,null,null,null,"","-","","","","",null,null,null,null,null,null,null,null,null,null,null,null,null,"","-","","","","",null,null,null,null,null,null,null,null,null,null,null,null,null,"","-","","","","",null,null,null,null,null,null,null,null,null,null,null,null,null,"","-","","","","",null,null,null,null,null,null,null,null,null,null,null,null,null,"","-","","","","",null,null,null,null,null,null,null,null,null,null,null,null,null,"","-","","","","",null,null,null,null,null,null,null,null,null,null,null,null,null,"","-","","","","",null,null,null,null,null,null,null,null,null,null,null,null,null,"","-","","","","",null,null,null,null,null,null,null,null,null,null,null,null,null,"","-","","","","",null,null,null,null,null,null,null,null,null,null,null,null,null,"","-","","","",""]
[{"$f":"Pool_A_Team_8","v":0},null,null,null,null,null,null,null,null,null,null,null,null,null,"","-","","","","",null,null,null,null,null,null,null,null,null,null,null,null,null,"","-","","","","",null,null,null,null,null,null,null,null,null,null,null,null,null,"","-","","","","",null,null,null,null,null,null,null,null,null,null,null,null,null,"","-","","","","",null,null,null,null,null,null,null,null,null,null,null,null,null,"","-","","","","",null,null,null,null,null,null,null,null,null,null,null,null,null,"","-","","","","",null,null,null,null,null,null,null,null,null,null,null,null,null,"","-","","","","",null,null,null,null,null,null,null,null,null,null,null,null,null,"","-","","","","",null,null,null,null,null,null,null,null,null,null,null,null,null,"","-","","","","",null,null,null,null,null,null,null,null,null,null,null,null,null,"","-","","","","",null,null,null,null,null,null,null,null,null,null,null,null,null,"","-","","","","",null,null,null,null,null,null,null,null,null,null,null,null,null,"","-","","","","",null,null,null,null,null,null,null,null,null,null,null,null,null,"","-","","","","",null,null,null,null,null,null,null,null,null,null,null,null,null,"","-","","","","",null,null,null,null,null,null,null,null,null,null,null,null,null,"","-","","","","",null,null,null,null,null,null,null,null,null,null,null,null,null,"","-","","","","",null,null,null,null,null,null,null,null,null,null,null,null,null,"","-","","","","",null,null,null,null,null,null,null,null,null,null,null,null,null,"","-","","","","",null,null,null,null,null,null,null,null,null,null,null,null,null,"","-","","","","",null,null,null,null,null,null,null,null,null,null,null,null,null,"","-","","","","",null,null,null,null,null,null,null,null,null,null,null,null,null,"","-","","","","",null,null,null,null,null,null,null,null,null,null,null,null,null,"","-","","","","",null,null,null,null,null,null,null,null,null,null,null,null,null,"","-","","","","",null,null,null,null,null,null,null,null,null,null,null,null,null,"","-","","","","",null,null,null,null,null,null,null,null,null,null,null,null,null,"","-","","","","",null,null,null,null,null,null,null,null,null,null,null,null,null,"","-","","","","",null,null,null,null,null,null,null,null,null,null,null,null,null,"","-","","","","",null,null,null,null,null,null,null,null,null,null,null,null,null,"","-","","","","",null,null,null,null,null,null,null,null,null,null,null,null,null,"","-","","","","",null,null,null,null,null,null,null,null,null,null,null,null,null,"","-","","","","",null,null,null,null,null,null,null,null,null,null,null,null,null,"","-","","","","",null,null,null,null,null,null,null,null,null,null,null,null,null,"","-","","","",""]
[{"$f":"Pool_B_Team_1","v":"Blackburn"},null,null,null,null,null,null,null,null,null,null,null,null,null,"","-","","","","",null,null,null,null,null,null,null,null,null,null,null,null,null,"","-","","","","",null,null,null,null,null,null,null,null,null,null,null,null,null,"","-","","","","",null,null,null,null,null,null,null,null,null,null,null,null,null,"","-","","","","",null,null,null,null,null,null,null,null,null,null,null,null,null,"","-","","","","",null,null,null,null,null,null,null,null,null,null,null,null,null,"","-","","","","",null,null,null,null,null,null,null,null,null,null,null,null,null,"","-","","","","",null,null,null,null,null,null,null,null,null,null,null,null,null,"","-","","","","",null,null,null,null,null,null,null,null,null,null,null,null,null,"","-","","","","",null,null,null,null,null,null,null,null,null,null,null,null,null,"","-","","","","",null,null,null,null,null,null,null,null,null,null,null,null,null,"","-","","","","",32,null,null,null,null,null,null,10,null,null,null,null,null,"H",22,"",1,"","",null,null,null,null,null,null,null,null,null,null,null,null,null,"","-","","","","",null,null,null,null,null,null,null,null,null,null,null,null,null,"","-","","","","",null,null,null,null,null,null,null,null,null,null,null,null,null,"","-","","","","",null,null,null,null,null,null,null,null,null,null,null,null,null,"","-","","","","",null,null,null,null,null,null,null,null,null,null,null,null,null,"","-","","","","",null,null,null,null,null,null,null,null,null,null,null,null,null,"","-","","","","",null,null,null,null,null,null,null,null,null,null,null,null,null,"","-","","","","",null,null,null,null,null,null,null,null,null,null,null,null,null,"","-","","","","",null,null,null,null,null,null,null,null,null,null,null,null,null,"","-","","","","",null,null,null,null,null,null,null,null,null,null,null,null,null,"","-","","","","",null,null,null,null,null,null,null,null,null,null,null,null,null,"","-","","","","",null,null,null,null,null,null,null,null,null,null,null,null,null,"","-","","","","",null,null,null,null,null,null,null,null,null,null,null,null,null,"","-","","","","",null,null,null,null,null,null,null,null,null,null,null,null,null,"","-","","","","",null,null,null,null,null,null,null,null,null,null,null,null,null,"","-","","","","",null,null,null,null,null,null,null,null,null,null,null,null,null,"","-","","","","",null,null,null,null,null,null,null,null,null,null,null,null,null,"","-","","","","",null,null,null,null,null,null,null,null,null,null,null,null,null,"","-","","","","",null,null,null,null,null,null,null,null,null,null,null,null,null,"","-","","","","",null,null,null,null,null,null,null,null,null,null,null,null,null,"","-","","","",""]
[{"$f":"Pool_B_Team_2","v":"Bolton"},null,null,null,null,null,null,null,null,null,null,null,null,null,"","-","","","","",null,null,null,null,null,null,null,null,null,null,null,null,null,"","-","","","","",null,null,null,null,null,null,null,null,null,null,null,null,null,"","-","","","","",null,null,null,null,null,null,null,null,null,null,null,null,null,"","-","","","","",null,null,null,null,null,null,null,null,null,null,null,null,null,"","-","","","","",null,null,null,null,null,null,null,null,null,null,null,null,null,"","-","","","","",null,null,null,null,null,null,null,null,null,null,null,null,null,"","-","","","","",null,null,null,null,null,null,null,null,null,null,null,null,null,"","-","","","","",null,null,null,null,null,null,null,null,null,null,null,null,null,"","-","","","","",null,null,null,null,null,null,null,null,null,null,null,null,null,"","-","","","","",null,null,null,null,null,null,null,null,null,null,null,null,null,"","-","","","","",15,null,null,null,null,null,null,15,null,null,null,null,null,"D","-","","","","",null,null,null,null,null,null,null,null,null,null,null,null,null,"","-","","","","",null,null,null,null,null,null,null,null,null,null,null,null,null,"","-","","","","",null,null,null,null,null,null,null,null,null,null,null,null,null,"","-","","","","",null,null,null,null,null,null,null,null,null,null,null,null,null,"","-","","","","",null,null,null,null,null,null,null,null,null,null,null,null,null,"","-","","","","",null,null,null,null,null,null,null,null,null,null,null,null,null,"","-","","","","",null,null,null,null,null,null,null,null,null,null,null,null,null,"","-","","","","",null,null,null,null,null,null,null,null,null,null,null,null,null,"","-","","","","",null,null,null,null,null,null,null,null,null,null,null,null,null,"","-","","","","",null,null,null,null,null,null,null,null,null,null,null,null,null,"","-","","","","",null,null,null,null,null,null,null,null,null,null,null,null,null,"","-","","","","",null,null,null,null,null,null,null,null,null,null,null,null,null,"","-","","","","",null,null,null,null,null,null,null,null,null,null,null,null,null,"","-","","","","",null,null,null,null,null,null,null,null,null,null,null,null,null,"","-","","","","",null,null,null,null,null,null,null,null,null,null,null,null,null,"","-","","","","",null,null,null,null,null,null,null,null,null,null,null,null,null,"","-","","","","",null,null,null,null,null,null,null,null,null,null,null,null,null,"","-","","","","",null,null,null,null,null,null,null,null,null,null,null,null,null,"","-","","","","",null,null,null,null,null,null,null,null,null,null,null,null,null,"","-","","","","",null,null,null,null,null,null,null,null,null,null,null,null,null,"","-","","","",""]
[{"$f":"Pool_B_Team_3","v":"Eccles"},null,null,null,null,null,null,null,null,null,null,null,null,null,"","-","","","","",null,null,null,null,null,null,null,null,null,null,null,null,null,"","-","","","","",null,null,null,null,null,null,null,null,null,null,null,null,null,"","-","","","","",null,null,null,null,null,null,null,null,null,null,null,null,null,"","-","","","","",null,null,null,null,null,null,null,null,null,null,null,null,null,"","-","","","","",null,null,null,null,null,null,null,null,null,null,null,null,null,"","-","","","","",null,null,null,null,null,null,null,null,null,null,null,null,null,"","-","","","","",null,null,null,null,null,null,null,null,null,null,null,null,null,"","-","","","","",null,null,null,null,null,null,null,null,null,null,null,null,null,"","-","","","","",26,null,null,null,null,null,null,38,null,null,null,null,null,"A",12,1,"","","",null,null,null,null,null,null,null,null,null,null,null,null,null,"","-","","","","",null,null,null,null,null,null,null,null,null,null,null,null,null,"","-","","","","",null,null,null,null,null,null,null,null,null,null,null,null,null,"","-","","","","",null,null,null,null,null,null,null,null,null,null,null,null,null,"","-","","","","",null,null,null,null,null,null,null,null,null,null,null,null,null,"","-","","","","",null,null,null,null,null,null,null,null,null,null,null,null,null,"","-","","","","",null,null,null,null,null,null,null,null,null,null,null,null,null,"","-","","","","",null,null,null,null,null,null,null,null,null,null,null,null,null,"","-","","","","",null,null,null,null,null,null,null,null,null,null,null,null,null,"","-","","","","",null,null,null,null,null,null,null,null,null,null,null,null,null,"","-","","","","",null,null,null,null,null,null,null,null,null,null,null,null,null,"","-","","","","",null,null,null,null,null,null,null,null,null,null,null,null,null,"","-","","","","",null,null,null,null,null,null,null,null,null,null,null,null,null,"","-","","","","",null,null,null,null,null,null,null,null,null,null,null,null,null,"","-","","","","",null,null,null,null,null,null,null,null,null,null,null,null,null,"","-","","","","",null,null,null,null,null,null,null,null,null,null,null,null,null,"","-","","","","",null,null,null,null,null,null,null,null,null,null,null,null,null,"","-","","","","",null,null,null,null,null,null,null,null,null,null,null,null,null,"","-","","","","",null,null,null,null,null,null,null,null,null,null,null,null,null,"","-","","","","",null,null,null,null,null,null,null,null,null,null,null,null,null,"","-","","","","",null,null,null,null,null,null,null,null,null,null,null,null,null,"","-","","","","",null,null,null,null,null,null,null,null,null,null,null,null,null,"","-","","","",""]
[{"$f":"Pool_B_Team_4","v":"Ormskirk"},null,null,null,null,null,null,null,null,null,null,null,null,null,"","-","","","","",null,null,null,null,null,null,null,null,null,null,null,null,null,"","-","","","","",null,null,null,null,null,null,null,null,null,null,null,null,null,"","-","","","","",null,null,null,null,null,null,null,null,null,null,null,null,null,"","-","","","","",null,null,null,null,null,null,null,null,null,null,null,null,null,"","-","","","","",null,null,null,null,null,null,null,null,null,null,null,null,null,"","-","","","","",null,null,null,null,null,null,null,null,null,null,null,null,null,"","-","","","","",null,null,null,null,null,null,null,null,null,null,null,null,null,"","-","","","","",null,null,null,null,null,null,null,null,null,null,null,null,null,"","-","","","","",null,null,null,null,null,null,null,null,null,null,null,null,null,"","-","","","","",null,null,null,null,null,null,null,null,null,null,null,null,null,"","-","","","","",null,null,null,null,null,null,null,null,null,null,null,null,null,"","-","","","","","w/o",null,null,null,null,null,null,null,null,null,null,null,null,"H","-","","","","",12,null,null,null,null,null,null,37,null,null,null,null,null,"A",25,1,"","","",null,null,null,null,null,null,null,null,null,null,null,null,null,"","-","","","","",null,null,null,null,null,null,null,null,null,null,null,null,null,"","-","","","","",null,null,null,null,null,null,null,null,null,null,null,null,null,"","-","","","","",null,null,null,null,null,null,null,null,null,null,null,null,null,"","-","","","","",null,null,null,null,null,null,null,null,null,null,null,null,null,"","-","","","","",null,null,null,null,null,null,null,null,null,null,null,null,null,"","-","","","","",null,null,null,null,null,null,null,null,null,null,null,null,null,"","-","","","","",null,null,null,null,null,null,null,null,null,null,null,null,null,"","-","","","","",null,null,null,null,null,null,null,null,null,null,null,null,null,"","-","","","","",null,null,null,null,null,null,null,null,null,null,null,null,null,"","-","","","","",null,null,null,null,null,null,null,null,null,null,null,null,null,"","-","","","","",null,null,null,null,null,null,null,null,null,null,null,null,null,"","-","","","","",null,null,null,null,null,null,null,null,null,null,null,null,null,"","-","","","","",null,null,null,null,null,null,null,null,null,null,null,null,null,"","-","","","","",null,null,null,null,null,null,null,null,null,null,null,null,null,"","-","","","","",null,null,null,null,null,null,null,null,null,null,null,null,null,"","-","","","","",null,null,null,null,null,null,null,null,null,null,null,null,null,"","-","","","","",null,null,null,null,null,null,null,null,null,null,null,null,null,"","-","","","",""]
[{"$f":"Pool_B_Team_5","v":"Sefton"},null,null,null,null,null,null,null,null,null,null,null,null,null,"","-","","","","",null,null,null,null,null,null,null,null,null,null,null,null,null,"","-","","","","",null,null,null,null,null,null,null,null,null,null,null,null,null,"","-","","","","",null,null,null,null,null,null,null,null,null,null,null,null,null,"","-","","","","",null,null,null,null,null,null,null,null,null,null,null,null,null,"","-","","","","",null,null,null,null,null,null,null,null,null,null,null,null,null,"","-","","","","",null,null,null,null,null,null,null,null,null,null,null,null,null,"","-","","","","",null,null,null,null,null,null,null,null,null,null,null,null,null,"","-","","","","",12,null,null,null,null,null,null,36,null,null,null,null,null,"A",24,1,"","","",null,null,null,null,null,null,null,null,null,null,null,null,null,"","-","","","","",null,null,null,null,null,null,null,null,null,null,null,null,null,"","-","","","","",null,null,null,null,null,null,null,null,null,null,null,null,null,"","-","","","","",null,null,null,null,null,null,null,null,null,null,null,null,null,"","-","","","","",null,null,null,null,null,null,null,"w/o",null,null,null,null,null,"A","-","","","","",null,null,null,null,null,null,null,null,null,null,null,null,null,"","-","","","","",null,null,null,null,null,null,null,null,null,null,null,null,null,"","-","","","","",null,null,null,null,null,null,null,null,null,null,null,null,null,"","-","","","","",null,null,null,null,null,null,null,null,null,null,null,null,null,"","-","","","","",null,null,null,null,null,null,null,null,null,null,null,null,null,"","-","","","","",null,null,null,null,null,null,null,null,null,null,null,null,null,"","-","","","","",null,null,null,null,null,null,null,null,null,null,null,null,null,"","-","","","","",null,null,null,null,null,null,null,null,null,null,null,null,null,"","-","","","","",null,null,null,null,null,null,null,null,null,null,null,null,null,"","-","","","","",null,null,null,null,null,null,null,null,null,null,null,null,null,"","-","","","","",null,null,null,null,null,null,null,null,null,null,null,null,null,"","-","","","","",null,null,null,null,null,null,null,null,null,null,null,null,null,"","-","","","","",null,null,null,null,null,null,null,null,null,null,null,null,null,"","-","","","","",null,null,null,null,null,null,null,null,null,null,null,null,null,"","-","","","","",null,null,null,null,null,null,null,null,null,null,null,null,null,"","-","","","","",null,null,null,null,null,null,null,null,null,null,null,null,null,"","-","","","","",null,null,null,null,null,null,null,null,null,null,null,null,null,"","-","","","","",null,null,null,null,null,null,null,null,null,null,null,null,null,"","-","","","",""]
[{"$f":"Pool_B_Team_6","v":"Vale of Lune"},null,null,null,null,null,null,null,null,null,null,null,null,null,"","-","","","","",null,null,null,null,null,null,null,null,null,null,null,null,null,"","-","","","","",null,null,null,null,null,null,null,null,null,null,null,null,null,"","-","","","","",null,null,null,null,null,null,null,null,null,null,null,null,null,"","-","","","","",null,null,null,null,null,null,null,null,null,null,null,null,null,"","-","","","","",null,null,null,null,null,null,null,null,null,null,null,null,null,"","-","","","","",null,null,null,null,null,null,null,null,null,null,null,null,null,"","-","","","","",null,null,null,null,null,null,null,null,null,null,null,null,null,"","-","","","","",22,null,null,null,null,1,null,12,null,null,null,null,null,"H",10,"",2,"","",null,null,null,null,null,null,null,null,null,null,null,null,null,"","-","","","","",35,"*",null,null,null,null,null,5,null,null,null,null,null,"H",30,"",1,"","",null,null,null,null,null,null,null,null,null,null,null,null,null,"","-","","","","",null,null,null,null,null,null,null,null,null,null,null,null,null,"","-","","","","",null,null,null,null,null,null,null,null,null,null,null,null,null,"","-","","","","",null,null,null,null,null,null,null,null,null,null,null,null,null,"","-","","","","",null,null,null,null,null,null,null,null,null,null,null,null,null,"","-","","","","",null,null,null,null,null,null,null,null,null,null,null,null,null,"","-","","","","",null,null,null,null,null,null,null,null,null,null,null,null,null,"","-","","","","",null,null,null,null,null,null,null,null,null,null,null,null,null,"","-","","","","",null,null,null,null,null,null,null,null,null,null,null,null,null,"","-","","","","",null,null,null,null,null,null,null,null,null,null,null,null,null,"","-","","","","",null,null,null,null,null,null,null,null,null,null,null,null,null,"","-","","","","",null,null,null,null,null,null,null,null,null,null,null,null,null,"","-","","","","",null,null,null,null,null,null,null,null,null,null,null,null,null,"","-","","","","",null,null,null,null,null,null,null,null,null,null,null,null,null,"","-","","","","",null,null,null,null,null,null,null,null,null,null,null,null,null,"","-","","","","",null,null,null,null,null,null,null,null,null,null,null,null,null,"","-","","","","",null,null,null,null,null,null,null,null,null,null,null,null,null,"","-","","","","",null,null,null,null,null,null,null,null,null,null,null,null,null,"","-","","","","",null,null,null,null,null,null,null,null,null,null,null,null,null,"","-","","","","",null,null,null,null,null,null,null,null,null,null,null,null,null,"","-","","","","",null,null,null,null,null,null,null,null,null,null,null,null,null,"","-","","","",""]
[{"$f":"Pool_B_Team_7","v":0},null,null,null,null,null,null,null,null,null,null,null,null,null,"","-","","",{"$f":"IF(D20>3,\"HT\",\"\")","v":""},{"$f":"IF(K20>3,\"AT\",\"\")","v":""},null,null,null,null,null,null,null,null,null,null,null,null,null,"","-","","","","",null,null,null,null,null,null,null,null,null,null,null,null,null,"","-","","","","",null,null,null,null,null,null,null,null,null,null,null,null,null,"","-","","","","",null,null,null,null,null,null,null,null,null,null,null,null,null,"","-","","","","",null,null,null,null,null,null,null,null,null,null,null,null,null,"","-","","","","",null,null,null,null,null,null,null,null,null,null,null,null,null,"","-","","","","",null,null,null,null,null,null,null,null,null,null,null,null,null,"","-","","","","",null,null,null,null,null,null,null,null,null,null,null,null,null,"","-","","","","",null,null,null,null,null,null,null,null,null,null,null,null,null,"","-","","","","",null,null,null,null,null,null,null,null,null,null,null,null,null,"","-","","","","",null,null,null,null,null,null,null,null,null,null,null,null,null,"","-","","","","",null,null,null,null,null,null,null,null,null,null,null,null,null,"","-","","","","",null,null,null,null,null,null,null,null,null,null,null,null,null,"","-","","","","",null,null,null,null,null,null,null,null,null,null,null,null,null,"","-","","","","",null,null,null,null,null,null,null,null,null,null,null,null,null,"","-","","","","",null,null,null,null,null,null,null,null,null,null,null,null,null,"","-","","","","",null,null,null,null,null,null,null,null,null,null,null,null,null,"","-","","","","",null,null,null,null,null,null,null,null,null,null,null,null,null,"","-","","","","",null,null,null,null,null,null,null,null,null,null,null,null,null,"","-","","",{"$f":"IF(NA20>3,\"HT\",\"\")","v":""},{"$f":"IF(NH20>3,\"AT\",\"\")","v":""},null,null,null,null,null,null,null,null,null,null,null,null,null,"","-","","","","",null,null,null,null,null,null,null,null,null,null,null,null,null,"","-","","","","",null,null,null,null,null,null,null,null,null,null,null,null,null,"","-","","","","",null,null,null,null,null,null,null,null,null,null,null,null,null,"","-","","","","",null,null,null,null,null,null,null,null,null,null,null,null,null,"","-","","","","",null,null,null,null,null,null,null,null,null,null,null,null,null,"","-","","","","",null,null,null,null,null,null,null,null,null,null,null,null,null,"","-","","","","",null,null,null,null,null,null,null,null,null,null,null,null,null,"","-","","","","",null,null,null,null,null,null,null,null,null,null,null,null,null,"","-","","","","",null,null,null,null,null,null,null,null,null,null,null,null,null,"","-","","","","",null,null,null,null,null,null,null,null,null,null,null,null,null,"","-","","","","",null,null,null,null,null,null,null,null,null,null,null,null,null,"","-","","","",""]
[{"$f":"Pool_B_Team_8","v":0},null,null,null,null,null,null,null,null,null,null,null,null,null,"","-","","","","",null,null,null,null,null,null,null,null,null,null,null,null,null,"","-","","","","",null,null,null,null,null,null,null,null,null,null,null,null,null,"","-","","","","",null,null,null,null,null,null,null,null,null,null,null,null,null,"","-","","","","",null,null,null,null,null,null,null,null,null,null,null,null,null,"","-","","","","",null,null,null,null,null,null,null,null,null,null,null,null,null,"","-","","","","",null,null,null,null,null,null,null,null,null,null,null,null,null,"","-","","","","",null,null,null,null,null,null,null,null,null,null,null,null,null,"","-","","","","",null,null,null,null,null,null,null,null,null,null,null,null,null,"","-","","","","",null,null,null,null,null,null,null,null,null,null,null,null,null,"","-","","","","",null,null,null,null,null,null,null,null,null,null,null,null,null,"","-","","","","",null,null,null,null,null,null,null,null,null,null,null,null,null,"","-","","","","",null,null,null,null,null,null,null,null,null,null,null,null,null,"","-","","","","",null,null,null,null,null,null,null,null,null,null,null,null,null,"","-","","","","",null,null,null,null,null,null,null,null,null,null,null,null,null,"","-","","","","",null,null,null,null,null,null,null,null,null,null,null,null,null,"","-","","","","",null,null,null,null,null,null,null,null,null,null,null,null,null,"","-","","","","",null,null,null,null,null,null,null,null,null,null,null,null,null,"","-","","","","",null,null,null,null,null,null,null,null,null,null,null,null,null,"","-","","","","",null,null,null,null,null,null,null,null,null,null,null,null,null,"","-","","","","",null,null,null,null,null,null,null,null,null,null,null,null,null,"","-","","","","",null,null,null,null,null,null,null,null,null,null,null,null,null,"","-","","","","",null,null,null,null,null,null,null,null,null,null,null,null,null,"","-","","","","",null,null,null,null,null,null,null,null,null,null,null,null,null,"","-","","","","",null,null,null,null,null,null,null,null,null,null,null,null,null,"","-","","","","",null,null,null,null,null,null,null,null,null,null,null,null,null,"","-","","","","",null,null,null,null,null,null,null,null,null,null,null,null,null,"","-","","","","",null,null,null,null,null,null,null,null,null,null,null,null,null,"","-","","","","",null,null,null,null,null,null,null,null,null,null,null,null,null,"","-","","","","",null,null,null,null,null,null,null,null,null,null,null,null,null,"","-","","","","",null,null,null,null,null,null,null,null,null,null,null,null,null,"","-","","","","",null,null,null,null,null,null,null,null,null,null,null,null,null,"","-","","","",""]
[{"$f":"Pool_C_Team_1","v":"Clitheroe"},null,null,null,null,null,null,null,null,null,null,null,null,null,"","-","","","","",null,null,null,null,null,null,null,null,null,null,null,null,null,"","-","","","","",null,null,null,null,null,null,null,null,null,null,null,null,null,"","-","","","","",null,null,null,null,null,null,null,null,null,null,null,null,null,"","-","","","","",null,null,null,null,null,null,null,null,null,null,null,null,null,"","-","","","","",null,null,null,null,null,null,null,null,null,null,null,null,null,"","-","","","","",null,null,null,null,null,null,null,null,null,null,null,null,null,"","-","","","","",null,null,null,null,null,null,null,null,null,null,null,null,null,"","-","","","","",null,null,null,null,null,null,null,null,null,null,null,null,null,"","-","","","","",null,null,null,null,null,null,null,null,null,null,null,null,null,"","-","","","","",null,null,null,null,null,null,null,null,null,null,null,null,null,"","-","","","","",null,null,null,null,null,null,null,null,null,null,null,null,null,"","-","","","","",null,null,null,null,null,null,null,null,null,null,null,null,null,"","-","","","","",null,null,null,null,null,null,null,null,null,null,null,null,null,"","-","","","","",null,null,null,null,null,null,null,null,null,null,null,null,null,"","-","","","","",null,null,null,null,null,null,null,null,null,null,null,null,null,"","-","","","","",null,null,null,null,null,null,null,null,null,null,null,null,null,"","-","","","","",null,null,null,null,null,null,null,null,null,null,null,null,null,"","-","","","","",null,null,null,null,null,null,null,null,null,null,null,null,null,"","-","","","","",0,null,null,null,null,null,null,30,null,null,null,null,null,"A",30,1,"","","",null,null,null,null,null,null,null,null,null,null,null,null,null,"","-","","","","",null,null,null,null,null,null,null,null,null,null,null,null,null,"","-","","","","",null,null,null,null,null,null,null,null,null,null,null,null,null,"","-","","","","",null,null,null,null,null,null,null,null,null,null,null,null,null,"","-","","","","",null,null,null,null,null,null,null,null,null,null,null,null,null,"","-","","","","",null,null,null,null,null,null,null,null,null,null,null,null,null,"","-","","","","",null,null,null,null,null,null,null,null,null,null,null,null,null,"","-","","","","",null,null,null,null,null,null,null,null,null,null,null,null,null,"","-","","","","",null,null,null,null,null,null,null,null,null,null,null,null,null,"","-","","","","",null,null,null,null,null,null,null,null,null,null,null,null,null,"","-","","","","",null,null,null,null,null,null,null,null,null,null,null,null,null,"","-","","","","",null,null,null,null,null,null,null,null,null,null,null,null,null,"","-","","","",""]
[{"$f":"Pool_C_Team_2","v":"Heaton Moor"},null,null,null,null,null,null,null,null,null,null,null,null,null,"","-","","","","",null,null,null,null,null,null,null,null,null,null,null,null,null,"","-","","","","",null,null,null,null,null,null,null,null,null,null,null,null,null,"","-","","","","",null,null,null,null,null,null,null,null,null,null,null,null,null,"","-","","","","",null,null,null,null,null,null,null,null,null,null,null,null,null,"","-","","","","",null,null,null,null,null,null,null,null,null,null,null,null,null,"","-","","","","",null,null,null,null,null,null,null,null,null,null,null,null,null,"","-","","","","",null,null,null,null,null,null,null,null,null,null,null,null,null,"","-","","","","",null,null,null,null,null,null,null,null,null,null,null,null,null,"","-","","","","",null,null,null,null,null,null,null,null,null,null,null,null,null,"","-","","","","",null,null,null,null,null,null,null,null,null,null,null,null,null,"","-","","","","",null,null,null,null,null,null,null,null,null,null,null,null,null,"","-","","","","",null,null,null,null,null,null,null,null,null,null,null,null,null,"","-","","","","",null,null,null,null,null,null,null,null,null,null,null,null,null,"","-","","","","",null,null,null,null,null,null,null,null,null,null,null,null,null,"","-","","","","",null,null,null,null,null,null,null,null,null,null,null,null,null,"","-","","","","",null,null,null,null,null,null,null,null,null,null,null,null,null,"","-","","","","",null,null,null,null,null,null,null,null,null,null,null,null,null,"","-","","","","",5,null,null,null,null,null,null,35,null,null,null,null,null,"A",30,1,"","","",null,null,null,null,null,null,null,null,null,null,null,null,null,"","-","","","","",null,null,null,null,null,null,null,null,null,null,null,null,null,"","-","","","","",40,"*",null,null,null,null,null,10,null,null,null,null,null,"H",30,"",1,"","",null,null,null,null,null,null,null,null,null,null,null,null,null,"","-","","","","",null,null,null,null,null,null,null,null,null,null,null,null,null,"","-","","","","",null,null,null,null,null,null,null,null,null,null,null,null,null,"","-","","","","",null,null,null,null,null,null,null,null,null,null,null,null,null,"","-","","","","",null,null,null,null,null,null,null,null,null,null,null,null,null,"","-","","","","",null,null,null,null,null,null,null,null,null,null,null,null,null,"","-","","","","",null,null,null,null,null,null,null,null,null,null,null,null,null,"","-","","","","",null,null,null,null,null,null,null,null,null,null,null,null,null,"","-","","","","",null,null,null,null,null,null,null,null,null,null,null,null,null,"","-","","","","",null,null,null,null,null,null,null,null,null,null,null,null,null,"","-","","","",""]
[{"$f":"Pool_C_Team_3","v":"Preston Grasshoppers"},null,null,null,null,null,null,null,null,null,null,null,null,null,"","-","","","","",null,null,null,null,null,null,null,null,null,null,null,null,null,"","-","","","","",null,null,null,null,null,null,null,null,null,null,null,null,null,"","-","","","","",null,null,null,null,null,null,null,null,null,null,null,null,null,"","-","","","","",null,null,null,null,null,null,null,null,null,null,null,null,null,"","-","","","","",null,null,null,null,null,null,null,null,null,null,null,null,null,"","-","","","","",null,null,null,null,null,null,null,null,null,null,null,null,null,"","-","","","","",null,null,null,null,null,null,null,null,null,null,null,null,null,"","-","","","","",null,null,null,null,null,null,null,null,null,null,null,null,null,"","-","","","","",null,null,null,null,null,null,null,null,null,null,null,null,null,"","-","","","","",null,null,null,null,null,null,null,null,null,null,null,null,null,"","-","","","","",null,null,null,null,null,null,null,null,null,null,null,null,null,"","-","","","","",null,null,null,null,null,null,null,null,null,null,null,null,null,"","-","","","","",null,null,null,null,null,null,null,null,null,null,null,null,null,"","-","","","","",null,null,null,null,null,null,null,null,null,null,null,null,null,"","-","","","","",null,null,null,null,null,null,null,null,null,null,null,null,null,"","-","","","","","w/o",null,null,null,null,null,null,null,null,null,null,null,null,"H","-","","","","",null,null,null,null,null,null,null,null,null,null,null,null,null,"","-","","","","",null,null,null,null,null,null,null,null,null,null,null,null,null,"","-","","","","",null,null,null,null,null,null,null,null,null,null,null,null,null,"","-","","","","",null,null,null,null,null,null,null,null,null,null,null,null,null,"","-","","","","","w/o",null,null,null,null,null,null,null,null,null,null,null,null,"H","-","","","","",null,null,null,null,null,null,null,null,null,null,null,null,null,"","-","","","","",null,null,null,null,null,null,null,null,null,null,null,null,null,"","-","","","","",null,null,null,null,null,null,null,null,null,null,null,null,null,"","-","","","","",null,null,null,null,null,null,null,null,null,null,null,null,null,"","-","","","","",null,null,null,null,null,null,null,null,null,null,null,null,null,"","-","","","","",null,null,null,null,null,null,null,null,null,null,null,null,null,"","-","","","","",null,null,null,null,null,null,null,null,null,null,null,null,null,"","-","","","","",null,null,null,null,null,null,null,null,null,null,null,null,null,"","-","","","","",null,null,null,null,null,null,null,null,null,null,null,null,null,"","-","","","","",null,null,null,null,null,null,null,null,null,null,null,null,null,"","-","","","",""]
[{"$f":"Pool_C_Team_4","v":"Rossendale"},null,null,null,null,null,null,null,null,null,null,null,null,null,"","-","","","","",null,null,null,null,null,null,null,null,null,null,null,null,null,"","-","","","","",null,null,null,null,null,null,null,null,null,null,null,null,null,"","-","","","","",null,null,null,null,null,null,null,null,null,null,null,null,null,"","-","","","","",null,null,null,null,null,null,null,null,null,null,null,null,null,"","-","","","","",null,null,null,null,null,null,null,null,null,null,null,null,null,"","-","","","","",null,null,null,null,null,null,null,null,null,null,null,null,null,"","-","","","","",null,null,null,null,null,null,null,null,null,null,null,null,null,"","-","","","","",null,null,null,null,null,null,null,null,null,null,null,null,null,"","-","","","","",null,null,null,null,null,null,null,null,null,null,null,null,null,"","-","","","","",null,null,null,null,null,null,null,null,null,null,null,null,null,"","-","","","","",null,null,null,null,null,null,null,null,null,null,null,null,null,"","-","","","","",null,null,null,null,null,null,null,null,null,null,null,null,null,"","-","","","","",null,null,null,null,null,null,null,null,null,null,null,null,null,"","-","","","","",null,null,null,null,null,null,null,null,null,null,null,null,null,"","-","","","","",null,null,null,null,null,null,null,null,null,null,null,null,null,"","-","","","","",null,null,null,null,null,null,null,null,null,null,null,null,null,"","-","","","","",null,null,null,null,null,null,null,null,null,null,null,null,null,"","-","","","","",null,null,null,null,null,null,null,null,null,null,null,null,null,"","-","","","","",null,null,null,null,null,null,null,null,null,null,null,null,null,"","-","","","","","w/o",null,null,null,null,null,null,null,null,null,null,null,null,"H","-","","","","",null,null,null,null,null,null,null,null,null,null,null,null,null,"","-","","","","",null,null,null,null,null,null,null,null,null,null,null,null,null,"","-","","","","",null,null,null,null,null,null,null,null,null,null,null,null,null,"","-","","","","",null,null,null,null,null,null,null,null,null,null,null,null,null,"","-","","","","",null,null,null,null,null,null,null,null,null,null,null,null,null,"","-","","","","",null,null,null,null,null,null,null,null,null,null,null,null,null,"","-","","","","",null,null,null,null,null,null,null,null,null,null,null,null,null,"","-","","","","",null,null,null,null,null,null,null,null,null,null,null,null,null,"","-","","","","",null,null,null,null,null,null,null,null,null,null,null,null,null,"","-","","","","",null,null,null,null,null,null,null,null,null,null,null,null,null,"","-","","","","",null,null,null,null,null,null,null,null,null,null,null,null,null,"","-","","","",""]
[{"$f":"Pool_C_Team_5","v":"Sedgley Park"},null,null,null,null,null,null,null,null,null,null,null,null,null,"","-","","",{"$f":"IF(D26>3,\"HT\",\"\")","v":""},{"$f":"IF(K26>3,\"AT\",\"\")","v":""},null,null,null,null,null,null,null,null,null,null,null,null,null,"","-","","",{"$f":"IF(W26>3,\"HT\",\"\")","v":""},{"$f":"IF(AD26>3,\"AT\",\"\")","v":""},null,null,null,null,null,null,null,null,null,null,null,null,null,"","-","","",{"$f":"IF(AP26>3,\"HT\",\"\")","v":""},{"$f":"IF(AW26>3,\"AT\",\"\")","v":""},null,null,null,null,null,null,null,null,null,null,null,null,null,"","-","","",{"$f":"IF(BI26>3,\"HT\",\"\")","v":""},{"$f":"IF(BP26>3,\"AT\",\"\")","v":""},null,null,null,null,null,null,null,null,null,null,null,null,null,"","-","","",{"$f":"IF(CB26>3,\"HT\",\"\")","v":""},{"$f":"IF(CI26>3,\"AT\",\"\")","v":""},null,null,null,null,null,null,null,null,null,null,null,null,null,"","-","","",{"$f":"IF(CU26>3,\"HT\",\"\")","v":""},{"$f":"IF(DB26>3,\"AT\",\"\")","v":""},null,null,null,null,null,null,null,null,null,null,null,null,null,"","-","","",{"$f":"IF(DM26>3,\"HT\",\"\")","v":""},{"$f":"IF(DU26>3,\"AT\",\"\")","v":""},null,null,null,null,null,null,null,null,null,null,null,null,null,"","-","","",{"$f":"IF(EG26>3,\"HT\",\"\")","v":""},{"$f":"IF(EN26>3,\"AT\",\"\")","v":""},null,null,null,null,null,null,null,null,null,null,null,null,null,"","-","","",{"$f":"IF(EZ26>3,\"HT\",\"\")","v":""},{"$f":"IF(FG26>3,\"AT\",\"\")","v":""},null,null,null,null,null,null,null,null,null,null,null,null,null,"","-","","",{"$f":"IF(FS26>3,\"HT\",\"\")","v":""},{"$f":"IF(FZ26>3,\"AT\",\"\")","v":""},null,null,null,null,null,null,null,null,null,null,null,null,null,"","-","","",{"$f":"IF(GL26>3,\"HT\",\"\")","v":""},{"$f":"IF(GS26>3,\"AT\",\"\")","v":""},null,null,null,null,null,null,null,null,null,null,null,null,null,"","-","","",{"$f":"IF(HE26>3,\"HT\",\"\")","v":""},{"$f":"IF(HL26>3,\"AT\",\"\")","v":""},null,null,null,null,null,null,null,null,null,null,null,null,null,"","-","","",{"$f":"IF(HX26>3,\"HT\",\"\")","v":""},{"$f":"IF(IE26>3,\"AT\",\"\")","v":""},null,null,null,null,null,null,null,null,null,null,null,null,null,"","-","","",{"$f":"IF(IQ26>3,\"HT\",\"\")","v":""},{"$f":"IF(IX26>3,\"AT\",\"\")","v":""},null,null,null,null,null,null,null,null,null,null,null,null,null,"","-","","",{"$f":"IF(JJ26>3,\"HT\",\"\")","v":""},{"$f":"IF(JQ26>3,\"AT\",\"\")","v":""},null,null,null,null,null,null,null,null,null,null,null,null,null,"","-","","",{"$f":"IF(KC26>3,\"HT\",\"\")","v":""},{"$f":"IF(KJ26>3,\"AT\",\"\")","v":""},null,null,null,null,null,null,null,null,null,null,null,null,null,"","-","","","",{"$f":"IF(LC26>3,\"AT\",\"\")","v":""},0,null,null,null,null,null,null,30,null,null,null,null,null,"A",30,1,"",{"$f":"IF(LO26>3,\"HT\",\"\")","v":""},{"$f":"IF(LV26>3,\"AT\",\"\")","v":""},null,null,null,null,null,null,null,"w/o",null,null,null,null,null,"A","-","","",{"$f":"IF(MH26>3,\"HT\",\"\")","v":""},{"$f":"IF(MO26>3,\"AT\",\"\")","v":""},null,null,null,null,null,null,null,null,null,null,null,null,null,"","-","","",{"$f":"IF(NA26>3,\"HT\",\"\")","v":""},{"$f":"IF(NH26>3,\"AT\",\"\")","v":""},null,null,null,null,null,null,null,null,null,null,null,null,null,"","-","","",{"$f":"IF(NT26>3,\"HT\",\"\")","v":""},{"$f":"IF(OA26>3,\"AT\",\"\")","v":""},null,null,null,null,null,null,null,null,null,null,null,null,null,"","-","","",{"$f":"IF(OM26>3,\"HT\",\"\")","v":""},{"$f":"IF(OT26>3,\"AT\",\"\")","v":""},null,null,null,null,null,null,null,null,null,null,null,null,null,"","-","","",{"$f":"IF(PF26>3,\"HT\",\"\")","v":""},{"$f":"IF(PM26>3,\"AT\",\"\")","v":""},null,null,null,null,null,null,null,null,null,null,null,null,null,"","-","","",{"$f":"IF(PY26>3,\"HT\",\"\")","v":""},{"$f":"IF(QF26>3,\"AT\",\"\")","v":""},null,null,null,null,null,null,null,null,null,null,null,null,null,"","-","","",{"$f":"IF(QR26>3,\"HT\",\"\")","v":""},{"$f":"IF(QY26>3,\"AT\",\"\")","v":""},null,null,null,null,null,null,null,null,null,null,null,null,null,"","-","","",{"$f":"IF(RK26>3,\"HT\",\"\")","v":""},{"$f":"IF(RR26>3,\"AT\",\"\")","v":""},null,null,null,null,null,null,null,null,null,null,null,null,null,"","-","","",{"$f":"IF(SD26>3,\"HT\",\"\")","v":""},{"$f":"IF(SK26>3,\"AT\",\"\")","v":""},null,null,null,null,null,null,null,null,null,null,null,null,null,"","-","","",{"$f":"IF(SW26>3,\"HT\",\"\")","v":""},{"$f":"IF(TD26>3,\"AT\",\"\")","v":""},null,null,null,null,null,null,null,null,null,null,null,null,null,"","-","","",{"$f":"IF(TP26>3,\"HT\",\"\")","v":""},{"$f":"IF(TW26>3,\"AT\",\"\")","v":""},null,null,null,null,null,null,null,null,null,null,null,null,null,"","-","","","","",null,null,null,null,null,null,null,null,null,null,null,null,null,"","-","","",{"$f":"IF(VB26>3,\"HT\",\"\")","v":""},{"$f":"IF(VI26>3,\"AT\",\"\")","v":""},null,null,null,null,null,null,null,null,null,null,null,null,null,"","-","","","",""]
[{"$f":"Pool_C_Team_6","v":"West Park"},null,null,null,null,null,null,null,null,null,null,null,null,null,"","-","","","","",null,null,null,null,null,null,null,null,null,null,null,null,null,"","-","","","","",null,null,null,null,null,null,null,null,null,null,null,null,null,"","-","","","","",null,null,null,null,null,null,null,null,null,null,null,null,null,"","-","","","","",null,null,null,null,null,null,null,null,null,null,null,null,null,"","-","","","","",null,null,null,null,null,null,null,null,null,null,null,null,null,"","-","","","","",null,null,null,null,null,null,null,null,null,null,null,null,null,"","-","","","","",null,null,null,null,null,null,null,null,null,null,null,null,null,"","-","","","","",null,null,null,null,null,null,null,null,null,null,null,null,null,"","-","","","","",null,null,null,null,null,null,null,null,null,null,null,null,null,"","-","","","","",null,null,null,null,null,null,null,null,null,null,null,null,null,"","-","","","","",null,null,null,null,null,null,null,null,null,null,null,null,null,"","-","","","","",null,null,null,null,null,null,null,null,null,null,null,null,null,"","-","","","","",null,null,null,null,null,null,null,null,null,null,null,null,null,"","-","","","","",null,null,null,null,null,null,null,null,null,null,null,null,null,"","-","","","","",null,null,null,null,null,null,null,null,null,null,null,null,null,"","-","","","","",null,null,null,null,null,null,null,null,null,null,null,null,null,"","-","","","","",null,null,null,null,null,null,null,null,null,null,null,null,null,"","-","","","","",null,null,null,null,null,null,null,null,null,null,null,null,null,"","-","","","","",null,null,null,null,null,null,null,null,null,null,null,null,null,"","-","","","","",null,null,null,null,null,null,null,"w/o",null,null,null,null,null,"A","-","","","","",null,null,null,null,null,null,null,null,null,null,null,null,null,"","-","","","","",null,null,null,null,null,null,null,null,null,null,null,null,null,"","-","","","","",null,null,null,null,null,null,null,null,null,null,null,null,null,"","-","","","","",null,null,null,null,null,null,null,null,null,null,null,null,null,"","-","","","","",null,null,null,null,null,null,null,null,null,null,null,null,null,"","-","","","","",null,null,null,null,null,null,null,null,null,null,null,null,null,"","-","","","","",null,null,null,null,null,null,null,null,null,null,null,null,null,"","-","","","","",null,null,null,null,null,null,null,null,null,null,null,null,null,"","-","","","","",null,null,null,null,null,null,null,null,null,null,null,null,null,"","-","","","","",null,null,null,null,null,null,null,null,null,null,null,null,null,"","-","","","","",null,null,null,null,null,null,null,null,null,null,null,null,null,"","-","","","",""]
[{"$f":"Pool_C_Team_7","v":0},null,null,null,null,null,null,null,null,null,null,null,null,null,"","-","","","","",null,null,null,null,null,null,null,null,null,null,null,null,null,"","-","","","","",null,null,null,null,null,null,null,null,null,null,null,null,null,"","-","","","","",null,null,null,null,null,null,null,null,null,null,null,null,null,"","-","","","","",null,null,null,null,null,null,null,null,null,null,null,null,null,"","-","","","","",null,null,null,null,null,null,null,null,null,null,null,null,null,"","-","","","","",null,null,null,null,null,null,null,null,null,null,null,null,null,"","-","","","","",null,null,null,null,null,null,null,null,null,null,null,null,null,"","-","","","","",null,null,null,null,null,null,null,null,null,null,null,null,null,"","-","","","","",null,null,null,null,null,null,null,null,null,null,null,null,null,"","-","","","","",null,null,null,null,null,null,null,null,null,null,null,null,null,"","-","","","","",null,null,null,null,null,null,null,null,null,null,null,null,null,"","-","","","","",null,null,null,null,null,null,null,null,null,null,null,null,null,"","-","","","","",null,null,null,null,null,null,null,null,null,null,null,null,null,"","-","","","","",null,null,null,null,null,null,null,null,null,null,null,null,null,"","-","","","","",null,null,null,null,null,null,null,null,null,null,null,null,null,"","-","","","","",null,null,null,null,null,null,null,null,null,null,null,null,null,"","-","","","","",null,null,null,null,null,null,null,null,null,null,null,null,null,"","-","","","","",null,null,null,null,null,null,null,null,null,null,null,null,null,"","-","","","","",null,null,null,null,null,null,null,null,null,null,null,null,null,"","-","","","","",null,null,null,null,null,null,null,null,null,null,null,null,null,"","-","","","","",null,null,null,null,null,null,null,null,null,null,null,null,null,"","-","","","","",null,null,null,null,null,null,null,null,null,null,null,null,null,"","-","","","","",null,null,null,null,null,null,null,null,null,null,null,null,null,"","-","","","","",null,null,null,null,null,null,null,null,null,null,null,null,null,"","-","","","","",null,null,null,null,null,null,null,null,null,null,null,null,null,"","-","","","","",null,null,null,null,null,null,null,null,null,null,null,null,null,"","-","","","","",null,null,null,null,null,null,null,null,null,null,null,null,null,"","-","","","","",null,null,null,null,null,null,null,null,null,null,null,null,null,"","-","","","","",null,null,null,null,null,null,null,null,null,null,null,null,null,"","-","","","","",null,null,null,null,null,null,null,null,null,null,null,null,null,"","-","","","","",null,null,null,null,null,null,null,null,null,null,null,null,null,"","-","","","",""]
[{"$f":"Pool_C_Team_8","v":0},null,null,null,null,null,null,null,null,null,null,null,null,null,"","-","","","","",null,null,null,null,null,null,null,null,null,null,null,null,null,"","-","","","","",null,null,null,null,null,null,null,null,null,null,null,null,null,"","-","","","","",null,null,null,null,null,null,null,null,null,null,null,null,null,"","-","","","","",null,null,null,null,null,null,null,null,null,null,null,null,null,"","-","","","","",null,null,null,null,null,null,null,null,null,null,null,null,null,"","-","","","","",null,null,null,null,null,null,null,null,null,null,null,null,null,"","-","","","","",null,null,null,null,null,null,null,null,null,null,null,null,null,"","-","","","","",null,null,null,null,null,null,null,null,null,null,null,null,null,"","-","","","","",null,null,null,null,null,null,null,null,null,null,null,null,null,"","-","","","","",null,null,null,null,null,null,null,null,null,null,null,null,null,"","-","","","","",null,null,null,null,null,null,null,null,null,null,null,null,null,"","-","","","","",null,null,null,null,null,null,null,null,null,null,null,null,null,"","-","","","","",null,null,null,null,null,null,null,null,null,null,null,null,null,"","-","","","","",null,null,null,null,null,null,null,null,null,null,null,null,null,"","-","","","","",null,null,null,null,null,null,null,null,null,null,null,null,null,"","-","","","","",null,null,null,null,null,null,null,null,null,null,null,null,null,"","-","","","","",null,null,null,null,null,null,null,null,null,null,null,null,null,"","-","","","","",null,null,null,null,null,null,null,null,null,null,null,null,null,"","-","","","","",null,null,null,null,null,null,null,null,null,null,null,null,null,"","-","","","","",null,null,null,null,null,null,null,null,null,null,null,null,null,"","-","","","","",null,null,null,null,null,null,null,null,null,null,null,null,null,"","-","","","","",null,null,null,null,null,null,null,null,null,null,null,null,null,"","-","","","","",null,null,null,null,null,null,null,null,null,null,null,null,null,"","-","","","","",null,null,null,null,null,null,null,null,null,null,null,null,null,"","-","","","","",null,null,null,null,null,null,null,null,null,null,null,null,null,"","-","","","","",null,null,null,null,null,null,null,null,null,null,null,null,null,"","-","","","","",null,null,null,null,null,null,null,null,null,null,null,null,null,"","-","","","","",null,null,null,null,null,null,null,null,null,null,null,null,null,"","-","","","","",null,null,null,null,null,null,null,null,null,null,null,null,null,"","-","","","","",null,null,null,null,null,null,null,null,null,null,null,null,null,"","-","","","","",null,null,null,null,null,null,null,null,null,null,null,null,null,"","-","","","",""]
[{"$f":"Pool_D_Team_1","v":"Burnley"},null,null,null,null,null,null,null,null,null,null,null,null,null,"","-","","","","",null,null,null,null,null,null,null,null,null,null,null,null,null,"","-","","","","",null,null,null,null,null,null,null,null,null,null,null,null,null,"","-","","","","",null,null,null,null,null,null,null,null,null,null,null,null,null,"","-","","","","",null,null,null,null,null,null,null,null,null,null,null,null,null,"","-","","","","",null,null,null,null,null,null,null,null,null,null,null,null,null,"","-","","","","",null,null,null,null,null,null,null,null,null,null,null,null,null,"","-","","","","",null,null,null,null,null,null,null,null,null,null,null,null,null,"","-","","","","",null,null,null,null,null,null,null,null,null,null,null,null,null,"","-","","","","",null,null,null,null,null,null,null,null,null,null,null,null,null,"","-","","","","",null,null,null,null,null,null,null,null,null,null,null,null,null,"","-","","","","",null,null,null,null,null,null,null,null,null,null,null,null,null,"","-","","","","",null,null,null,null,null,null,null,null,null,null,null,null,null,"","-","","","","",null,null,null,null,null,null,null,null,null,null,null,null,null,"","-","","","","",null,null,null,null,null,null,null,null,null,null,null,null,null,"","-","","","","",null,null,null,null,null,null,null,null,null,null,null,null,null,"","-","","","","",null,null,null,null,null,null,null,null,null,null,null,null,null,"","-","","","","",null,null,null,null,null,null,null,null,null,null,null,null,null,"","-","","","","",null,null,null,null,null,null,null,null,null,null,null,null,null,"","-","","","","",null,null,null,null,null,null,null,null,null,null,null,null,null,"","-","","","","",null,null,null,null,null,null,null,null,null,null,null,null,null,"","-","","","","",null,null,null,null,null,null,null,null,null,null,null,null,null,"","-","","","","",null,null,null,null,null,null,null,null,null,null,null,null,null,"","-","","","","",null,null,null,null,null,null,null,null,null,null,null,null,null,"","-","","","","",null,null,null,null,null,null,null,null,null,null,null,null,null,"","-","","","","",null,null,null,null,null,null,null,null,null,null,null,null,null,"","-","","","","",null,null,null,null,null,null,null,null,null,null,null,null,null,"","-","","","","","w/o",null,null,null,null,null,null,null,null,null,null,null,null,"H","-","","","","",null,null,null,null,null,null,null,null,null,null,null,null,null,"","-","","","","",null,null,null,null,null,null,null,null,null,null,null,null,null,"","-","","","","",null,null,null,null,null,null,null,null,null,null,null,null,null,"","-","","","","",null,null,null,null,null,null,null,null,null,null,null,null,null,"","-","","","",""]
[{"$f":"Pool_D_Team_2","v":"Bury"},null,null,null,null,null,null,null,null,null,null,null,null,null,"","-","","","","",null,null,null,null,null,null,null,null,null,null,null,null,null,"","-","","","","",null,null,null,null,null,null,null,null,null,null,null,null,null,"","-","","","","",null,null,null,null,null,null,null,null,null,null,null,null,null,"","-","","","","",null,null,null,null,null,null,null,null,null,null,null,null,null,"","-","","","","",null,null,null,null,null,null,null,null,null,null,null,null,null,"","-","","","","",null,null,null,null,null,null,null,null,null,null,null,null,null,"","-","","","","",null,null,null,null,null,null,null,null,null,null,null,null,null,"","-","","","","",null,null,null,null,null,null,null,null,null,null,null,null,null,"","-","","","","",null,null,null,null,null,null,null,null,null,null,null,null,null,"","-","","","","",null,null,null,null,null,null,null,null,null,null,null,null,null,"","-","","","","",null,null,null,null,null,null,null,null,null,null,null,null,null,"","-","","","","",null,null,null,null,null,null,null,null,null,null,null,null,null,"","-","","","","",null,null,null,null,null,null,null,null,null,null,null,null,null,"","-","","","","",null,null,null,null,null,null,null,null,null,null,null,null,null,"","-","","","","",null,null,null,null,null,null,null,null,null,null,null,null,null,"","-","","","","",null,null,null,null,null,null,null,null,null,null,null,null,null,"","-","","","","",null,null,null,null,null,null,null,null,null,null,null,null,null,"","-","","","","",null,null,null,null,null,null,null,null,null,null,null,null,null,"","-","","","","",null,null,null,null,null,null,null,null,null,null,null,null,null,"","-","","","","",null,null,null,null,null,null,null,null,null,null,null,null,null,"","-","","","","",null,null,null,null,null,null,null,null,null,null,null,null,null,"","-","","","","",null,null,null,null,null,null,null,null,null,null,null,null,null,"","-","","","","",null,null,null,null,null,null,null,null,null,null,null,null,null,"","-","","","","",null,null,null,null,null,null,"NG",null,null,null,null,null,null,"","-","","","","",null,null,null,null,null,null,null,null,null,null,null,null,null,"","-","","","","",null,null,null,null,null,null,null,null,null,null,null,null,null,"","-","","","","",null,null,null,null,null,null,null,null,null,null,null,null,null,"","-","","","","",null,null,null,null,null,null,null,null,null,null,null,null,null,"","-","","","","",0,null,null,null,null,null,null,30,null,null,null,null,null,"A",30,1,"","","",null,null,null,null,null,null,null,null,null,null,null,null,null,"","-","","","","",null,null,null,null,null,null,null,null,null,null,null,null,null,"","-","","","",""]
[{"$f":"Pool_D_Team_3","v":"Didsbury Toc H"},null,null,null,null,null,null,null,null,null,null,null,null,null,"","-","","","","",null,null,null,null,null,null,null,null,null,null,null,null,null,"","-","","","","",null,null,null,null,null,null,null,null,null,null,null,null,null,"","-","","","","",null,null,null,null,null,null,null,null,null,null,null,null,null,"","-","","","","",null,null,null,null,null,null,null,null,null,null,null,null,null,"","-","","","","",null,null,null,null,null,null,null,null,null,null,null,null,null,"","-","","","","",null,null,null,null,null,null,null,null,null,null,null,null,null,"","-","","","","",null,null,null,null,null,null,null,null,null,null,null,null,null,"","-","","","","",null,null,null,null,null,null,null,null,null,null,null,null,null,"","-","","","","",null,null,null,null,null,null,null,null,null,null,null,null,null,"","-","","","","",null,null,null,null,null,null,null,null,null,null,null,null,null,"","-","","","","",null,null,null,null,null,null,null,null,null,null,null,null,null,"","-","","","","",null,null,null,null,null,null,null,null,null,null,null,null,null,"","-","","","","",null,null,null,null,null,null,null,null,null,null,null,null,null,"","-","","","","",null,null,null,null,null,null,null,null,null,null,null,null,null,"","-","","","","",null,null,null,null,null,null,null,null,null,null,null,null,null,"","-","","","","",null,null,null,null,null,null,null,null,null,null,null,null,null,"","-","","","","",null,null,null,null,null,null,null,null,null,null,null,null,null,"","-","","","","",null,null,null,null,null,null,null,null,null,null,null,null,null,"","-","","","","",null,null,null,null,null,null,null,null,null,null,null,null,null,"","-","","","","",null,null,null,null,null,null,null,null,null,null,null,null,null,"","-","","","","",null,null,null,null,null,null,null,null,null,null,null,null,null,"","-","","","","",null,null,null,null,null,null,null,null,null,null,null,null,null,"","-","","","","",null,null,null,null,null,null,null,null,null,null,null,null,null,"","-","","","","",null,null,null,null,null,null,null,null,null,null,null,null,null,"","-","","","","",null,null,null,null,null,null,null,null,null,null,null,null,null,"","-","","","","",null,null,null,null,null,null,null,null,null,null,null,null,null,"","-","","","","",null,null,null,null,null,null,null,null,null,null,null,null,null,"","-","","","","","w/o",null,null,null,null,null,null,null,null,null,null,null,null,"H","-","","","","",null,null,null,null,null,null,null,null,null,null,null,null,null,"","-","","","","",null,null,null,null,null,null,null,null,null,null,null,null,null,"","-","","","","",null,null,null,null,null,null,null,null,null,null,null,null,null,"","-","","","",""]
[{"$f":"Pool_D_Team_4","v":"Liverpool St Helens"},null,null,null,null,null,null,null,null,null,null,null,null,null,"","-","","","","",null,null,null,null,null,null,null,null,null,null,null,null,null,"","-","","","","",null,null,null,null,null,null,null,null,null,null,null,null,null,"","-","","","","",null,null,null,null,null,null,null,null,null,null,null,null,null,"","-","","","","",null,null,null,null,null,null,null,null,null,null,null,null,null,"","-","","","","",null,null,null,null,null,null,null,null,null,null,null,null,null,"","-","","","","",null,null,null,null,null,null,null,null,null,null,null,null,null,"","-","","","","",null,null,null,null,null,null,null,null,null,null,null,null,null,"","-","","","","",null,null,null,null,null,null,null,null,null,null,null,null,null,"","-","","","","",null,null,null,null,null,null,null,null,null,null,null,null,null,"","-","","","","",null,null,null,null,null,null,null,null,null,null,null,null,null,"","-","","","","",null,null,null,null,null,null,null,null,null,null,null,null,null,"","-","","","","",null,null,null,null,null,null,null,null,null,null,null,null,null,"","-","","","","",null,null,null,null,null,null,null,null,null,null,null,null,null,"","-","","","","",null,null,null,null,null,null,null,null,null,null,null,null,null,"","-","","","","",null,null,null,null,null,null,null,null,null,null,null,null,null,"","-","","","","",null,null,null,null,null,null,null,null,null,null,null,null,null,"","-","","","","",null,null,null,null,null,null,null,null,null,null,null,null,null,"","-","","","","",null,null,null,null,null,null,null,null,null,null,null,null,null,"","-","","","","",null,null,null,null,null,null,null,null,null,null,null,null,null,"","-","","","","",null,null,null,null,null,null,null,null,null,null,null,null,null,"","-","","","","",null,null,null,null,null,null,null,null,null,null,null,null,null,"","-","","","","",null,null,null,null,null,null,null,null,null,null,null,null,null,"","-","","","","",null,null,null,null,null,null,null,null,null,null,null,null,null,"","-","","","","",null,null,null,null,null,null,null,null,null,null,null,null,null,"","-","","","","",null,null,null,null,null,null,null,"w/o",null,null,null,null,null,"A","-","","","","",null,null,null,null,null,null,null,null,null,null,null,null,null,"","-","","","","",null,null,null,null,null,null,null,null,null,null,null,null,null,"","-","","","","",null,null,null,null,null,null,null,null,null,null,null,null,null,"","-","","","","",26,null,null,null,null,null,null,37,null,null,null,null,null,"A",11,1,"","","",null,null,null,null,null,null,null,null,null,null,null,null,null,"","-","","","","",null,null,null,null,null,null,null,null,null,null,null,null,null,"","-","","","",""]
[{"$f":"Pool_D_Team_5","v":"Orrell"},null,null,null,null,null,null,null,null,null,null,null,null,null,"","-","","","","",null,null,null,null,null,null,null,null,null,null,null,null,null,"","-","","","","",null,null,null,null,null,null,null,null,null,null,null,null,null,"","-","","","","",null,null,null,null,null,null,null,null,null,null,null,null,null,"","-","","","","",null,null,null,null,null,null,null,null,null,null,null,null,null,"","-","","","","",null,null,null,null,null,null,null,null,null,null,null,null,null,"","-","","","","",null,null,null,null,null,null,null,null,null,null,null,null,null,"","-","","","","",null,null,null,null,null,null,null,null,null,null,null,null,null,"","-","","","","",null,null,null,null,null,null,null,null,null,null,null,null,null,"","-","","","","",null,null,null,null,null,null,null,null,null,null,null,null,null,"","-","","","","",null,null,null,null,null,null,null,null,null,null,null,null,null,"","-","","","","",null,null,null,null,null,null,null,null,null,null,null,null,null,"","-","","","","",null,null,null,null,null,null,null,null,null,null,null,null,null,"","-","","","","",null,null,null,null,null,null,null,null,null,null,null,null,null,"","-","","","","",null,null,null,null,null,null,null,null,null,null,null,null,null,"","-","","","","",null,null,null,null,null,null,null,null,null,null,null,null,null,"","-","","","","",null,null,null,null,null,null,null,null,null,null,null,null,null,"","-","","","","",null,null,null,null,null,null,null,null,null,null,null,null,null,"","-","","","","",null,null,null,null,null,null,null,null,null,null,null,null,null,"","-","","","","",null,null,null,null,null,null,null,null,null,null,null,null,null,"","-","","","","",null,null,null,null,null,null,null,null,null,null,null,null,null,"","-","","","","",null,null,null,null,null,null,null,null,null,null,null,null,null,"","-","","","","",null,null,null,null,null,null,null,null,null,null,null,null,null,"","-","","","","",null,null,null,null,null,null,null,null,null,null,null,null,null,"","-","","","","",null,null,null,null,null,null,null,null,null,null,null,null,null,"","-","","","","",null,null,null,null,null,null,null,null,null,null,null,null,null,"","-","","","","",null,null,null,null,null,null,null,null,null,null,null,null,null,"","-","","","","",46,null,null,null,null,null,null,27,null,null,null,null,null,"H",19,"",1,"","",null,null,null,null,null,null,null,null,null,null,null,null,null,"","-","","","","",null,null,null,null,null,null,null,null,null,null,null,null,null,"","-","","","","",null,null,null,null,null,null,null,null,null,null,null,null,null,"","-","","","","",null,null,null,null,null,null,null,null,null,null,null,null,null,"","-","","","",""]
[{"$f":"Pool_D_Team_6","v":"Waterloo"},null,null,null,null,null,null,null,null,null,null,null,null,null,"","-","","","","",null,null,null,null,null,null,null,null,null,null,null,null,null,"","-","","","","",null,null,null,null,null,null,null,null,null,null,null,null,null,"","-","","","","",null,null,null,null,null,null,null,null,null,null,null,null,null,"","-","","","","",null,null,null,null,null,null,null,null,null,null,null,null,null,"","-","","","","",null,null,null,null,null,null,null,null,null,null,null,null,null,"","-","","","","",null,null,null,null,null,null,null,null,null,null,null,null,null,"","-","","","","",null,null,null,null,null,null,null,null,null,null,null,null,null,"","-","","","","",null,null,null,null,null,null,null,null,null,null,null,null,null,"","-","","","","",null,null,null,null,null,null,null,null,null,null,null,null,null,"","-","","","","",null,null,null,null,null,null,null,null,null,null,null,null,null,"","-","","","","",null,null,null,null,null,null,null,null,null,null,null,null,null,"","-","","","","",null,null,null,null,null,null,null,null,null,null,null,null,null,"","-","","","","",null,null,null,null,null,null,null,null,null,null,null,null,null,"","-","","","","",null,null,null,null,null,null,null,null,null,null,null,null,null,"","-","","","","",null,null,null,null,null,null,null,null,null,null,null,null,null,"","-","","","","",null,null,null,null,null,null,null,null,null,null,null,null,null,"","-","","","","",null,null,null,null,null,null,null,null,null,null,null,null,null,"","-","","","","",null,null,null,null,null,null,null,null,null,null,null,null,null,"","-","","","","",null,null,null,null,null,null,null,null,null,null,null,null,null,"","-","","","","",null,null,null,null,null,null,null,null,null,null,null,null,null,"","-","","","","",null,null,null,null,null,null,null,null,null,null,null,null,null,"","-","","","","",null,null,null,null,null,null,null,null,null,null,null,null,null,"","-","","","","",null,null,null,null,null,null,null,null,null,null,null,null,null,"","-","","","","",30,null,null,null,null,null,null,0,null,null,null,null,null,"H",30,"",1,"","",null,null,null,null,null,null,null,null,null,null,null,null,null,"","-","","","","","w/o",null,null,null,null,null,null,null,null,null,null,null,null,"H","-","","","","",null,null,null,null,null,null,null,null,null,null,null,null,null,"","-","","","","",null,null,null,null,null,null,null,null,null,null,null,null,null,"","-","","","","",null,null,null,null,null,null,null,null,null,null,null,null,null,"","-","","","","",null,null,null,null,null,null,null,null,null,null,null,null,null,"","-","","","","",null,null,null,null,null,null,null,null,null,null,null,null,null,"","-","","","",""]
[{"$f":"Pool_D_Team_7","v":0},null,null,null,null,null,null,null,null,null,null,null,null,null,"","-","","","","",null,null,null,null,null,null,null,null,null,null,null,null,null,"","-","","","","",null,null,null,null,null,null,null,null,null,null,null,null,null,"","-","","","","",null,null,null,null,null,null,null,null,null,null,null,null,null,"","-","","","","",null,null,null,null,null,null,null,null,null,null,null,null,null,"","-","","","","",null,null,null,null,null,null,null,null,null,null,null,null,null,"","-","","","","",null,null,null,null,null,null,null,null,null,null,null,null,null,"","-","","","","",null,null,null,null,null,null,null,null,null,null,null,null,null,"","-","","","","",null,null,null,null,null,null,null,null,null,null,null,null,null,"","-","","","","",null,null,null,null,null,null,null,null,null,null,null,null,null,"","-","","","","",null,null,null,null,null,null,null,null,null,null,null,null,null,"","-","","","","",null,null,null,null,null,null,null,null,null,null,null,null,null,"","-","","","","",null,null,null,null,null,null,null,null,null,null,null,null,null,"","-","","","","",null,null,null,null,null,null,null,null,null,null,null,null,null,"","-","","","","",null,null,null,null,null,null,null,null,null,null,null,null,null,"","-","","","","",null,null,null,null,null,null,null,null,null,null,null,null,null,"","-","","","","",null,null,null,null,null,null,null,null,null,null,null,null,null,"","-","","","","",null,null,null,null,null,null,null,null,null,null,null,null,null,"","-","","","","",null,null,null,null,null,null,null,null,null,null,null,null,null,"","-","","","","",null,null,null,null,null,null,null,null,null,null,null,null,null,"","-","","","","",null,null,null,null,null,null,null,null,null,null,null,null,null,"","-","","","","",null,null,null,null,null,null,null,null,null,null,null,null,null,"","-","","","","",null,null,null,null,null,null,null,null,null,null,null,null,null,"","-","","","","",null,null,null,null,null,null,null,null,null,null,null,null,null,"","-","","","","",null,null,null,null,null,null,null,null,null,null,null,null,null,"","-","","","","",null,null,null,null,null,null,null,null,null,null,null,null,null,"","-","","","","",null,null,null,null,null,null,null,null,null,null,null,null,null,"","-","","","","",null,null,null,null,null,null,null,null,null,null,null,null,null,"","-","","","","",null,null,null,null,null,null,null,null,null,null,null,null,null,"","-","","","","",null,null,null,null,null,null,null,null,null,null,null,null,null,"","-","","","","",null,null,null,null,null,null,null,null,null,null,null,null,null,"","-","","","","",null,null,null,null,null,null,null,null,null,null,null,null,null,"","-","","","",""]
[{"$f":"Pool_D_Team_8","v":0},null,null,null,null,null,null,null,null,null,null,null,null,null,"","-","","","","",null,null,null,null,null,null,null,null,null,null,null,null,null,"","-","","","","",null,null,null,null,null,null,null,null,null,null,null,null,null,"","-","","","","",null,null,null,null,null,null,null,null,null,null,null,null,null,"","-","","","","",null,null,null,null,null,null,null,null,null,null,null,null,null,"","-","","","","",null,null,null,null,null,null,null,null,null,null,null,null,null,"","-","","","","",null,null,null,null,null,null,null,null,null,null,null,null,null,"","-","","","","",null,null,null,null,null,null,null,null,null,null,null,null,null,"","-","","","","",null,null,null,null,null,null,null,null,null,null,null,null,null,"","-","","","","",null,null,null,null,null,null,null,null,null,null,null,null,null,"","-","","","","",null,null,null,null,null,null,null,null,null,null,null,null,null,"","-","","","","",null,null,null,null,null,null,null,null,null,null,null,null,null,"","-","","","","",null,null,null,null,null,null,null,null,null,null,null,null,null,"","-","","","","",null,null,null,null,null,null,null,null,null,null,null,null,null,"","-","","","","",null,null,null,null,null,null,null,null,null,null,null,null,null,"","-","","","","",null,null,null,null,null,null,null,null,null,null,null,null,null,"","-","","","","",null,null,null,null,null,null,null,null,null,null,null,null,null,"","-","","","","",null,null,null,null,null,null,null,null,null,null,null,null,null,"","-","","","","",null,null,null,null,null,null,null,null,null,null,null,null,null,"","-","","","","",null,null,null,null,null,null,null,null,null,null,null,null,null,"","-","","","","",null,null,null,null,null,null,null,null,null,null,null,null,null,"","-","","","","",null,null,null,null,null,null,null,null,null,null,null,null,null,"","-","","","","",null,null,null,null,null,null,null,null,null,null,null,null,null,"","-","","","","",null,null,null,null,null,null,null,null,null,null,null,null,null,"","-","","","","",null,null,null,null,null,null,null,null,null,null,null,null,null,"","-","","","","",null,null,null,null,null,null,null,null,null,null,null,null,null,"","-","","","","",null,null,null,null,null,null,null,null,null,null,null,null,null,"","-","","","","",null,null,null,null,null,null,null,null,null,null,null,null,null,"","-","","","","",null,null,null,null,null,null,null,null,null,null,null,null,null,"","-","","","","",null,null,null,null,null,null,null,null,null,null,null,null,null,"","-","","","","",null,null,null,null,null,null,null,null,null,null,null,null,null,"","-","","","","",null,null,null,null,null,null,null,null,null,null,null,null,null,"","-","","","",""]
[]
[]
[null,"P",null,"W",null,null,"D","NG","L",null,"F",null,null,"A","+/-","TB","LB","D's","Pts"]
[{"$f":"Pool_A_Team_1","v":"Ashton-u-Lyne"},{"$f":"COUNTIF(B6:WK6,\"H\")+COUNTIF(B6:WK6,\"A\")+COUNTIF(B6:WK6,\"D\")+COUNTIF(O$6:O$37,\"H\")+COUNTIF(O$6:O$37,\"A\")+COUNTIF(O$6:O$37,\"D\")","v":3},null,{"$f":"COUNTIF(6:6,\"H\")+COUNTIF(O6:O37,\"A\")","v":0},null,null,{"$f":"COUNTIF(6:6,\"D\")+COUNTIF(O6:O37,\"D\")","v":0},{"$f":"COUNTIF(6:6,\"NG\")+COUNTIF(H6:H37,\"NG\")","v":0},{"$f":"B41-(D41+G41)","v":3},null,{"$f":"SUM(B6,U6,AN6,BG6,BZ6,CS6,DL6,EE6,EX6,FQ6,GJ6,HC6,HV6,IO6,JH6,KA6,KT6,LM6,MF6,MY6,NR6,OK6,PD6,PW6,QP6,RI6,SB6,SU6,TN6,UG6,UZ6,VS6)+SUM(I6:I37)","v":19},null,null,{"$f":"SUM(I6,AB6,AU6,BN6,CG6,CZ6,DS6,EL6,FE6,FX6,GQ6,HJ6,IC6,IV6,,JO6,KH6,LA6,LT6,MM6,NF6,NY6,OR6,PK6,QD6,QW6,RP6,SI6,TB6,TU6,UN6,VG6,VZ6)+SUM(B6:B37)","v":86},{"$f":"K41-N41","v":-67},{"$f":"COUNTIF(6:6,\"HT\")+COUNTIF(T6:T37,\"AT\")","v":0},{"$f":"SUM(Q6,AJ6,BC6,BV6,CO6,DH6,EA6,ET6,FM6,GF6,GY6,HR6,IK6,JD6,JW6,KP6,LI6,MB6,MU6,NN6,OG6,OZ6,PS6,QL6,RE6,RX6,SQ6,TJ6,UC6,UV6,VO6,WH6)+SUM(R6:R37)","v":4},{"$f":"SUM(G6,Z6,AS6,BL6,CE6,CX6,DQ6,EJ6,FC6,FV6,GO6,HH6,IA6,IT6,JM6,KF6,KY6,LR6,MK6,ND6,NW6,OP6,PI6,QB6,QU6,RN6,SG6,SZ6,TS6,UL6,VE6,VX6)+SUM(N6:N37)","v":0},{"$f":"(((D41*Points_for_Win)+(G41*Points_for_Draw)+Q41)+(H41*Points_for_Match_Not_Played))-Pool_A_Team_1_Ddns","v":4}]
[{"$f":"Pool_A_Team_2","v":"Fylde"},{"$f":"COUNTIF(B7:WK7,\"H\")+COUNTIF(B7:WK7,\"A\")+COUNTIF(B7:WK7,\"D\")+COUNTIF(AH$6:AH$37,\"H\")+COUNTIF(AH$6:AH$37,\"A\")+COUNTIF(AH$6:AH$37,\"D\")","v":3},null,{"$f":"COUNTIF(7:7,\"H\")+COUNTIF(AH6:AH37,\"A\")","v":1},null,null,{"$f":"COUNTIF(7:7,\"D\")+COUNTIF(AH6:AH37,\"D\")","v":0},{"$f":"COUNTIF(7:7,\"NG\")+COUNTIF(AA6:AA37,\"NG\")","v":0},{"$f":"B42-(D42+G42)","v":2},null,{"$f":"SUM(B7,U7,AN7,BG7,BZ7,CS7,DL7,EE7,EX7,FQ7,GJ7,HC7,HV7,IO7,JH7,KA7,KT7,LM7,MF7,MY7,NR7,OK7,PD7,PW7,QP7,RI7,SB7,SU7,TN7,UG7,UZ7,VS7)+SUM(AB6:AB37)","v":61},null,null,{"$f":"SUM(I7,AB7,AU7,BN7,CG7,CZ7,DS7,EL7,FE7,FX7,GQ7,HJ7,IC7,IV7,,JO7,KH7,LA7,LT7,MM7,NF7,NY7,OR7,PK7,QD7,QW7,RP7,SI7,TB7,TU7,UN7,VG7,VZ7)+SUM(U6:U37)","v":49},{"$f":"K42-N42","v":12},{"$f":"COUNTIF(7:7,\"HT\")+COUNTIF(AM6:AM37,\"AT\")","v":0},{"$f":"SUM(Q7,AJ7,BC7,BV7,CO7,DH7,EA7,ET7,FM7,GF7,GY7,HR7,IK7,JD7,JW7,KP7,LI7,MB7,MU7,NN7,OG7,OZ7,PS7,QL7,RE7,RX7,SQ7,TJ7,UC7,UV7,VO7,WH7)+SUM(AK6:AK37)","v":3},{"$f":"SUM(G7,Z7,AS7,BL7,CE7,CX7,DQ7,EJ7,FC7,FV7,GO7,HH7,IA7,IT7,JM7,KF7,KY7,LR7,MK7,ND7,NW7,OP7,PI7,QB7,QU7,RN7,SG7,SZ7,TS7,UL7,VE7,VX7)+SUM(AG6:AG37)","v":0},{"$f":"(((D42*Points_for_Win)+(G42*Points_for_Draw)+Q42)+(H42*Points_for_Match_Not_Played))-Pool_A_Team_2_Ddns","v":8}]
[{"$f":"Pool_A_Team_3","v":"Liverpool Collegiate"},{"$f":"COUNTIF(B8:WK8,\"H\")+COUNTIF(B8:WK8,\"A\")+COUNTIF(B8:WK8,\"D\")+COUNTIF(BA$6:BA$37,\"H\")+COUNTIF(BA$6:BA$37,\"A\")+COUNTIF(BA$6:BA$37,\"D\")","v":4},null,{"$f":"COUNTIF(8:8,\"H\")+COUNTIF(BA6:BA37,\"A\")","v":4},null,null,{"$f":"COUNTIF(8:8,\"D\")+COUNTIF(BA6:BA37,\"D\")","v":0},{"$f":"COUNTIF(8:8,\"NG\")+COUNTIF(AT6:AT37,\"NG\")","v":0},0,null,{"$f":"SUM(B8,U8,AN8,BG8,BZ8,CS8,DL8,EE8,EX8,FQ8,GJ8,HC8,HV8,IO8,JH8,KA8,KT8,LM8,MF8,MY8,NR8,OK8,PD8,PW8,QP8,RI8,SB8,SU8,TN8,UG8,UZ8,VS8)+SUM(AU6:AU37)","v":85},null,null,{"$f":"SUM(I8,AB8,AU8,BN8,CG8,CZ8,DS8,EL8,FE8,FX8,GQ8,HJ8,IC8,IV8,,JO8,KH8,LA8,LT8,MM8,NF8,NY8,OR8,PK8,QD8,QW8,RP8,SI8,TB8,TU8,UN8,VG8,VZ8)+SUM(AN6:AN37)","v":58},27,{"$f":"COUNTIF(8:8,\"HT\")+COUNTIF(BF6:BF37,\"AT\")","v":0},{"$f":"SUM(Q8,AJ8,BC8,BV8,CO8,DH8,EA8,ET8,FM8,GF8,GY8,HR8,IK8,JD8,JW8,KP8,LI8,MB8,MU8,NN8,OG8,OZ8,PS8,QL8,RE8,RX8,SQ8,TJ8,UC8,UV8,VO8,WH8)+SUM(BD6:BD37)","v":0},{"$f":"SUM(G8,Z8,AS8,BL8,CE8,CX8,DQ8,EJ8,FC8,FV8,GO8,HH8,IA8,IT8,JM8,KF8,KY8,LR8,MK8,ND8,NW8,OP8,PI8,QB8,QU8,RN8,SG8,SZ8,TS8,UL8,VE8,VX8)+SUM(AZ6:AZ37)","v":0},{"$f":"(((D43*Points_for_Win)+(G43*Points_for_Draw)+Q43)+(H43*Points_for_Match_Not_Played))-Pool_A_Team_3_Ddns","v":20}]
[{"$f":"Pool_A_Team_4","v":"Manchester"},{"$f":"COUNTIF(B9:WK9,\"H\")+COUNTIF(B9:WK9,\"A\")+COUNTIF(B9:WK9,\"D\")+COUNTIF(BT$6:BT$37,\"H\")+COUNTIF(BT$6:BT$37,\"A\")+COUNTIF(BT$6:BT$37,\"D\")","v":4},null,{"$f":"COUNTIF(9:9,\"H\")+COUNTIF(BT6:BT37,\"A\")","v":2},null,null,{"$f":"COUNTIF(9:9,\"D\")+COUNTIF(BT6:BT37,\"D\")","v":0},{"$f":"COUNTIF(9:9,\"NG\")+COUNTIF(BM6:BM37,\"NG\")","v":0},2,null,{"$f":"SUM(B9,U9,AN9,BG9,BZ9,CS9,DL9,EE9,EX9,FQ9,GJ9,HC9,HV9,IO9,JH9,KA9,KT9,LM9,MF9,MY9,NR9,OK9,PD9,PW9,QP9,RI9,SB9,SU9,TN9,UG9,UZ9,VS9)+SUM(BN6:BN37)","v":86},null,null,{"$f":"SUM(I9,AB9,AU9,BN9,CG9,CZ9,DS9,EL9,FE9,FX9,GQ9,HJ9,IC9,IV9,,JO9,KH9,LA9,LT9,MM9,NF9,NY9,OR9,PK9,QD9,QW9,RP9,SI9,TB9,TU9,UN9,VG9,VZ9)+SUM(BG6:BG37)","v":72},14,{"$f":"COUNTIF(9:9,\"HT\")+COUNTIF(BY6:BY37,\"AT\")","v":0},{"$f":"SUM(Q9,AJ9,BC9,BV9,CO9,DH9,EA9,ET9,FM9,GF9,GY9,HR9,IK9,JD9,JW9,KP9,LI9,MB9,MU9,NN9,OG9,OZ9,PS9,QL9,RE9,RX9,SQ9,TJ9,UC9,UV9,VO9,WH9)+SUM(BW6:BW37)","v":3},{"$f":"SUM(G9,Z9,AS9,BL9,CE9,CX9,DQ9,EJ9,FC9,FV9,GO9,HH9,IA9,IT9,JM9,KF9,KY9,LR9,MK9,ND9,NW9,OP9,PI9,QB9,QU9,RN9,SG9,SZ9,TS9,UL9,VE9,VX9)+SUM(BS6:BS37)","v":0},{"$f":"(((D44*Points_for_Win)+(G44*Points_for_Draw)+Q44)+(H44*Points_for_Match_Not_Played))-Pool_A_Team_4_Ddns","v":13}]
[{"$f":"Pool_A_Team_5","v":"Rochdale"},{"$f":"COUNTIF(B10:WK10,\"H\")+COUNTIF(B10:WK10,\"A\")+COUNTIF(B10:WK10,\"D\")+COUNTIF(CM$6:CM$37,\"H\")+COUNTIF(CM$6:CM$37,\"A\")+COUNTIF(CM$6:CM$37,\"D\")","v":2},null,{"$f":"COUNTIF(10:10,\"H\")+COUNTIF(CM6:CM37,\"A\")","v":0},null,null,{"$f":"COUNTIF(10:10,\"D\")+COUNTIF(CM6:CM37,\"D\")","v":0},{"$f":"COUNTIF(10:10,\"NG\")+COUNTIF(CF6:CF37,\"NG\")","v":0},{"$f":"B45-(D45+G45)","v":2},null,{"$f":"SUM(B10,U10,AN10,BG10,BZ10,CS10,DL10,EE10,EX10,FQ10,GJ10,HC10,HV10,IO10,JH10,KA10,KT10,LM10,MF10,MY10,NR10,OK10,PD10,PW10,QP10,RI10,SB10,SU10,TN10,UG10,UZ10,VS10)+SUM(CG6:CG37)","v":24},null,null,{"$f":"SUM(I10,AB10,AU10,BN10,CG10,CZ10,DS10,EL10,FE10,FX10,GQ10,HJ10,IC10,IV10,,JO10,KH10,LA10,LT10,MM10,NF10,NY10,OR10,PK10,QD10,QW10,RP10,SI10,TB10,TU10,UN10,VG10,VZ10)+SUM(BZ6:BZ37)","v":59},-35,{"$f":"COUNTIF(10:10,\"HT\")+COUNTIF(CR6:CR37,\"AT\")","v":0},{"$f":"SUM(Q10,AJ10,BC10,BV10,CO10,DH10,EA10,ET10,FM10,GF10,GY10,HR10,IK10,JD10,JW10,KP10,LI10,MB10,MU10,NN10,OG10,OZ10,PS10,QL10,RE10,RX10,SQ10,TJ10,UC10,UV10,VO10,WH10)+SUM(CP6:CP37)","v":3},{"$f":"SUM(G10,Z10,AS10,BL10,CE10,CX10,DQ10,EJ10,FC10,FV10,GO10,HH10,IA10,IT10,JM10,KF10,KY10,LR10,MK10,ND10,NW10,OP10,PI10,QB10,QU10,RN10,SG10,SZ10,TS10,UL10,VE10,VX10)+SUM(CL6:CL37)","v":0},{"$f":"(((D45*Points_for_Win)+(G45*Points_for_Draw)+Q45)+(H45*Points_for_Match_Not_Played))-Pool_A_Team_5_Ddns","v":3}]
[{"$f":"Pool_A_Team_6","v":"Southport"},{"$f":"COUNTIF(B11:WK11,\"H\")+COUNTIF(B11:WK11,\"A\")+COUNTIF(B11:WK11,\"D\")+COUNTIF(DF$6:DF$37,\"H\")+COUNTIF(DF$6:DF$37,\"A\")+COUNTIF(DF$6:DF$37,\"D\")","v":2},null,{"$f":"COUNTIF(11:11,\"H\")+COUNTIF(DF6:DF37,\"A\")","v":2},null,null,{"$f":"COUNTIF(11:11,\"D\")+COUNTIF(DF6:DF37,\"D\")","v":0},{"$f":"COUNTIF(11:11,\"NG\")+COUNTIF(CY6:CY37,\"NG\")","v":0},0,null,{"$f":"SUM(B11,U11,AN11,BG11,BZ11,CS11,DL11,EE11,EX11,FQ11,GJ11,HC11,HV11,IO11,JH11,KA11,KT11,LM11,MF11,MY11,NR11,OK11,PD11,PW11,QP11,RI11,SB11,SU11,TN11,UG11,UZ11,VS11)+SUM(CZ6:CZ37)","v":61},null,null,{"$f":"SUM(I11,AB11,AU11,BN11,CG11,CZ11,DS11,EL11,FE11,FX11,GQ11,HJ11,IC11,IV11,,JO11,KH11,LA11,LT11,MM11,NF11,NY11,OR11,PK11,QD11,QW11,RP11,SI11,TB11,TU11,UN11,VG11,VZ11)+SUM(CS6:CS37)","v":12},49,{"$f":"COUNTIF(11:11,\"HT\")+COUNTIF(DK6:DK37,\"AT\")","v":0},{"$f":"SUM(Q11,AJ11,BC11,BV11,CO11,DH11,EA11,ET11,FM11,GF11,GY11,HR11,IK11,JD11,JW11,KP11,LI11,MB11,MU11,NN11,OG11,OZ11,PS11,QL11,RE11,RX11,SQ11,TJ11,UC11,UV11,VO11,WH11)+SUM(DI6:DI37)","v":0},{"$f":"SUM(G11,Z11,AS11,BL11,CE11,CX11,DQ11,EJ11,FC11,FV11,GO11,HH11,IA11,IT11,JM11,KF11,KY11,LR11,MK11,ND11,NW11,OP11,PI11,QB11,QU11,RN11,SG11,SZ11,TS11,UL11,VE11,VX11)+SUM(DE6:DE37)","v":0},{"$f":"(((D46*Points_for_Win)+(G46*Points_for_Draw)+Q46)+(H46*Points_for_Match_Not_Played))-Pool_A_Team_6_Ddns","v":10}]
[{"$f":"Pool_A_Team_7","v":0},{"$f":"COUNTIF(B12:WK12,\"H\")+COUNTIF(B12:WK12,\"A\")+COUNTIF(B12:WK12,\"D\")+COUNTIF(DY$6:DY$37,\"H\")+COUNTIF(DY$6:DY$37,\"A\")+COUNTIF(DY$6:DY$37,\"D\")","v":0},null,{"$f":"COUNTIF(12:12,\"H\")+COUNTIF(DY6:DY37,\"A\")","v":0},null,null,{"$f":"COUNTIF(12:12,\"D\")+COUNTIF(DY6:DY37,\"D\")","v":0},{"$f":"COUNTIF(12:12,\"NG\")+COUNTIF(DR6:DR37,\"NG\")","v":0},0,null,{"$f":"SUM(B12,U12,AN12,BG12,BZ12,CS12,DL12,EE12,EX12,FQ12,GJ12,HC12,HV12,IO12,JH12,KA12,KT12,LM12,MF12,MY12,NR12,OK12,PD12,PW12,QP12,RI12,SB12,SU12,TN12,UG12,UZ12,VS12)+SUM(DS6:DS37)","v":0},null,null,{"$f":"SUM(I12,AB12,AU12,BN12,CG12,CZ12,DS12,EL12,FE12,FX12,GQ12,HJ12,IC12,IV12,,JO12,KH12,LA12,LT12,MM12,NF12,NY12,OR12,PK12,QD12,QW12,RP12,SI12,TB12,TU12,UN12,VG12,VZ12)+SUM(DL6:DL37)","v":0},0,{"$f":"COUNTIF(12:12,\"HT\")+COUNTIF(ED6:ED37,\"AT\")","v":0},{"$f":"SUM(Q12,AJ12,BC12,BV12,CO12,DH12,EA12,ET12,FM12,GF12,GY12,HR12,IK12,JD12,JW12,KP12,LI12,MB12,MU12,NN12,OG12,OZ12,PS12,QL12,RE12,RX12,SQ12,TJ12,UC12,UV12,VO12,WH12)+SUM(EB6:EB37)","v":0},{"$f":"SUM(G12,Z12,AS12,BL12,CE12,CX12,DQ12,EJ12,FC12,FV12,GO12,HH12,IA12,IT12,JM12,KF12,KY12,LR12,MK12,ND12,NW12,OP12,PI12,QB12,QU12,RN12,SG12,SZ12,TS12,UL12,VE12,VX12)+SUM(DX6:DX37)","v":0},{"$f":"(((D47*Points_for_Win)+(G47*Points_for_Draw)+Q47)+(H47*Points_for_Match_Not_Played))-Pool_A_Team_7_Ddns","v":0}]
[{"$f":"Pool_A_Team_8","v":0},{"$f":"COUNTIF(B13:WK13,\"H\")+COUNTIF(B13:WK13,\"A\")+COUNTIF(B13:WK13,\"D\")+COUNTIF(ER$6:ER$37,\"H\")+COUNTIF(ER$6:ER$37,\"A\")+COUNTIF(ER$6:ER$37,\"D\")","v":0},null,{"$f":"COUNTIF(13:13,\"H\")+COUNTIF(ER6:ER37,\"A\")","v":0},null,null,{"$f":"COUNTIF(13:13,\"D\")+COUNTIF(ER6:ER37,\"D\")","v":0},{"$f":"COUNTIF(13:13,\"NG\")+COUNTIF(EK6:EK37,\"NG\")","v":0},0,null,{"$f":"SUM(B13,U13,AN13,BG13,BZ13,CS13,DL13,EE13,EX13,FQ13,GJ13,HC13,HV13,IO13,JH13,KA13,KT13,LM13,MF13,MY13,NR13,OK13,PD13,PW13,QP13,RI13,SB13,SU13,TN13,UG13,UZ13,VS13)+SUM(EL6:EL37)","v":0},null,null,{"$f":"SUM(I13,AB13,AU13,BN13,CG13,CZ13,DS13,EL13,FE13,FX13,GQ13,HJ13,IC13,IV13,,JO13,KH13,LA13,LT13,MM13,NF13,NY13,OR13,PK13,QD13,QW13,RP13,SI13,TB13,TU13,UN13,VG13,VZ13)+SUM(EE6:EE37)","v":0},0,{"$f":"COUNTIF(13:13,\"HT\")+COUNTIF(EW6:EW37,\"AT\")","v":0},{"$f":"SUM(Q13,AJ13,BC13,BV13,CO13,DH13,EA13,ET13,FM13,GF13,GY13,HR13,IK13,JD13,JW13,KP13,LI13,MB13,MU13,NN13,OG13,OZ13,PS13,QL13,RE13,RX13,SQ13,TJ13,UC13,UV13,VO13,WH13)+SUM(EU6:EU37)","v":0},{"$f":"SUM(G13,Z13,AS13,BL13,CE13,CX13,DQ13,EJ13,FC13,FV13,GO13,HH13,IA13,IT13,JM13,KF13,KY13,LR13,MK13,ND13,NW13,OP13,PI13,QB13,QU13,RN13,SG13,SZ13,TS13,UL13,VE13,VX13)+SUM(EQ6:EQ37)","v":0},{"$f":"(((D48*Points_for_Win)+(G48*Points_for_Draw)+Q48)+(H48*Points_for_Match_Not_Played))-Pool_A_Team_8_Ddns","v":0}]
[{"$f":"Pool_B_Team_1","v":"Blackburn"},{"$f":"COUNTIF(B14:WK14,\"H\")+COUNTIF(B14:WK14,\"A\")+COUNTIF(B14:WK14,\"D\")+COUNTIF(FK$6:FK$37,\"H\")+COUNTIF(FK$6:FK$37,\"A\")+COUNTIF(FK$6:FK$37,\"D\")","v":3},null,{"$f":"COUNTIF(14:14,\"H\")+COUNTIF(FK6:FK37,\"A\")","v":2},null,null,{"$f":"COUNTIF(14:14,\"D\")+COUNTIF(FK6:FK37,\"D\")","v":0},{"$f":"COUNTIF(14:14,\"NG\")+COUNTIF(FD6:FD37,\"NG\")","v":0},1,null,{"$f":"SUM(B14,U14,AN14,BG14,BZ14,CS14,DL14,EE14,EX14,FQ14,GJ14,HC14,HV14,IO14,JH14,KA14,KT14,LM14,MF14,MY14,NR14,OK14,PD14,PW14,QP14,RI14,SB14,SU14,TN14,UG14,UZ14,VS14)+SUM(FE6:FE37)","v":80},null,null,{"$f":"SUM(I14,AB14,AU14,BN14,CG14,CZ14,DS14,EL14,FE14,FX14,GQ14,HJ14,IC14,IV14,,JO14,KH14,LA14,LT14,MM14,NF14,NY14,OR14,PK14,QD14,QW14,RP14,SI14,TB14,TU14,UN14,VG14,VZ14)+SUM(EX6:EX37)","v":44},36,{"$f":"COUNTIF(14:14,\"HT\")+COUNTIF(FP6:FP37,\"AT\")","v":0},{"$f":"SUM(Q14,AJ14,BC14,BV14,CO14,DH14,EA14,ET14,FM14,GF14,GY14,HR14,IK14,JD14,JW14,KP14,LI14,MB14,MU14,NN14,OG14,OZ14,PS14,QL14,RE14,RX14,SQ14,TJ14,UC14,UV14,VO14,WH14)+SUM(FN6:FN37)","v":2},{"$f":"SUM(G14,Z14,AS14,BL14,CE14,CX14,DQ14,EJ14,FC14,FV14,GO14,HH14,IA14,IT14,JM14,KF14,KY14,LR14,MK14,ND14,NW14,OP14,PI14,QB14,QU14,RN14,SG14,SZ14,TS14,UL14,VE14,VX14)+SUM(FJ6:FJ37)","v":0},{"$f":"(((D49*Points_for_Win)+(G49*Points_for_Draw)+Q49)+(H49*Points_for_Match_Not_Played))-Pool_B_Team_1_Ddns","v":12}]
[{"$f":"Pool_B_Team_2","v":"Bolton"},{"$f":"COUNTIF(B15:WK15,\"H\")+COUNTIF(B15:WK15,\"A\")+COUNTIF(B15:WK15,\"D\")+COUNTIF(GD$6:GD$37,\"H\")+COUNTIF(GD$6:GD$37,\"A\")+COUNTIF(GD$6:GD$37,\"D\")","v":2},null,{"$f":"COUNTIF(15:15,\"H\")+COUNTIF(GD6:GD37,\"A\")","v":1},null,null,{"$f":"COUNTIF(15:15,\"D\")+COUNTIF(GD6:GD37,\"D\")","v":1},{"$f":"COUNTIF(15:15,\"NG\")+COUNTIF(FW6:FW37,\"NG\")","v":0},0,null,{"$f":"SUM(B15,U15,AN15,BG15,BZ15,CS15,DL15,EE15,EX15,FQ15,GJ15,HC15,HV15,IO15,JH15,KA15,KT15,LM15,MF15,MY15,NR15,OK15,PD15,PW15,QP15,RI15,SB15,SU15,TN15,UG15,UZ15,VS15)+SUM(FX6:FX37)","v":53},null,null,{"$f":"SUM(I15,AB15,AU15,BN15,CG15,CZ15,DS15,EL15,FE15,FX15,GQ15,HJ15,IC15,IV15,,JO15,KH15,LA15,LT15,MM15,NF15,NY15,OR15,PK15,QD15,QW15,RP15,SI15,TB15,TU15,UN15,VG15,VZ15)+SUM(FQ6:FQ37)","v":41},12,{"$f":"COUNTIF(15:15,\"HT\")+COUNTIF(GI6:GI37,\"AT\")","v":0},{"$f":"SUM(Q15,AJ15,BC15,BV15,CO15,DH15,EA15,ET15,FM15,GF15,GY15,HR15,IK15,JD15,JW15,KP15,LI15,MB15,MU15,NN15,OG15,OZ15,PS15,QL15,RE15,RX15,SQ15,TJ15,UC15,UV15,VO15,WH15)+SUM(GG6:GG37)","v":0},{"$f":"SUM(G15,Z15,AS15,BL15,CE15,CX15,DQ15,EJ15,FC15,FV15,GO15,HH15,IA15,IT15,JM15,KF15,KY15,LR15,MK15,ND15,NW15,OP15,PI15,QB15,QU15,RN15,SG15,SZ15,TS15,UL15,VE15,VX15)+SUM(GC6:GC37)","v":0},{"$f":"(((D50*Points_for_Win)+(G50*Points_for_Draw)+Q50)+(H50*Points_for_Match_Not_Played))-Pool_B_Team_2_Ddns","v":8}]
[{"$f":"Pool_B_Team_3","v":"Eccles"},{"$f":"COUNTIF(B16:WK16,\"H\")+COUNTIF(B16:WK16,\"A\")+COUNTIF(B16:WK16,\"D\")+COUNTIF(GW$6:GW$37,\"H\")+COUNTIF(GW$6:GW$37,\"A\")+COUNTIF(GW$6:GW$37,\"D\")","v":2},null,{"$f":"COUNTIF(16:16,\"H\")+COUNTIF(GW6:GW37,\"A\")","v":0},null,null,{"$f":"COUNTIF(16:16,\"D\")+COUNTIF(GW6:GW37,\"D\")","v":0},{"$f":"COUNTIF(16:16,\"NG\")+COUNTIF(GP6:GP37,\"NG\")","v":0},2,null,{"$f":"SUM(B16,U16,AN16,BG16,BZ16,CS16,DL16,EE16,EX16,FQ16,GJ16,HC16,HV16,IO16,JH16,KA16,KT16,LM16,MF16,MY16,NR16,OK16,PD16,PW16,QP16,RI16,SB16,SU16,TN16,UG16,UZ16,VS16)+SUM(GQ6:GQ37)","v":31},null,null,{"$f":"SUM(I16,AB16,AU16,BN16,CG16,CZ16,DS16,EL16,FE16,FX16,GQ16,HJ16,IC16,IV16,,JO16,KH16,LA16,LT16,MM16,NF16,NY16,OR16,PK16,QD16,QW16,RP16,SI16,TB16,TU16,UN16,VG16,VZ16)+SUM(GJ6:GJ37)","v":73},-42,{"$f":"COUNTIF(16:16,\"HT\")+COUNTIF(HB6:HB37,\"AT\")","v":0},{"$f":"SUM(Q16,AJ16,BC16,BV16,CO16,DH16,EA16,ET16,FM16,GF16,GY16,HR16,IK16,JD16,JW16,KP16,LI16,MB16,MU16,NN16,OG16,OZ16,PS16,QL16,RE16,RX16,SQ16,TJ16,UC16,UV16,VO16,WH16)+SUM(GZ6:GZ37)","v":2},{"$f":"SUM(G16,Z16,AS16,BL16,CE16,CX16,DQ16,EJ16,FC16,FV16,GO16,HH16,IA16,IT16,JM16,KF16,KY16,LR16,MK16,ND16,NW16,OP16,PI16,QB16,QU16,RN16,SG16,SZ16,TS16,UL16,VE16,VX16)+SUM(GV6:GV37)","v":0},{"$f":"(((D51*Points_for_Win)+(G51*Points_for_Draw)+Q51)+(H51*Points_for_Match_Not_Played))-Pool_B_Team_3_Ddns","v":2}]
[{"$f":"Pool_B_Team_4","v":"Ormskirk"},{"$f":"COUNTIF(B17:WK17,\"H\")+COUNTIF(B17:WK17,\"A\")+COUNTIF(B17:WK17,\"D\")+COUNTIF(HP$6:HP$37,\"H\")+COUNTIF(HP$6:HP$37,\"A\")+COUNTIF(HP$6:HP$37,\"D\")","v":4},null,{"$f":"COUNTIF(17:17,\"H\")+COUNTIF(HP6:HP37,\"A\")","v":1},null,null,{"$f":"COUNTIF(17:17,\"D\")+COUNTIF(HP6:HP37,\"D\")","v":1},{"$f":"COUNTIF(17:17,\"NG\")+COUNTIF(HI6:HI37,\"NG\")","v":0},2,null,{"$f":"SUM(B17,U17,AN17,BG17,BZ17,CS17,DL17,EE17,EX17,FQ17,GJ17,HC17,HV17,IO17,JH17,KA17,KT17,LM17,MF17,MY17,NR17,OK17,PD17,PW17,QP17,RI17,SB17,SU17,TN17,UG17,UZ17,VS17)+SUM(HJ6:HJ37)","v":37},null,null,{"$f":"SUM(I17,AB17,AU17,BN17,CG17,CZ17,DS17,EL17,FE17,FX17,GQ17,HJ17,IC17,IV17,,JO17,KH17,LA17,LT17,MM17,NF17,NY17,OR17,PK17,QD17,QW17,RP17,SI17,TB17,TU17,UN17,VG17,VZ17)+SUM(HC6:HC37)","v":84},-47,{"$f":"COUNTIF(17:17,\"HT\")+COUNTIF(HU6:HU37,\"AT\")","v":0},{"$f":"SUM(Q17,AJ17,BC17,BV17,CO17,DH17,EA17,ET17,FM17,GF17,GY17,HR17,IK17,JD17,JW17,KP17,LI17,MB17,MU17,NN17,OG17,OZ17,PS17,QL17,RE17,RX17,SQ17,TJ17,UC17,UV17,VO17,WH17)+SUM(HS6:HS37)","v":2},{"$f":"SUM(G17,Z17,AS17,BL17,CE17,CX17,DQ17,EJ17,FC17,FV17,GO17,HH17,IA17,IT17,JM17,KF17,KY17,LR17,MK17,ND17,NW17,OP17,PI17,QB17,QU17,RN17,SG17,SZ17,TS17,UL17,VE17,VX17)+SUM(HO6:HO37)","v":0},{"$f":"(((D52*Points_for_Win)+(G52*Points_for_Draw)+Q52)+(H52*Points_for_Match_Not_Played))-Pool_B_Team_4_Ddns","v":10}]
[{"$f":"Pool_B_Team_5","v":"Sefton"},{"$f":"COUNTIF(B18:WK18,\"H\")+COUNTIF(B18:WK18,\"A\")+COUNTIF(B18:WK18,\"D\")+COUNTIF(II$6:II$37,\"H\")+COUNTIF(II$6:II$37,\"A\")+COUNTIF(II$6:II$37,\"D\")","v":3},null,{"$f":"COUNTIF(18:18,\"H\")+COUNTIF(II6:II37,\"A\")","v":0},null,null,{"$f":"COUNTIF(18:18,\"D\")+COUNTIF(II6:II37,\"D\")","v":0},{"$f":"COUNTIF(18:18,\"NG\")+COUNTIF(IB6:IB37,\"NG\")","v":0},3,null,{"$f":"SUM(B18,U18,AN18,BG18,BZ18,CS18,DL18,EE18,EX18,FQ18,GJ18,HC18,HV18,IO18,JH18,KA18,KT18,LM18,MF18,MY18,NR18,OK18,PD18,PW18,QP18,RI18,SB18,SU18,TN18,UG18,UZ18,VS18)+SUM(IC6:IC37)","v":12},null,null,{"$f":"SUM(I18,AB18,AU18,BN18,CG18,CZ18,DS18,EL18,FE18,FX18,GQ18,HJ18,IC18,IV18,,JO18,KH18,LA18,LT18,MM18,NF18,NY18,OR18,PK18,QD18,QW18,RP18,SI18,TB18,TU18,UN18,VG18,VZ18)+SUM(HV6:HV37)","v":36},-24,{"$f":"COUNTIF(18:18,\"HT\")+COUNTIF(IN6:IN37,\"AT\")","v":0},{"$f":"SUM(Q18,AJ18,BC18,BV18,CO18,DH18,EA18,ET18,FM18,GF18,GY18,HR18,IK18,JD18,JW18,KP18,LI18,MB18,MU18,NN18,OG18,OZ18,PS18,QL18,RE18,RX18,SQ18,TJ18,UC18,UV18,VO18,WH18)+SUM(IL6:IL37)","v":1},{"$f":"SUM(G18,Z18,AS18,BL18,CE18,CX18,DQ18,EJ18,FC18,FV18,GO18,HH18,IA18,IT18,JM18,KF18,KY18,LR18,MK18,ND18,NW18,OP18,PI18,QB18,QU18,RN18,SG18,SZ18,TS18,UL18,VE18,VX18)+SUM(IH6:IH37)","v":0},{"$f":"(((D53*Points_for_Win)+(G53*Points_for_Draw)+Q53)+(H53*Points_for_Match_Not_Played))-Pool_B_Team_5_Ddns","v":1}]
[{"$f":"Pool_B_Team_6","v":"Vale of Lune"},{"$f":"COUNTIF(B19:WK19,\"H\")+COUNTIF(B19:WK19,\"A\")+COUNTIF(B19:WK19,\"D\")+COUNTIF(JB$6:JB$37,\"H\")+COUNTIF(JB$6:JB$37,\"A\")+COUNTIF(JB$6:JB$37,\"D\")","v":4},null,{"$f":"COUNTIF(19:19,\"H\")+COUNTIF(JB6:JB37,\"A\")","v":4},null,null,{"$f":"COUNTIF(19:19,\"D\")+COUNTIF(JB6:JB37,\"D\")","v":0},{"$f":"COUNTIF(19:19,\"NG\")+COUNTIF(IU6:IU37,\"NG\")","v":0},0,null,{"$f":"SUM(B19,U19,AN19,BG19,BZ19,CS19,DL19,EE19,EX19,FQ19,GJ19,HC19,HV19,IO19,JH19,KA19,KT19,LM19,MF19,MY19,NR19,OK19,PD19,PW19,QP19,RI19,SB19,SU19,TN19,UG19,UZ19,VS19)+SUM(IV6:IV37)","v":94},null,null,{"$f":"SUM(I19,AB19,AU19,BN19,CG19,CZ19,DS19,EL19,FE19,FX19,GQ19,HJ19,IC19,IV19,,JO19,KH19,LA19,LT19,MM19,NF19,NY19,OR19,PK19,QD19,QW19,RP19,SI19,TB19,TU19,UN19,VG19,VZ19)+SUM(IO6:IO37)","v":29},65,{"$f":"COUNTIF(19:19,\"HT\")+COUNTIF(JG6:JG37,\"AT\")","v":0},{"$f":"SUM(Q19,AJ19,BC19,BV19,CO19,DH19,EA19,ET19,FM19,GF19,GY19,HR19,IK19,JD19,JW19,KP19,LI19,MB19,MU19,NN19,OG19,OZ19,PS19,QL19,RE19,RX19,SQ19,TJ19,UC19,UV19,VO19,WH19)+SUM(JE6:JE37)","v":0},{"$f":"SUM(G19,Z19,AS19,BL19,CE19,CX19,DQ19,EJ19,FC19,FV19,GO19,HH19,IA19,IT19,JM19,KF19,KY19,LR19,MK19,ND19,NW19,OP19,PI19,QB19,QU19,RN19,SG19,SZ19,TS19,UL19,VE19,VX19)+SUM(JA6:JA37)","v":1},{"$f":"(((D54*Points_for_Win)+(G54*Points_for_Draw)+Q54)+(H54*Points_for_Match_Not_Played))-Pool_B_Team_6_Ddns","v":19}]
[{"$f":"Pool_B_Team_7","v":0},{"$f":"COUNTIF(B20:WK20,\"H\")+COUNTIF(B20:WK20,\"A\")+COUNTIF(B20:WK20,\"D\")+COUNTIF(JU$6:JU$37,\"H\")+COUNTIF(JU$6:JU$37,\"A\")+COUNTIF(JU$6:JU$37,\"D\")","v":0},null,{"$f":"COUNTIF(20:20,\"H\")+COUNTIF(JU6:JU37,\"A\")","v":0},null,null,{"$f":"COUNTIF(20:20,\"D\")+COUNTIF(JU6:JU37,\"D\")","v":0},{"$f":"COUNTIF(20:20,\"NG\")+COUNTIF(JN6:JN37,\"NG\")","v":0},0,null,{"$f":"SUM(B20,U20,AN20,BG20,BZ20,CS20,DL20,EE20,EX20,FQ20,GJ20,HC20,HV20,IO20,JH20,KA20,KT20,LM20,MF20,MY20,NR20,OK20,PD20,PW20,QP20,RI20,SB20,SU20,TN20,UG20,UZ20,VS20)+SUM(JO6:JO37)","v":0},null,null,{"$f":"SUM(I20,AB20,AU20,BN20,CG20,CZ20,DS20,EL20,FE20,FX20,GQ20,HJ20,IC20,IV20,,JO20,KH20,LA20,LT20,MM20,NF20,NY20,OR20,PK20,QD20,QW20,RP20,SI20,TB20,TU20,UN20,VG20,VZ20)+SUM(JH6:JH37)","v":0},0,{"$f":"COUNTIF(20:20,\"HT\")+COUNTIF(JZ6:JZ37,\"AT\")","v":0},{"$f":"SUM(Q20,AJ20,BC20,BV20,CO20,DH20,EA20,ET20,FM20,GF20,GY20,HR20,IK20,JD20,JW20,KP20,LI20,MB20,MU20,NN20,OG20,OZ20,PS20,QL20,RE20,RX20,SQ20,TJ20,UC20,UV20,VO20,WH20)+SUM(JX6:JX37)","v":0},{"$f":"SUM(G20,Z20,AS20,BL20,CE20,CX20,DQ20,EJ20,FC20,FV20,GO20,HH20,IA20,IT20,JM20,KF20,KY20,LR20,MK20,ND20,NW20,OP20,PI20,QB20,QU20,RN20,SG20,SZ20,TS20,UL20,VE20,VX20)+SUM(JT6:JT37)","v":0},{"$f":"(((D55*Points_for_Win)+(G55*Points_for_Draw)+Q55)+(H55*Points_for_Match_Not_Played))-Pool_B_Team_7_Ddns","v":0}]
[{"$f":"Pool_B_Team_8","v":0},{"$f":"COUNTIF(B21:WK21,\"H\")+COUNTIF(B21:WK21,\"A\")+COUNTIF(B21:WK21,\"D\")+COUNTIF(KN$6:KN$37,\"H\")+COUNTIF(KN$6:KN$37,\"A\")+COUNTIF(KN$6:KN$37,\"D\")","v":0},null,{"$f":"COUNTIF(21:21,\"H\")+COUNTIF(KN6:KN37,\"A\")","v":0},null,null,{"$f":"COUNTIF(21:21,\"D\")+COUNTIF(KN6:KN37,\"D\")","v":0},{"$f":"COUNTIF(21:21,\"NG\")+COUNTIF(KG6:KG37,\"NG\")","v":0},0,null,{"$f":"SUM(B21,U21,AN21,BG21,BZ21,CS21,DL21,EE21,EX21,FQ21,GJ21,HC21,HV21,IO21,JH21,KA21,KT21,LM21,MF21,MY21,NR21,OK21,PD21,PW21,QP21,RI21,SB21,SU21,TN21,UG21,UZ21,VS21)+SUM(KH6:KH37)","v":0},null,null,{"$f":"SUM(I21,AB21,AU21,BN21,CG21,CZ21,DS21,EL21,FE21,FX21,GQ21,HJ21,IC21,IV21,,JO21,KH21,LA21,LT21,MM21,NF21,NY21,OR21,PK21,QD21,QW21,RP21,SI21,TB21,TU21,UN21,VG21,VZ21)+SUM(KA6:KA37)","v":0},0,{"$f":"COUNTIF(21:21,\"HT\")+COUNTIF(KS6:KS37,\"AT\")","v":0},{"$f":"SUM(Q21,AJ21,BC21,BV21,CO21,DH21,EA21,ET21,FM21,GF21,GY21,HR21,IK21,JD21,JW21,KP21,LI21,MB21,MU21,NN21,OG21,OZ21,PS21,QL21,RE21,RX21,SQ21,TJ21,UC21,UV21,VO21,WH21)+SUM(KQ6:KQ37)","v":0},{"$f":"SUM(G21,Z21,AS21,BL21,CE21,CX21,DQ21,EJ21,FC21,FV21,GO21,HH21,IA21,IT21,JM21,KF21,KY21,LR21,MK21,ND21,NW21,OP21,PI21,QB21,QU21,RN21,SG21,SZ21,TS21,UL21,VE21,VX21)+SUM(KM6:KM37)","v":0},{"$f":"(((D56*Points_for_Win)+(G56*Points_for_Draw)+Q56)+(H56*Points_for_Match_Not_Played))-Pool_B_Team_8_Ddns","v":0}]
[{"$f":"Pool_C_Team_1","v":"Clitheroe"},{"$f":"COUNTIF(B22:WK22,\"H\")+COUNTIF(B22:WK22,\"A\")+COUNTIF(B22:WK22,\"D\")+COUNTIF(LG$6:LG$37,\"H\")+COUNTIF(LG$6:LG$37,\"A\")+COUNTIF(LG$6:LG$37,\"D\")","v":2},null,{"$f":"COUNTIF(22:22,\"H\")+COUNTIF(LG6:LG37,\"A\")","v":0},null,null,{"$f":"COUNTIF(22:22,\"D\")+COUNTIF(LG6:LG37,\"D\")","v":0},{"$f":"COUNTIF(22:22,\"NG\")+COUNTIF(KZ6:KZ37,\"NG\")","v":0},2,null,{"$f":"SUM(B22,U22,AN22,BG22,BZ22,CS22,DL22,EE22,EX22,FQ22,GJ22,HC22,HV22,IO22,JH22,KA22,KT22,LM22,MF22,MY22,NR22,OK22,PD22,PW22,QP22,RI22,SB22,SU22,TN22,UG22,UZ22,VS22)+SUM(LA6:LA37)","v":0},null,null,{"$f":"SUM(I22,AB22,AU22,BN22,CG22,CZ22,DS22,EL22,FE22,FX22,GQ22,HJ22,IC22,IV22,,JO22,KH22,LA22,LT22,MM22,NF22,NY22,OR22,PK22,QD22,QW22,RP22,SI22,TB22,TU22,UN22,VG22,VZ22)+SUM(KT6:KT37)","v":30},-30,{"$f":"COUNTIF(22:22,\"HT\")+COUNTIF(LL6:LL37,\"AT\")","v":0},{"$f":"SUM(Q22,AJ22,BC22,BV22,CO22,DH22,EA22,ET22,FM22,GF22,GY22,HR22,IK22,JD22,JW22,KP22,LI22,MB22,MU22,NN22,OG22,OZ22,PS22,QL22,RE22,RX22,SQ22,TJ22,UC22,UV22,VO22,WH22)+SUM(LJ6:LJ37)","v":1},{"$f":"SUM(G22,Z22,AS22,BL22,CE22,CX22,DQ22,EJ22,FC22,FV22,GO22,HH22,IA22,IT22,JM22,KF22,KY22,LR22,MK22,ND22,NW22,OP22,PI22,QB22,QU22,RN22,SG22,SZ22,TS22,UL22,VE22,VX22)+SUM(LF6:LF37)","v":0},{"$f":"(((D57*Points_for_Win)+(G57*Points_for_Draw)+Q57)+(H57*Points_for_Match_Not_Played))-Pool_C_Team_1_Ddns","v":1}]
[{"$f":"Pool_C_Team_2","v":"Heaton Moor"},{"$f":"COUNTIF(B23:WK23,\"H\")+COUNTIF(B23:WK23,\"A\")+COUNTIF(B23:WK23,\"D\")+COUNTIF(LZ$6:LZ$37,\"H\")+COUNTIF(LZ$6:LZ$37,\"A\")+COUNTIF(LZ$6:LZ$37,\"D\")","v":3},null,{"$f":"COUNTIF(23:23,\"H\")+COUNTIF(LZ6:LZ237,\"A\")","v":2},null,null,{"$f":"COUNTIF(23:23,\"D\")+COUNTIF(LZ6:LZ37,\"D\")","v":0},{"$f":"COUNTIF(23:23,\"NG\")+COUNTIF(LS6:LS37,\"NG\")","v":0},1,null,{"$f":"SUM(B23,U23,AN23,BG23,BZ23,CS23,DL23,EE23,EX23,FQ23,GJ23,HC23,HV23,IO23,JH23,KA23,KT23,LM23,MF23,MY23,NR23,OK23,PD23,PW23,QP23,RI23,SB23,SU23,TN23,UG23,UZ23,VS23)+SUM(LT6:LT37)","v":75},null,null,{"$f":"SUM(I23,AB23,AU23,BN23,CG23,CZ23,DS23,EL23,FE23,FX23,GQ23,HJ23,IC23,IV23,,JO23,KH23,LA23,LT23,MM23,NF23,NY23,OR23,PK23,QD23,QW23,RP23,SI23,TB23,TU23,UN23,VG23,VZ23)+SUM(LM6:LM37)","v":45},30,{"$f":"COUNTIF(23:23,\"HT\")+COUNTIF(ME6:ME37,\"AT\")","v":0},{"$f":"SUM(Q23,AJ23,BC23,BV23,CO23,DH23,EA23,ET23,FM23,GF23,GY23,HR23,IK23,JD23,JW23,KP23,LI23,MB23,MU23,NN23,OG23,OZ23,PS23,QL23,RE23,RX23,SQ23,TJ23,UC23,UV23,VO23,WH23)+SUM(MC6:MC37)","v":1},{"$f":"SUM(G23,Z23,AS23,BL23,CE23,CX23,DQ23,EJ23,FC23,FV23,GO23,HH23,IA23,IT23,JM23,KF23,KY23,LR23,MK23,ND23,NW23,OP23,PI23,QB23,QU23,RN23,SG23,SZ23,TS23,UL23,VE23,VX23)+SUM(LY6:LY37)","v":0},{"$f":"(((D58*Points_for_Win)+(G58*Points_for_Draw)+Q58)+(H58*Points_for_Match_Not_Played))-Pool_C_Team_2_Ddns","v":11}]
[{"$f":"Pool_C_Team_3","v":"Preston Grasshoppers"},{"$f":"COUNTIF(B24:WK24,\"H\")+COUNTIF(B24:WK24,\"A\")+COUNTIF(B24:WK24,\"D\")+COUNTIF(MS$6:MS$37,\"H\")+COUNTIF(MS$6:MS$37,\"A\")+COUNTIF(MS$6:MS$37,\"D\")","v":4},null,{"$f":"COUNTIF(24:24,\"H\")+COUNTIF(MS6:MS37,\"A\")","v":4},null,null,{"$f":"COUNTIF(24:24,\"D\")+COUNTIF(MS6:MS37,\"D\")","v":0},{"$f":"COUNTIF(24:24,\"NG\")+COUNTIF(ML6:ML37,\"NG\")","v":0},0,null,{"$f":"SUM(B24,U24,AN24,BG24,BZ24,CS24,DL24,EE24,EX24,FQ24,GJ24,HC24,HV24,IO24,JH24,KA24,KT24,LM24,MF24,MY24,NR24,OK24,PD24,PW24,QP24,RI24,SB24,SU24,TN24,UG24,UZ24,VS24)+SUM(MM6:MM37)","v":35},null,null,{"$f":"SUM(I24,AB24,AU24,BN24,CG24,CZ24,DS24,EL24,FE24,FX24,GQ24,HJ24,IC24,IV24,,JO24,KH24,LA24,LT24,MM24,NF24,NY24,OR24,PK24,QD24,QW24,RP24,SI24,TB24,TU24,UN24,VG24,VZ24)+SUM(MF6:MF37)","v":5},30,{"$f":"COUNTIF(24:24,\"HT\")+COUNTIF(MX6:MX37,\"AT\")","v":0},{"$f":"SUM(Q24,AJ24,BC24,BV24,CO24,DH24,EA24,ET24,FM24,GF24,GY24,HR24,IK24,JD24,JW24,KP24,LI24,MB24,MU24,NN24,OG24,OZ24,PS24,QL24,RE24,RX24,SQ24,TJ24,UC24,UV24,VO24,WH24)+SUM(MV6:MV37)","v":0},{"$f":"SUM(G24,Z24,AS24,BL24,CE24,CX24,DQ24,EJ24,FC24,FV24,GO24,HH24,IA24,IT24,JM24,KF24,KY24,LR24,MK24,ND24,NW24,OP24,PI24,QB24,QU24,RN24,SG24,SZ24,TS24,UL24,VE24,VX24)+SUM(MR6:MR37)","v":0},{"$f":"(((D59*Points_for_Win)+(G59*Points_for_Draw)+Q59)+(H59*Points_for_Match_Not_Played))-Pool_C_Team_3_Ddns","v":20}]
[{"$f":"Pool_C_Team_4","v":"Rossendale"},{"$f":"COUNTIF(B25:WK25,\"H\")+COUNTIF(B25:WK25,\"A\")+COUNTIF(B25:WK25,\"D\")+COUNTIF(NL$6:NL$37,\"H\")+COUNTIF(NL$6:NL$37,\"A\")+COUNTIF(NL$6:NL$37,\"D\")","v":2},null,{"$f":"COUNTIF(25:25,\"H\")+COUNTIF(NL6:NL37,\"A\")","v":2},null,null,{"$f":"COUNTIF(25:25,\"D\")+COUNTIF(NL6:NL37,\"D\")","v":0},{"$f":"COUNTIF(25:25,\"NG\")+COUNTIF(NE6:NE37,\"NG\")","v":0},0,null,{"$f":"SUM(B25,U25,AN25,BG25,BZ25,CS25,DL25,EE25,EX25,FQ25,GJ25,HC25,HV25,IO25,JH25,KA25,KT25,LM25,MF25,MY25,NR25,OK25,PD25,PW25,QP25,RI25,SB25,SU25,TN25,UG25,UZ25,VS25)+SUM(NF6:NF37)","v":30},null,null,{"$f":"SUM(I25,AB25,AU25,BN25,CG25,CZ25,DS25,EL25,FE25,FX25,GQ25,HJ25,IC25,IV25,,JO25,KH25,LA25,LT25,MM25,NF25,NY25,OR25,PK25,QD25,QW25,RP25,SI25,TB25,TU25,UN25,VG25,VZ25)+SUM(MY6:MY37)","v":0},30,{"$f":"COUNTIF(25:25,\"HT\")+COUNTIF(NQ6:NQ37,\"AT\")","v":0},{"$f":"SUM(Q25,AJ25,BC25,BV25,CO25,DH25,EA25,ET25,FM25,GF25,GY25,HR25,IK25,JD25,JW25,KP25,LI25,MB25,MU25,NN25,OG25,OZ25,PS25,QL25,RE25,RX25,SQ25,TJ25,UC25,UV25,VO25,WH25)+SUM(NO6:NO37)","v":0},{"$f":"SUM(G25,Z25,AS25,BL25,CE25,CX25,DQ25,EJ25,FC25,FV25,GO25,HH25,IA25,IT25,JM25,KF25,KY25,LR25,MK25,ND25,NW25,OP25,PI25,QB25,QU25,RN25,SG25,SZ25,TS25,UL25,VE25,VX25)+SUM(NK6:NK37)","v":0},{"$f":"(((D60*Points_for_Win)+(G60*Points_for_Draw)+Q60)+(H60*Points_for_Match_Not_Played))-Pool_C_Team_4_Ddns","v":10}]
[{"$f":"Pool_C_Team_5","v":"Sedgley Park"},{"$f":"COUNTIF(B26:WK26,\"H\")+COUNTIF(B26:WK26,\"A\")+COUNTIF(B26:WK26,\"D\")+COUNTIF(OE$6:OE$37,\"H\")+COUNTIF(OE$6:OE$37,\"A\")+COUNTIF(OE$6:OE$37,\"D\")","v":4},null,{"$f":"COUNTIF(26:26,\"H\")+COUNTIF(OE6:OE37,\"A\")","v":1},null,null,{"$f":"COUNTIF(26:26,\"D\")+COUNTIF(OE6:OE37,\"D\")","v":0},{"$f":"COUNTIF(26:26,\"NG\")+COUNTIF(NX6:NX37,\"NG\")","v":0},3,null,{"$f":"SUM(B26,U26,AN26,BG26,BZ26,CS26,DL26,EE26,EX26,FQ26,GJ26,HC26,HV26,IO26,JH26,KA26,KT26,LM26,MF26,MY26,NR26,OK26,PD26,PW26,QP26,RI26,SB26,SU26,TN26,UG26,UZ26,VS26)+SUM(NY6:NY37)","v":0},null,null,{"$f":"SUM(I26,AB26,AU26,BN26,CG26,CZ26,DS26,EL26,FE26,FX26,GQ26,HJ26,IC26,IV26,,JO26,KH26,LA26,LT26,MM26,NF26,NY26,OR26,PK26,QD26,QW26,RP26,SI26,TB26,TU26,UN26,VG26,VZ26)+SUM(NR6:NR37)","v":30},-30,{"$f":"COUNTIF(26:26,\"HT\")+COUNTIF(OJ6:OJ37,\"AT\")","v":0},{"$f":"SUM(Q26,AJ26,BC26,BV26,CO26,DH26,EA26,ET26,FM26,GF26,GY26,HR26,IK26,JD26,JW26,KP26,LI26,MB26,MU26,NN26,OG26,OZ26,PS26,QL26,RE26,RX26,SQ26,TJ26,UC26,UV26,VO26,WH26)+SUM(OH6:OH37)","v":1},{"$f":"SUM(G26,Z26,AS26,BL26,CE26,CX26,DQ26,EJ26,FC26,FV26,GO26,HH26,IA26,IT26,JM26,KF26,KY26,LR26,MK26,ND26,NW26,OP26,PI26,QB26,QU26,RN26,SG26,SZ26,TS26,UL26,VE26,VX26)+SUM(OD6:OD37)","v":0},{"$f":"(((D61*Points_for_Win)+(G61*Points_for_Draw)+Q61)+(H61*Points_for_Match_Not_Played))-Pool_C_Team_5_Ddns","v":6}]
[{"$f":"Pool_C_Team_6","v":"West Park"},{"$f":"COUNTIF(B27:WK27,\"H\")+COUNTIF(B27:WK27,\"A\")+COUNTIF(B27:WK27,\"D\")+COUNTIF(OX$6:OX$37,\"H\")+COUNTIF(OX$6:OX$37,\"A\")+COUNTIF(OX$6:OX$37,\"D\")","v":3},null,{"$f":"COUNTIF(27:27,\"H\")+COUNTIF(OX6:OX37,\"A\")","v":0},null,null,{"$f":"COUNTIF(27:27,\"D\")+COUNTIF(OX6:OX37,\"D\")","v":0},{"$f":"COUNTIF(27:27,\"NG\")+COUNTIF(OQ6:OQ37,\"NG\")","v":0},3,null,{"$f":"SUM(B27,U27,AN27,BG27,BZ27,CS27,DL27,EE27,EX27,FQ27,GJ27,HC27,HV27,IO27,JH27,KA27,KT27,LM27,MF27,MY27,NR27,OK27,PD27,PW27,QP27,RI27,SB27,SU27,TN27,UG27,UZ27,VS27)+SUM(OR6:OR37)","v":10},null,null,{"$f":"SUM(I27,AB27,AU27,BN27,CG27,CZ27,DS27,EL27,FE27,FX27,GQ27,HJ27,IC27,IV27,,JO27,KH27,LA27,LT27,MM27,NF27,NY27,OR27,PK27,QD27,QW27,RP27,SI27,TB27,TU27,UN27,VG27,VZ27)+SUM(OK6:OK37)","v":40},-30,{"$f":"COUNTIF(27:27,\"HT\")+COUNTIF(PC6:PC37,\"AT\")","v":0},{"$f":"SUM(Q27,AJ27,BC27,BV27,CO27,DH27,EA27,ET27,FM27,GF27,GY27,HR27,IK27,JD27,JW27,KP27,LI27,MB27,MU27,NN27,OG27,OZ27,PS27,QL27,RE27,RX27,SQ27,TJ27,UC27,UV27,VO27,WH27)+SUM(PA6:PA37)","v":1},{"$f":"SUM(G27,Z27,AS27,BL27,CE27,CX27,DQ27,EJ27,FC27,FV27,GO27,HH27,IA27,IT27,JM27,KF27,KY27,LR27,MK27,ND27,NW27,OP27,PI27,QB27,QU27,RN27,SG27,SZ27,TS27,UL27,VE27,VX27)+SUM(OW6:OW37)","v":0},{"$f":"(((D62*Points_for_Win)+(G62*Points_for_Draw)+Q62)+(H62*Points_for_Match_Not_Played))-Pool_C_Team_6_Ddns","v":1}]
[{"$f":"Pool_C_Team_7","v":0},{"$f":"COUNTIF(B28:WK28,\"H\")+COUNTIF(B28:WK28,\"A\")+COUNTIF(B28:WK28,\"D\")+COUNTIF(PQ$6:PQ$37,\"H\")+COUNTIF(PQ$6:PQ$37,\"A\")+COUNTIF(PQ$6:PQ$37,\"D\")","v":0},null,{"$f":"COUNTIF(28:28,\"H\")+COUNTIF(PQ6:PQ37,\"A\")","v":0},null,null,{"$f":"COUNTIF(28:28,\"D\")+COUNTIF(PQ6:PQ37,\"D\")","v":0},{"$f":"COUNTIF(28:28,\"NG\")+COUNTIF(PJ6:PJ37,\"NG\")","v":0},0,null,{"$f":"SUM(B28,U28,AN28,BG28,BZ28,CS28,DL28,EE28,EX28,FQ28,GJ28,HC28,HV28,IO28,JH28,KA28,KT28,LM28,MF28,MY28,NR28,OK28,PD28,PW28,QP28,RI28,SB28,SU28,TN28,UG28,UZ28,VS28)+SUM(PK6:PK37)","v":0},null,null,{"$f":"SUM(I28,AB28,AU28,BN28,CG28,CZ28,DS28,EL28,FE28,FX28,GQ28,HJ28,IC28,IV28,,JO28,KH28,LA28,LT28,MM28,NF28,NY28,OR28,PK28,QD28,QW28,RP28,SI28,TB28,TU28,UN28,VG28,VZ28)+SUM(PD6:PD37)","v":0},0,{"$f":"COUNTIF(28:28,\"HT\")+COUNTIF(PV6:PV37,\"AT\")","v":0},{"$f":"SUM(Q28,AJ28,BC28,BV28,CO28,DH28,EA28,ET28,FM28,GF28,GY28,HR28,IK28,JD28,JW28,KP28,LI28,MB28,MU28,NN28,OG28,OZ28,PS28,QL28,RE28,RX28,SQ28,TJ28,UC28,UV28,VO28,WH28)+SUM(PT6:PT37)","v":0},{"$f":"SUM(G28,Z28,AS28,BL28,CE28,CX28,DQ28,EJ28,FC28,FV28,GO28,HH28,IA28,IT28,JM28,KF28,KY28,LR28,MK28,ND28,NW28,OP28,PI28,QB28,QU28,RN28,SG28,SZ28,TS28,UL28,VE28,VX28)+SUM(PP6:PP37)","v":0},{"$f":"(((D63*Points_for_Win)+(G63*Points_for_Draw)+Q63)+(H63*Points_for_Match_Not_Played))-Pool_C_Team_7_Ddns","v":0}]
[{"$f":"Pool_C_Team_8","v":0},{"$f":"COUNTIF(B29:WK29,\"H\")+COUNTIF(B29:WK29,\"A\")+COUNTIF(B29:WK29,\"D\")+COUNTIF(QJ$6:QJ$37,\"H\")+COUNTIF(QJ$6:QJ$37,\"A\")+COUNTIF(QJ$6:QJ$37,\"D\")","v":0},null,{"$f":"COUNTIF(29:29,\"H\")+COUNTIF(QJ6:QJ37,\"A\")","v":0},null,null,{"$f":"COUNTIF(29:29,\"D\")+COUNTIF(QJ6:QJ37,\"D\")","v":0},{"$f":"COUNTIF(29:29,\"NG\")+COUNTIF(QC6:QC37,\"NG\")","v":0},0,null,{"$f":"SUM(B29,U29,AN29,BG29,BZ29,CS29,DL29,EE29,EX29,FQ29,GJ29,HC29,HV29,IO29,JH29,KA29,KT29,LM29,MF29,MY29,NR29,OK29,PD29,PW29,QP29,RI29,SB29,SU29,TN29,UG29,UZ29,VS29)+SUM(QD6:QD37)","v":0},null,null,{"$f":"SUM(I29,AB29,AU29,BN29,CG29,CZ29,DS29,EL29,FE29,FX29,GQ29,HJ29,IC29,IV29,,JO29,KH29,LA29,LT29,MM29,NF29,NY29,OR29,PK29,QD29,QW29,RP29,SI29,TB29,TU29,UN29,VG29,VZ29)+SUM(PW6:PW37)","v":0},0,{"$f":"COUNTIF(29:29,\"HT\")+COUNTIF(QO6:QO37,\"AT\")","v":0},{"$f":"SUM(Q29,AJ29,BC29,BV29,CO29,DH29,EA29,ET29,FM29,GF29,GY29,HR29,IK29,JD29,JW29,KP29,LI29,MB29,MU29,NN29,OG29,OZ29,PS29,QL29,RE29,RX29,SQ29,TJ29,UC29,UV29,VO29,WH29)+SUM(QM6:QM37)","v":0},{"$f":"SUM(G29,Z29,AS29,BL29,CE29,CX29,DQ29,EJ29,FC29,FV29,GO29,HH29,IA29,IT29,JM29,KF29,KY29,LR29,MK29,ND29,NW29,OP29,PI29,QB29,QU29,RN29,SG29,SZ29,TS29,UL29,VE29,VX29)+SUM(QI6:QI37)","v":0},{"$f":"(((D64*Points_for_Win)+(G64*Points_for_Draw)+Q64)+(H64*Points_for_Match_Not_Played))-Pool_C_Team_8_Ddns","v":0}]
[{"$f":"Pool_D_Team_1","v":"Burnley"},{"$f":"COUNTIF(B30:WK30,\"H\")+COUNTIF(B30:WK30,\"A\")+COUNTIF(B30:WK30,\"D\")+COUNTIF(RC$6:RC$37,\"H\")+COUNTIF(RC$6:RC$37,\"A\")+COUNTIF(RC$6:RC$37,\"D\")","v":2},null,{"$f":"COUNTIF(30:30,\"H\")+COUNTIF(RC6:RC37,\"A\")","v":1},null,null,{"$f":"COUNTIF(30:30,\"D\")+COUNTIF(RC6:RC37,\"D\")","v":0},{"$f":"COUNTIF(30:30,\"NG\")+COUNTIF(QV6:QV37,\"NG\")","v":1},1,null,{"$f":"SUM(B30,U30,AN30,BG30,BZ30,CS30,DL30,EE30,EX30,FQ30,GJ30,HC30,HV30,IO30,JH30,KA30,KT30,LM30,MF30,MY30,NR30,OK30,PD30,PW30,QP30,RI30,SB30,SU30,TN30,UG30,UZ30,VS30)+SUM(QW6:QW37)","v":0},null,null,{"$f":"SUM(I30,AB30,AU30,BN30,CG30,CZ30,DS30,EL30,FE30,FX30,GQ30,HJ30,IC30,IV30,,JO30,KH30,LA30,LT30,MM30,NF30,NY30,OR30,PK30,QD30,QW30,RP30,SI30,TB30,TU30,UN30,VG30,VZ30)+SUM(QP6:QP37)","v":30},-30,{"$f":"COUNTIF(30:30,\"HT\")+COUNTIF(RH6:RH37,\"AT\")","v":0},{"$f":"SUM(Q30,AJ30,BC30,BV30,CO30,DH30,EA30,ET30,FM30,GF30,GY30,HR30,IK30,JD30,JW30,KP30,LI30,MB30,MU30,NN30,OG30,OZ30,PS30,QL30,RE30,RX30,SQ30,TJ30,UC30,UV30,VO30,WH30)+SUM(RF6:RF37)","v":1},{"$f":"SUM(G30,Z30,AS30,BL30,CE30,CX30,DQ30,EJ30,FC30,FV30,GO30,HH30,IA30,IT30,JM30,KF30,KY30,LR30,MK30,ND30,NW30,OP30,PI30,QB30,QU30,RN30,SG30,SZ30,TS30,UL30,VE30,VX30)+SUM(RB6:RB37)","v":0},{"$f":"(((D65*Points_for_Win)+(G65*Points_for_Draw)+Q65)+(H65*Points_for_Match_Not_Played))-Pool_D_Team_1_Ddns","v":8}]
[{"$f":"Pool_D_Team_2","v":"Bury"},{"$f":"COUNTIF(B31:WK31,\"H\")+COUNTIF(B31:WK31,\"A\")+COUNTIF(B31:WK31,\"D\")+COUNTIF(RV$6:RV$37,\"H\")+COUNTIF(RV$6:RV$37,\"A\")+COUNTIF(RV$6:RV$37,\"D\")","v":2},null,{"$f":"COUNTIF(31:31,\"H\")+COUNTIF(RV6:RV37,\"A\")","v":1},null,null,{"$f":"COUNTIF(31:31,\"D\")+COUNTIF(RV6:RV37,\"D\")","v":0},{"$f":"COUNTIF(31:31,\"NG\")+COUNTIF(RO6:RO37,\"NG\")","v":1},1,null,{"$f":"SUM(B31,U31,AN31,BG31,BZ31,CS31,DL31,EE31,EX31,FQ31,GJ31,HC31,HV31,IO31,JH31,KA31,KT31,LM31,MF31,MY31,NR31,OK31,PD31,PW31,QP31,RI31,SB31,SU31,TN31,UG31,UZ31,VS31)+SUM(RP6:RP37)","v":0},null,null,{"$f":"SUM(I31,AB31,AU31,BN31,CG31,CZ31,DS31,EL31,FE31,FX31,GQ31,HJ31,IC31,IV31,,JO31,KH31,LA31,LT31,MM31,NF31,NY31,OR31,PK31,QD31,QW31,RP31,SI31,TB31,TU31,UN31,VG31,VZ31)+SUM(RI6:RI37)","v":30},-30,{"$f":"COUNTIF(31:31,\"HT\")+COUNTIF(SA6:SA37,\"AT\")","v":0},{"$f":"SUM(Q31,AJ31,BC31,BV31,CO31,DH31,EA31,ET31,FM31,GF31,GY31,HR31,IK31,JD31,JW31,KP31,LI31,MB31,MU31,NN31,OG31,OZ31,PS31,QL31,RE31,RX31,SQ31,TJ31,UC31,UV31,VO31,WH31)+SUM(RY6:RY37)","v":1},{"$f":"SUM(G31,Z31,AS31,BL31,CE31,CX31,DQ31,EJ31,FC31,FV31,GO31,HH31,IA31,IT31,JM31,KF31,KY31,LR31,MK31,ND31,NW31,OP31,PI31,QB31,QU31,RN31,SG31,SZ31,TS31,UL31,VE31,VX31)+SUM(RU6:RU37)","v":0},{"$f":"(((D66*Points_for_Win)+(G66*Points_for_Draw)+Q66)+(H66*Points_for_Match_Not_Played))-Pool_D_Team_2_Ddns","v":8}]
[{"$f":"Pool_D_Team_3","v":"Didsbury Toc H"},{"$f":"COUNTIF(B32:WK32,\"H\")+COUNTIF(B32:WK32,\"A\")+COUNTIF(B32:WK32,\"D\")+COUNTIF(SO$6:SO$37,\"H\")+COUNTIF(SO$6:SO$37,\"A\")+COUNTIF(SO$6:SO$37,\"D\")","v":2},null,{"$f":"COUNTIF(32:32,\"H\")+COUNTIF(SO6:SO37,\"A\")","v":1},null,null,{"$f":"COUNTIF(32:32,\"D\")+COUNTIF(SO6:SO37,\"D\")","v":0},{"$f":"COUNTIF(32:32,\"NG\")+COUNTIF(SH6:SH37,\"NG\")","v":0},1,null,{"$f":"SUM(B32,U32,AN32,BG32,BZ32,CS32,DL32,EE32,EX32,FQ32,GJ32,HC32,HV32,IO32,JH32,KA32,KT32,LM32,MF32,MY32,NR32,OK32,PD32,PW32,QP32,RI32,SB32,SU32,TN32,UG32,UZ32,VS32)+SUM(SI6:SI37)","v":0},null,null,{"$f":"SUM(I32,AB32,AU32,BN32,CG32,CZ32,DS32,EL32,FE32,FX32,GQ32,HJ32,IC32,IV32,,JO32,KH32,LA32,LT32,MM32,NF32,NY32,OR32,PK32,QD32,QW32,RP32,SI32,TB32,TU32,UN32,VG32,VZ32)+SUM(SB6:SB37)","v":0},0,{"$f":"COUNTIF(32:32,\"HT\")+COUNTIF(ST6:ST37,\"AT\")","v":0},{"$f":"SUM(Q32,AJ32,BC32,BV32,CO32,DH32,EA32,ET32,FM32,GF32,GY32,HR32,IK32,JD32,JW32,KP32,LI32,MB32,MU32,NN32,OG32,OZ32,PS32,QL32,RE32,RX32,SQ32,TJ32,UC32,UV32,VO32,WH32)+SUM(SR6:SR37)","v":0},{"$f":"SUM(G32,Z32,AS32,BL32,CE32,CX32,DQ32,EJ32,FC32,FV32,GO32,HH32,IA32,IT32,JM32,KF32,KY32,LR32,MK32,ND32,NW32,OP32,PI32,QB32,QU32,RN32,SG32,SZ32,TS32,UL32,VE32,VX32)+SUM(SN6:SN37)","v":0},{"$f":"(((D67*Points_for_Win)+(G67*Points_for_Draw)+Q67)+(H67*Points_for_Match_Not_Played))-Pool_D_Team_3_Ddns","v":5}]
[{"$f":"Pool_D_Team_4","v":"Liverpool St Helens"},{"$f":"COUNTIF(B33:WK33,\"H\")+COUNTIF(B33:WK33,\"A\")+COUNTIF(B33:WK33,\"D\")+COUNTIF(TH$6:TH$37,\"H\")+COUNTIF(TH$6:TH$37,\"A\")+COUNTIF(TH$6:TH$37,\"D\")","v":4},null,{"$f":"COUNTIF(33:33,\"H\")+COUNTIF(TH6:TH37,\"A\")","v":0},null,null,{"$f":"COUNTIF(33:33,\"D\")+COUNTIF(TH6:TH37,\"D\")","v":0},{"$f":"COUNTIF(33:33,\"NG\")+COUNTIF(TA6:TA37,\"NG\")","v":0},4,null,{"$f":"SUM(B33,U33,AN33,BG33,BZ33,CS33,DL33,EE33,EX33,FQ33,GJ33,HC33,HV33,IO33,JH33,KA33,KT33,LM33,MF33,MY33,NR33,OK33,PD33,PW33,QP33,RI33,SB33,SU33,TN33,UG33,UZ33,VS33)+SUM(TB6:TB37)","v":53},null,null,{"$f":"SUM(I33,AB33,AU33,BN33,CG33,CZ33,DS33,EL33,FE33,FX33,GQ33,HJ33,IC33,IV33,,JO33,KH33,LA33,LT33,MM33,NF33,NY33,OR33,PK33,QD33,QW33,RP33,SI33,TB33,TU33,UN33,VG33,VZ33)+SUM(SU6:SU37)","v":83},-30,{"$f":"COUNTIF(33:33,\"HT\")+COUNTIF(TM6:TM37,\"AT\")","v":0},{"$f":"SUM(Q33,AJ33,BC33,BV33,CO33,DH33,EA33,ET33,FM33,GF33,GY33,HR33,IK33,JD33,JW33,KP33,LI33,MB33,MU33,NN33,OG33,OZ33,PS33,QL33,RE33,RX33,SQ33,TJ33,UC33,UV33,VO33,WH33)+SUM(TK7:TK37)","v":2},{"$f":"SUM(G33,Z33,AS33,BL33,CE33,CX33,DQ33,EJ33,FC33,FV33,GO33,HH33,IA33,IT33,JM33,KF33,KY33,LR33,MK33,ND33,NW33,OP33,PI33,QB33,QU33,RN33,SG33,SZ33,TS33,UL33,VE33,VX33)+SUM(TG6:TG37)","v":0},{"$f":"(((D68*Points_for_Win)+(G68*Points_for_Draw)+Q68)+(H68*Points_for_Match_Not_Played))-Pool_D_Team_4_Ddns","v":2}]
[{"$f":"Pool_D_Team_5","v":"Orrell"},{"$f":"COUNTIF(B34:WK34,\"H\")+COUNTIF(B34:WK34,\"A\")+COUNTIF(B34:WK34,\"D\")+COUNTIF(UA$6:UA$37,\"H\")+COUNTIF(UA$6:UA$37,\"A\")+COUNTIF(UA$6:UA$37,\"D\")","v":2},null,{"$f":"COUNTIF(34:34,\"H\")+COUNTIF(UA6:UA37,\"A\")","v":1},null,null,{"$f":"COUNTIF(34:34,\"D\")+COUNTIF(UA6:UA37,\"D\")","v":0},{"$f":"COUNTIF(34:34,\"NG\")+COUNTIF(TT6:TT37,\"NG\")","v":0},1,null,{"$f":"SUM(B34,U34,AN34,BG34,BZ34,CS34,DL34,EE34,EX34,FQ34,GJ34,HC34,HV34,IO34,JH34,KA34,KT34,LM34,MF34,MY34,NR34,OK34,PD34,PW34,QP34,RI34,SB34,SU34,TN34,UG34,UZ34,VS34)+SUM(TU6:TU37)","v":46},null,null,{"$f":"SUM(I34,AB34,AU34,BN34,CG34,CZ34,DS34,EL34,FE34,FX34,GQ34,HJ34,IC34,IV34,,JO34,KH34,LA34,LT34,MM34,NF34,NY34,OR34,PK34,QD34,QW34,RP34,SI34,TB34,TU34,UN34,VG34,VZ34)+SUM(TN6:TN37)","v":27},19,{"$f":"COUNTIF(34:34,\"HT\")+COUNTIF(UF6:UF37,\"AT\")","v":0},{"$f":"SUM(Q34,AJ34,BC34,BV34,CO34,DH34,EA34,ET34,FM34,GF34,GY34,HR34,IK34,JD34,JW34,KP34,LI34,MB34,MU34,NN34,OG34,OZ34,PS34,QL34,RE34,RX34,SQ34,TJ34,UC34,UV34,VO34,WH34)+SUM(UD6:UD37)","v":0},{"$f":"SUM(G34,Z34,AS34,BL34,CE34,CX34,DQ34,EJ34,FC34,FV34,GO34,HH34,IA34,IT34,JM34,KF34,KY34,LR34,MK34,ND34,NW34,OP34,PI34,QB34,QU34,RN34,SG34,SZ34,TS34,UL34,VE34,VX34)+SUM(TZ6:TZ37)","v":0},{"$f":"(((D69*Points_for_Win)+(G69*Points_for_Draw)+Q69)+(H69*Points_for_Match_Not_Played))-Pool_D_Team_5_Ddns","v":5}]
[{"$f":"Pool_D_Team_6","v":"Waterloo"},{"$f":"COUNTIF(B35:WK35,\"H\")+COUNTIF(B35:WK35,\"A\")+COUNTIF(B35:WK35,\"D\")+COUNTIF(UT$6:UT$37,\"H\")+COUNTIF(UT$6:UT$37,\"A\")+COUNTIF(UT$6:UT$37,\"D\")","v":4},null,{"$f":"COUNTIF(35:35,\"H\")+COUNTIF(UT6:UT37,\"A\")","v":4},null,null,{"$f":"COUNTIF(35:35,\"D\")+COUNTIF(UT6:UT37,\"D\")","v":0},{"$f":"COUNTIF(35:35,\"NG\")+COUNTIF(UM6:UM37,\"NG\")","v":0},0,null,{"$f":"SUM(B35,U35,AN35,BG35,BZ35,CS35,DL35,EE35,EX35,FQ35,GJ35,HC35,HV35,IO35,JH35,KA35,KT35,LM35,MF35,MY35,NR35,OK35,PD35,PW35,QP35,RI35,SB35,SU35,TN35,UG35,UZ35,VS35)+SUM(UN6:UN37)","v":97},null,null,{"$f":"SUM(I35,AB35,AU35,BN35,CG35,CZ35,DS35,EL35,FE35,FX35,GQ35,HJ35,IC35,IV35,,JO35,KH35,LA35,LT35,MM35,NF35,NY35,OR35,PK35,QD35,QW35,RP35,SI35,TB35,TU35,UN35,VG35,VZ35)+SUM(UG6:UG37)","v":26},71,{"$f":"COUNTIF(35:35,\"HT\")+COUNTIF(UY6:UY37,\"AT\")","v":0},{"$f":"SUM(Q35,AJ35,BC35,BV35,CO35,DH35,EA35,ET35,FM35,GF35,GY35,HR35,IK35,JD35,JW35,KP35,LI35,MB35,MU35,NN35,OG35,OZ35,PS35,QL35,RE35,RX35,SQ35,TJ35,UC35,UV35,VO35,WH35)+SUM(UW6:UW37)","v":0},{"$f":"SUM(G35,Z35,AS35,BL35,CE35,CX35,DQ35,EJ35,FC35,FV35,GO35,HH35,IA35,IT35,JM35,KF35,KY35,LR35,MK35,ND35,NW35,OP35,PI35,QB35,QU35,RN35,SG35,SZ35,TS35,UL35,VE35,VX35)+SUM(US6:US37)","v":0},{"$f":"(((D70*Points_for_Win)+(G70*Points_for_Draw)+Q70)+(H70*Points_for_Match_Not_Played))-Pool_D_Team_6_Ddns","v":20}]
[{"$f":"Pool_D_Team_7","v":0},{"$f":"COUNTIF(B36:WK36,\"H\")+COUNTIF(B36:WK36,\"A\")+COUNTIF(B36:WK36,\"D\")+COUNTIF(VM$6:VM$37,\"H\")+COUNTIF(VM$6:VM$37,\"A\")+COUNTIF(VM$6:VM$37,\"D\")","v":0},null,{"$f":"COUNTIF(36:36,\"H\")+COUNTIF(VM6:VM37,\"A\")","v":0},null,null,{"$f":"COUNTIF(36:36,\"D\")+COUNTIF(VM6:VM37,\"D\")","v":0},{"$f":"COUNTIF(36:36,\"NG\")+COUNTIF(VF6:VF37,\"NG\")","v":0},0,null,{"$f":"SUM(B36,U36,AN36,BG36,BZ36,CS36,DL36,EE36,EX36,FQ36,GJ36,HC36,HV36,IO36,JH36,KA36,KT36,LM36,MF36,MY36,NR36,OK36,PD36,PW36,QP36,RI36,SB36,SU36,TN36,UG36,UZ36,VS36)+SUM(VG6:VG37)","v":0},null,null,{"$f":"SUM(I36,AB36,AU36,BN36,CG36,CZ36,DS36,EL36,FE36,FX36,GQ36,HJ36,IC36,IV36,,JO36,KH36,LA36,LT36,MM36,NF36,NY36,OR36,PK36,QD36,QW36,RP36,SI36,TB36,TU36,UN36,VG36,VZ36)+SUM(UZ6:UZ37)","v":0},0,{"$f":"COUNTIF(36:36,\"HT\")+COUNTIF(VR6:VR37,\"AT\")","v":0},{"$f":"SUM(Q36,AJ36,BC36,BV36,CO36,DH36,EA36,ET36,FM36,GF36,GY36,HR36,IK36,JD36,JW36,KP36,LI36,MB36,MU36,NN36,OG36,OZ36,PS36,QL36,RE36,RX36,SQ36,TJ36,UC36,UV36,VO36,WH36)+SUM(VP6:VP37)","v":0},{"$f":"SUM(G36,Z36,AS36,BL36,CE36,CX36,DQ36,EJ36,FC36,FV36,GO36,HH36,IA36,IT36,JM36,KF36,KY36,LR36,MK36,ND36,NW36,OP36,PI36,QB36,QU36,RN36,SG36,SZ36,TS36,UL36,VE36,VX36)+SUM(VL6:VL37)","v":0},{"$f":"(((D71*Points_for_Win)+(G71*Points_for_Draw)+Q71)+(H71*Points_for_Match_Not_Played))-Pool_D_Team_7_Ddns","v":0}]
[{"$f":"Pool_D_Team_8","v":0},{"$f":"COUNTIF(B37:WK37,\"H\")+COUNTIF(B37:WK37,\"A\")+COUNTIF(B37:WK37,\"D\")+COUNTIF(WF$6:WF$37,\"H\")+COUNTIF(WF$6:WF$37,\"A\")+COUNTIF(WF$6:WF$37,\"D\")","v":0},null,{"$f":"COUNTIF(37:37,\"H\")+COUNTIF(WF6:WF37,\"A\")","v":0},null,null,{"$f":"COUNTIF(37:37,\"D\")+COUNTIF(WF6:WF37,\"D\")","v":0},{"$f":"COUNTIF(37:37,\"NG\")+COUNTIF(VY6:VY37,\"NG\")","v":0},0,null,{"$f":"SUM(B37,U37,AN37,BG37,BZ37,CS37,DL37,EE37,EX37,FQ37,GJ37,HC37,HV37,IO37,JH37,KA37,KT37,LM37,MF37,MY37,NR37,OK37,PD37,PW37,QP37,RI37,SB37,SU37,TN37,UG37,UZ37,VS37)+SUM(VZ6:VZ37)","v":0},null,null,{"$f":"SUM(I37,AB37,AU37,BN37,CG37,CZ37,DS37,EL37,FE37,FX37,GQ37,HJ37,IC37,IV37,,JO37,KH37,LA37,LT37,MM37,NF37,NY37,OR37,PK37,QD37,QW37,RP37,SI37,TB37,TU37,UN37,VG37,VZ37)+SUM(VS6:VS37)","v":0},0,{"$f":"COUNTIF(37:37,\"HT\")+COUNTIF(WK6:WK37,\"AT\")","v":0},{"$f":"SUM(Q37,AJ37,BC37,BV37,CO37,DH37,EA37,ET37,FM37,GF37,GY37,HR37,IK37,JD37,JW37,KP37,LI37,MB37,MU37,NN37,OG37,OZ37,PS37,QL37,RE37,RX37,SQ37,TJ37,UC37,UV37,VO37,WH37)+SUM(WI6:WI37)","v":0},{"$f":"SUM(G37,Z37,AS37,BL37,CE37,CX37,DQ37,EJ37,FC37,FV37,GO37,HH37,IA37,IT37,JM37,KF37,KY37,LR37,MK37,ND37,NW37,OP37,PI37,QB37,QU37,RN37,SG37,SZ37,TS37,UL37,VE37,VX37)+SUM(WE6:WE37)","v":0},{"$f":"(((D72*Points_for_Win)+(G72*Points_for_Draw)+Q72)+(H72*Points_for_Match_Not_Played))-Pool_D_Team_8_Ddns","v":0}]

{"sheet":"Fixtures","index":1,"n_rows":213,"n_cols":15,"rows_kept":213,"cut":false,"hidden":false,"merged":[]}
[{"$f":"Competition","v":"Blacksticks Blue Challenge"},null,null,null,null,null,null,null,null,null,{"$f":"Age_Group","v":"U15s"},null,{"$f":"Season","v":"2015/6"},null,{"$f":"\"Sponsored by \"&Sponsor","v":"Sponsored by Butlers Farmhouse Cheeses"}]
[]
[null,null,"R","Y",null,null,null,null,null,"Y","R"]
[]
["MATCH DAY ONE",null,null,null,null,null,null,null,null,null,null,"2015-10-04"]
[]
["Pool A"]
[]
[null,"Fylde",{"$f":"IF(ISBLANK(B9),0,VLOOKUP(B9,Pool_A_Results_Table,VLOOKUP(L9,Pool_A_Offsets_Table,6)))","v":0},{"$f":"IF(ISBLANK(B9),0,VLOOKUP(B9,Pool_A_Results_Table,VLOOKUP(L9,Pool_A_Offsets_Table,5)))","v":0},{"$f":"IF(ISBLANK(B9),\"\",VLOOKUP(B9,Pool_A_Results_Table,VLOOKUP(L9,Pool_A_Offsets_Table,2)))","v":28},{"$f":"IF(ISBLANK(B9),\"\",VLOOKUP(B9,Pool_A_Results_Table,VLOOKUP(L9,Pool_A_Offsets_Table,3)))","v":0},{"$f":"IF(ISBLANK(B9),\"\",IF(VLOOKUP(B9,Pool_A_Results_Table,VLOOKUP(L9,Pool_A_Offsets_Table,8))=0,\"v\",VLOOKUP(B9,Pool_A_Results_Table,VLOOKUP(L9,Pool_A_Offsets_Table,8))))","v":"v"},{"$f":"IF(ISBLANK(B9),\"\",VLOOKUP(B9,Pool_A_Results_Table,VLOOKUP(L9,Pool_A_Offsets_Table,9)))","v":32},{"$f":"IF(ISBLANK(B9),\"\",VLOOKUP(B9,Pool_A_Results_Table,VLOOKUP(L9,Pool_A_Offsets_Table,10)))","v":0},{"$f":"IF(ISBLANK(B9),0,VLOOKUP(B9,Pool_A_Results_Table,VLOOKUP(L9,Pool_A_Offsets_Table,12)))","v":0},{"$f":"IF(ISBLANK(B9),0,VLOOKUP(B9,Pool_A_Results_Table,VLOOKUP(L9,Pool_A_Offsets_Table,13)))","v":0},"Manchester"]
[null,"Ashton-u-Lyne",{"$f":"IF(ISBLANK(B10),0,VLOOKUP(B10,Pool_A_Results_Table,VLOOKUP(L10,Pool_A_Offsets_Table,6)))","v":0},{"$f":"IF(ISBLANK(B10),0,VLOOKUP(B10,Pool_A_Results_Table,VLOOKUP(L10,Pool_A_Offsets_Table,5)))","v":0},19,{"$f":"IF(ISBLANK(B10),\"\",VLOOKUP(B10,Pool_A_Results_Table,VLOOKUP(L10,Pool_A_Offsets_Table,3)))","v":0},{"$f":"IF(ISBLANK(B10),\"\",IF(VLOOKUP(B10,Pool_A_Results_Table,VLOOKUP(L10,Pool_A_Offsets_Table,8))=0,\"v\",VLOOKUP(B10,Pool_A_Results_Table,VLOOKUP(L10,Pool_A_Offsets_Table,8))))","v":"v"},{"$f":"IF(ISBLANK(B10),\"\",VLOOKUP(B10,Pool_A_Results_Table,VLOOKUP(L10,Pool_A_Offsets_Table,9)))","v":26},{"$f":"IF(ISBLANK(B10),\"\",VLOOKUP(B10,Pool_A_Results_Table,VLOOKUP(L10,Pool_A_Offsets_Table,10)))","v":0},{"$f":"IF(ISBLANK(B10),0,VLOOKUP(B10,Pool_A_Results_Table,VLOOKUP(L10,Pool_A_Offsets_Table,12)))","v":0},{"$f":"IF(ISBLANK(B10),0,VLOOKUP(B10,Pool_A_Results_Table,VLOOKUP(L10,Pool_A_Offsets_Table,13)))","v":0},"Liverpool Collegiate"]
[null,"Southport",{"$f":"IF(ISBLANK(B11),0,VLOOKUP(B11,Pool_A_Results_Table,VLOOKUP(L11,Pool_A_Offsets_Table,6)))","v":0},{"$f":"IF(ISBLANK(B11),0,VLOOKUP(B11,Pool_A_Results_Table,VLOOKUP(L11,Pool_A_Offsets_Table,5)))","v":0},35,{"$f":"IF(ISBLANK(B11),\"\",VLOOKUP(B11,Pool_A_Results_Table,VLOOKUP(L11,Pool_A_Offsets_Table,3)))","v":0},{"$f":"IF(ISBLANK(B11),\"\",IF(VLOOKUP(B11,Pool_A_Results_Table,VLOOKUP(L11,Pool_A_Offsets_Table,8))=0,\"v\",VLOOKUP(B11,Pool_A_Results_Table,VLOOKUP(L11,Pool_A_Offsets_Table,8))))","v":"v"},{"$f":"IF(ISBLANK(B11),\"\",VLOOKUP(B11,Pool_A_Results_Table,VLOOKUP(L11,Pool_A_Offsets_Table,9)))","v":5},{"$f":"IF(ISBLANK(B11),\"\",VLOOKUP(B11,Pool_A_Results_Table,VLOOKUP(L11,Pool_A_Offsets_Table,10)))","v":0},{"$f":"IF(ISBLANK(B11),0,VLOOKUP(B11,Pool_A_Results_Table,VLOOKUP(L11,Pool_A_Offsets_Table,12)))","v":0},{"$f":"IF(ISBLANK(B11),0,VLOOKUP(B11,Pool_A_Results_Table,VLOOKUP(L11,Pool_A_Offsets_Table,13)))","v":0},"Rochdale"]
[null,null,{"$f":"IF(ISBLANK(B12),0,VLOOKUP(B12,Pool_A_Results_Table,VLOOKUP(L12,Pool_A_Offsets_Table,6)))","v":0},{"$f":"IF(ISBLANK(B12),0,VLOOKUP(B12,Pool_A_Results_Table,VLOOKUP(L12,Pool_A_Offsets_Table,5)))","v":0},"",{"$f":"IF(ISBLANK(B12),\"\",VLOOKUP(B12,Pool_A_Results_Table,VLOOKUP(L12,Pool_A_Offsets_Table,3)))","v":""},{"$f":"IF(ISBLANK(B12),\"\",IF(VLOOKUP(B12,Pool_A_Results_Table,VLOOKUP(L12,Pool_A_Offsets_Table,8))=0,\"v\",VLOOKUP(B12,Pool_A_Results_Table,VLOOKUP(L12,Pool_A_Offsets_Table,8))))","v":""},{"$f":"IF(ISBLANK(B12),\"\",VLOOKUP(B12,Pool_A_Results_Table,VLOOKUP(L12,Pool_A_Offsets_Table,9)))","v":""},{"$f":"IF(ISBLANK(B12),\"\",VLOOKUP(B12,Pool_A_Results_Table,VLOOKUP(L12,Pool_A_Offsets_Table,10)))","v":""},{"$f":"IF(ISBLANK(B12),0,VLOOKUP(B12,Pool_A_Results_Table,VLOOKUP(L12,Pool_A_Offsets_Table,12)))","v":0},{"$f":"IF(ISBLANK(B12),0,VLOOKUP(B12,Pool_A_Results_Table,VLOOKUP(L12,Pool_A_Offsets_Table,13)))","v":0}]
[]
["Pool B"]
[]
[null,"Sefton",{"$f":"IF(ISBLANK(B16),0,VLOOKUP(B16,Pool_B_Results_Table,VLOOKUP(L16,Pool_B_Offsets_Table,6)))","v":0},{"$f":"IF(ISBLANK(B16),0,VLOOKUP(B16,Pool_B_Results_Table,VLOOKUP(L16,Pool_B_Offsets_Table,5)))","v":0},{"$f":"IF(ISBLANK(B16),\"\",VLOOKUP(B16,Pool_B_Results_Table,VLOOKUP(L16,Pool_B_Offsets_Table,2)))","v":0},{"$f":"IF(ISBLANK(B16),\"\",VLOOKUP(B16,Pool_B_Results_Table,VLOOKUP(L16,Pool_B_Offsets_Table,3)))","v":0},{"$f":"IF(ISBLANK(B16),\"\",IF(VLOOKUP(B16,Pool_B_Results_Table,VLOOKUP(L16,Pool_B_Offsets_Table,8))=0,\"v\",VLOOKUP(B16,Pool_B_Results_Table,VLOOKUP(L16,Pool_B_Offsets_Table,8))))","v":"v"},{"$f":"IF(ISBLANK(B16),\"\",VLOOKUP(B16,Pool_B_Results_Table,VLOOKUP(L16,Pool_B_Offsets_Table,9)))","v":"w/o"},{"$f":"IF(ISBLANK(B16),\"\",VLOOKUP(B16,Pool_B_Results_Table,VLOOKUP(L16,Pool_B_Offsets_Table,10)))","v":0},{"$f":"IF(ISBLANK(B16),0,VLOOKUP(B16,Pool_B_Results_Table,VLOOKUP(L16,Pool_B_Offsets_Table,12)))","v":0},{"$f":"IF(ISBLANK(B16),0,VLOOKUP(B16,Pool_B_Results_Table,VLOOKUP(L16,Pool_B_Offsets_Table,13)))","v":0},"Vale of Lune"]
[null,"Blackburn",{"$f":"IF(ISBLANK(B17),0,VLOOKUP(B17,Pool_B_Results_Table,VLOOKUP(L17,Pool_B_Offsets_Table,6)))","v":0},{"$f":"IF(ISBLANK(B17),0,VLOOKUP(B17,Pool_B_Results_Table,VLOOKUP(L17,Pool_B_Offsets_Table,5)))","v":0},{"$f":"IF(ISBLANK(B17),\"\",VLOOKUP(B17,Pool_B_Results_Table,VLOOKUP(L17,Pool_B_Offsets_Table,2)))","v":32},{"$f":"IF(ISBLANK(B17),\"\",VLOOKUP(B17,Pool_B_Results_Table,VLOOKUP(L17,Pool_B_Offsets_Table,3)))","v":0},{"$f":"IF(ISBLANK(B17),\"\",IF(VLOOKUP(B17,Pool_B_Results_Table,VLOOKUP(L17,Pool_B_Offsets_Table,8))=0,\"v\",VLOOKUP(B17,Pool_B_Results_Table,VLOOKUP(L17,Pool_B_Offsets_Table,8))))","v":"v"},{"$f":"IF(ISBLANK(B17),\"\",VLOOKUP(B17,Pool_B_Results_Table,VLOOKUP(L17,Pool_B_Offsets_Table,9)))","v":10},{"$f":"IF(ISBLANK(B17),\"\",VLOOKUP(B17,Pool_B_Results_Table,VLOOKUP(L17,Pool_B_Offsets_Table,10)))","v":0},{"$f":"IF(ISBLANK(B17),0,VLOOKUP(B17,Pool_B_Results_Table,VLOOKUP(L17,Pool_B_Offsets_Table,12)))","v":0},{"$f":"IF(ISBLANK(B17),0,VLOOKUP(B17,Pool_B_Results_Table,VLOOKUP(L17,Pool_B_Offsets_Table,13)))","v":0},"Ormskirk"]
[null,"Eccles",{"$f":"IF(ISBLANK(B18),0,VLOOKUP(B18,Pool_B_Results_Table,VLOOKUP(L18,Pool_B_Offsets_Table,6)))","v":0},{"$f":"IF(ISBLANK(B18),0,VLOOKUP(B18,Pool_B_Results_Table,VLOOKUP(L18,Pool_B_Offsets_Table,5)))","v":0},{"$f":"IF(ISBLANK(B18),\"\",VLOOKUP(B18,Pool_B_Results_Table,VLOOKUP(L18,Pool_B_Offsets_Table,2)))","v":26},{"$f":"IF(ISBLANK(B18),\"\",VLOOKUP(B18,Pool_B_Results_Table,VLOOKUP(L18,Pool_B_Offsets_Table,3)))","v":0},{"$f":"IF(ISBLANK(B18),\"\",IF(VLOOKUP(B18,Pool_B_Results_Table,VLOOKUP(L18,Pool_B_Offsets_Table,8))=0,\"v\",VLOOKUP(B18,Pool_B_Results_Table,VLOOKUP(L18,Pool_B_Offsets_Table,8))))","v":"v"},{"$f":"IF(ISBLANK(B18),\"\",VLOOKUP(B18,Pool_B_Results_Table,VLOOKUP(L18,Pool_B_Offsets_Table,9)))","v":38},{"$f":"IF(ISBLANK(B18),\"\",VLOOKUP(B18,Pool_B_Results_Table,VLOOKUP(L18,Pool_B_Offsets_Table,10)))","v":0},{"$f":"IF(ISBLANK(B18),0,VLOOKUP(B18,Pool_B_Results_Table,VLOOKUP(L18,Pool_B_Offsets_Table,12)))","v":0},{"$f":"IF(ISBLANK(B18),0,VLOOKUP(B18,Pool_B_Results_Table,VLOOKUP(L18,Pool_B_Offsets_Table,13)))","v":0},"Bolton"]
[null,null,{"$f":"IF(ISBLANK(B19),0,VLOOKUP(B19,Pool_B_Results_Table,VLOOKUP(L19,Pool_B_Offsets_Table,6)))","v":0},{"$f":"IF(ISBLANK(B19),0,VLOOKUP(B19,Pool_B_Results_Table,VLOOKUP(L19,Pool_B_Offsets_Table,5)))","v":0},{"$f":"IF(ISBLANK(B19),\"\",VLOOKUP(B19,Pool_B_Results_Table,VLOOKUP(L19,Pool_B_Offsets_Table,2)))","v":""},{"$f":"IF(ISBLANK(B19),\"\",VLOOKUP(B19,Pool_B_Results_Table,VLOOKUP(L19,Pool_B_Offsets_Table,3)))","v":""},{"$f":"IF(ISBLANK(B19),\"\",IF(VLOOKUP(B19,Pool_B_Results_Table,VLOOKUP(L19,Pool_B_Offsets_Table,8))=0,\"v\",VLOOKUP(B19,Pool_B_Results_Table,VLOOKUP(L19,Pool_B_Offsets_Table,8))))","v":""},{"$f":"IF(ISBLANK(B19),\"\",VLOOKUP(B19,Pool_B_Results_Table,VLOOKUP(L19,Pool_B_Offsets_Table,9)))","v":""},{"$f":"IF(ISBLANK(B19),\"\",VLOOKUP(B19,Pool_B_Results_Table,VLOOKUP(L19,Pool_B_Offsets_Table,10)))","v":""},{"$f":"IF(ISBLANK(B19),0,VLOOKUP(B19,Pool_B_Results_Table,VLOOKUP(L19,Pool_B_Offsets_Table,12)))","v":0},{"$f":"IF(ISBLANK(B19),0,VLOOKUP(B19,Pool_B_Results_Table,VLOOKUP(L19,Pool_B_Offsets_Table,13)))","v":0}]
[]
["Pool C"]
[]
[null,"Heaton Moor",{"$f":"IF(ISBLANK(B23),0,VLOOKUP(B23,Pool_C_Results_Table,VLOOKUP(L23,Pool_C_Offsets_Table,6)))","v":0},{"$f":"IF(ISBLANK(B23),0,VLOOKUP(B23,Pool_C_Results_Table,VLOOKUP(L23,Pool_C_Offsets_Table,5)))","v":0},{"$f":"IF(ISBLANK(B23),\"\",VLOOKUP(B23,Pool_C_Results_Table,VLOOKUP(L23,Pool_C_Offsets_Table,2)))","v":5},{"$f":"IF(ISBLANK(B23),\"\",VLOOKUP(B23,Pool_C_Results_Table,VLOOKUP(L23,Pool_C_Offsets_Table,3)))","v":0},{"$f":"IF(ISBLANK(B23),\"\",IF(VLOOKUP(B23,Pool_C_Results_Table,VLOOKUP(L23,Pool_C_Offsets_Table,8))=0,\"v\",VLOOKUP(B23,Pool_C_Results_Table,VLOOKUP(L23,Pool_C_Offsets_Table,8))))","v":"v"},{"$f":"IF(ISBLANK(B23),\"\",VLOOKUP(B23,Pool_C_Results_Table,VLOOKUP(L23,Pool_C_Offsets_Table,9)))","v":35},{"$f":"IF(ISBLANK(B23),\"\",VLOOKUP(B23,Pool_C_Results_Table,VLOOKUP(L23,Pool_C_Offsets_Table,10)))","v":0},{"$f":"IF(ISBLANK(B23),0,VLOOKUP(B23,Pool_C_Results_Table,VLOOKUP(L23,Pool_C_Offsets_Table,12)))","v":0},{"$f":"IF(ISBLANK(B23),0,VLOOKUP(B23,Pool_C_Results_Table,VLOOKUP(L23,Pool_C_Offsets_Table,13)))","v":0},"Preston Grasshoppers"]
[null,"West Park",{"$f":"IF(ISBLANK(B24),0,VLOOKUP(B24,Pool_C_Results_Table,VLOOKUP(L24,Pool_C_Offsets_Table,6)))","v":0},{"$f":"IF(ISBLANK(B24),0,VLOOKUP(B24,Pool_C_Results_Table,VLOOKUP(L24,Pool_C_Offsets_Table,5)))","v":0},{"$f":"IF(ISBLANK(B24),\"\",VLOOKUP(B24,Pool_C_Results_Table,VLOOKUP(L24,Pool_C_Offsets_Table,2)))","v":0},{"$f":"IF(ISBLANK(B24),\"\",VLOOKUP(B24,Pool_C_Results_Table,VLOOKUP(L24,Pool_C_Offsets_Table,3)))","v":0},{"$f":"IF(ISBLANK(B24),\"\",IF(VLOOKUP(B24,Pool_C_Results_Table,VLOOKUP(L24,Pool_C_Offsets_Table,8))=0,\"v\",VLOOKUP(B24,Pool_C_Results_Table,VLOOKUP(L24,Pool_C_Offsets_Table,8))))","v":"v"},{"$f":"IF(ISBLANK(B24),\"\",VLOOKUP(B24,Pool_C_Results_Table,VLOOKUP(L24,Pool_C_Offsets_Table,9)))","v":"w/o"},{"$f":"IF(ISBLANK(B24),\"\",VLOOKUP(B24,Pool_C_Results_Table,VLOOKUP(L24,Pool_C_Offsets_Table,10)))","v":0},{"$f":"IF(ISBLANK(B24),0,VLOOKUP(B24,Pool_C_Results_Table,VLOOKUP(L24,Pool_C_Offsets_Table,12)))","v":0},{"$f":"IF(ISBLANK(B24),0,VLOOKUP(B24,Pool_C_Results_Table,VLOOKUP(L24,Pool_C_Offsets_Table,13)))","v":0},"Sedgley Park"]
[null,"Clitheroe",{"$f":"IF(ISBLANK(B25),0,VLOOKUP(B25,Pool_C_Results_Table,VLOOKUP(L25,Pool_C_Offsets_Table,6)))","v":0},{"$f":"IF(ISBLANK(B25),0,VLOOKUP(B25,Pool_C_Results_Table,VLOOKUP(L25,Pool_C_Offsets_Table,5)))","v":0},{"$f":"IF(ISBLANK(B25),\"\",VLOOKUP(B25,Pool_C_Results_Table,VLOOKUP(L25,Pool_C_Offsets_Table,2)))","v":0},{"$f":"IF(ISBLANK(B25),\"\",VLOOKUP(B25,Pool_C_Results_Table,VLOOKUP(L25,Pool_C_Offsets_Table,3)))","v":0},{"$f":"IF(ISBLANK(B25),\"\",IF(VLOOKUP(B25,Pool_C_Results_Table,VLOOKUP(L25,Pool_C_Offsets_Table,8))=0,\"v\",VLOOKUP(B25,Pool_C_Results_Table,VLOOKUP(L25,Pool_C_Offsets_Table,8))))","v":"v"},{"$f":"IF(ISBLANK(B25),\"\",VLOOKUP(B25,Pool_C_Results_Table,VLOOKUP(L25,Pool_C_Offsets_Table,9)))","v":30},{"$f":"IF(ISBLANK(B25),\"\",VLOOKUP(B25,Pool_C_Results_Table,VLOOKUP(L25,Pool_C_Offsets_Table,10)))","v":0},{"$f":"IF(ISBLANK(B25),0,VLOOKUP(B25,Pool_C_Results_Table,VLOOKUP(L25,Pool_C_Offsets_Table,12)))","v":0},{"$f":"IF(ISBLANK(B25),0,VLOOKUP(B25,Pool_C_Results_Table,VLOOKUP(L25,Pool_C_Offsets_Table,13)))","v":0},"Rossendale"]
[null,null,{"$f":"IF(ISBLANK(B26),0,VLOOKUP(B26,Pool_C_Results_Table,VLOOKUP(L26,Pool_C_Offsets_Table,6)))","v":0},{"$f":"IF(ISBLANK(B26),0,VLOOKUP(B26,Pool_C_Results_Table,VLOOKUP(L26,Pool_C_Offsets_Table,5)))","v":0},{"$f":"IF(ISBLANK(B26),\"\",VLOOKUP(B26,Pool_C_Results_Table,VLOOKUP(L26,Pool_C_Offsets_Table,2)))","v":""},{"$f":"IF(ISBLANK(B26),\"\",VLOOKUP(B26,Pool_C_Results_Table,VLOOKUP(L26,Pool_C_Offsets_Table,3)))","v":""},{"$f":"IF(ISBLANK(B26),\"\",IF(VLOOKUP(B26,Pool_C_Results_Table,VLOOKUP(L26,Pool_C_Offsets_Table,8))=0,\"v\",VLOOKUP(B26,Pool_C_Results_Table,VLOOKUP(L26,Pool_C_Offsets_Table,8))))","v":""},{"$f":"IF(ISBLANK(B26),\"\",VLOOKUP(B26,Pool_C_Results_Table,VLOOKUP(L26,Pool_C_Offsets_Table,9)))","v":""},{"$f":"IF(ISBLANK(B26),\"\",VLOOKUP(B26,Pool_C_Results_Table,VLOOKUP(L26,Pool_C_Offsets_Table,10)))","v":""},{"$f":"IF(ISBLANK(B26),0,VLOOKUP(B26,Pool_C_Results_Table,VLOOKUP(L26,Pool_C_Offsets_Table,12)))","v":0},{"$f":"IF(ISBLANK(B26),0,VLOOKUP(B26,Pool_C_Results_Table,VLOOKUP(L26,Pool_C_Offsets_Table,13)))","v":0}]
[]
["Pool D"]
[]
[null,"Bury",{"$f":"IF(ISBLANK(B30),0,VLOOKUP(B30,Pool_D_Results_Table,VLOOKUP(L30,Pool_D_Offsets_Table,6)))","v":0},{"$f":"IF(ISBLANK(B30),0,VLOOKUP(B30,Pool_D_Results_Table,VLOOKUP(L30,Pool_D_Offsets_Table,5)))","v":0},{"$f":"IF(ISBLANK(B30),\"\",VLOOKUP(B30,Pool_D_Results_Table,VLOOKUP(L30,Pool_D_Offsets_Table,2)))","v":0},{"$f":"IF(ISBLANK(B30),\"\",VLOOKUP(B30,Pool_D_Results_Table,VLOOKUP(L30,Pool_D_Offsets_Table,3)))","v":0},{"$f":"IF(ISBLANK(B30),\"\",IF(VLOOKUP(B30,Pool_D_Results_Table,VLOOKUP(L30,Pool_D_Offsets_Table,8))=0,\"v\",VLOOKUP(B30,Pool_D_Results_Table,VLOOKUP(L30,Pool_D_Offsets_Table,8))))","v":"v"},{"$f":"IF(ISBLANK(B30),\"\",VLOOKUP(B30,Pool_D_Results_Table,VLOOKUP(L30,Pool_D_Offsets_Table,9)))","v":30},{"$f":"IF(ISBLANK(B30),\"\",VLOOKUP(B30,Pool_D_Results_Table,VLOOKUP(L30,Pool_D_Offsets_Table,10)))","v":0},{"$f":"IF(ISBLANK(B30),0,VLOOKUP(B30,Pool_D_Results_Table,VLOOKUP(L30,Pool_D_Offsets_Table,12)))","v":0},{"$f":"IF(ISBLANK(B30),0,VLOOKUP(B30,Pool_D_Results_Table,VLOOKUP(L30,Pool_D_Offsets_Table,13)))","v":0},"Waterloo"]
[null,"Burnley",{"$f":"IF(ISBLANK(B31),0,VLOOKUP(B31,Pool_D_Results_Table,VLOOKUP(L31,Pool_D_Offsets_Table,6)))","v":0},{"$f":"IF(ISBLANK(B31),0,VLOOKUP(B31,Pool_D_Results_Table,VLOOKUP(L31,Pool_D_Offsets_Table,5)))","v":0},{"$f":"IF(ISBLANK(B31),\"\",VLOOKUP(B31,Pool_D_Results_Table,VLOOKUP(L31,Pool_D_Offsets_Table,2)))","v":"w/o"},{"$f":"IF(ISBLANK(B31),\"\",VLOOKUP(B31,Pool_D_Results_Table,VLOOKUP(L31,Pool_D_Offsets_Table,3)))","v":0},{"$f":"IF(ISBLANK(B31),\"\",IF(VLOOKUP(B31,Pool_D_Results_Table,VLOOKUP(L31,Pool_D_Offsets_Table,8))=0,\"v\",VLOOKUP(B31,Pool_D_Results_Table,VLOOKUP(L31,Pool_D_Offsets_Table,8))))","v":"v"},{"$f":"IF(ISBLANK(B31),\"\",VLOOKUP(B31,Pool_D_Results_Table,VLOOKUP(L31,Pool_D_Offsets_Table,9)))","v":0},{"$f":"IF(ISBLANK(B31),\"\",VLOOKUP(B31,Pool_D_Results_Table,VLOOKUP(L31,Pool_D_Offsets_Table,10)))","v":0},{"$f":"IF(ISBLANK(B31),0,VLOOKUP(B31,Pool_D_Results_Table,VLOOKUP(L31,Pool_D_Offsets_Table,12)))","v":0},{"$f":"IF(ISBLANK(B31),0,VLOOKUP(B31,Pool_D_Results_Table,VLOOKUP(L31,Pool_D_Offsets_Table,13)))","v":0},"Liverpool St Helens"]
[null,"Didsbury Toc H",{"$f":"IF(ISBLANK(B32),0,VLOOKUP(B32,Pool_D_Results_Table,VLOOKUP(L32,Pool_D_Offsets_Table,6)))","v":0},{"$f":"IF(ISBLANK(B32),0,VLOOKUP(B32,Pool_D_Results_Table,VLOOKUP(L32,Pool_D_Offsets_Table,5)))","v":0},{"$f":"IF(ISBLANK(B32),\"\",VLOOKUP(B32,Pool_D_Results_Table,VLOOKUP(L32,Pool_D_Offsets_Table,2)))","v":"w/o"},{"$f":"IF(ISBLANK(B32),\"\",VLOOKUP(B32,Pool_D_Results_Table,VLOOKUP(L32,Pool_D_Offsets_Table,3)))","v":0},{"$f":"IF(ISBLANK(B32),\"\",IF(VLOOKUP(B32,Pool_D_Results_Table,VLOOKUP(L32,Pool_D_Offsets_Table,8))=0,\"v\",VLOOKUP(B32,Pool_D_Results_Table,VLOOKUP(L32,Pool_D_Offsets_Table,8))))","v":"v"},{"$f":"IF(ISBLANK(B32),\"\",VLOOKUP(B32,Pool_D_Results_Table,VLOOKUP(L32,Pool_D_Offsets_Table,9)))","v":0},{"$f":"IF(ISBLANK(B32),\"\",VLOOKUP(B32,Pool_D_Results_Table,VLOOKUP(L32,Pool_D_Offsets_Table,10)))","v":0},{"$f":"IF(ISBLANK(B32),0,VLOOKUP(B32,Pool_D_Results_Table,VLOOKUP(L32,Pool_D_Offsets_Table,12)))","v":0},{"$f":"IF(ISBLANK(B32),0,VLOOKUP(B32,Pool_D_Results_Table,VLOOKUP(L32,Pool_D_Offsets_Table,13)))","v":0},"Orrell"]
[null,null,{"$f":"IF(ISBLANK(B33),0,VLOOKUP(B33,Pool_D_Results_Table,VLOOKUP(L33,Pool_D_Offsets_Table,6)))","v":0},{"$f":"IF(ISBLANK(B33),0,VLOOKUP(B33,Pool_D_Results_Table,VLOOKUP(L33,Pool_D_Offsets_Table,5)))","v":0},{"$f":"IF(ISBLANK(B33),\"\",VLOOKUP(B33,Pool_D_Results_Table,VLOOKUP(L33,Pool_D_Offsets_Table,2)))","v":""},{"$f":"IF(ISBLANK(B33),\"\",VLOOKUP(B33,Pool_D_Results_Table,VLOOKUP(L33,Pool_D_Offsets_Table,3)))","v":""},{"$f":"IF(ISBLANK(B33),\"\",IF(VLOOKUP(B33,Pool_D_Results_Table,VLOOKUP(L33,Pool_D_Offsets_Table,8))=0,\"v\",VLOOKUP(B33,Pool_D_Results_Table,VLOOKUP(L33,Pool_D_Offsets_Table,8))))","v":""},{"$f":"IF(ISBLANK(B33),\"\",VLOOKUP(B33,Pool_D_Results_Table,VLOOKUP(L33,Pool_D_Offsets_Table,9)))","v":""},{"$f":"IF(ISBLANK(B33),\"\",VLOOKUP(B33,Pool_D_Results_Table,VLOOKUP(L33,Pool_D_Offsets_Table,10)))","v":""},{"$f":"IF(ISBLANK(B33),0,VLOOKUP(B33,Pool_D_Results_Table,VLOOKUP(L33,Pool_D_Offsets_Table,12)))","v":0},{"$f":"IF(ISBLANK(B33),0,VLOOKUP(B33,Pool_D_Results_Table,VLOOKUP(L33,Pool_D_Offsets_Table,13)))","v":0}]
[]
["MATCH DAY TWO",null,null,null,null,null,null,null,null,null,null,"2015-10-18"]
[]
["Pool A"]
[]
[null,"Manchester",{"$f":"IF(ISBLANK(B39),0,VLOOKUP(B39,Pool_A_Results_Table,VLOOKUP(L39,Pool_A_Offsets_Table,6)))","v":0},{"$f":"IF(ISBLANK(B39),0,VLOOKUP(B39,Pool_A_Results_Table,VLOOKUP(L39,Pool_A_Offsets_Table,5)))","v":0},{"$f":"IF(ISBLANK(B39),\"\",VLOOKUP(B39,Pool_A_Results_Table,VLOOKUP(L39,Pool_A_Offsets_Table,2)))","v":30},{"$f":"IF(ISBLANK(B39),\"\",VLOOKUP(B39,Pool_A_Results_Table,VLOOKUP(L39,Pool_A_Offsets_Table,3)))","v":0},{"$f":"IF(ISBLANK(B39),\"\",IF(VLOOKUP(B39,Pool_A_Results_Table,VLOOKUP(L39,Pool_A_Offsets_Table,8))=0,\"v\",VLOOKUP(B39,Pool_A_Results_Table,VLOOKUP(L39,Pool_A_Offsets_Table,8))))","v":"v"},{"$f":"IF(ISBLANK(B39),\"\",VLOOKUP(B39,Pool_A_Results_Table,VLOOKUP(L39,Pool_A_Offsets_Table,9)))","v":0},{"$f":"IF(ISBLANK(B39),\"\",VLOOKUP(B39,Pool_A_Results_Table,VLOOKUP(L39,Pool_A_Offsets_Table,10)))","v":0},{"$f":"IF(ISBLANK(B39),0,VLOOKUP(B39,Pool_A_Results_Table,VLOOKUP(L39,Pool_A_Offsets_Table,12)))","v":0},{"$f":"IF(ISBLANK(B39),0,VLOOKUP(B39,Pool_A_Results_Table,VLOOKUP(L39,Pool_A_Offsets_Table,13)))","v":0},"Ashton-u-Lyne"]
[null,"Liverpool Collegiate",{"$f":"IF(ISBLANK(B40),0,VLOOKUP(B40,Pool_A_Results_Table,VLOOKUP(L40,Pool_A_Offsets_Table,6)))","v":0},{"$f":"IF(ISBLANK(B40),0,VLOOKUP(B40,Pool_A_Results_Table,VLOOKUP(L40,Pool_A_Offsets_Table,5)))","v":0},17,{"$f":"IF(ISBLANK(B40),\"\",VLOOKUP(B40,Pool_A_Results_Table,VLOOKUP(L40,Pool_A_Offsets_Table,3)))","v":0},{"$f":"IF(ISBLANK(B40),\"\",IF(VLOOKUP(B40,Pool_A_Results_Table,VLOOKUP(L40,Pool_A_Offsets_Table,8))=0,\"v\",VLOOKUP(B40,Pool_A_Results_Table,VLOOKUP(L40,Pool_A_Offsets_Table,8))))","v":"v"},{"$f":"IF(ISBLANK(B40),\"\",VLOOKUP(B40,Pool_A_Results_Table,VLOOKUP(L40,Pool_A_Offsets_Table,9)))","v":3},{"$f":"IF(ISBLANK(B40),\"\",VLOOKUP(B40,Pool_A_Results_Table,VLOOKUP(L40,Pool_A_Offsets_Table,10)))","v":0},{"$f":"IF(ISBLANK(B40),0,VLOOKUP(B40,Pool_A_Results_Table,VLOOKUP(L40,Pool_A_Offsets_Table,12)))","v":0},{"$f":"IF(ISBLANK(B40),0,VLOOKUP(B40,Pool_A_Results_Table,VLOOKUP(L40,Pool_A_Offsets_Table,13)))","v":0},"Fylde"]
[null,null,{"$f":"IF(ISBLANK(B41),0,VLOOKUP(B41,Pool_A_Results_Table,VLOOKUP(L41,Pool_A_Offsets_Table,6)))","v":0},{"$f":"IF(ISBLANK(B41),0,VLOOKUP(B41,Pool_A_Results_Table,VLOOKUP(L41,Pool_A_Offsets_Table,5)))","v":0},"",{"$f":"IF(ISBLANK(B41),\"\",VLOOKUP(B41,Pool_A_Results_Table,VLOOKUP(L41,Pool_A_Offsets_Table,3)))","v":""},{"$f":"IF(ISBLANK(B41),\"\",IF(VLOOKUP(B41,Pool_A_Results_Table,VLOOKUP(L41,Pool_A_Offsets_Table,8))=0,\"v\",VLOOKUP(B41,Pool_A_Results_Table,VLOOKUP(L41,Pool_A_Offsets_Table,8))))","v":""},{"$f":"IF(ISBLANK(B41),\"\",VLOOKUP(B41,Pool_A_Results_Table,VLOOKUP(L41,Pool_A_Offsets_Table,9)))","v":""},{"$f":"IF(ISBLANK(B41),\"\",VLOOKUP(B41,Pool_A_Results_Table,VLOOKUP(L41,Pool_A_Offsets_Table,10)))","v":""},{"$f":"IF(ISBLANK(B41),0,VLOOKUP(B41,Pool_A_Results_Table,VLOOKUP(L41,Pool_A_Offsets_Table,12)))","v":0},{"$f":"IF(ISBLANK(B41),0,VLOOKUP(B41,Pool_A_Results_Table,VLOOKUP(L41,Pool_A_Offsets_Table,13)))","v":0}]
[null,null,{"$f":"IF(ISBLANK(B42),0,VLOOKUP(B42,Pool_A_Results_Table,VLOOKUP(L42,Pool_A_Offsets_Table,6)))","v":0},{"$f":"IF(ISBLANK(B42),0,VLOOKUP(B42,Pool_A_Results_Table,VLOOKUP(L42,Pool_A_Offsets_Table,5)))","v":0},"",{"$f":"IF(ISBLANK(B42),\"\",VLOOKUP(B42,Pool_A_Results_Table,VLOOKUP(L42,Pool_A_Offsets_Table,3)))","v":""},{"$f":"IF(ISBLANK(B42),\"\",IF(VLOOKUP(B42,Pool_A_Results_Table,VLOOKUP(L42,Pool_A_Offsets_Table,8))=0,\"v\",VLOOKUP(B42,Pool_A_Results_Table,VLOOKUP(L42,Pool_A_Offsets_Table,8))))","v":""},{"$f":"IF(ISBLANK(B42),\"\",VLOOKUP(B42,Pool_A_Results_Table,VLOOKUP(L42,Pool_A_Offsets_Table,9)))","v":""},{"$f":"IF(ISBLANK(B42),\"\",VLOOKUP(B42,Pool_A_Results_Table,VLOOKUP(L42,Pool_A_Offsets_Table,10)))","v":""},{"$f":"IF(ISBLANK(B42),0,VLOOKUP(B42,Pool_A_Results_Table,VLOOKUP(L42,Pool_A_Offsets_Table,12)))","v":0},{"$f":"IF(ISBLANK(B42),0,VLOOKUP(B42,Pool_A_Results_Table,VLOOKUP(L42,Pool_A_Offsets_Table,13)))","v":0}]
[]
["Pool B"]
[]
[null,"Vale of Lune",{"$f":"IF(ISBLANK(B46),0,VLOOKUP(B46,Pool_B_Results_Table,VLOOKUP(L46,Pool_B_Offsets_Table,6)))","v":0},{"$f":"IF(ISBLANK(B46),0,VLOOKUP(B46,Pool_B_Results_Table,VLOOKUP(L46,Pool_B_Offsets_Table,5)))","v":0},{"$f":"IF(ISBLANK(B46),\"\",VLOOKUP(B46,Pool_B_Results_Table,VLOOKUP(L46,Pool_B_Offsets_Table,2)))","v":22},{"$f":"IF(ISBLANK(B46),\"\",VLOOKUP(B46,Pool_B_Results_Table,VLOOKUP(L46,Pool_B_Offsets_Table,3)))","v":0},{"$f":"IF(ISBLANK(B46),\"\",IF(VLOOKUP(B46,Pool_B_Results_Table,VLOOKUP(L46,Pool_B_Offsets_Table,8))=0,\"v\",VLOOKUP(B46,Pool_B_Results_Table,VLOOKUP(L46,Pool_B_Offsets_Table,8))))","v":"v"},{"$f":"IF(ISBLANK(B46),\"\",VLOOKUP(B46,Pool_B_Results_Table,VLOOKUP(L46,Pool_B_Offsets_Table,9)))","v":12},{"$f":"IF(ISBLANK(B46),\"\",VLOOKUP(B46,Pool_B_Results_Table,VLOOKUP(L46,Pool_B_Offsets_Table,10)))","v":0},{"$f":"IF(ISBLANK(B46),0,VLOOKUP(B46,Pool_B_Results_Table,VLOOKUP(L46,Pool_B_Offsets_Table,12)))","v":0},{"$f":"IF(ISBLANK(B46),0,VLOOKUP(B46,Pool_B_Results_Table,VLOOKUP(L46,Pool_B_Offsets_Table,13)))","v":0},"Blackburn"]
[null,"Ormskirk",{"$f":"IF(ISBLANK(B47),0,VLOOKUP(B47,Pool_B_Results_Table,VLOOKUP(L47,Pool_B_Offsets_Table,6)))","v":0},{"$f":"IF(ISBLANK(B47),0,VLOOKUP(B47,Pool_B_Results_Table,VLOOKUP(L47,Pool_B_Offsets_Table,5)))","v":0},{"$f":"IF(ISBLANK(B47),\"\",VLOOKUP(B47,Pool_B_Results_Table,VLOOKUP(L47,Pool_B_Offsets_Table,2)))","v":"w/o"},{"$f":"IF(ISBLANK(B47),\"\",VLOOKUP(B47,Pool_B_Results_Table,VLOOKUP(L47,Pool_B_Offsets_Table,3)))","v":0},{"$f":"IF(ISBLANK(B47),\"\",IF(VLOOKUP(B47,Pool_B_Results_Table,VLOOKUP(L47,Pool_B_Offsets_Table,8))=0,\"v\",VLOOKUP(B47,Pool_B_Results_Table,VLOOKUP(L47,Pool_B_Offsets_Table,8))))","v":"v"},{"$f":"IF(ISBLANK(B47),\"\",VLOOKUP(B47,Pool_B_Results_Table,VLOOKUP(L47,Pool_B_Offsets_Table,9)))","v":0},{"$f":"IF(ISBLANK(B47),\"\",VLOOKUP(B47,Pool_B_Results_Table,VLOOKUP(L47,Pool_B_Offsets_Table,10)))","v":0},{"$f":"IF(ISBLANK(B47),0,VLOOKUP(B47,Pool_B_Results_Table,VLOOKUP(L47,Pool_B_Offsets_Table,12)))","v":0},{"$f":"IF(ISBLANK(B47),0,VLOOKUP(B47,Pool_B_Results_Table,VLOOKUP(L47,Pool_B_Offsets_Table,13)))","v":0},"Sefton"]
[null,null,{"$f":"IF(ISBLANK(B48),0,VLOOKUP(B48,Pool_B_Results_Table,VLOOKUP(L48,Pool_B_Offsets_Table,6)))","v":0},{"$f":"IF(ISBLANK(B48),0,VLOOKUP(B48,Pool_B_Results_Table,VLOOKUP(L48,Pool_B_Offsets_Table,5)))","v":0},{"$f":"IF(ISBLANK(B48),\"\",VLOOKUP(B48,Pool_B_Results_Table,VLOOKUP(L48,Pool_B_Offsets_Table,2)))","v":""},{"$f":"IF(ISBLANK(B48),\"\",VLOOKUP(B48,Pool_B_Results_Table,VLOOKUP(L48,Pool_B_Offsets_Table,3)))","v":""},{"$f":"IF(ISBLANK(B48),\"\",IF(VLOOKUP(B48,Pool_B_Results_Table,VLOOKUP(L48,Pool_B_Offsets_Table,8))=0,\"v\",VLOOKUP(B48,Pool_B_Results_Table,VLOOKUP(L48,Pool_B_Offsets_Table,8))))","v":""},{"$f":"IF(ISBLANK(B48),\"\",VLOOKUP(B48,Pool_B_Results_Table,VLOOKUP(L48,Pool_B_Offsets_Table,9)))","v":""},{"$f":"IF(ISBLANK(B48),\"\",VLOOKUP(B48,Pool_B_Results_Table,VLOOKUP(L48,Pool_B_Offsets_Table,10)))","v":""},{"$f":"IF(ISBLANK(B48),0,VLOOKUP(B48,Pool_B_Results_Table,VLOOKUP(L48,Pool_B_Offsets_Table,12)))","v":0},{"$f":"IF(ISBLANK(B48),0,VLOOKUP(B48,Pool_B_Results_Table,VLOOKUP(L48,Pool_B_Offsets_Table,13)))","v":0}]
[null,null,{"$f":"IF(ISBLANK(B49),0,VLOOKUP(B49,Pool_B_Results_Table,VLOOKUP(L49,Pool_B_Offsets_Table,6)))","v":0},{"$f":"IF(ISBLANK(B49),0,VLOOKUP(B49,Pool_B_Results_Table,VLOOKUP(L49,Pool_B_Offsets_Table,5)))","v":0},{"$f":"IF(ISBLANK(B49),\"\",VLOOKUP(B49,Pool_B_Results_Table,VLOOKUP(L49,Pool_B_Offsets_Table,2)))","v":""},{"$f":"IF(ISBLANK(B49),\"\",VLOOKUP(B49,Pool_B_Results_Table,VLOOKUP(L49,Pool_B_Offsets_Table,3)))","v":""},{"$f":"IF(ISBLANK(B49),\"\",IF(VLOOKUP(B49,Pool_B_Results_Table,VLOOKUP(L49,Pool_B_Offsets_Table,8))=0,\"v\",VLOOKUP(B49,Pool_B_Results_Table,VLOOKUP(L49,Pool_B_Offsets_Table,8))))","v":""},{"$f":"IF(ISBLANK(B49),\"\",VLOOKUP(B49,Pool_B_Results_Table,VLOOKUP(L49,Pool_B_Offsets_Table,9)))","v":""},{"$f":"IF(ISBLANK(B49),\"\",VLOOKUP(B49,Pool_B_Results_Table,VLOOKUP(L49,Pool_B_Offsets_Table,10)))","v":""},{"$f":"IF(ISBLANK(B49),0,VLOOKUP(B49,Pool_B_Results_Table,VLOOKUP(L49,Pool_B_Offsets_Table,12)))","v":0},{"$f":"IF(ISBLANK(B49),0,VLOOKUP(B49,Pool_B_Results_Table,VLOOKUP(L49,Pool_B_Offsets_Table,13)))","v":0}]
[]
["Pool C"]
[]
[null,"Preston Grasshoppers",{"$f":"IF(ISBLANK(B53),0,VLOOKUP(B53,Pool_C_Results_Table,VLOOKUP(L53,Pool_C_Offsets_Table,6)))","v":0},{"$f":"IF(ISBLANK(B53),0,VLOOKUP(B53,Pool_C_Results_Table,VLOOKUP(L53,Pool_C_Offsets_Table,5)))","v":0},{"$f":"IF(ISBLANK(B53),\"\",VLOOKUP(B53,Pool_C_Results_Table,VLOOKUP(L53,Pool_C_Offsets_Table,2)))","v":"w/o"},{"$f":"IF(ISBLANK(B53),\"\",VLOOKUP(B53,Pool_C_Results_Table,VLOOKUP(L53,Pool_C_Offsets_Table,3)))","v":0},{"$f":"IF(ISBLANK(B53),\"\",IF(VLOOKUP(B53,Pool_C_Results_Table,VLOOKUP(L53,Pool_C_Offsets_Table,8))=0,\"v\",VLOOKUP(B53,Pool_C_Results_Table,VLOOKUP(L53,Pool_C_Offsets_Table,8))))","v":"v"},{"$f":"IF(ISBLANK(B53),\"\",VLOOKUP(B53,Pool_C_Results_Table,VLOOKUP(L53,Pool_C_Offsets_Table,9)))","v":0},{"$f":"IF(ISBLANK(B53),\"\",VLOOKUP(B53,Pool_C_Results_Table,VLOOKUP(L53,Pool_C_Offsets_Table,10)))","v":0},{"$f":"IF(ISBLANK(B53),0,VLOOKUP(B53,Pool_C_Results_Table,VLOOKUP(L53,Pool_C_Offsets_Table,12)))","v":0},{"$f":"IF(ISBLANK(B53),0,VLOOKUP(B53,Pool_C_Results_Table,VLOOKUP(L53,Pool_C_Offsets_Table,13)))","v":0},"West Park"]
[null,"Sedgley Park",{"$f":"IF(ISBLANK(B54),0,VLOOKUP(B54,Pool_C_Results_Table,VLOOKUP(L54,Pool_C_Offsets_Table,6)))","v":0},{"$f":"IF(ISBLANK(B54),0,VLOOKUP(B54,Pool_C_Results_Table,VLOOKUP(L54,Pool_C_Offsets_Table,5)))","v":0},{"$f":"IF(ISBLANK(B54),\"\",VLOOKUP(B54,Pool_C_Results_Table,VLOOKUP(L54,Pool_C_Offsets_Table,2)))","v":0},{"$f":"IF(ISBLANK(B54),\"\",VLOOKUP(B54,Pool_C_Results_Table,VLOOKUP(L54,Pool_C_Offsets_Table,3)))","v":0},{"$f":"IF(ISBLANK(B54),\"\",IF(VLOOKUP(B54,Pool_C_Results_Table,VLOOKUP(L54,Pool_C_Offsets_Table,8))=0,\"v\",VLOOKUP(B54,Pool_C_Results_Table,VLOOKUP(L54,Pool_C_Offsets_Table,8))))","v":"v"},{"$f":"IF(ISBLANK(B54),\"\",VLOOKUP(B54,Pool_C_Results_Table,VLOOKUP(L54,Pool_C_Offsets_Table,9)))","v":30},{"$f":"IF(ISBLANK(B54),\"\",VLOOKUP(B54,Pool_C_Results_Table,VLOOKUP(L54,Pool_C_Offsets_Table,10)))","v":0},{"$f":"IF(ISBLANK(B54),0,VLOOKUP(B54,Pool_C_Results_Table,VLOOKUP(L54,Pool_C_Offsets_Table,12)))","v":0},{"$f":"IF(ISBLANK(B54),0,VLOOKUP(B54,Pool_C_Results_Table,VLOOKUP(L54,Pool_C_Offsets_Table,13)))","v":0},"Heaton Moor"]
[null,null,{"$f":"IF(ISBLANK(B55),0,VLOOKUP(B55,Pool_C_Results_Table,VLOOKUP(L55,Pool_C_Offsets_Table,6)))","v":0},{"$f":"IF(ISBLANK(B55),0,VLOOKUP(B55,Pool_C_Results_Table,VLOOKUP(L55,Pool_C_Offsets_Table,5)))","v":0},{"$f":"IF(ISBLANK(B55),\"\",VLOOKUP(B55,Pool_C_Results_Table,VLOOKUP(L55,Pool_C_Offsets_Table,2)))","v":""},{"$f":"IF(ISBLANK(B55),\"\",VLOOKUP(B55,Pool_C_Results_Table,VLOOKUP(L55,Pool_C_Offsets_Table,3)))","v":""},{"$f":"IF(ISBLANK(B55),\"\",IF(VLOOKUP(B55,Pool_C_Results_Table,VLOOKUP(L55,Pool_C_Offsets_Table,8))=0,\"v\",VLOOKUP(B55,Pool_C_Results_Table,VLOOKUP(L55,Pool_C_Offsets_Table,8))))","v":""},{"$f":"IF(ISBLANK(B55),\"\",VLOOKUP(B55,Pool_C_Results_Table,VLOOKUP(L55,Pool_C_Offsets_Table,9)))","v":""},{"$f":"IF(ISBLANK(B55),\"\",VLOOKUP(B55,Pool_C_Results_Table,VLOOKUP(L55,Pool_C_Offsets_Table,10)))","v":""},{"$f":"IF(ISBLANK(B55),0,VLOOKUP(B55,Pool_C_Results_Table,VLOOKUP(L55,Pool_C_Offsets_Table,12)))","v":0},{"$f":"IF(ISBLANK(B55),0,VLOOKUP(B55,Pool_C_Results_Table,VLOOKUP(L55,Pool_C_Offsets_Table,13)))","v":0}]
[null,null,{"$f":"IF(ISBLANK(B56),0,VLOOKUP(B56,Pool_C_Results_Table,VLOOKUP(L56,Pool_C_Offsets_Table,6)))","v":0},{"$f":"IF(ISBLANK(B56),0,VLOOKUP(B56,Pool_C_Results_Table,VLOOKUP(L56,Pool_C_Offsets_Table,5)))","v":0},{"$f":"IF(ISBLANK(B56),\"\",VLOOKUP(B56,Pool_C_Results_Table,VLOOKUP(L56,Pool_C_Offsets_Table,2)))","v":""},{"$f":"IF(ISBLANK(B56),\"\",VLOOKUP(B56,Pool_C_Results_Table,VLOOKUP(L56,Pool_C_Offsets_Table,3)))","v":""},{"$f":"IF(ISBLANK(B56),\"\",IF(VLOOKUP(B56,Pool_C_Results_Table,VLOOKUP(L56,Pool_C_Offsets_Table,8))=0,\"v\",VLOOKUP(B56,Pool_C_Results_Table,VLOOKUP(L56,Pool_C_Offsets_Table,8))))","v":""},{"$f":"IF(ISBLANK(B56),\"\",VLOOKUP(B56,Pool_C_Results_Table,VLOOKUP(L56,Pool_C_Offsets_Table,9)))","v":""},{"$f":"IF(ISBLANK(B56),\"\",VLOOKUP(B56,Pool_C_Results_Table,VLOOKUP(L56,Pool_C_Offsets_Table,10)))","v":""},{"$f":"IF(ISBLANK(B56),0,VLOOKUP(B56,Pool_C_Results_Table,VLOOKUP(L56,Pool_C_Offsets_Table,12)))","v":0},{"$f":"IF(ISBLANK(B56),0,VLOOKUP(B56,Pool_C_Results_Table,VLOOKUP(L56,Pool_C_Offsets_Table,13)))","v":0}]
[]
["Pool D"]
[]
[null,"Waterloo",{"$f":"IF(ISBLANK(B60),0,VLOOKUP(B60,Pool_D_Results_Table,VLOOKUP(L60,Pool_D_Offsets_Table,6)))","v":0},{"$f":"IF(ISBLANK(B60),0,VLOOKUP(B60,Pool_D_Results_Table,VLOOKUP(L60,Pool_D_Offsets_Table,5)))","v":0},{"$f":"IF(ISBLANK(B60),\"\",VLOOKUP(B60,Pool_D_Results_Table,VLOOKUP(L60,Pool_D_Offsets_Table,2)))","v":30},{"$f":"IF(ISBLANK(B60),\"\",VLOOKUP(B60,Pool_D_Results_Table,VLOOKUP(L60,Pool_D_Offsets_Table,3)))","v":0},{"$f":"IF(ISBLANK(B60),\"\",IF(VLOOKUP(B60,Pool_D_Results_Table,VLOOKUP(L60,Pool_D_Offsets_Table,8))=0,\"v\",VLOOKUP(B60,Pool_D_Results_Table,VLOOKUP(L60,Pool_D_Offsets_Table,8))))","v":"v"},{"$f":"IF(ISBLANK(B60),\"\",VLOOKUP(B60,Pool_D_Results_Table,VLOOKUP(L60,Pool_D_Offsets_Table,9)))","v":0},{"$f":"IF(ISBLANK(B60),\"\",VLOOKUP(B60,Pool_D_Results_Table,VLOOKUP(L60,Pool_D_Offsets_Table,10)))","v":0},{"$f":"IF(ISBLANK(B60),0,VLOOKUP(B60,Pool_D_Results_Table,VLOOKUP(L60,Pool_D_Offsets_Table,12)))","v":0},{"$f":"IF(ISBLANK(B60),0,VLOOKUP(B60,Pool_D_Results_Table,VLOOKUP(L60,Pool_D_Offsets_Table,13)))","v":0},"Burnley"]
[null,"Liverpool St Helens",{"$f":"IF(ISBLANK(B61),0,VLOOKUP(B61,Pool_D_Results_Table,VLOOKUP(L61,Pool_D_Offsets_Table,6)))","v":0},{"$f":"IF(ISBLANK(B61),0,VLOOKUP(B61,Pool_D_Results_Table,VLOOKUP(L61,Pool_D_Offsets_Table,5)))","v":0},{"$f":"IF(ISBLANK(B61),\"\",VLOOKUP(B61,Pool_D_Results_Table,VLOOKUP(L61,Pool_D_Offsets_Table,2)))","v":0},{"$f":"IF(ISBLANK(B61),\"\",VLOOKUP(B61,Pool_D_Results_Table,VLOOKUP(L61,Pool_D_Offsets_Table,3)))","v":0},{"$f":"IF(ISBLANK(B61),\"\",IF(VLOOKUP(B61,Pool_D_Results_Table,VLOOKUP(L61,Pool_D_Offsets_Table,8))=0,\"v\",VLOOKUP(B61,Pool_D_Results_Table,VLOOKUP(L61,Pool_D_Offsets_Table,8))))","v":"v"},{"$f":"IF(ISBLANK(B61),\"\",VLOOKUP(B61,Pool_D_Results_Table,VLOOKUP(L61,Pool_D_Offsets_Table,9)))","v":"w/o"},{"$f":"IF(ISBLANK(B61),\"\",VLOOKUP(B61,Pool_D_Results_Table,VLOOKUP(L61,Pool_D_Offsets_Table,10)))","v":0},{"$f":"IF(ISBLANK(B61),0,VLOOKUP(B61,Pool_D_Results_Table,VLOOKUP(L61,Pool_D_Offsets_Table,12)))","v":0},{"$f":"IF(ISBLANK(B61),0,VLOOKUP(B61,Pool_D_Results_Table,VLOOKUP(L61,Pool_D_Offsets_Table,13)))","v":0},"Bury"]
[null,null,{"$f":"IF(ISBLANK(B62),0,VLOOKUP(B62,Pool_D_Results_Table,VLOOKUP(L62,Pool_D_Offsets_Table,6)))","v":0},{"$f":"IF(ISBLANK(B62),0,VLOOKUP(B62,Pool_D_Results_Table,VLOOKUP(L62,Pool_D_Offsets_Table,5)))","v":0},{"$f":"IF(ISBLANK(B62),\"\",VLOOKUP(B62,Pool_D_Results_Table,VLOOKUP(L62,Pool_D_Offsets_Table,2)))","v":""},{"$f":"IF(ISBLANK(B62),\"\",VLOOKUP(B62,Pool_D_Results_Table,VLOOKUP(L62,Pool_D_Offsets_Table,3)))","v":""},{"$f":"IF(ISBLANK(B62),\"\",IF(VLOOKUP(B62,Pool_D_Results_Table,VLOOKUP(L62,Pool_D_Offsets_Table,8))=0,\"v\",VLOOKUP(B62,Pool_D_Results_Table,VLOOKUP(L62,Pool_D_Offsets_Table,8))))","v":""},{"$f":"IF(ISBLANK(B62),\"\",VLOOKUP(B62,Pool_D_Results_Table,VLOOKUP(L62,Pool_D_Offsets_Table,9)))","v":""},{"$f":"IF(ISBLANK(B62),\"\",VLOOKUP(B62,Pool_D_Results_Table,VLOOKUP(L62,Pool_D_Offsets_Table,10)))","v":""},{"$f":"IF(ISBLANK(B62),0,VLOOKUP(B62,Pool_D_Results_Table,VLOOKUP(L62,Pool_D_Offsets_Table,12)))","v":0},{"$f":"IF(ISBLANK(B62),0,VLOOKUP(B62,Pool_D_Results_Table,VLOOKUP(L62,Pool_D_Offsets_Table,13)))","v":0}]
[null,null,{"$f":"IF(ISBLANK(B63),0,VLOOKUP(B63,Pool_D_Results_Table,VLOOKUP(L63,Pool_D_Offsets_Table,6)))","v":0},{"$f":"IF(ISBLANK(B63),0,VLOOKUP(B63,Pool_D_Results_Table,VLOOKUP(L63,Pool_D_Offsets_Table,5)))","v":0},{"$f":"IF(ISBLANK(B63),\"\",VLOOKUP(B63,Pool_D_Results_Table,VLOOKUP(L63,Pool_D_Offsets_Table,2)))","v":""},{"$f":"IF(ISBLANK(B63),\"\",VLOOKUP(B63,Pool_D_Results_Table,VLOOKUP(L63,Pool_D_Offsets_Table,3)))","v":""},{"$f":"IF(ISBLANK(B63),\"\",IF(VLOOKUP(B63,Pool_D_Results_Table,VLOOKUP(L63,Pool_D_Offsets_Table,8))=0,\"v\",VLOOKUP(B63,Pool_D_Results_Table,VLOOKUP(L63,Pool_D_Offsets_Table,8))))","v":""},{"$f":"IF(ISBLANK(B63),\"\",VLOOKUP(B63,Pool_D_Results_Table,VLOOKUP(L63,Pool_D_Offsets_Table,9)))","v":""},{"$f":"IF(ISBLANK(B63),\"\",VLOOKUP(B63,Pool_D_Results_Table,VLOOKUP(L63,Pool_D_Offsets_Table,10)))","v":""},{"$f":"IF(ISBLANK(B63),0,VLOOKUP(B63,Pool_D_Results_Table,VLOOKUP(L63,Pool_D_Offsets_Table,12)))","v":0},{"$f":"IF(ISBLANK(B63),0,VLOOKUP(B63,Pool_D_Results_Table,VLOOKUP(L63,Pool_D_Offsets_Table,13)))","v":0}]
[]
["MATCH DAY THREE",null,null,null,null,null,null,null,null,null,null,"2015-11-15"]
[]
["Pool A"]
[]
[null,"Manchester",{"$f":"IF(ISBLANK(B69),0,VLOOKUP(B69,Pool_A_Results_Table,VLOOKUP(L69,Pool_A_Offsets_Table,6)))","v":0},{"$f":"IF(ISBLANK(B69),0,VLOOKUP(B69,Pool_A_Results_Table,VLOOKUP(L69,Pool_A_Offsets_Table,5)))","v":0},{"$f":"IF(ISBLANK(B69),\"\",VLOOKUP(B69,Pool_A_Results_Table,VLOOKUP(L69,Pool_A_Offsets_Table,2)))","v":7},{"$f":"IF(ISBLANK(B69),\"\",VLOOKUP(B69,Pool_A_Results_Table,VLOOKUP(L69,Pool_A_Offsets_Table,3)))","v":0},{"$f":"IF(ISBLANK(B69),\"\",IF(VLOOKUP(B69,Pool_A_Results_Table,VLOOKUP(L69,Pool_A_Offsets_Table,8))=0,\"v\",VLOOKUP(B69,Pool_A_Results_Table,VLOOKUP(L69,Pool_A_Offsets_Table,8))))","v":"v"},{"$f":"IF(ISBLANK(B69),\"\",VLOOKUP(B69,Pool_A_Results_Table,VLOOKUP(L69,Pool_A_Offsets_Table,9)))","v":26},{"$f":"IF(ISBLANK(B69),\"\",VLOOKUP(B69,Pool_A_Results_Table,VLOOKUP(L69,Pool_A_Offsets_Table,10)))","v":0},{"$f":"IF(ISBLANK(B69),0,VLOOKUP(B69,Pool_A_Results_Table,VLOOKUP(L69,Pool_A_Offsets_Table,12)))","v":0},{"$f":"IF(ISBLANK(B69),0,VLOOKUP(B69,Pool_A_Results_Table,VLOOKUP(L69,Pool_A_Offsets_Table,13)))","v":0},"Southport"]
[null,"Rochdale",{"$f":"IF(ISBLANK(B70),0,VLOOKUP(B70,Pool_A_Results_Table,VLOOKUP(L70,Pool_A_Offsets_Table,6)))","v":0},{"$f":"IF(ISBLANK(B70),0,VLOOKUP(B70,Pool_A_Results_Table,VLOOKUP(L70,Pool_A_Offsets_Table,5)))","v":0},19,{"$f":"IF(ISBLANK(B70),\"\",VLOOKUP(B70,Pool_A_Results_Table,VLOOKUP(L70,Pool_A_Offsets_Table,3)))","v":0},{"$f":"IF(ISBLANK(B70),\"\",IF(VLOOKUP(B70,Pool_A_Results_Table,VLOOKUP(L70,Pool_A_Offsets_Table,8))=0,\"v\",VLOOKUP(B70,Pool_A_Results_Table,VLOOKUP(L70,Pool_A_Offsets_Table,8))))","v":"v"},{"$f":"IF(ISBLANK(B70),\"\",VLOOKUP(B70,Pool_A_Results_Table,VLOOKUP(L70,Pool_A_Offsets_Table,9)))","v":24},{"$f":"IF(ISBLANK(B70),\"\",VLOOKUP(B70,Pool_A_Results_Table,VLOOKUP(L70,Pool_A_Offsets_Table,10)))","v":0},{"$f":"IF(ISBLANK(B70),0,VLOOKUP(B70,Pool_A_Results_Table,VLOOKUP(L70,Pool_A_Offsets_Table,12)))","v":1},{"$f":"IF(ISBLANK(B70),0,VLOOKUP(B70,Pool_A_Results_Table,VLOOKUP(L70,Pool_A_Offsets_Table,13)))","v":0},"Liverpool Collegiate"]
[null,null,{"$f":"IF(ISBLANK(B71),0,VLOOKUP(B71,Pool_A_Results_Table,VLOOKUP(L71,Pool_A_Offsets_Table,6)))","v":0},{"$f":"IF(ISBLANK(B71),0,VLOOKUP(B71,Pool_A_Results_Table,VLOOKUP(L71,Pool_A_Offsets_Table,5)))","v":0},"",{"$f":"IF(ISBLANK(B71),\"\",VLOOKUP(B71,Pool_A_Results_Table,VLOOKUP(L71,Pool_A_Offsets_Table,3)))","v":""},{"$f":"IF(ISBLANK(B71),\"\",IF(VLOOKUP(B71,Pool_A_Results_Table,VLOOKUP(L71,Pool_A_Offsets_Table,8))=0,\"v\",VLOOKUP(B71,Pool_A_Results_Table,VLOOKUP(L71,Pool_A_Offsets_Table,8))))","v":""},{"$f":"IF(ISBLANK(B71),\"\",VLOOKUP(B71,Pool_A_Results_Table,VLOOKUP(L71,Pool_A_Offsets_Table,9)))","v":""},{"$f":"IF(ISBLANK(B71),\"\",VLOOKUP(B71,Pool_A_Results_Table,VLOOKUP(L71,Pool_A_Offsets_Table,10)))","v":""},{"$f":"IF(ISBLANK(B71),0,VLOOKUP(B71,Pool_A_Results_Table,VLOOKUP(L71,Pool_A_Offsets_Table,12)))","v":0},{"$f":"IF(ISBLANK(B71),0,VLOOKUP(B71,Pool_A_Results_Table,VLOOKUP(L71,Pool_A_Offsets_Table,13)))","v":0}]
[null,null,{"$f":"IF(ISBLANK(B72),0,VLOOKUP(B72,Pool_A_Results_Table,VLOOKUP(L72,Pool_A_Offsets_Table,6)))","v":0},{"$f":"IF(ISBLANK(B72),0,VLOOKUP(B72,Pool_A_Results_Table,VLOOKUP(L72,Pool_A_Offsets_Table,5)))","v":0},"",{"$f":"IF(ISBLANK(B72),\"\",VLOOKUP(B72,Pool_A_Results_Table,VLOOKUP(L72,Pool_A_Offsets_Table,3)))","v":""},{"$f":"IF(ISBLANK(B72),\"\",IF(VLOOKUP(B72,Pool_A_Results_Table,VLOOKUP(L72,Pool_A_Offsets_Table,8))=0,\"v\",VLOOKUP(B72,Pool_A_Results_Table,VLOOKUP(L72,Pool_A_Offsets_Table,8))))","v":""},{"$f":"IF(ISBLANK(B72),\"\",VLOOKUP(B72,Pool_A_Results_Table,VLOOKUP(L72,Pool_A_Offsets_Table,9)))","v":""},{"$f":"IF(ISBLANK(B72),\"\",VLOOKUP(B72,Pool_A_Results_Table,VLOOKUP(L72,Pool_A_Offsets_Table,10)))","v":""},{"$f":"IF(ISBLANK(B72),0,VLOOKUP(B72,Pool_A_Results_Table,VLOOKUP(L72,Pool_A_Offsets_Table,12)))","v":0},{"$f":"IF(ISBLANK(B72),0,VLOOKUP(B72,Pool_A_Results_Table,VLOOKUP(L72,Pool_A_Offsets_Table,13)))","v":0}]
[]
["Pool B"]
[]
[null,"Vale of Lune",{"$f":"IF(ISBLANK(B76),0,VLOOKUP(B76,Pool_B_Results_Table,VLOOKUP(L76,Pool_B_Offsets_Table,6)))","v":0},{"$f":"IF(ISBLANK(B76),0,VLOOKUP(B76,Pool_B_Results_Table,VLOOKUP(L76,Pool_B_Offsets_Table,5)))","v":0},{"$f":"IF(ISBLANK(B76),\"\",VLOOKUP(B76,Pool_B_Results_Table,VLOOKUP(L76,Pool_B_Offsets_Table,2)))","v":35},{"$f":"IF(ISBLANK(B76),\"\",VLOOKUP(B76,Pool_B_Results_Table,VLOOKUP(L76,Pool_B_Offsets_Table,3)))","v":"*"},{"$f":"IF(ISBLANK(B76),\"\",IF(VLOOKUP(B76,Pool_B_Results_Table,VLOOKUP(L76,Pool_B_Offsets_Table,8))=0,\"v\",VLOOKUP(B76,Pool_B_Results_Table,VLOOKUP(L76,Pool_B_Offsets_Table,8))))","v":"v"},{"$f":"IF(ISBLANK(B76),\"\",VLOOKUP(B76,Pool_B_Results_Table,VLOOKUP(L76,Pool_B_Offsets_Table,9)))","v":5},{"$f":"IF(ISBLANK(B76),\"\",VLOOKUP(B76,Pool_B_Results_Table,VLOOKUP(L76,Pool_B_Offsets_Table,10)))","v":0},{"$f":"IF(ISBLANK(B76),0,VLOOKUP(B76,Pool_B_Results_Table,VLOOKUP(L76,Pool_B_Offsets_Table,12)))","v":0},{"$f":"IF(ISBLANK(B76),0,VLOOKUP(B76,Pool_B_Results_Table,VLOOKUP(L76,Pool_B_Offsets_Table,13)))","v":0},"Eccles"]
[null,"Bolton",{"$f":"IF(ISBLANK(B77),0,VLOOKUP(B77,Pool_B_Results_Table,VLOOKUP(L77,Pool_B_Offsets_Table,6)))","v":0},{"$f":"IF(ISBLANK(B77),0,VLOOKUP(B77,Pool_B_Results_Table,VLOOKUP(L77,Pool_B_Offsets_Table,5)))","v":0},{"$f":"IF(ISBLANK(B77),\"\",VLOOKUP(B77,Pool_B_Results_Table,VLOOKUP(L77,Pool_B_Offsets_Table,2)))","v":15},{"$f":"IF(ISBLANK(B77),\"\",VLOOKUP(B77,Pool_B_Results_Table,VLOOKUP(L77,Pool_B_Offsets_Table,3)))","v":0},{"$f":"IF(ISBLANK(B77),\"\",IF(VLOOKUP(B77,Pool_B_Results_Table,VLOOKUP(L77,Pool_B_Offsets_Table,8))=0,\"v\",VLOOKUP(B77,Pool_B_Results_Table,VLOOKUP(L77,Pool_B_Offsets_Table,8))))","v":"v"},{"$f":"IF(ISBLANK(B77),\"\",VLOOKUP(B77,Pool_B_Results_Table,VLOOKUP(L77,Pool_B_Offsets_Table,9)))","v":15},{"$f":"IF(ISBLANK(B77),\"\",VLOOKUP(B77,Pool_B_Results_Table,VLOOKUP(L77,Pool_B_Offsets_Table,10)))","v":0},{"$f":"IF(ISBLANK(B77),0,VLOOKUP(B77,Pool_B_Results_Table,VLOOKUP(L77,Pool_B_Offsets_Table,12)))","v":0},{"$f":"IF(ISBLANK(B77),0,VLOOKUP(B77,Pool_B_Results_Table,VLOOKUP(L77,Pool_B_Offsets_Table,13)))","v":0},"Ormskirk"]
[null,null,{"$f":"IF(ISBLANK(B78),0,VLOOKUP(B78,Pool_B_Results_Table,VLOOKUP(L78,Pool_B_Offsets_Table,6)))","v":0},{"$f":"IF(ISBLANK(B78),0,VLOOKUP(B78,Pool_B_Results_Table,VLOOKUP(L78,Pool_B_Offsets_Table,5)))","v":0},{"$f":"IF(ISBLANK(B78),\"\",VLOOKUP(B78,Pool_B_Results_Table,VLOOKUP(L78,Pool_B_Offsets_Table,2)))","v":""},{"$f":"IF(ISBLANK(B78),\"\",VLOOKUP(B78,Pool_B_Results_Table,VLOOKUP(L78,Pool_B_Offsets_Table,3)))","v":""},{"$f":"IF(ISBLANK(B78),\"\",IF(VLOOKUP(B78,Pool_B_Results_Table,VLOOKUP(L78,Pool_B_Offsets_Table,8))=0,\"v\",VLOOKUP(B78,Pool_B_Results_Table,VLOOKUP(L78,Pool_B_Offsets_Table,8))))","v":""},{"$f":"IF(ISBLANK(B78),\"\",VLOOKUP(B78,Pool_B_Results_Table,VLOOKUP(L78,Pool_B_Offsets_Table,9)))","v":""},{"$f":"IF(ISBLANK(B78),\"\",VLOOKUP(B78,Pool_B_Results_Table,VLOOKUP(L78,Pool_B_Offsets_Table,10)))","v":""},{"$f":"IF(ISBLANK(B78),0,VLOOKUP(B78,Pool_B_Results_Table,VLOOKUP(L78,Pool_B_Offsets_Table,12)))","v":0},{"$f":"IF(ISBLANK(B78),0,VLOOKUP(B78,Pool_B_Results_Table,VLOOKUP(L78,Pool_B_Offsets_Table,13)))","v":0}]
[null,null,{"$f":"IF(ISBLANK(B79),0,VLOOKUP(B79,Pool_B_Results_Table,VLOOKUP(L79,Pool_B_Offsets_Table,6)))","v":0},{"$f":"IF(ISBLANK(B79),0,VLOOKUP(B79,Pool_B_Results_Table,VLOOKUP(L79,Pool_B_Offsets_Table,5)))","v":0},{"$f":"IF(ISBLANK(B79),\"\",VLOOKUP(B79,Pool_B_Results_Table,VLOOKUP(L79,Pool_B_Offsets_Table,2)))","v":""},{"$f":"IF(ISBLANK(B79),\"\",VLOOKUP(B79,Pool_B_Results_Table,VLOOKUP(L79,Pool_B_Offsets_Table,3)))","v":""},{"$f":"IF(ISBLANK(B79),\"\",IF(VLOOKUP(B79,Pool_B_Results_Table,VLOOKUP(L79,Pool_B_Offsets_Table,8))=0,\"v\",VLOOKUP(B79,Pool_B_Results_Table,VLOOKUP(L79,Pool_B_Offsets_Table,8))))","v":""},{"$f":"IF(ISBLANK(B79),\"\",VLOOKUP(B79,Pool_B_Results_Table,VLOOKUP(L79,Pool_B_Offsets_Table,9)))","v":""},{"$f":"IF(ISBLANK(B79),\"\",VLOOKUP(B79,Pool_B_Results_Table,VLOOKUP(L79,Pool_B_Offsets_Table,10)))","v":""},{"$f":"IF(ISBLANK(B79),0,VLOOKUP(B79,Pool_B_Results_Table,VLOOKUP(L79,Pool_B_Offsets_Table,12)))","v":0},{"$f":"IF(ISBLANK(B79),0,VLOOKUP(B79,Pool_B_Results_Table,VLOOKUP(L79,Pool_B_Offsets_Table,13)))","v":0}]
[]
["Pool C"]
[]
[null,"Preston Grasshoppers",{"$f":"IF(ISBLANK(B83),0,VLOOKUP(B83,Pool_C_Results_Table,VLOOKUP(L83,Pool_C_Offsets_Table,6)))","v":0},{"$f":"IF(ISBLANK(B83),0,VLOOKUP(B83,Pool_C_Results_Table,VLOOKUP(L83,Pool_C_Offsets_Table,5)))","v":0},{"$f":"IF(ISBLANK(B83),\"\",VLOOKUP(B83,Pool_C_Results_Table,VLOOKUP(L83,Pool_C_Offsets_Table,2)))","v":"w/o"},{"$f":"IF(ISBLANK(B83),\"\",VLOOKUP(B83,Pool_C_Results_Table,VLOOKUP(L83,Pool_C_Offsets_Table,3)))","v":0},{"$f":"IF(ISBLANK(B83),\"\",IF(VLOOKUP(B83,Pool_C_Results_Table,VLOOKUP(L83,Pool_C_Offsets_Table,8))=0,\"v\",VLOOKUP(B83,Pool_C_Results_Table,VLOOKUP(L83,Pool_C_Offsets_Table,8))))","v":"v"},{"$f":"IF(ISBLANK(B83),\"\",VLOOKUP(B83,Pool_C_Results_Table,VLOOKUP(L83,Pool_C_Offsets_Table,9)))","v":0},{"$f":"IF(ISBLANK(B83),\"\",VLOOKUP(B83,Pool_C_Results_Table,VLOOKUP(L83,Pool_C_Offsets_Table,10)))","v":0},{"$f":"IF(ISBLANK(B83),0,VLOOKUP(B83,Pool_C_Results_Table,VLOOKUP(L83,Pool_C_Offsets_Table,12)))","v":0},{"$f":"IF(ISBLANK(B83),0,VLOOKUP(B83,Pool_C_Results_Table,VLOOKUP(L83,Pool_C_Offsets_Table,13)))","v":0},"Clitheroe"]
[null,"Rossendale",{"$f":"IF(ISBLANK(B84),0,VLOOKUP(B84,Pool_C_Results_Table,VLOOKUP(L84,Pool_C_Offsets_Table,6)))","v":0},{"$f":"IF(ISBLANK(B84),0,VLOOKUP(B84,Pool_C_Results_Table,VLOOKUP(L84,Pool_C_Offsets_Table,5)))","v":0},{"$f":"IF(ISBLANK(B84),\"\",VLOOKUP(B84,Pool_C_Results_Table,VLOOKUP(L84,Pool_C_Offsets_Table,2)))","v":"w/o"},{"$f":"IF(ISBLANK(B84),\"\",VLOOKUP(B84,Pool_C_Results_Table,VLOOKUP(L84,Pool_C_Offsets_Table,3)))","v":0},{"$f":"IF(ISBLANK(B84),\"\",IF(VLOOKUP(B84,Pool_C_Results_Table,VLOOKUP(L84,Pool_C_Offsets_Table,8))=0,\"v\",VLOOKUP(B84,Pool_C_Results_Table,VLOOKUP(L84,Pool_C_Offsets_Table,8))))","v":"v"},{"$f":"IF(ISBLANK(B84),\"\",VLOOKUP(B84,Pool_C_Results_Table,VLOOKUP(L84,Pool_C_Offsets_Table,9)))","v":0},{"$f":"IF(ISBLANK(B84),\"\",VLOOKUP(B84,Pool_C_Results_Table,VLOOKUP(L84,Pool_C_Offsets_Table,10)))","v":0},{"$f":"IF(ISBLANK(B84),0,VLOOKUP(B84,Pool_C_Results_Table,VLOOKUP(L84,Pool_C_Offsets_Table,12)))","v":0},{"$f":"IF(ISBLANK(B84),0,VLOOKUP(B84,Pool_C_Results_Table,VLOOKUP(L84,Pool_C_Offsets_Table,13)))","v":0},"Sedgley Park"]
[null,null,{"$f":"IF(ISBLANK(B85),0,VLOOKUP(B85,Pool_C_Results_Table,VLOOKUP(L85,Pool_C_Offsets_Table,6)))","v":0},{"$f":"IF(ISBLANK(B85),0,VLOOKUP(B85,Pool_C_Results_Table,VLOOKUP(L85,Pool_C_Offsets_Table,5)))","v":0},{"$f":"IF(ISBLANK(B85),\"\",VLOOKUP(B85,Pool_C_Results_Table,VLOOKUP(L85,Pool_C_Offsets_Table,2)))","v":""},{"$f":"IF(ISBLANK(B85),\"\",VLOOKUP(B85,Pool_C_Results_Table,VLOOKUP(L85,Pool_C_Offsets_Table,3)))","v":""},{"$f":"IF(ISBLANK(B85),\"\",IF(VLOOKUP(B85,Pool_C_Results_Table,VLOOKUP(L85,Pool_C_Offsets_Table,8))=0,\"v\",VLOOKUP(B85,Pool_C_Results_Table,VLOOKUP(L85,Pool_C_Offsets_Table,8))))","v":""},{"$f":"IF(ISBLANK(B85),\"\",VLOOKUP(B85,Pool_C_Results_Table,VLOOKUP(L85,Pool_C_Offsets_Table,9)))","v":""},{"$f":"IF(ISBLANK(B85),\"\",VLOOKUP(B85,Pool_C_Results_Table,VLOOKUP(L85,Pool_C_Offsets_Table,10)))","v":""},{"$f":"IF(ISBLANK(B85),0,VLOOKUP(B85,Pool_C_Results_Table,VLOOKUP(L85,Pool_C_Offsets_Table,12)))","v":0},{"$f":"IF(ISBLANK(B85),0,VLOOKUP(B85,Pool_C_Results_Table,VLOOKUP(L85,Pool_C_Offsets_Table,13)))","v":0}]
[null,null,{"$f":"IF(ISBLANK(B86),0,VLOOKUP(B86,Pool_C_Results_Table,VLOOKUP(L86,Pool_C_Offsets_Table,6)))","v":0},{"$f":"IF(ISBLANK(B86),0,VLOOKUP(B86,Pool_C_Results_Table,VLOOKUP(L86,Pool_C_Offsets_Table,5)))","v":0},{"$f":"IF(ISBLANK(B86),\"\",VLOOKUP(B86,Pool_C_Results_Table,VLOOKUP(L86,Pool_C_Offsets_Table,2)))","v":""},{"$f":"IF(ISBLANK(B86),\"\",VLOOKUP(B86,Pool_C_Results_Table,VLOOKUP(L86,Pool_C_Offsets_Table,3)))","v":""},{"$f":"IF(ISBLANK(B86),\"\",IF(VLOOKUP(B86,Pool_C_Results_Table,VLOOKUP(L86,Pool_C_Offsets_Table,8))=0,\"v\",VLOOKUP(B86,Pool_C_Results_Table,VLOOKUP(L86,Pool_C_Offsets_Table,8))))","v":""},{"$f":"IF(ISBLANK(B86),\"\",VLOOKUP(B86,Pool_C_Results_Table,VLOOKUP(L86,Pool_C_Offsets_Table,9)))","v":""},{"$f":"IF(ISBLANK(B86),\"\",VLOOKUP(B86,Pool_C_Results_Table,VLOOKUP(L86,Pool_C_Offsets_Table,10)))","v":""},{"$f":"IF(ISBLANK(B86),0,VLOOKUP(B86,Pool_C_Results_Table,VLOOKUP(L86,Pool_C_Offsets_Table,12)))","v":0},{"$f":"IF(ISBLANK(B86),0,VLOOKUP(B86,Pool_C_Results_Table,VLOOKUP(L86,Pool_C_Offsets_Table,13)))","v":0}]
[]
["Pool D"]
[]
[null,"Waterloo",{"$f":"IF(ISBLANK(B90),0,VLOOKUP(B90,Pool_D_Results_Table,VLOOKUP(L90,Pool_D_Offsets_Table,6)))","v":0},{"$f":"IF(ISBLANK(B90),0,VLOOKUP(B90,Pool_D_Results_Table,VLOOKUP(L90,Pool_D_Offsets_Table,5)))","v":0},{"$f":"IF(ISBLANK(B90),\"\",VLOOKUP(B90,Pool_D_Results_Table,VLOOKUP(L90,Pool_D_Offsets_Table,2)))","v":"w/o"},{"$f":"IF(ISBLANK(B90),\"\",VLOOKUP(B90,Pool_D_Results_Table,VLOOKUP(L90,Pool_D_Offsets_Table,3)))","v":0},{"$f":"IF(ISBLANK(B90),\"\",IF(VLOOKUP(B90,Pool_D_Results_Table,VLOOKUP(L90,Pool_D_Offsets_Table,8))=0,\"v\",VLOOKUP(B90,Pool_D_Results_Table,VLOOKUP(L90,Pool_D_Offsets_Table,8))))","v":"v"},{"$f":"IF(ISBLANK(B90),\"\",VLOOKUP(B90,Pool_D_Results_Table,VLOOKUP(L90,Pool_D_Offsets_Table,9)))","v":0},{"$f":"IF(ISBLANK(B90),\"\",VLOOKUP(B90,Pool_D_Results_Table,VLOOKUP(L90,Pool_D_Offsets_Table,10)))","v":0},{"$f":"IF(ISBLANK(B90),0,VLOOKUP(B90,Pool_D_Results_Table,VLOOKUP(L90,Pool_D_Offsets_Table,12)))","v":0},{"$f":"IF(ISBLANK(B90),0,VLOOKUP(B90,Pool_D_Results_Table,VLOOKUP(L90,Pool_D_Offsets_Table,13)))","v":0},"Didsbury Toc H"]
[null,"Orrell",{"$f":"IF(ISBLANK(B91),0,VLOOKUP(B91,Pool_D_Results_Table,VLOOKUP(L91,Pool_D_Offsets_Table,6)))","v":0},{"$f":"IF(ISBLANK(B91),0,VLOOKUP(B91,Pool_D_Results_Table,VLOOKUP(L91,Pool_D_Offsets_Table,5)))","v":0},{"$f":"IF(ISBLANK(B91),\"\",VLOOKUP(B91,Pool_D_Results_Table,VLOOKUP(L91,Pool_D_Offsets_Table,2)))","v":46},{"$f":"IF(ISBLANK(B91),\"\",VLOOKUP(B91,Pool_D_Results_Table,VLOOKUP(L91,Pool_D_Offsets_Table,3)))","v":0},{"$f":"IF(ISBLANK(B91),\"\",IF(VLOOKUP(B91,Pool_D_Results_Table,VLOOKUP(L91,Pool_D_Offsets_Table,8))=0,\"v\",VLOOKUP(B91,Pool_D_Results_Table,VLOOKUP(L91,Pool_D_Offsets_Table,8))))","v":"v"},{"$f":"IF(ISBLANK(B91),\"\",VLOOKUP(B91,Pool_D_Results_Table,VLOOKUP(L91,Pool_D_Offsets_Table,9)))","v":27},{"$f":"IF(ISBLANK(B91),\"\",VLOOKUP(B91,Pool_D_Results_Table,VLOOKUP(L91,Pool_D_Offsets_Table,10)))","v":0},{"$f":"IF(ISBLANK(B91),0,VLOOKUP(B91,Pool_D_Results_Table,VLOOKUP(L91,Pool_D_Offsets_Table,12)))","v":0},{"$f":"IF(ISBLANK(B91),0,VLOOKUP(B91,Pool_D_Results_Table,VLOOKUP(L91,Pool_D_Offsets_Table,13)))","v":0},"Liverpool St Helens"]
[null,null,{"$f":"IF(ISBLANK(B92),0,VLOOKUP(B92,Pool_D_Results_Table,VLOOKUP(L92,Pool_D_Offsets_Table,6)))","v":0},{"$f":"IF(ISBLANK(B92),0,VLOOKUP(B92,Pool_D_Results_Table,VLOOKUP(L92,Pool_D_Offsets_Table,5)))","v":0},{"$f":"IF(ISBLANK(B92),\"\",VLOOKUP(B92,Pool_D_Results_Table,VLOOKUP(L92,Pool_D_Offsets_Table,2)))","v":""},{"$f":"IF(ISBLANK(B92),\"\",VLOOKUP(B92,Pool_D_Results_Table,VLOOKUP(L92,Pool_D_Offsets_Table,3)))","v":""},{"$f":"IF(ISBLANK(B92),\"\",IF(VLOOKUP(B92,Pool_D_Results_Table,VLOOKUP(L92,Pool_D_Offsets_Table,8))=0,\"v\",VLOOKUP(B92,Pool_D_Results_Table,VLOOKUP(L92,Pool_D_Offsets_Table,8))))","v":""},{"$f":"IF(ISBLANK(B92),\"\",VLOOKUP(B92,Pool_D_Results_Table,VLOOKUP(L92,Pool_D_Offsets_Table,9)))","v":""},{"$f":"IF(ISBLANK(B92),\"\",VLOOKUP(B92,Pool_D_Results_Table,VLOOKUP(L92,Pool_D_Offsets_Table,10)))","v":""},{"$f":"IF(ISBLANK(B92),0,VLOOKUP(B92,Pool_D_Results_Table,VLOOKUP(L92,Pool_D_Offsets_Table,12)))","v":0},{"$f":"IF(ISBLANK(B92),0,VLOOKUP(B92,Pool_D_Results_Table,VLOOKUP(L92,Pool_D_Offsets_Table,13)))","v":0}]
[null,null,{"$f":"IF(ISBLANK(B93),0,VLOOKUP(B93,Pool_D_Results_Table,VLOOKUP(L93,Pool_D_Offsets_Table,6)))","v":0},{"$f":"IF(ISBLANK(B93),0,VLOOKUP(B93,Pool_D_Results_Table,VLOOKUP(L93,Pool_D_Offsets_Table,5)))","v":0},{"$f":"IF(ISBLANK(B93),\"\",VLOOKUP(B93,Pool_D_Results_Table,VLOOKUP(L93,Pool_D_Offsets_Table,2)))","v":""},{"$f":"IF(ISBLANK(B93),\"\",VLOOKUP(B93,Pool_D_Results_Table,VLOOKUP(L93,Pool_D_Offsets_Table,3)))","v":""},{"$f":"IF(ISBLANK(B93),\"\",IF(VLOOKUP(B93,Pool_D_Results_Table,VLOOKUP(L93,Pool_D_Offsets_Table,8))=0,\"v\",VLOOKUP(B93,Pool_D_Results_Table,VLOOKUP(L93,Pool_D_Offsets_Table,8))))","v":""},{"$f":"IF(ISBLANK(B93),\"\",VLOOKUP(B93,Pool_D_Results_Table,VLOOKUP(L93,Pool_D_Offsets_Table,9)))","v":""},{"$f":"IF(ISBLANK(B93),\"\",VLOOKUP(B93,Pool_D_Results_Table,VLOOKUP(L93,Pool_D_Offsets_Table,10)))","v":""},{"$f":"IF(ISBLANK(B93),0,VLOOKUP(B93,Pool_D_Results_Table,VLOOKUP(L93,Pool_D_Offsets_Table,12)))","v":0},{"$f":"IF(ISBLANK(B93),0,VLOOKUP(B93,Pool_D_Results_Table,VLOOKUP(L93,Pool_D_Offsets_Table,13)))","v":0}]
[]
["MATCH DAY FOUR",null,null,null,null,null,null,null,null,null,null,"2015-11-29"]
[]
["Pool A"]
[]
[null,"Fylde",{"$f":"IF(ISBLANK(B99),0,VLOOKUP(B99,Pool_A_Results_Table,VLOOKUP(L99,Pool_A_Offsets_Table,6)))","v":0},{"$f":"IF(ISBLANK(B99),0,VLOOKUP(B99,Pool_A_Results_Table,VLOOKUP(L99,Pool_A_Offsets_Table,5)))","v":0},{"$f":"IF(ISBLANK(B99),\"\",VLOOKUP(B99,Pool_A_Results_Table,VLOOKUP(L99,Pool_A_Offsets_Table,2)))","v":30},{"$f":"IF(ISBLANK(B99),\"\",VLOOKUP(B99,Pool_A_Results_Table,VLOOKUP(L99,Pool_A_Offsets_Table,3)))","v":"*"},{"$f":"IF(ISBLANK(B99),\"\",IF(VLOOKUP(B99,Pool_A_Results_Table,VLOOKUP(L99,Pool_A_Offsets_Table,8))=0,\"v\",VLOOKUP(B99,Pool_A_Results_Table,VLOOKUP(L99,Pool_A_Offsets_Table,8))))","v":"v"},{"$f":"IF(ISBLANK(B99),\"\",VLOOKUP(B99,Pool_A_Results_Table,VLOOKUP(L99,Pool_A_Offsets_Table,9)))","v":0},{"$f":"IF(ISBLANK(B99),\"\",VLOOKUP(B99,Pool_A_Results_Table,VLOOKUP(L99,Pool_A_Offsets_Table,10)))","v":0},{"$f":"IF(ISBLANK(B99),0,VLOOKUP(B99,Pool_A_Results_Table,VLOOKUP(L99,Pool_A_Offsets_Table,12)))","v":0},{"$f":"IF(ISBLANK(B99),0,VLOOKUP(B99,Pool_A_Results_Table,VLOOKUP(L99,Pool_A_Offsets_Table,13)))","v":0},"Ashton-u-Lyne"]
[null,"Liverpool Collegiate",{"$f":"IF(ISBLANK(B100),0,VLOOKUP(B100,Pool_A_Results_Table,VLOOKUP(L100,Pool_A_Offsets_Table,6)))","v":0},{"$f":"IF(ISBLANK(B100),0,VLOOKUP(B100,Pool_A_Results_Table,VLOOKUP(L100,Pool_A_Offsets_Table,5)))","v":0},18,{"$f":"IF(ISBLANK(B100),\"\",VLOOKUP(B100,Pool_A_Results_Table,VLOOKUP(L100,Pool_A_Offsets_Table,3)))","v":0},{"$f":"IF(ISBLANK(B100),\"\",IF(VLOOKUP(B100,Pool_A_Results_Table,VLOOKUP(L100,Pool_A_Offsets_Table,8))=0,\"v\",VLOOKUP(B100,Pool_A_Results_Table,VLOOKUP(L100,Pool_A_Offsets_Table,8))))","v":"v"},{"$f":"IF(ISBLANK(B100),\"\",VLOOKUP(B100,Pool_A_Results_Table,VLOOKUP(L100,Pool_A_Offsets_Table,9)))","v":17},{"$f":"IF(ISBLANK(B100),\"\",VLOOKUP(B100,Pool_A_Results_Table,VLOOKUP(L100,Pool_A_Offsets_Table,10)))","v":0},{"$f":"IF(ISBLANK(B100),0,VLOOKUP(B100,Pool_A_Results_Table,VLOOKUP(L100,Pool_A_Offsets_Table,12)))","v":0},{"$f":"IF(ISBLANK(B100),0,VLOOKUP(B100,Pool_A_Results_Table,VLOOKUP(L100,Pool_A_Offsets_Table,13)))","v":0},"Manchester"]
[null,null,{"$f":"IF(ISBLANK(B101),0,VLOOKUP(B101,Pool_A_Results_Table,VLOOKUP(L101,Pool_A_Offsets_Table,6)))","v":0},{"$f":"IF(ISBLANK(B101),0,VLOOKUP(B101,Pool_A_Results_Table,VLOOKUP(L101,Pool_A_Offsets_Table,5)))","v":0},"",{"$f":"IF(ISBLANK(B101),\"\",VLOOKUP(B101,Pool_A_Results_Table,VLOOKUP(L101,Pool_A_Offsets_Table,3)))","v":""},{"$f":"IF(ISBLANK(B101),\"\",IF(VLOOKUP(B101,Pool_A_Results_Table,VLOOKUP(L101,Pool_A_Offsets_Table,8))=0,\"v\",VLOOKUP(B101,Pool_A_Results_Table,VLOOKUP(L101,Pool_A_Offsets_Table,8))))","v":""},{"$f":"IF(ISBLANK(B101),\"\",VLOOKUP(B101,Pool_A_Results_Table,VLOOKUP(L101,Pool_A_Offsets_Table,9)))","v":""},{"$f":"IF(ISBLANK(B101),\"\",VLOOKUP(B101,Pool_A_Results_Table,VLOOKUP(L101,Pool_A_Offsets_Table,10)))","v":""},{"$f":"IF(ISBLANK(B101),0,VLOOKUP(B101,Pool_A_Results_Table,VLOOKUP(L101,Pool_A_Offsets_Table,12)))","v":0},{"$f":"IF(ISBLANK(B101),0,VLOOKUP(B101,Pool_A_Results_Table,VLOOKUP(L101,Pool_A_Offsets_Table,13)))","v":0}]
[null,null,{"$f":"IF(ISBLANK(B102),0,VLOOKUP(B102,Pool_A_Results_Table,VLOOKUP(L102,Pool_A_Offsets_Table,6)))","v":0},{"$f":"IF(ISBLANK(B102),0,VLOOKUP(B102,Pool_A_Results_Table,VLOOKUP(L102,Pool_A_Offsets_Table,5)))","v":0},"",{"$f":"IF(ISBLANK(B102),\"\",VLOOKUP(B102,Pool_A_Results_Table,VLOOKUP(L102,Pool_A_Offsets_Table,3)))","v":""},{"$f":"IF(ISBLANK(B102),\"\",IF(VLOOKUP(B102,Pool_A_Results_Table,VLOOKUP(L102,Pool_A_Offsets_Table,8))=0,\"v\",VLOOKUP(B102,Pool_A_Results_Table,VLOOKUP(L102,Pool_A_Offsets_Table,8))))","v":""},{"$f":"IF(ISBLANK(B102),\"\",VLOOKUP(B102,Pool_A_Results_Table,VLOOKUP(L102,Pool_A_Offsets_Table,9)))","v":""},{"$f":"IF(ISBLANK(B102),\"\",VLOOKUP(B102,Pool_A_Results_Table,VLOOKUP(L102,Pool_A_Offsets_Table,10)))","v":""},{"$f":"IF(ISBLANK(B102),0,VLOOKUP(B102,Pool_A_Results_Table,VLOOKUP(L102,Pool_A_Offsets_Table,12)))","v":0},{"$f":"IF(ISBLANK(B102),0,VLOOKUP(B102,Pool_A_Results_Table,VLOOKUP(L102,Pool_A_Offsets_Table,13)))","v":0}]
[]
["Pool B"]
[]
[null,"Sefton",{"$f":"IF(ISBLANK(B106),0,VLOOKUP(B106,Pool_B_Results_Table,VLOOKUP(L106,Pool_B_Offsets_Table,6)))","v":0},{"$f":"IF(ISBLANK(B106),0,VLOOKUP(B106,Pool_B_Results_Table,VLOOKUP(L106,Pool_B_Offsets_Table,5)))","v":0},{"$f":"IF(ISBLANK(B106),\"\",VLOOKUP(B106,Pool_B_Results_Table,VLOOKUP(L106,Pool_B_Offsets_Table,2)))","v":12},{"$f":"IF(ISBLANK(B106),\"\",VLOOKUP(B106,Pool_B_Results_Table,VLOOKUP(L106,Pool_B_Offsets_Table,3)))","v":0},{"$f":"IF(ISBLANK(B106),\"\",IF(VLOOKUP(B106,Pool_B_Results_Table,VLOOKUP(L106,Pool_B_Offsets_Table,8))=0,\"v\",VLOOKUP(B106,Pool_B_Results_Table,VLOOKUP(L106,Pool_B_Offsets_Table,8))))","v":"v"},{"$f":"IF(ISBLANK(B106),\"\",VLOOKUP(B106,Pool_B_Results_Table,VLOOKUP(L106,Pool_B_Offsets_Table,9)))","v":36},{"$f":"IF(ISBLANK(B106),\"\",VLOOKUP(B106,Pool_B_Results_Table,VLOOKUP(L106,Pool_B_Offsets_Table,10)))","v":0},{"$f":"IF(ISBLANK(B106),0,VLOOKUP(B106,Pool_B_Results_Table,VLOOKUP(L106,Pool_B_Offsets_Table,12)))","v":0},{"$f":"IF(ISBLANK(B106),0,VLOOKUP(B106,Pool_B_Results_Table,VLOOKUP(L106,Pool_B_Offsets_Table,13)))","v":0},"Blackburn"]
[null,"Ormskirk",{"$f":"IF(ISBLANK(B107),0,VLOOKUP(B107,Pool_B_Results_Table,VLOOKUP(L107,Pool_B_Offsets_Table,6)))","v":0},{"$f":"IF(ISBLANK(B107),0,VLOOKUP(B107,Pool_B_Results_Table,VLOOKUP(L107,Pool_B_Offsets_Table,5)))","v":0},{"$f":"IF(ISBLANK(B107),\"\",VLOOKUP(B107,Pool_B_Results_Table,VLOOKUP(L107,Pool_B_Offsets_Table,2)))","v":12},{"$f":"IF(ISBLANK(B107),\"\",VLOOKUP(B107,Pool_B_Results_Table,VLOOKUP(L107,Pool_B_Offsets_Table,3)))","v":0},{"$f":"IF(ISBLANK(B107),\"\",IF(VLOOKUP(B107,Pool_B_Results_Table,VLOOKUP(L107,Pool_B_Offsets_Table,8))=0,\"v\",VLOOKUP(B107,Pool_B_Results_Table,VLOOKUP(L107,Pool_B_Offsets_Table,8))))","v":"v"},{"$f":"IF(ISBLANK(B107),\"\",VLOOKUP(B107,Pool_B_Results_Table,VLOOKUP(L107,Pool_B_Offsets_Table,9)))","v":37},{"$f":"IF(ISBLANK(B107),\"\",VLOOKUP(B107,Pool_B_Results_Table,VLOOKUP(L107,Pool_B_Offsets_Table,10)))","v":0},{"$f":"IF(ISBLANK(B107),0,VLOOKUP(B107,Pool_B_Results_Table,VLOOKUP(L107,Pool_B_Offsets_Table,12)))","v":0},{"$f":"IF(ISBLANK(B107),0,VLOOKUP(B107,Pool_B_Results_Table,VLOOKUP(L107,Pool_B_Offsets_Table,13)))","v":0},"Vale of Lune"]
[null,null,{"$f":"IF(ISBLANK(B108),0,VLOOKUP(B108,Pool_B_Results_Table,VLOOKUP(L108,Pool_B_Offsets_Table,6)))","v":0},{"$f":"IF(ISBLANK(B108),0,VLOOKUP(B108,Pool_B_Results_Table,VLOOKUP(L108,Pool_B_Offsets_Table,5)))","v":0},{"$f":"IF(ISBLANK(B108),\"\",VLOOKUP(B108,Pool_B_Results_Table,VLOOKUP(L108,Pool_B_Offsets_Table,2)))","v":""},{"$f":"IF(ISBLANK(B108),\"\",VLOOKUP(B108,Pool_B_Results_Table,VLOOKUP(L108,Pool_B_Offsets_Table,3)))","v":""},{"$f":"IF(ISBLANK(B108),\"\",IF(VLOOKUP(B108,Pool_B_Results_Table,VLOOKUP(L108,Pool_B_Offsets_Table,8))=0,\"v\",VLOOKUP(B108,Pool_B_Results_Table,VLOOKUP(L108,Pool_B_Offsets_Table,8))))","v":""},{"$f":"IF(ISBLANK(B108),\"\",VLOOKUP(B108,Pool_B_Results_Table,VLOOKUP(L108,Pool_B_Offsets_Table,9)))","v":""},{"$f":"IF(ISBLANK(B108),\"\",VLOOKUP(B108,Pool_B_Results_Table,VLOOKUP(L108,Pool_B_Offsets_Table,10)))","v":""},{"$f":"IF(ISBLANK(B108),0,VLOOKUP(B108,Pool_B_Results_Table,VLOOKUP(L108,Pool_B_Offsets_Table,12)))","v":0},{"$f":"IF(ISBLANK(B108),0,VLOOKUP(B108,Pool_B_Results_Table,VLOOKUP(L108,Pool_B_Offsets_Table,13)))","v":0}]
[null,null,{"$f":"IF(ISBLANK(B109),0,VLOOKUP(B109,Pool_B_Results_Table,VLOOKUP(L109,Pool_B_Offsets_Table,6)))","v":0},{"$f":"IF(ISBLANK(B109),0,VLOOKUP(B109,Pool_B_Results_Table,VLOOKUP(L109,Pool_B_Offsets_Table,5)))","v":0},{"$f":"IF(ISBLANK(B109),\"\",VLOOKUP(B109,Pool_B_Results_Table,VLOOKUP(L109,Pool_B_Offsets_Table,2)))","v":""},{"$f":"IF(ISBLANK(B109),\"\",VLOOKUP(B109,Pool_B_Results_Table,VLOOKUP(L109,Pool_B_Offsets_Table,3)))","v":""},{"$f":"IF(ISBLANK(B109),\"\",IF(VLOOKUP(B109,Pool_B_Results_Table,VLOOKUP(L109,Pool_B_Offsets_Table,8))=0,\"v\",VLOOKUP(B109,Pool_B_Results_Table,VLOOKUP(L109,Pool_B_Offsets_Table,8))))","v":""},{"$f":"IF(ISBLANK(B109),\"\",VLOOKUP(B109,Pool_B_Results_Table,VLOOKUP(L109,Pool_B_Offsets_Table,9)))","v":""},{"$f":"IF(ISBLANK(B109),\"\",VLOOKUP(B109,Pool_B_Results_Table,VLOOKUP(L109,Pool_B_Offsets_Table,10)))","v":""},{"$f":"IF(ISBLANK(B109),0,VLOOKUP(B109,Pool_B_Results_Table,VLOOKUP(L109,Pool_B_Offsets_Table,12)))","v":0},{"$f":"IF(ISBLANK(B109),0,VLOOKUP(B109,Pool_B_Results_Table,VLOOKUP(L109,Pool_B_Offsets_Table,13)))","v":0}]
[]
["Pool C"]
[]
[null,"Heaton Moor",{"$f":"IF(ISBLANK(B113),0,VLOOKUP(B113,Pool_C_Results_Table,VLOOKUP(L113,Pool_C_Offsets_Table,6)))","v":0},{"$f":"IF(ISBLANK(B113),0,VLOOKUP(B113,Pool_C_Results_Table,VLOOKUP(L113,Pool_C_Offsets_Table,5)))","v":0},{"$f":"IF(ISBLANK(B113),\"\",VLOOKUP(B113,Pool_C_Results_Table,VLOOKUP(L113,Pool_C_Offsets_Table,2)))","v":40},{"$f":"IF(ISBLANK(B113),\"\",VLOOKUP(B113,Pool_C_Results_Table,VLOOKUP(L113,Pool_C_Offsets_Table,3)))","v":"*"},{"$f":"IF(ISBLANK(B113),\"\",IF(VLOOKUP(B113,Pool_C_Results_Table,VLOOKUP(L113,Pool_C_Offsets_Table,8))=0,\"v\",VLOOKUP(B113,Pool_C_Results_Table,VLOOKUP(L113,Pool_C_Offsets_Table,8))))","v":"v"},{"$f":"IF(ISBLANK(B113),\"\",VLOOKUP(B113,Pool_C_Results_Table,VLOOKUP(L113,Pool_C_Offsets_Table,9)))","v":10},{"$f":"IF(ISBLANK(B113),\"\",VLOOKUP(B113,Pool_C_Results_Table,VLOOKUP(L113,Pool_C_Offsets_Table,10)))","v":0},{"$f":"IF(ISBLANK(B113),0,VLOOKUP(B113,Pool_C_Results_Table,VLOOKUP(L113,Pool_C_Offsets_Table,12)))","v":0},{"$f":"IF(ISBLANK(B113),0,VLOOKUP(B113,Pool_C_Results_Table,VLOOKUP(L113,Pool_C_Offsets_Table,13)))","v":0},"West Park"]
[null,"Sedgley Park",{"$f":"IF(ISBLANK(B114),0,VLOOKUP(B114,Pool_C_Results_Table,VLOOKUP(L114,Pool_C_Offsets_Table,6)))","v":0},{"$f":"IF(ISBLANK(B114),0,VLOOKUP(B114,Pool_C_Results_Table,VLOOKUP(L114,Pool_C_Offsets_Table,5)))","v":0},{"$f":"IF(ISBLANK(B114),\"\",VLOOKUP(B114,Pool_C_Results_Table,VLOOKUP(L114,Pool_C_Offsets_Table,2)))","v":0},{"$f":"IF(ISBLANK(B114),\"\",VLOOKUP(B114,Pool_C_Results_Table,VLOOKUP(L114,Pool_C_Offsets_Table,3)))","v":0},{"$f":"IF(ISBLANK(B114),\"\",IF(VLOOKUP(B114,Pool_C_Results_Table,VLOOKUP(L114,Pool_C_Offsets_Table,8))=0,\"v\",VLOOKUP(B114,Pool_C_Results_Table,VLOOKUP(L114,Pool_C_Offsets_Table,8))))","v":"v"},{"$f":"IF(ISBLANK(B114),\"\",VLOOKUP(B114,Pool_C_Results_Table,VLOOKUP(L114,Pool_C_Offsets_Table,9)))","v":"w/o"},{"$f":"IF(ISBLANK(B114),\"\",VLOOKUP(B114,Pool_C_Results_Table,VLOOKUP(L114,Pool_C_Offsets_Table,10)))","v":0},{"$f":"IF(ISBLANK(B114),0,VLOOKUP(B114,Pool_C_Results_Table,VLOOKUP(L114,Pool_C_Offsets_Table,12)))","v":0},{"$f":"IF(ISBLANK(B114),0,VLOOKUP(B114,Pool_C_Results_Table,VLOOKUP(L114,Pool_C_Offsets_Table,13)))","v":0},"Preston Grasshoppers"]
[null,null,{"$f":"IF(ISBLANK(B115),0,VLOOKUP(B115,Pool_C_Results_Table,VLOOKUP(L115,Pool_C_Offsets_Table,6)))","v":0},{"$f":"IF(ISBLANK(B115),0,VLOOKUP(B115,Pool_C_Results_Table,VLOOKUP(L115,Pool_C_Offsets_Table,5)))","v":0},{"$f":"IF(ISBLANK(B115),\"\",VLOOKUP(B115,Pool_C_Results_Table,VLOOKUP(L115,Pool_C_Offsets_Table,2)))","v":""},{"$f":"IF(ISBLANK(B115),\"\",VLOOKUP(B115,Pool_C_Results_Table,VLOOKUP(L115,Pool_C_Offsets_Table,3)))","v":""},{"$f":"IF(ISBLANK(B115),\"\",IF(VLOOKUP(B115,Pool_C_Results_Table,VLOOKUP(L115,Pool_C_Offsets_Table,8))=0,\"v\",VLOOKUP(B115,Pool_C_Results_Table,VLOOKUP(L115,Pool_C_Offsets_Table,8))))","v":""},{"$f":"IF(ISBLANK(B115),\"\",VLOOKUP(B115,Pool_C_Results_Table,VLOOKUP(L115,Pool_C_Offsets_Table,9)))","v":""},{"$f":"IF(ISBLANK(B115),\"\",VLOOKUP(B115,Pool_C_Results_Table,VLOOKUP(L115,Pool_C_Offsets_Table,10)))","v":""},{"$f":"IF(ISBLANK(B115),0,VLOOKUP(B115,Pool_C_Results_Table,VLOOKUP(L115,Pool_C_Offsets_Table,12)))","v":0},{"$f":"IF(ISBLANK(B115),0,VLOOKUP(B115,Pool_C_Results_Table,VLOOKUP(L115,Pool_C_Offsets_Table,13)))","v":0}]
[null,null,{"$f":"IF(ISBLANK(B116),0,VLOOKUP(B116,Pool_C_Results_Table,VLOOKUP(L116,Pool_C_Offsets_Table,6)))","v":0},{"$f":"IF(ISBLANK(B116),0,VLOOKUP(B116,Pool_C_Results_Table,VLOOKUP(L116,Pool_C_Offsets_Table,5)))","v":0},{"$f":"IF(ISBLANK(B116),\"\",VLOOKUP(B116,Pool_C_Results_Table,VLOOKUP(L116,Pool_C_Offsets_Table,2)))","v":""},{"$f":"IF(ISBLANK(B116),\"\",VLOOKUP(B116,Pool_C_Results_Table,VLOOKUP(L116,Pool_C_Offsets_Table,3)))","v":""},{"$f":"IF(ISBLANK(B116),\"\",IF(VLOOKUP(B116,Pool_C_Results_Table,VLOOKUP(L116,Pool_C_Offsets_Table,8))=0,\"v\",VLOOKUP(B116,Pool_C_Results_Table,VLOOKUP(L116,Pool_C_Offsets_Table,8))))","v":""},{"$f":"IF(ISBLANK(B116),\"\",VLOOKUP(B116,Pool_C_Results_Table,VLOOKUP(L116,Pool_C_Offsets_Table,9)))","v":""},{"$f":"IF(ISBLANK(B116),\"\",VLOOKUP(B116,Pool_C_Results_Table,VLOOKUP(L116,Pool_C_Offsets_Table,10)))","v":""},{"$f":"IF(ISBLANK(B116),0,VLOOKUP(B116,Pool_C_Results_Table,VLOOKUP(L116,Pool_C_Offsets_Table,12)))","v":0},{"$f":"IF(ISBLANK(B116),0,VLOOKUP(B116,Pool_C_Results_Table,VLOOKUP(L116,Pool_C_Offsets_Table,13)))","v":0}]
[]
["Pool D"]
[]
[null,"Bury",{"$f":"IF(ISBLANK(B120),0,VLOOKUP(B120,Pool_D_Results_Table,VLOOKUP(L120,Pool_D_Offsets_Table,6)))","v":0},{"$f":"IF(ISBLANK(B120),0,VLOOKUP(B120,Pool_D_Results_Table,VLOOKUP(L120,Pool_D_Offsets_Table,5)))","v":0},{"$f":"IF(ISBLANK(B120),\"\",VLOOKUP(B120,Pool_D_Results_Table,VLOOKUP(L120,Pool_D_Offsets_Table,2)))","v":0},{"$f":"IF(ISBLANK(B120),\"\",VLOOKUP(B120,Pool_D_Results_Table,VLOOKUP(L120,Pool_D_Offsets_Table,3)))","v":0},{"$f":"IF(ISBLANK(B120),\"\",IF(VLOOKUP(B120,Pool_D_Results_Table,VLOOKUP(L120,Pool_D_Offsets_Table,8))=0,\"v\",VLOOKUP(B120,Pool_D_Results_Table,VLOOKUP(L120,Pool_D_Offsets_Table,8))))","v":"NG"},{"$f":"IF(ISBLANK(B120),\"\",VLOOKUP(B120,Pool_D_Results_Table,VLOOKUP(L120,Pool_D_Offsets_Table,9)))","v":0},{"$f":"IF(ISBLANK(B120),\"\",VLOOKUP(B120,Pool_D_Results_Table,VLOOKUP(L120,Pool_D_Offsets_Table,10)))","v":0},{"$f":"IF(ISBLANK(B120),0,VLOOKUP(B120,Pool_D_Results_Table,VLOOKUP(L120,Pool_D_Offsets_Table,12)))","v":0},{"$f":"IF(ISBLANK(B120),0,VLOOKUP(B120,Pool_D_Results_Table,VLOOKUP(L120,Pool_D_Offsets_Table,13)))","v":0},"Burnley"]
[null,"Liverpool St Helens",{"$f":"IF(ISBLANK(B121),0,VLOOKUP(B121,Pool_D_Results_Table,VLOOKUP(L121,Pool_D_Offsets_Table,6)))","v":0},{"$f":"IF(ISBLANK(B121),0,VLOOKUP(B121,Pool_D_Results_Table,VLOOKUP(L121,Pool_D_Offsets_Table,5)))","v":0},{"$f":"IF(ISBLANK(B121),\"\",VLOOKUP(B121,Pool_D_Results_Table,VLOOKUP(L121,Pool_D_Offsets_Table,2)))","v":26},{"$f":"IF(ISBLANK(B121),\"\",VLOOKUP(B121,Pool_D_Results_Table,VLOOKUP(L121,Pool_D_Offsets_Table,3)))","v":0},{"$f":"IF(ISBLANK(B121),\"\",IF(VLOOKUP(B121,Pool_D_Results_Table,VLOOKUP(L121,Pool_D_Offsets_Table,8))=0,\"v\",VLOOKUP(B121,Pool_D_Results_Table,VLOOKUP(L121,Pool_D_Offsets_Table,8))))","v":"v"},{"$f":"IF(ISBLANK(B121),\"\",VLOOKUP(B121,Pool_D_Results_Table,VLOOKUP(L121,Pool_D_Offsets_Table,9)))","v":37},{"$f":"IF(ISBLANK(B121),\"\",VLOOKUP(B121,Pool_D_Results_Table,VLOOKUP(L121,Pool_D_Offsets_Table,10)))","v":0},{"$f":"IF(ISBLANK(B121),0,VLOOKUP(B121,Pool_D_Results_Table,VLOOKUP(L121,Pool_D_Offsets_Table,12)))","v":0},{"$f":"IF(ISBLANK(B121),0,VLOOKUP(B121,Pool_D_Results_Table,VLOOKUP(L121,Pool_D_Offsets_Table,13)))","v":0},"Waterloo"]
[null,null,{"$f":"IF(ISBLANK(B122),0,VLOOKUP(B122,Pool_D_Results_Table,VLOOKUP(L122,Pool_D_Offsets_Table,6)))","v":0},{"$f":"IF(ISBLANK(B122),0,VLOOKUP(B122,Pool_D_Results_Table,VLOOKUP(L122,Pool_D_Offsets_Table,5)))","v":0},{"$f":"IF(ISBLANK(B122),\"\",VLOOKUP(B122,Pool_D_Results_Table,VLOOKUP(L122,Pool_D_Offsets_Table,2)))","v":""},{"$f":"IF(ISBLANK(B122),\"\",VLOOKUP(B122,Pool_D_Results_Table,VLOOKUP(L122,Pool_D_Offsets_Table,3)))","v":""},{"$f":"IF(ISBLANK(B122),\"\",IF(VLOOKUP(B122,Pool_D_Results_Table,VLOOKUP(L122,Pool_D_Offsets_Table,8))=0,\"v\",VLOOKUP(B122,Pool_D_Results_Table,VLOOKUP(L122,Pool_D_Offsets_Table,8))))","v":""},{"$f":"IF(ISBLANK(B122),\"\",VLOOKUP(B122,Pool_D_Results_Table,VLOOKUP(L122,Pool_D_Offsets_Table,9)))","v":""},{"$f":"IF(ISBLANK(B122),\"\",VLOOKUP(B122,Pool_D_Results_Table,VLOOKUP(L122,Pool_D_Offsets_Table,10)))","v":""},{"$f":"IF(ISBLANK(B122),0,VLOOKUP(B122,Pool_D_Results_Table,VLOOKUP(L122,Pool_D_Offsets_Table,12)))","v":0},{"$f":"IF(ISBLANK(B122),0,VLOOKUP(B122,Pool_D_Results_Table,VLOOKUP(L122,Pool_D_Offsets_Table,13)))","v":0}]
[null,null,{"$f":"IF(ISBLANK(B123),0,VLOOKUP(B123,Pool_D_Results_Table,VLOOKUP(L123,Pool_D_Offsets_Table,6)))","v":0},{"$f":"IF(ISBLANK(B123),0,VLOOKUP(B123,Pool_D_Results_Table,VLOOKUP(L123,Pool_D_Offsets_Table,5)))","v":0},{"$f":"IF(ISBLANK(B123),\"\",VLOOKUP(B123,Pool_D_Results_Table,VLOOKUP(L123,Pool_D_Offsets_Table,2)))","v":""},{"$f":"IF(ISBLANK(B123),\"\",VLOOKUP(B123,Pool_D_Results_Table,VLOOKUP(L123,Pool_D_Offsets_Table,3)))","v":""},{"$f":"IF(ISBLANK(B123),\"\",IF(VLOOKUP(B123,Pool_D_Results_Table,VLOOKUP(L123,Pool_D_Offsets_Table,8))=0,\"v\",VLOOKUP(B123,Pool_D_Results_Table,VLOOKUP(L123,Pool_D_Offsets_Table,8))))","v":""},{"$f":"IF(ISBLANK(B123),\"\",VLOOKUP(B123,Pool_D_Results_Table,VLOOKUP(L123,Pool_D_Offsets_Table,9)))","v":""},{"$f":"IF(ISBLANK(B123),\"\",VLOOKUP(B123,Pool_D_Results_Table,VLOOKUP(L123,Pool_D_Offsets_Table,10)))","v":""},{"$f":"IF(ISBLANK(B123),0,VLOOKUP(B123,Pool_D_Results_Table,VLOOKUP(L123,Pool_D_Offsets_Table,12)))","v":0},{"$f":"IF(ISBLANK(B123),0,VLOOKUP(B123,Pool_D_Results_Table,VLOOKUP(L123,Pool_D_Offsets_Table,13)))","v":0}]
[]
["MATCH DAY FIVE",null,null,null,null,null,null,null,null,null,null,"2015-12-20"]
[]
["Pool A"]
[]
[null,"Southport",{"$f":"IF(ISBLANK(B129),0,VLOOKUP(B129,Pool_A_Results_Table,VLOOKUP(L129,Pool_A_Offsets_Table,6)))","v":0},{"$f":"IF(ISBLANK(B129),0,VLOOKUP(B129,Pool_A_Results_Table,VLOOKUP(L129,Pool_A_Offsets_Table,5)))","v":0},{"$f":"IF(ISBLANK(B129),\"\",VLOOKUP(B129,Pool_A_Results_Table,VLOOKUP(L129,Pool_A_Offsets_Table,2)))","v":0},{"$f":"IF(ISBLANK(B129),\"\",VLOOKUP(B129,Pool_A_Results_Table,VLOOKUP(L129,Pool_A_Offsets_Table,3)))","v":0},{"$f":"IF(ISBLANK(B129),\"\",IF(VLOOKUP(B129,Pool_A_Results_Table,VLOOKUP(L129,Pool_A_Offsets_Table,8))=0,\"v\",VLOOKUP(B129,Pool_A_Results_Table,VLOOKUP(L129,Pool_A_Offsets_Table,8))))","v":"v"},{"$f":"IF(ISBLANK(B129),\"\",VLOOKUP(B129,Pool_A_Results_Table,VLOOKUP(L129,Pool_A_Offsets_Table,9)))","v":0},{"$f":"IF(ISBLANK(B129),\"\",VLOOKUP(B129,Pool_A_Results_Table,VLOOKUP(L129,Pool_A_Offsets_Table,10)))","v":0},{"$f":"IF(ISBLANK(B129),0,VLOOKUP(B129,Pool_A_Results_Table,VLOOKUP(L129,Pool_A_Offsets_Table,12)))","v":0},{"$f":"IF(ISBLANK(B129),0,VLOOKUP(B129,Pool_A_Results_Table,VLOOKUP(L129,Pool_A_Offsets_Table,13)))","v":0},"Fylde"]
[null,"Rochdale",{"$f":"IF(ISBLANK(B130),0,VLOOKUP(B130,Pool_A_Results_Table,VLOOKUP(L130,Pool_A_Offsets_Table,6)))","v":0},{"$f":"IF(ISBLANK(B130),0,VLOOKUP(B130,Pool_A_Results_Table,VLOOKUP(L130,Pool_A_Offsets_Table,5)))","v":0},0,{"$f":"IF(ISBLANK(B130),\"\",VLOOKUP(B130,Pool_A_Results_Table,VLOOKUP(L130,Pool_A_Offsets_Table,3)))","v":0},{"$f":"IF(ISBLANK(B130),\"\",IF(VLOOKUP(B130,Pool_A_Results_Table,VLOOKUP(L130,Pool_A_Offsets_Table,8))=0,\"v\",VLOOKUP(B130,Pool_A_Results_Table,VLOOKUP(L130,Pool_A_Offsets_Table,8))))","v":"v"},{"$f":"IF(ISBLANK(B130),\"\",VLOOKUP(B130,Pool_A_Results_Table,VLOOKUP(L130,Pool_A_Offsets_Table,9)))","v":0},{"$f":"IF(ISBLANK(B130),\"\",VLOOKUP(B130,Pool_A_Results_Table,VLOOKUP(L130,Pool_A_Offsets_Table,10)))","v":0},{"$f":"IF(ISBLANK(B130),0,VLOOKUP(B130,Pool_A_Results_Table,VLOOKUP(L130,Pool_A_Offsets_Table,12)))","v":0},{"$f":"IF(ISBLANK(B130),0,VLOOKUP(B130,Pool_A_Results_Table,VLOOKUP(L130,Pool_A_Offsets_Table,13)))","v":0},"Ashton-u-Lyne"]
[null,null,{"$f":"IF(ISBLANK(B131),0,VLOOKUP(B131,Pool_A_Results_Table,VLOOKUP(L131,Pool_A_Offsets_Table,6)))","v":0},{"$f":"IF(ISBLANK(B131),0,VLOOKUP(B131,Pool_A_Results_Table,VLOOKUP(L131,Pool_A_Offsets_Table,5)))","v":0},"",{"$f":"IF(ISBLANK(B131),\"\",VLOOKUP(B131,Pool_A_Results_Table,VLOOKUP(L131,Pool_A_Offsets_Table,3)))","v":""},{"$f":"IF(ISBLANK(B131),\"\",IF(VLOOKUP(B131,Pool_A_Results_Table,VLOOKUP(L131,Pool_A_Offsets_Table,8))=0,\"v\",VLOOKUP(B131,Pool_A_Results_Table,VLOOKUP(L131,Pool_A_Offsets_Table,8))))","v":""},{"$f":"IF(ISBLANK(B131),\"\",VLOOKUP(B131,Pool_A_Results_Table,VLOOKUP(L131,Pool_A_Offsets_Table,9)))","v":""},{"$f":"IF(ISBLANK(B131),\"\",VLOOKUP(B131,Pool_A_Results_Table,VLOOKUP(L131,Pool_A_Offsets_Table,10)))","v":""},{"$f":"IF(ISBLANK(B131),0,VLOOKUP(B131,Pool_A_Results_Table,VLOOKUP(L131,Pool_A_Offsets_Table,12)))","v":0},{"$f":"IF(ISBLANK(B131),0,VLOOKUP(B131,Pool_A_Results_Table,VLOOKUP(L131,Pool_A_Offsets_Table,13)))","v":0}]
[null,null,{"$f":"IF(ISBLANK(B132),0,VLOOKUP(B132,Pool_A_Results_Table,VLOOKUP(L132,Pool_A_Offsets_Table,6)))","v":0},{"$f":"IF(ISBLANK(B132),0,VLOOKUP(B132,Pool_A_Results_Table,VLOOKUP(L132,Pool_A_Offsets_Table,5)))","v":0},"",{"$f":"IF(ISBLANK(B132),\"\",VLOOKUP(B132,Pool_A_Results_Table,VLOOKUP(L132,Pool_A_Offsets_Table,3)))","v":""},{"$f":"IF(ISBLANK(B132),\"\",IF(VLOOKUP(B132,Pool_A_Results_Table,VLOOKUP(L132,Pool_A_Offsets_Table,8))=0,\"v\",VLOOKUP(B132,Pool_A_Results_Table,VLOOKUP(L132,Pool_A_Offsets_Table,8))))","v":""},{"$f":"IF(ISBLANK(B132),\"\",VLOOKUP(B132,Pool_A_Results_Table,VLOOKUP(L132,Pool_A_Offsets_Table,9)))","v":""},{"$f":"IF(ISBLANK(B132),\"\",VLOOKUP(B132,Pool_A_Results_Table,VLOOKUP(L132,Pool_A_Offsets_Table,10)))","v":""},{"$f":"IF(ISBLANK(B132),0,VLOOKUP(B132,Pool_A_Results_Table,VLOOKUP(L132,Pool_A_Offsets_Table,12)))","v":0},{"$f":"IF(ISBLANK(B132),0,VLOOKUP(B132,Pool_A_Results_Table,VLOOKUP(L132,Pool_A_Offsets_Table,13)))","v":0}]
[]
["Pool B"]
[]
[null,"Eccles",{"$f":"IF(ISBLANK(B136),0,VLOOKUP(B136,Pool_B_Results_Table,VLOOKUP(L136,Pool_B_Offsets_Table,6)))","v":0},{"$f":"IF(ISBLANK(B136),0,VLOOKUP(B136,Pool_B_Results_Table,VLOOKUP(L136,Pool_B_Offsets_Table,5)))","v":0},{"$f":"IF(ISBLANK(B136),\"\",VLOOKUP(B136,Pool_B_Results_Table,VLOOKUP(L136,Pool_B_Offsets_Table,2)))","v":0},{"$f":"IF(ISBLANK(B136),\"\",VLOOKUP(B136,Pool_B_Results_Table,VLOOKUP(L136,Pool_B_Offsets_Table,3)))","v":0},{"$f":"IF(ISBLANK(B136),\"\",IF(VLOOKUP(B136,Pool_B_Results_Table,VLOOKUP(L136,Pool_B_Offsets_Table,8))=0,\"v\",VLOOKUP(B136,Pool_B_Results_Table,VLOOKUP(L136,Pool_B_Offsets_Table,8))))","v":"v"},{"$f":"IF(ISBLANK(B136),\"\",VLOOKUP(B136,Pool_B_Results_Table,VLOOKUP(L136,Pool_B_Offsets_Table,9)))","v":0},{"$f":"IF(ISBLANK(B136),\"\",VLOOKUP(B136,Pool_B_Results_Table,VLOOKUP(L136,Pool_B_Offsets_Table,10)))","v":0},{"$f":"IF(ISBLANK(B136),0,VLOOKUP(B136,Pool_B_Results_Table,VLOOKUP(L136,Pool_B_Offsets_Table,12)))","v":0},{"$f":"IF(ISBLANK(B136),0,VLOOKUP(B136,Pool_B_Results_Table,VLOOKUP(L136,Pool_B_Offsets_Table,13)))","v":0},"Sefton"]
[null,"Bolton",{"$f":"IF(ISBLANK(B137),0,VLOOKUP(B137,Pool_B_Results_Table,VLOOKUP(L137,Pool_B_Offsets_Table,6)))","v":0},{"$f":"IF(ISBLANK(B137),0,VLOOKUP(B137,Pool_B_Results_Table,VLOOKUP(L137,Pool_B_Offsets_Table,5)))","v":0},{"$f":"IF(ISBLANK(B137),\"\",VLOOKUP(B137,Pool_B_Results_Table,VLOOKUP(L137,Pool_B_Offsets_Table,2)))","v":0},{"$f":"IF(ISBLANK(B137),\"\",VLOOKUP(B137,Pool_B_Results_Table,VLOOKUP(L137,Pool_B_Offsets_Table,3)))","v":0},{"$f":"IF(ISBLANK(B137),\"\",IF(VLOOKUP(B137,Pool_B_Results_Table,VLOOKUP(L137,Pool_B_Offsets_Table,8))=0,\"v\",VLOOKUP(B137,Pool_B_Results_Table,VLOOKUP(L137,Pool_B_Offsets_Table,8))))","v":"v"},{"$f":"IF(ISBLANK(B137),\"\",VLOOKUP(B137,Pool_B_Results_Table,VLOOKUP(L137,Pool_B_Offsets_Table,9)))","v":0},{"$f":"IF(ISBLANK(B137),\"\",VLOOKUP(B137,Pool_B_Results_Table,VLOOKUP(L137,Pool_B_Offsets_Table,10)))","v":0},{"$f":"IF(ISBLANK(B137),0,VLOOKUP(B137,Pool_B_Results_Table,VLOOKUP(L137,Pool_B_Offsets_Table,12)))","v":0},{"$f":"IF(ISBLANK(B137),0,VLOOKUP(B137,Pool_B_Results_Table,VLOOKUP(L137,Pool_B_Offsets_Table,13)))","v":0},"Blackburn"]
[null,null,{"$f":"IF(ISBLANK(B138),0,VLOOKUP(B138,Pool_B_Results_Table,VLOOKUP(L138,Pool_B_Offsets_Table,6)))","v":0},{"$f":"IF(ISBLANK(B138),0,VLOOKUP(B138,Pool_B_Results_Table,VLOOKUP(L138,Pool_B_Offsets_Table,5)))","v":0},{"$f":"IF(ISBLANK(B138),\"\",VLOOKUP(B138,Pool_B_Results_Table,VLOOKUP(L138,Pool_B_Offsets_Table,2)))","v":""},{"$f":"IF(ISBLANK(B138),\"\",VLOOKUP(B138,Pool_B_Results_Table,VLOOKUP(L138,Pool_B_Offsets_Table,3)))","v":""},{"$f":"IF(ISBLANK(B138),\"\",IF(VLOOKUP(B138,Pool_B_Results_Table,VLOOKUP(L138,Pool_B_Offsets_Table,8))=0,\"v\",VLOOKUP(B138,Pool_B_Results_Table,VLOOKUP(L138,Pool_B_Offsets_Table,8))))","v":""},{"$f":"IF(ISBLANK(B138),\"\",VLOOKUP(B138,Pool_B_Results_Table,VLOOKUP(L138,Pool_B_Offsets_Table,9)))","v":""},{"$f":"IF(ISBLANK(B138),\"\",VLOOKUP(B138,Pool_B_Results_Table,VLOOKUP(L138,Pool_B_Offsets_Table,10)))","v":""},{"$f":"IF(ISBLANK(B138),0,VLOOKUP(B138,Pool_B_Results_Table,VLOOKUP(L138,Pool_B_Offsets_Table,12)))","v":0},{"$f":"IF(ISBLANK(B138),0,VLOOKUP(B138,Pool_B_Results_Table,VLOOKUP(L138,Pool_B_Offsets_Table,13)))","v":0}]
[null,null,{"$f":"IF(ISBLANK(B139),0,VLOOKUP(B139,Pool_B_Results_Table,VLOOKUP(L139,Pool_B_Offsets_Table,6)))","v":0},{"$f":"IF(ISBLANK(B139),0,VLOOKUP(B139,Pool_B_Results_Table,VLOOKUP(L139,Pool_B_Offsets_Table,5)))","v":0},{"$f":"IF(ISBLANK(B139),\"\",VLOOKUP(B139,Pool_B_Results_Table,VLOOKUP(L139,Pool_B_Offsets_Table,2)))","v":""},{"$f":"IF(ISBLANK(B139),\"\",VLOOKUP(B139,Pool_B_Results_Table,VLOOKUP(L139,Pool_B_Offsets_Table,3)))","v":""},{"$f":"IF(ISBLANK(B139),\"\",IF(VLOOKUP(B139,Pool_B_Results_Table,VLOOKUP(L139,Pool_B_Offsets_Table,8))=0,\"v\",VLOOKUP(B139,Pool_B_Results_Table,VLOOKUP(L139,Pool_B_Offsets_Table,8))))","v":""},{"$f":"IF(ISBLANK(B139),\"\",VLOOKUP(B139,Pool_B_Results_Table,VLOOKUP(L139,Pool_B_Offsets_Table,9)))","v":""},{"$f":"IF(ISBLANK(B139),\"\",VLOOKUP(B139,Pool_B_Results_Table,VLOOKUP(L139,Pool_B_Offsets_Table,10)))","v":""},{"$f":"IF(ISBLANK(B139),0,VLOOKUP(B139,Pool_B_Results_Table,VLOOKUP(L139,Pool_B_Offsets_Table,12)))","v":0},{"$f":"IF(ISBLANK(B139),0,VLOOKUP(B139,Pool_B_Results_Table,VLOOKUP(L139,Pool_B_Offsets_Table,13)))","v":0}]
[]
["Pool C"]
[]
[null,"Clitheroe",{"$f":"IF(ISBLANK(B143),0,VLOOKUP(B143,Pool_C_Results_Table,VLOOKUP(L143,Pool_C_Offsets_Table,6)))","v":0},{"$f":"IF(ISBLANK(B143),0,VLOOKUP(B143,Pool_C_Results_Table,VLOOKUP(L143,Pool_C_Offsets_Table,5)))","v":0},{"$f":"IF(ISBLANK(B143),\"\",VLOOKUP(B143,Pool_C_Results_Table,VLOOKUP(L143,Pool_C_Offsets_Table,2)))","v":0},{"$f":"IF(ISBLANK(B143),\"\",VLOOKUP(B143,Pool_C_Results_Table,VLOOKUP(L143,Pool_C_Offsets_Table,3)))","v":0},{"$f":"IF(ISBLANK(B143),\"\",IF(VLOOKUP(B143,Pool_C_Results_Table,VLOOKUP(L143,Pool_C_Offsets_Table,8))=0,\"v\",VLOOKUP(B143,Pool_C_Results_Table,VLOOKUP(L143,Pool_C_Offsets_Table,8))))","v":"v"},{"$f":"IF(ISBLANK(B143),\"\",VLOOKUP(B143,Pool_C_Results_Table,VLOOKUP(L143,Pool_C_Offsets_Table,9)))","v":0},{"$f":"IF(ISBLANK(B143),\"\",VLOOKUP(B143,Pool_C_Results_Table,VLOOKUP(L143,Pool_C_Offsets_Table,10)))","v":0},{"$f":"IF(ISBLANK(B143),0,VLOOKUP(B143,Pool_C_Results_Table,VLOOKUP(L143,Pool_C_Offsets_Table,12)))","v":0},{"$f":"IF(ISBLANK(B143),0,VLOOKUP(B143,Pool_C_Results_Table,VLOOKUP(L143,Pool_C_Offsets_Table,13)))","v":0},"Heaton Moor"]
[null,"Rossendale",{"$f":"IF(ISBLANK(B144),0,VLOOKUP(B144,Pool_C_Results_Table,VLOOKUP(L144,Pool_C_Offsets_Table,6)))","v":0},{"$f":"IF(ISBLANK(B144),0,VLOOKUP(B144,Pool_C_Results_Table,VLOOKUP(L144,Pool_C_Offsets_Table,5)))","v":0},{"$f":"IF(ISBLANK(B144),\"\",VLOOKUP(B144,Pool_C_Results_Table,VLOOKUP(L144,Pool_C_Offsets_Table,2)))","v":0},{"$f":"IF(ISBLANK(B144),\"\",VLOOKUP(B144,Pool_C_Results_Table,VLOOKUP(L144,Pool_C_Offsets_Table,3)))","v":0},{"$f":"IF(ISBLANK(B144),\"\",IF(VLOOKUP(B144,Pool_C_Results_Table,VLOOKUP(L144,Pool_C_Offsets_Table,8))=0,\"v\",VLOOKUP(B144,Pool_C_Results_Table,VLOOKUP(L144,Pool_C_Offsets_Table,8))))","v":"v"},{"$f":"IF(ISBLANK(B144),\"\",VLOOKUP(B144,Pool_C_Results_Table,VLOOKUP(L144,Pool_C_Offsets_Table,9)))","v":0},{"$f":"IF(ISBLANK(B144),\"\",VLOOKUP(B144,Pool_C_Results_Table,VLOOKUP(L144,Pool_C_Offsets_Table,10)))","v":0},{"$f":"IF(ISBLANK(B144),0,VLOOKUP(B144,Pool_C_Results_Table,VLOOKUP(L144,Pool_C_Offsets_Table,12)))","v":0},{"$f":"IF(ISBLANK(B144),0,VLOOKUP(B144,Pool_C_Results_Table,VLOOKUP(L144,Pool_C_Offsets_Table,13)))","v":0},"West Park"]
[null,null,{"$f":"IF(ISBLANK(B145),0,VLOOKUP(B145,Pool_C_Results_Table,VLOOKUP(L145,Pool_C_Offsets_Table,6)))","v":0},{"$f":"IF(ISBLANK(B145),0,VLOOKUP(B145,Pool_C_Results_Table,VLOOKUP(L145,Pool_C_Offsets_Table,5)))","v":0},{"$f":"IF(ISBLANK(B145),\"\",VLOOKUP(B145,Pool_C_Results_Table,VLOOKUP(L145,Pool_C_Offsets_Table,2)))","v":""},{"$f":"IF(ISBLANK(B145),\"\",VLOOKUP(B145,Pool_C_Results_Table,VLOOKUP(L145,Pool_C_Offsets_Table,3)))","v":""},{"$f":"IF(ISBLANK(B145),\"\",IF(VLOOKUP(B145,Pool_C_Results_Table,VLOOKUP(L145,Pool_C_Offsets_Table,8))=0,\"v\",VLOOKUP(B145,Pool_C_Results_Table,VLOOKUP(L145,Pool_C_Offsets_Table,8))))","v":""},{"$f":"IF(ISBLANK(B145),\"\",VLOOKUP(B145,Pool_C_Results_Table,VLOOKUP(L145,Pool_C_Offsets_Table,9)))","v":""},{"$f":"IF(ISBLANK(B145),\"\",VLOOKUP(B145,Pool_C_Results_Table,VLOOKUP(L145,Pool_C_Offsets_Table,10)))","v":""},{"$f":"IF(ISBLANK(B145),0,VLOOKUP(B145,Pool_C_Results_Table,VLOOKUP(L145,Pool_C_Offsets_Table,12)))","v":0},{"$f":"IF(ISBLANK(B145),0,VLOOKUP(B145,Pool_C_Results_Table,VLOOKUP(L145,Pool_C_Offsets_Table,13)))","v":0}]
[null,null,{"$f":"IF(ISBLANK(B146),0,VLOOKUP(B146,Pool_C_Results_Table,VLOOKUP(L146,Pool_C_Offsets_Table,6)))","v":0},{"$f":"IF(ISBLANK(B146),0,VLOOKUP(B146,Pool_C_Results_Table,VLOOKUP(L146,Pool_C_Offsets_Table,5)))","v":0},{"$f":"IF(ISBLANK(B146),\"\",VLOOKUP(B146,Pool_C_Results_Table,VLOOKUP(L146,Pool_C_Offsets_Table,2)))","v":""},{"$f":"IF(ISBLANK(B146),\"\",VLOOKUP(B146,Pool_C_Results_Table,VLOOKUP(L146,Pool_C_Offsets_Table,3)))","v":""},{"$f":"IF(ISBLANK(B146),\"\",IF(VLOOKUP(B146,Pool_C_Results_Table,VLOOKUP(L146,Pool_C_Offsets_Table,8))=0,\"v\",VLOOKUP(B146,Pool_C_Results_Table,VLOOKUP(L146,Pool_C_Offsets_Table,8))))","v":""},{"$f":"IF(ISBLANK(B146),\"\",VLOOKUP(B146,Pool_C_Results_Table,VLOOKUP(L146,Pool_C_Offsets_Table,9)))","v":""},{"$f":"IF(ISBLANK(B146),\"\",VLOOKUP(B146,Pool_C_Results_Table,VLOOKUP(L146,Pool_C_Offsets_Table,10)))","v":""},{"$f":"IF(ISBLANK(B146),0,VLOOKUP(B146,Pool_C_Results_Table,VLOOKUP(L146,Pool_C_Offsets_Table,12)))","v":0},{"$f":"IF(ISBLANK(B146),0,VLOOKUP(B146,Pool_C_Results_Table,VLOOKUP(L146,Pool_C_Offsets_Table,13)))","v":0}]
[]
["Pool D"]
[]
[null,"Didsbury Toc H",{"$f":"IF(ISBLANK(B150),0,VLOOKUP(B150,Pool_D_Results_Table,VLOOKUP(L150,Pool_D_Offsets_Table,6)))","v":0},{"$f":"IF(ISBLANK(B150),0,VLOOKUP(B150,Pool_D_Results_Table,VLOOKUP(L150,Pool_D_Offsets_Table,5)))","v":0},{"$f":"IF(ISBLANK(B150),\"\",VLOOKUP(B150,Pool_D_Results_Table,VLOOKUP(L150,Pool_D_Offsets_Table,2)))","v":0},{"$f":"IF(ISBLANK(B150),\"\",VLOOKUP(B150,Pool_D_Results_Table,VLOOKUP(L150,Pool_D_Offsets_Table,3)))","v":0},{"$f":"IF(ISBLANK(B150),\"\",IF(VLOOKUP(B150,Pool_D_Results_Table,VLOOKUP(L150,Pool_D_Offsets_Table,8))=0,\"v\",VLOOKUP(B150,Pool_D_Results_Table,VLOOKUP(L150,Pool_D_Offsets_Table,8))))","v":"v"},{"$f":"IF(ISBLANK(B150),\"\",VLOOKUP(B150,Pool_D_Results_Table,VLOOKUP(L150,Pool_D_Offsets_Table,9)))","v":0},{"$f":"IF(ISBLANK(B150),\"\",VLOOKUP(B150,Pool_D_Results_Table,VLOOKUP(L150,Pool_D_Offsets_Table,10)))","v":0},{"$f":"IF(ISBLANK(B150),0,VLOOKUP(B150,Pool_D_Results_Table,VLOOKUP(L150,Pool_D_Offsets_Table,12)))","v":0},{"$f":"IF(ISBLANK(B150),0,VLOOKUP(B150,Pool_D_Results_Table,VLOOKUP(L150,Pool_D_Offsets_Table,13)))","v":0},"Bury"]
[null,"Orrell",{"$f":"IF(ISBLANK(B151),0,VLOOKUP(B151,Pool_D_Results_Table,VLOOKUP(L151,Pool_D_Offsets_Table,6)))","v":0},{"$f":"IF(ISBLANK(B151),0,VLOOKUP(B151,Pool_D_Results_Table,VLOOKUP(L151,Pool_D_Offsets_Table,5)))","v":0},{"$f":"IF(ISBLANK(B151),\"\",VLOOKUP(B151,Pool_D_Results_Table,VLOOKUP(L151,Pool_D_Offsets_Table,2)))","v":0},{"$f":"IF(ISBLANK(B151),\"\",VLOOKUP(B151,Pool_D_Results_Table,VLOOKUP(L151,Pool_D_Offsets_Table,3)))","v":0},{"$f":"IF(ISBLANK(B151),\"\",IF(VLOOKUP(B151,Pool_D_Results_Table,VLOOKUP(L151,Pool_D_Offsets_Table,8))=0,\"v\",VLOOKUP(B151,Pool_D_Results_Table,VLOOKUP(L151,Pool_D_Offsets_Table,8))))","v":"v"},{"$f":"IF(ISBLANK(B151),\"\",VLOOKUP(B151,Pool_D_Results_Table,VLOOKUP(L151,Pool_D_Offsets_Table,9)))","v":0},{"$f":"IF(ISBLANK(B151),\"\",VLOOKUP(B151,Pool_D_Results_Table,VLOOKUP(L151,Pool_D_Offsets_Table,10)))","v":0},{"$f":"IF(ISBLANK(B151),0,VLOOKUP(B151,Pool_D_Results_Table,VLOOKUP(L151,Pool_D_Offsets_Table,12)))","v":0},{"$f":"IF(ISBLANK(B151),0,VLOOKUP(B151,Pool_D_Results_Table,VLOOKUP(L151,Pool_D_Offsets_Table,13)))","v":0},"Burnley"]
[null,null,{"$f":"IF(ISBLANK(B152),0,VLOOKUP(B152,Pool_D_Results_Table,VLOOKUP(L152,Pool_D_Offsets_Table,6)))","v":0},{"$f":"IF(ISBLANK(B152),0,VLOOKUP(B152,Pool_D_Results_Table,VLOOKUP(L152,Pool_D_Offsets_Table,5)))","v":0},{"$f":"IF(ISBLANK(B152),\"\",VLOOKUP(B152,Pool_D_Results_Table,VLOOKUP(L152,Pool_D_Offsets_Table,2)))","v":""},{"$f":"IF(ISBLANK(B152),\"\",VLOOKUP(B152,Pool_D_Results_Table,VLOOKUP(L152,Pool_D_Offsets_Table,3)))","v":""},{"$f":"IF(ISBLANK(B152),\"\",IF(VLOOKUP(B152,Pool_D_Results_Table,VLOOKUP(L152,Pool_D_Offsets_Table,8))=0,\"v\",VLOOKUP(B152,Pool_D_Results_Table,VLOOKUP(L152,Pool_D_Offsets_Table,8))))","v":""},{"$f":"IF(ISBLANK(B152),\"\",VLOOKUP(B152,Pool_D_Results_Table,VLOOKUP(L152,Pool_D_Offsets_Table,9)))","v":""},{"$f":"IF(ISBLANK(B152),\"\",VLOOKUP(B152,Pool_D_Results_Table,VLOOKUP(L152,Pool_D_Offsets_Table,10)))","v":""},{"$f":"IF(ISBLANK(B152),0,VLOOKUP(B152,Pool_D_Results_Table,VLOOKUP(L152,Pool_D_Offsets_Table,12)))","v":0},{"$f":"IF(ISBLANK(B152),0,VLOOKUP(B152,Pool_D_Results_Table,VLOOKUP(L152,Pool_D_Offsets_Table,13)))","v":0}]
[null,null,{"$f":"IF(ISBLANK(B153),0,VLOOKUP(B153,Pool_D_Results_Table,VLOOKUP(L153,Pool_D_Offsets_Table,6)))","v":0},{"$f":"IF(ISBLANK(B153),0,VLOOKUP(B153,Pool_D_Results_Table,VLOOKUP(L153,Pool_D_Offsets_Table,5)))","v":0},{"$f":"IF(ISBLANK(B153),\"\",VLOOKUP(B153,Pool_D_Results_Table,VLOOKUP(L153,Pool_D_Offsets_Table,2)))","v":""},{"$f":"IF(ISBLANK(B153),\"\",VLOOKUP(B153,Pool_D_Results_Table,VLOOKUP(L153,Pool_D_Offsets_Table,3)))","v":""},{"$f":"IF(ISBLANK(B153),\"\",IF(VLOOKUP(B153,Pool_D_Results_Table,VLOOKUP(L153,Pool_D_Offsets_Table,8))=0,\"v\",VLOOKUP(B153,Pool_D_Results_Table,VLOOKUP(L153,Pool_D_Offsets_Table,8))))","v":""},{"$f":"IF(ISBLANK(B153),\"\",VLOOKUP(B153,Pool_D_Results_Table,VLOOKUP(L153,Pool_D_Offsets_Table,9)))","v":""},{"$f":"IF(ISBLANK(B153),\"\",VLOOKUP(B153,Pool_D_Results_Table,VLOOKUP(L153,Pool_D_Offsets_Table,10)))","v":""},{"$f":"IF(ISBLANK(B153),0,VLOOKUP(B153,Pool_D_Results_Table,VLOOKUP(L153,Pool_D_Offsets_Table,12)))","v":0},{"$f":"IF(ISBLANK(B153),0,VLOOKUP(B153,Pool_D_Results_Table,VLOOKUP(L153,Pool_D_Offsets_Table,13)))","v":0}]
[]
["MATCH DAY SIX",null,null,null,null,null,null,null,null,null,null,"2016-01-10"]
[]
["Pool A"]
[null,null,null,null,null,null,null,null,null,{"$f":"IF(ISBLANK(B159),0,VLOOKUP(B159,Results_Table,VLOOKUP(L159,Pool_A_Offsets_Table,12)))","v":0}]
[null,"Ashton-u-Lyne",{"$f":"IF(ISBLANK(B159),0,VLOOKUP(B159,Pool_A_Results_Table,VLOOKUP(L159,Pool_A_Offsets_Table,6)))","v":0},{"$f":"IF(ISBLANK(B159),0,VLOOKUP(B159,Pool_A_Results_Table,VLOOKUP(L159,Pool_A_Offsets_Table,5)))","v":0},{"$f":"IF(ISBLANK(B159),\"\",VLOOKUP(B159,Pool_A_Results_Table,VLOOKUP(L159,Pool_A_Offsets_Table,2)))","v":0},{"$f":"IF(ISBLANK(B159),\"\",VLOOKUP(B159,Pool_A_Results_Table,VLOOKUP(L159,Pool_A_Offsets_Table,3)))","v":0},{"$f":"IF(ISBLANK(B159),\"\",IF(VLOOKUP(B159,Pool_A_Results_Table,VLOOKUP(L159,Pool_A_Offsets_Table,8))=0,\"v\",VLOOKUP(B159,Pool_A_Results_Table,VLOOKUP(L159,Pool_A_Offsets_Table,8))))","v":"v"},{"$f":"IF(ISBLANK(B159),\"\",VLOOKUP(B159,Pool_A_Results_Table,VLOOKUP(L159,Pool_A_Offsets_Table,9)))","v":0},{"$f":"IF(ISBLANK(B159),\"\",VLOOKUP(B159,Pool_A_Results_Table,VLOOKUP(L159,Pool_A_Offsets_Table,10)))","v":0},{"$f":"IF(ISBLANK(B159),0,VLOOKUP(B159,Pool_A_Results_Table,VLOOKUP(L159,Pool_A_Offsets_Table,12)))","v":0},{"$f":"IF(ISBLANK(B159),0,VLOOKUP(B159,Pool_A_Results_Table,VLOOKUP(L159,Pool_A_Offsets_Table,13)))","v":0},"Southport"]
[null,"Fylde",{"$f":"IF(ISBLANK(B160),0,VLOOKUP(B160,Pool_A_Results_Table,VLOOKUP(L160,Pool_A_Offsets_Table,6)))","v":0},{"$f":"IF(ISBLANK(B160),0,VLOOKUP(B160,Pool_A_Results_Table,VLOOKUP(L160,Pool_A_Offsets_Table,5)))","v":0},0,{"$f":"IF(ISBLANK(B160),\"\",VLOOKUP(B160,Pool_A_Results_Table,VLOOKUP(L160,Pool_A_Offsets_Table,3)))","v":0},{"$f":"IF(ISBLANK(B160),\"\",IF(VLOOKUP(B160,Pool_A_Results_Table,VLOOKUP(L160,Pool_A_Offsets_Table,8))=0,\"v\",VLOOKUP(B160,Pool_A_Results_Table,VLOOKUP(L160,Pool_A_Offsets_Table,8))))","v":"v"},{"$f":"IF(ISBLANK(B160),\"\",VLOOKUP(B160,Pool_A_Results_Table,VLOOKUP(L160,Pool_A_Offsets_Table,9)))","v":0},{"$f":"IF(ISBLANK(B160),\"\",VLOOKUP(B160,Pool_A_Results_Table,VLOOKUP(L160,Pool_A_Offsets_Table,10)))","v":0},{"$f":"IF(ISBLANK(B160),0,VLOOKUP(B160,Pool_A_Results_Table,VLOOKUP(L160,Pool_A_Offsets_Table,12)))","v":0},{"$f":"IF(ISBLANK(B160),0,VLOOKUP(B160,Pool_A_Results_Table,VLOOKUP(L160,Pool_A_Offsets_Table,13)))","v":0},"Rochdale"]
[null,null,{"$f":"IF(ISBLANK(B161),0,VLOOKUP(B161,Pool_A_Results_Table,VLOOKUP(L161,Pool_A_Offsets_Table,6)))","v":0},{"$f":"IF(ISBLANK(B161),0,VLOOKUP(B161,Pool_A_Results_Table,VLOOKUP(L161,Pool_A_Offsets_Table,5)))","v":0},"",{"$f":"IF(ISBLANK(B161),\"\",VLOOKUP(B161,Pool_A_Results_Table,VLOOKUP(L161,Pool_A_Offsets_Table,3)))","v":""},{"$f":"IF(ISBLANK(B161),\"\",IF(VLOOKUP(B161,Pool_A_Results_Table,VLOOKUP(L161,Pool_A_Offsets_Table,8))=0,\"v\",VLOOKUP(B161,Pool_A_Results_Table,VLOOKUP(L161,Pool_A_Offsets_Table,8))))","v":""},{"$f":"IF(ISBLANK(B161),\"\",VLOOKUP(B161,Pool_A_Results_Table,VLOOKUP(L161,Pool_A_Offsets_Table,9)))","v":""},{"$f":"IF(ISBLANK(B161),\"\",VLOOKUP(B161,Pool_A_Results_Table,VLOOKUP(L161,Pool_A_Offsets_Table,10)))","v":""},{"$f":"IF(ISBLANK(B161),0,VLOOKUP(B161,Pool_A_Results_Table,VLOOKUP(L161,Pool_A_Offsets_Table,12)))","v":0},{"$f":"IF(ISBLANK(B161),0,VLOOKUP(B161,Pool_A_Results_Table,VLOOKUP(L161,Pool_A_Offsets_Table,13)))","v":0}]
[null,null,{"$f":"IF(ISBLANK(B162),0,VLOOKUP(B162,Pool_A_Results_Table,VLOOKUP(L162,Pool_A_Offsets_Table,6)))","v":0},{"$f":"IF(ISBLANK(B162),0,VLOOKUP(B162,Pool_A_Results_Table,VLOOKUP(L162,Pool_A_Offsets_Table,5)))","v":0},"",{"$f":"IF(ISBLANK(B162),\"\",VLOOKUP(B162,Pool_A_Results_Table,VLOOKUP(L162,Pool_A_Offsets_Table,3)))","v":""},{"$f":"IF(ISBLANK(B162),\"\",IF(VLOOKUP(B162,Pool_A_Results_Table,VLOOKUP(L162,Pool_A_Offsets_Table,8))=0,\"v\",VLOOKUP(B162,Pool_A_Results_Table,VLOOKUP(L162,Pool_A_Offsets_Table,8))))","v":""},{"$f":"IF(ISBLANK(B162),\"\",VLOOKUP(B162,Pool_A_Results_Table,VLOOKUP(L162,Pool_A_Offsets_Table,9)))","v":""},{"$f":"IF(ISBLANK(B162),\"\",VLOOKUP(B162,Pool_A_Results_Table,VLOOKUP(L162,Pool_A_Offsets_Table,10)))","v":""},{"$f":"IF(ISBLANK(B162),0,VLOOKUP(B162,Pool_A_Results_Table,VLOOKUP(L162,Pool_A_Offsets_Table,12)))","v":0},{"$f":"IF(ISBLANK(B162),0,VLOOKUP(B162,Pool_A_Results_Table,VLOOKUP(L162,Pool_A_Offsets_Table,13)))","v":0}]
[]
["Pool B"]
[]
[null,"Blackburn",{"$f":"IF(ISBLANK(B166),0,VLOOKUP(B166,Pool_B_Results_Table,VLOOKUP(L166,Pool_B_Offsets_Table,6)))","v":0},{"$f":"IF(ISBLANK(B166),0,VLOOKUP(B166,Pool_B_Results_Table,VLOOKUP(L166,Pool_B_Offsets_Table,5)))","v":0},{"$f":"IF(ISBLANK(B166),\"\",VLOOKUP(B166,Pool_B_Results_Table,VLOOKUP(L166,Pool_B_Offsets_Table,2)))","v":0},{"$f":"IF(ISBLANK(B166),\"\",VLOOKUP(B166,Pool_B_Results_Table,VLOOKUP(L166,Pool_B_Offsets_Table,3)))","v":0},{"$f":"IF(ISBLANK(B166),\"\",IF(VLOOKUP(B166,Pool_B_Results_Table,VLOOKUP(L166,Pool_B_Offsets_Table,8))=0,\"v\",VLOOKUP(B166,Pool_B_Results_Table,VLOOKUP(L166,Pool_B_Offsets_Table,8))))","v":"v"},{"$f":"IF(ISBLANK(B166),\"\",VLOOKUP(B166,Pool_B_Results_Table,VLOOKUP(L166,Pool_B_Offsets_Table,9)))","v":0},{"$f":"IF(ISBLANK(B166),\"\",VLOOKUP(B166,Pool_B_Results_Table,VLOOKUP(L166,Pool_B_Offsets_Table,10)))","v":0},{"$f":"IF(ISBLANK(B166),0,VLOOKUP(B166,Pool_B_Results_Table,VLOOKUP(L166,Pool_B_Offsets_Table,12)))","v":0},{"$f":"IF(ISBLANK(B166),0,VLOOKUP(B166,Pool_B_Results_Table,VLOOKUP(L166,Pool_B_Offsets_Table,13)))","v":0},"Eccles"]
[null,"Sefton",{"$f":"IF(ISBLANK(B167),0,VLOOKUP(B167,Pool_B_Results_Table,VLOOKUP(L167,Pool_B_Offsets_Table,6)))","v":0},{"$f":"IF(ISBLANK(B167),0,VLOOKUP(B167,Pool_B_Results_Table,VLOOKUP(L167,Pool_B_Offsets_Table,5)))","v":0},{"$f":"IF(ISBLANK(B167),\"\",VLOOKUP(B167,Pool_B_Results_Table,VLOOKUP(L167,Pool_B_Offsets_Table,2)))","v":0},{"$f":"IF(ISBLANK(B167),\"\",VLOOKUP(B167,Pool_B_Results_Table,VLOOKUP(L167,Pool_B_Offsets_Table,3)))","v":0},{"$f":"IF(ISBLANK(B167),\"\",IF(VLOOKUP(B167,Pool_B_Results_Table,VLOOKUP(L167,Pool_B_Offsets_Table,8))=0,\"v\",VLOOKUP(B167,Pool_B_Results_Table,VLOOKUP(L167,Pool_B_Offsets_Table,8))))","v":"v"},{"$f":"IF(ISBLANK(B167),\"\",VLOOKUP(B167,Pool_B_Results_Table,VLOOKUP(L167,Pool_B_Offsets_Table,9)))","v":0},{"$f":"IF(ISBLANK(B167),\"\",VLOOKUP(B167,Pool_B_Results_Table,VLOOKUP(L167,Pool_B_Offsets_Table,10)))","v":0},{"$f":"IF(ISBLANK(B167),0,VLOOKUP(B167,Pool_B_Results_Table,VLOOKUP(L167,Pool_B_Offsets_Table,12)))","v":0},{"$f":"IF(ISBLANK(B167),0,VLOOKUP(B167,Pool_B_Results_Table,VLOOKUP(L167,Pool_B_Offsets_Table,13)))","v":0},"Bolton"]
[null,null,{"$f":"IF(ISBLANK(B168),0,VLOOKUP(B168,Pool_B_Results_Table,VLOOKUP(L168,Pool_B_Offsets_Table,6)))","v":0},{"$f":"IF(ISBLANK(B168),0,VLOOKUP(B168,Pool_B_Results_Table,VLOOKUP(L168,Pool_B_Offsets_Table,5)))","v":0},{"$f":"IF(ISBLANK(B168),\"\",VLOOKUP(B168,Pool_B_Results_Table,VLOOKUP(L168,Pool_B_Offsets_Table,2)))","v":""},{"$f":"IF(ISBLANK(B168),\"\",VLOOKUP(B168,Pool_B_Results_Table,VLOOKUP(L168,Pool_B_Offsets_Table,3)))","v":""},{"$f":"IF(ISBLANK(B168),\"\",IF(VLOOKUP(B168,Pool_B_Results_Table,VLOOKUP(L168,Pool_B_Offsets_Table,8))=0,\"v\",VLOOKUP(B168,Pool_B_Results_Table,VLOOKUP(L168,Pool_B_Offsets_Table,8))))","v":""},{"$f":"IF(ISBLANK(B168),\"\",VLOOKUP(B168,Pool_B_Results_Table,VLOOKUP(L168,Pool_B_Offsets_Table,9)))","v":""},{"$f":"IF(ISBLANK(B168),\"\",VLOOKUP(B168,Pool_B_Results_Table,VLOOKUP(L168,Pool_B_Offsets_Table,10)))","v":""},{"$f":"IF(ISBLANK(B168),0,VLOOKUP(B168,Pool_B_Results_Table,VLOOKUP(L168,Pool_B_Offsets_Table,12)))","v":0},{"$f":"IF(ISBLANK(B168),0,VLOOKUP(B168,Pool_B_Results_Table,VLOOKUP(L168,Pool_B_Offsets_Table,13)))","v":0}]
[null,null,{"$f":"IF(ISBLANK(B169),0,VLOOKUP(B169,Pool_B_Results_Table,VLOOKUP(L169,Pool_B_Offsets_Table,6)))","v":0},{"$f":"IF(ISBLANK(B169),0,VLOOKUP(B169,Pool_B_Results_Table,VLOOKUP(L169,Pool_B_Offsets_Table,5)))","v":0},{"$f":"IF(ISBLANK(B169),\"\",VLOOKUP(B169,Pool_B_Results_Table,VLOOKUP(L169,Pool_B_Offsets_Table,2)))","v":""},{"$f":"IF(ISBLANK(B169),\"\",VLOOKUP(B169,Pool_B_Results_Table,VLOOKUP(L169,Pool_B_Offsets_Table,3)))","v":""},{"$f":"IF(ISBLANK(B169),\"\",IF(VLOOKUP(B169,Pool_B_Results_Table,VLOOKUP(L169,Pool_B_Offsets_Table,8))=0,\"v\",VLOOKUP(B169,Pool_B_Results_Table,VLOOKUP(L169,Pool_B_Offsets_Table,8))))","v":""},{"$f":"IF(ISBLANK(B169),\"\",VLOOKUP(B169,Pool_B_Results_Table,VLOOKUP(L169,Pool_B_Offsets_Table,9)))","v":""},{"$f":"IF(ISBLANK(B169),\"\",VLOOKUP(B169,Pool_B_Results_Table,VLOOKUP(L169,Pool_B_Offsets_Table,10)))","v":""},{"$f":"IF(ISBLANK(B169),0,VLOOKUP(B169,Pool_B_Results_Table,VLOOKUP(L169,Pool_B_Offsets_Table,12)))","v":0},{"$f":"IF(ISBLANK(B169),0,VLOOKUP(B169,Pool_B_Results_Table,VLOOKUP(L169,Pool_B_Offsets_Table,13)))","v":0}]
[]
["Pool C"]
[]
[null,"West Park",{"$f":"IF(ISBLANK(B173),0,VLOOKUP(B173,Pool_C_Results_Table,VLOOKUP(L173,Pool_C_Offsets_Table,6)))","v":0},{"$f":"IF(ISBLANK(B173),0,VLOOKUP(B173,Pool_C_Results_Table,VLOOKUP(L173,Pool_C_Offsets_Table,5)))","v":0},{"$f":"IF(ISBLANK(B173),\"\",VLOOKUP(B173,Pool_C_Results_Table,VLOOKUP(L173,Pool_C_Offsets_Table,2)))","v":0},{"$f":"IF(ISBLANK(B173),\"\",VLOOKUP(B173,Pool_C_Results_Table,VLOOKUP(L173,Pool_C_Offsets_Table,3)))","v":0},{"$f":"IF(ISBLANK(B173),\"\",IF(VLOOKUP(B173,Pool_C_Results_Table,VLOOKUP(L173,Pool_C_Offsets_Table,8))=0,\"v\",VLOOKUP(B173,Pool_C_Results_Table,VLOOKUP(L173,Pool_C_Offsets_Table,8))))","v":"v"},{"$f":"IF(ISBLANK(B173),\"\",VLOOKUP(B173,Pool_C_Results_Table,VLOOKUP(L173,Pool_C_Offsets_Table,9)))","v":0},{"$f":"IF(ISBLANK(B173),\"\",VLOOKUP(B173,Pool_C_Results_Table,VLOOKUP(L173,Pool_C_Offsets_Table,10)))","v":0},{"$f":"IF(ISBLANK(B173),0,VLOOKUP(B173,Pool_C_Results_Table,VLOOKUP(L173,Pool_C_Offsets_Table,12)))","v":0},{"$f":"IF(ISBLANK(B173),0,VLOOKUP(B173,Pool_C_Results_Table,VLOOKUP(L173,Pool_C_Offsets_Table,13)))","v":0},"Clitheroe"]
[null,"Heaton Moor",{"$f":"IF(ISBLANK(B174),0,VLOOKUP(B174,Pool_C_Results_Table,VLOOKUP(L174,Pool_C_Offsets_Table,6)))","v":0},{"$f":"IF(ISBLANK(B174),0,VLOOKUP(B174,Pool_C_Results_Table,VLOOKUP(L174,Pool_C_Offsets_Table,5)))","v":0},{"$f":"IF(ISBLANK(B174),\"\",VLOOKUP(B174,Pool_C_Results_Table,VLOOKUP(L174,Pool_C_Offsets_Table,2)))","v":0},{"$f":"IF(ISBLANK(B174),\"\",VLOOKUP(B174,Pool_C_Results_Table,VLOOKUP(L174,Pool_C_Offsets_Table,3)))","v":0},{"$f":"IF(ISBLANK(B174),\"\",IF(VLOOKUP(B174,Pool_C_Results_Table,VLOOKUP(L174,Pool_C_Offsets_Table,8))=0,\"v\",VLOOKUP(B174,Pool_C_Results_Table,VLOOKUP(L174,Pool_C_Offsets_Table,8))))","v":"v"},{"$f":"IF(ISBLANK(B174),\"\",VLOOKUP(B174,Pool_C_Results_Table,VLOOKUP(L174,Pool_C_Offsets_Table,9)))","v":0},{"$f":"IF(ISBLANK(B174),\"\",VLOOKUP(B174,Pool_C_Results_Table,VLOOKUP(L174,Pool_C_Offsets_Table,10)))","v":0},{"$f":"IF(ISBLANK(B174),0,VLOOKUP(B174,Pool_C_Results_Table,VLOOKUP(L174,Pool_C_Offsets_Table,12)))","v":0},{"$f":"IF(ISBLANK(B174),0,VLOOKUP(B174,Pool_C_Results_Table,VLOOKUP(L174,Pool_C_Offsets_Table,13)))","v":0},"Rossendale"]
[null,null,{"$f":"IF(ISBLANK(B175),0,VLOOKUP(B175,Pool_C_Results_Table,VLOOKUP(L175,Pool_C_Offsets_Table,6)))","v":0},{"$f":"IF(ISBLANK(B175),0,VLOOKUP(B175,Pool_C_Results_Table,VLOOKUP(L175,Pool_C_Offsets_Table,5)))","v":0},{"$f":"IF(ISBLANK(B175),\"\",VLOOKUP(B175,Pool_C_Results_Table,VLOOKUP(L175,Pool_C_Offsets_Table,2)))","v":""},{"$f":"IF(ISBLANK(B175),\"\",VLOOKUP(B175,Pool_C_Results_Table,VLOOKUP(L175,Pool_C_Offsets_Table,3)))","v":""},{"$f":"IF(ISBLANK(B175),\"\",IF(VLOOKUP(B175,Pool_C_Results_Table,VLOOKUP(L175,Pool_C_Offsets_Table,8))=0,\"v\",VLOOKUP(B175,Pool_C_Results_Table,VLOOKUP(L175,Pool_C_Offsets_Table,8))))","v":""},{"$f":"IF(ISBLANK(B175),\"\",VLOOKUP(B175,Pool_C_Results_Table,VLOOKUP(L175,Pool_C_Offsets_Table,9)))","v":""},{"$f":"IF(ISBLANK(B175),\"\",VLOOKUP(B175,Pool_C_Results_Table,VLOOKUP(L175,Pool_C_Offsets_Table,10)))","v":""},{"$f":"IF(ISBLANK(B175),0,VLOOKUP(B175,Pool_C_Results_Table,VLOOKUP(L175,Pool_C_Offsets_Table,12)))","v":0},{"$f":"IF(ISBLANK(B175),0,VLOOKUP(B175,Pool_C_Results_Table,VLOOKUP(L175,Pool_C_Offsets_Table,13)))","v":0}]
[null,null,{"$f":"IF(ISBLANK(B176),0,VLOOKUP(B176,Pool_C_Results_Table,VLOOKUP(L176,Pool_C_Offsets_Table,6)))","v":0},{"$f":"IF(ISBLANK(B176),0,VLOOKUP(B176,Pool_C_Results_Table,VLOOKUP(L176,Pool_C_Offsets_Table,5)))","v":0},{"$f":"IF(ISBLANK(B176),\"\",VLOOKUP(B176,Pool_C_Results_Table,VLOOKUP(L176,Pool_C_Offsets_Table,2)))","v":""},{"$f":"IF(ISBLANK(B176),\"\",VLOOKUP(B176,Pool_C_Results_Table,VLOOKUP(L176,Pool_C_Offsets_Table,3)))","v":""},{"$f":"IF(ISBLANK(B176),\"\",IF(VLOOKUP(B176,Pool_C_Results_Table,VLOOKUP(L176,Pool_C_Offsets_Table,8))=0,\"v\",VLOOKUP(B176,Pool_C_Results_Table,VLOOKUP(L176,Pool_C_Offsets_Table,8))))","v":""},{"$f":"IF(ISBLANK(B176),\"\",VLOOKUP(B176,Pool_C_Results_Table,VLOOKUP(L176,Pool_C_Offsets_Table,9)))","v":""},{"$f":"IF(ISBLANK(B176),\"\",VLOOKUP(B176,Pool_C_Results_Table,VLOOKUP(L176,Pool_C_Offsets_Table,10)))","v":""},{"$f":"IF(ISBLANK(B176),0,VLOOKUP(B176,Pool_C_Results_Table,VLOOKUP(L176,Pool_C_Offsets_Table,12)))","v":0},{"$f":"IF(ISBLANK(B176),0,VLOOKUP(B176,Pool_C_Results_Table,VLOOKUP(L176,Pool_C_Offsets_Table,13)))","v":0}]
[]
["Pool D"]
[]
[null,"Burnley",{"$f":"IF(ISBLANK(B180),0,VLOOKUP(B180,Pool_D_Results_Table,VLOOKUP(L180,Pool_D_Offsets_Table,6)))","v":0},{"$f":"IF(ISBLANK(B180),0,VLOOKUP(B180,Pool_D_Results_Table,VLOOKUP(L180,Pool_D_Offsets_Table,5)))","v":0},{"$f":"IF(ISBLANK(B180),\"\",VLOOKUP(B180,Pool_D_Results_Table,VLOOKUP(L180,Pool_D_Offsets_Table,2)))","v":0},{"$f":"IF(ISBLANK(B180),\"\",VLOOKUP(B180,Pool_D_Results_Table,VLOOKUP(L180,Pool_D_Offsets_Table,3)))","v":0},{"$f":"IF(ISBLANK(B180),\"\",IF(VLOOKUP(B180,Pool_D_Results_Table,VLOOKUP(L180,Pool_D_Offsets_Table,8))=0,\"v\",VLOOKUP(B180,Pool_D_Results_Table,VLOOKUP(L180,Pool_D_Offsets_Table,8))))","v":"v"},{"$f":"IF(ISBLANK(B180),\"\",VLOOKUP(B180,Pool_D_Results_Table,VLOOKUP(L180,Pool_D_Offsets_Table,9)))","v":0},{"$f":"IF(ISBLANK(B180),\"\",VLOOKUP(B180,Pool_D_Results_Table,VLOOKUP(L180,Pool_D_Offsets_Table,10)))","v":0},{"$f":"IF(ISBLANK(B180),0,VLOOKUP(B180,Pool_D_Results_Table,VLOOKUP(L180,Pool_D_Offsets_Table,12)))","v":0},{"$f":"IF(ISBLANK(B180),0,VLOOKUP(B180,Pool_D_Results_Table,VLOOKUP(L180,Pool_D_Offsets_Table,13)))","v":0},"Didsbury Toc H"]
[null,"Bury",{"$f":"IF(ISBLANK(B181),0,VLOOKUP(B181,Pool_D_Results_Table,VLOOKUP(L181,Pool_D_Offsets_Table,6)))","v":0},{"$f":"IF(ISBLANK(B181),0,VLOOKUP(B181,Pool_D_Results_Table,VLOOKUP(L181,Pool_D_Offsets_Table,5)))","v":0},{"$f":"IF(ISBLANK(B181),\"\",VLOOKUP(B181,Pool_D_Results_Table,VLOOKUP(L181,Pool_D_Offsets_Table,2)))","v":0},{"$f":"IF(ISBLANK(B181),\"\",VLOOKUP(B181,Pool_D_Results_Table,VLOOKUP(L181,Pool_D_Offsets_Table,3)))","v":0},{"$f":"IF(ISBLANK(B181),\"\",IF(VLOOKUP(B181,Pool_D_Results_Table,VLOOKUP(L181,Pool_D_Offsets_Table,8))=0,\"v\",VLOOKUP(B181,Pool_D_Results_Table,VLOOKUP(L181,Pool_D_Offsets_Table,8))))","v":"v"},{"$f":"IF(ISBLANK(B181),\"\",VLOOKUP(B181,Pool_D_Results_Table,VLOOKUP(L181,Pool_D_Offsets_Table,9)))","v":0},{"$f":"IF(ISBLANK(B181),\"\",VLOOKUP(B181,Pool_D_Results_Table,VLOOKUP(L181,Pool_D_Offsets_Table,10)))","v":0},{"$f":"IF(ISBLANK(B181),0,VLOOKUP(B181,Pool_D_Results_Table,VLOOKUP(L181,Pool_D_Offsets_Table,12)))","v":0},{"$f":"IF(ISBLANK(B181),0,VLOOKUP(B181,Pool_D_Results_Table,VLOOKUP(L181,Pool_D_Offsets_Table,13)))","v":0},"Orrell"]
[null,null,{"$f":"IF(ISBLANK(B182),0,VLOOKUP(B182,Pool_D_Results_Table,VLOOKUP(L182,Pool_D_Offsets_Table,6)))","v":0},{"$f":"IF(ISBLANK(B182),0,VLOOKUP(B182,Pool_D_Results_Table,VLOOKUP(L182,Pool_D_Offsets_Table,5)))","v":0},{"$f":"IF(ISBLANK(B182),\"\",VLOOKUP(B182,Pool_D_Results_Table,VLOOKUP(L182,Pool_D_Offsets_Table,2)))","v":""},{"$f":"IF(ISBLANK(B182),\"\",VLOOKUP(B182,Pool_D_Results_Table,VLOOKUP(L182,Pool_D_Offsets_Table,3)))","v":""},{"$f":"IF(ISBLANK(B182),\"\",IF(VLOOKUP(B182,Pool_D_Results_Table,VLOOKUP(L182,Pool_D_Offsets_Table,8))=0,\"v\",VLOOKUP(B182,Pool_D_Results_Table,VLOOKUP(L182,Pool_D_Offsets_Table,8))))","v":""},{"$f":"IF(ISBLANK(B182),\"\",VLOOKUP(B182,Pool_D_Results_Table,VLOOKUP(L182,Pool_D_Offsets_Table,9)))","v":""},{"$f":"IF(ISBLANK(B182),\"\",VLOOKUP(B182,Pool_D_Results_Table,VLOOKUP(L182,Pool_D_Offsets_Table,10)))","v":""},{"$f":"IF(ISBLANK(B182),0,VLOOKUP(B182,Pool_D_Results_Table,VLOOKUP(L182,Pool_D_Offsets_Table,12)))","v":0},{"$f":"IF(ISBLANK(B182),0,VLOOKUP(B182,Pool_D_Results_Table,VLOOKUP(L182,Pool_D_Offsets_Table,13)))","v":0}]
[null,null,{"$f":"IF(ISBLANK(B183),0,VLOOKUP(B183,Pool_D_Results_Table,VLOOKUP(L183,Pool_D_Offsets_Table,6)))","v":0},{"$f":"IF(ISBLANK(B183),0,VLOOKUP(B183,Pool_D_Results_Table,VLOOKUP(L183,Pool_D_Offsets_Table,5)))","v":0},{"$f":"IF(ISBLANK(B183),\"\",VLOOKUP(B183,Pool_D_Results_Table,VLOOKUP(L183,Pool_D_Offsets_Table,2)))","v":""},{"$f":"IF(ISBLANK(B183),\"\",VLOOKUP(B183,Pool_D_Results_Table,VLOOKUP(L183,Pool_D_Offsets_Table,3)))","v":""},{"$f":"IF(ISBLANK(B183),\"\",IF(VLOOKUP(B183,Pool_D_Results_Table,VLOOKUP(L183,Pool_D_Offsets_Table,8))=0,\"v\",VLOOKUP(B183,Pool_D_Results_Table,VLOOKUP(L183,Pool_D_Offsets_Table,8))))","v":""},{"$f":"IF(ISBLANK(B183),\"\",VLOOKUP(B183,Pool_D_Results_Table,VLOOKUP(L183,Pool_D_Offsets_Table,9)))","v":""},{"$f":"IF(ISBLANK(B183),\"\",VLOOKUP(B183,Pool_D_Results_Table,VLOOKUP(L183,Pool_D_Offsets_Table,10)))","v":""},{"$f":"IF(ISBLANK(B183),0,VLOOKUP(B183,Pool_D_Results_Table,VLOOKUP(L183,Pool_D_Offsets_Table,12)))","v":0},{"$f":"IF(ISBLANK(B183),0,VLOOKUP(B183,Pool_D_Results_Table,VLOOKUP(L183,Pool_D_Offsets_Table,13)))","v":0}]
[]
["MATCH DAY SEVEN",null,null,null,null,null,null,null,null,null,null,"2016-01-24"]
[]
["Pool A"]
[]
[null,"Southport",{"$f":"IF(ISBLANK(B189),0,VLOOKUP(B189,Pool_A_Results_Table,VLOOKUP(L189,Pool_A_Offsets_Table,6)))","v":0},{"$f":"IF(ISBLANK(B189),0,VLOOKUP(B189,Pool_A_Results_Table,VLOOKUP(L189,Pool_A_Offsets_Table,5)))","v":0},{"$f":"IF(ISBLANK(B189),\"\",VLOOKUP(B189,Pool_A_Results_Table,VLOOKUP(L189,Pool_A_Offsets_Table,2)))","v":0},{"$f":"IF(ISBLANK(B189),\"\",VLOOKUP(B189,Pool_A_Results_Table,VLOOKUP(L189,Pool_A_Offsets_Table,3)))","v":0},{"$f":"IF(ISBLANK(B189),\"\",IF(VLOOKUP(B189,Pool_A_Results_Table,VLOOKUP(L189,Pool_A_Offsets_Table,8))=0,\"v\",VLOOKUP(B189,Pool_A_Results_Table,VLOOKUP(L189,Pool_A_Offsets_Table,8))))","v":"v"},{"$f":"IF(ISBLANK(B189),\"\",VLOOKUP(B189,Pool_A_Results_Table,VLOOKUP(L189,Pool_A_Offsets_Table,9)))","v":0},{"$f":"IF(ISBLANK(B189),\"\",VLOOKUP(B189,Pool_A_Results_Table,VLOOKUP(L189,Pool_A_Offsets_Table,10)))","v":0},{"$f":"IF(ISBLANK(B189),0,VLOOKUP(B189,Pool_A_Results_Table,VLOOKUP(L189,Pool_A_Offsets_Table,12)))","v":0},{"$f":"IF(ISBLANK(B189),0,VLOOKUP(B189,Pool_A_Results_Table,VLOOKUP(L189,Pool_A_Offsets_Table,13)))","v":0},"Liverpool Collegiate"]
[null,"Manchester",{"$f":"IF(ISBLANK(B190),0,VLOOKUP(B190,Pool_A_Results_Table,VLOOKUP(L190,Pool_A_Offsets_Table,6)))","v":0},{"$f":"IF(ISBLANK(B190),0,VLOOKUP(B190,Pool_A_Results_Table,VLOOKUP(L190,Pool_A_Offsets_Table,5)))","v":0},0,{"$f":"IF(ISBLANK(B190),\"\",VLOOKUP(B190,Pool_A_Results_Table,VLOOKUP(L190,Pool_A_Offsets_Table,3)))","v":0},{"$f":"IF(ISBLANK(B190),\"\",IF(VLOOKUP(B190,Pool_A_Results_Table,VLOOKUP(L190,Pool_A_Offsets_Table,8))=0,\"v\",VLOOKUP(B190,Pool_A_Results_Table,VLOOKUP(L190,Pool_A_Offsets_Table,8))))","v":"v"},{"$f":"IF(ISBLANK(B190),\"\",VLOOKUP(B190,Pool_A_Results_Table,VLOOKUP(L190,Pool_A_Offsets_Table,9)))","v":0},{"$f":"IF(ISBLANK(B190),\"\",VLOOKUP(B190,Pool_A_Results_Table,VLOOKUP(L190,Pool_A_Offsets_Table,10)))","v":0},{"$f":"IF(ISBLANK(B190),0,VLOOKUP(B190,Pool_A_Results_Table,VLOOKUP(L190,Pool_A_Offsets_Table,12)))","v":0},{"$f":"IF(ISBLANK(B190),0,VLOOKUP(B190,Pool_A_Results_Table,VLOOKUP(L190,Pool_A_Offsets_Table,13)))","v":0},"Rochdale"]
[null,null,{"$f":"IF(ISBLANK(B191),0,VLOOKUP(B191,Pool_A_Results_Table,VLOOKUP(L191,Pool_A_Offsets_Table,6)))","v":0},{"$f":"IF(ISBLANK(B191),0,VLOOKUP(B191,Pool_A_Results_Table,VLOOKUP(L191,Pool_A_Offsets_Table,5)))","v":0},"",{"$f":"IF(ISBLANK(B191),\"\",VLOOKUP(B191,Pool_A_Results_Table,VLOOKUP(L191,Pool_A_Offsets_Table,3)))","v":""},{"$f":"IF(ISBLANK(B191),\"\",IF(VLOOKUP(B191,Pool_A_Results_Table,VLOOKUP(L191,Pool_A_Offsets_Table,8))=0,\"v\",VLOOKUP(B191,Pool_A_Results_Table,VLOOKUP(L191,Pool_A_Offsets_Table,8))))","v":""},{"$f":"IF(ISBLANK(B191),\"\",VLOOKUP(B191,Pool_A_Results_Table,VLOOKUP(L191,Pool_A_Offsets_Table,9)))","v":""},{"$f":"IF(ISBLANK(B191),\"\",VLOOKUP(B191,Pool_A_Results_Table,VLOOKUP(L191,Pool_A_Offsets_Table,10)))","v":""},{"$f":"IF(ISBLANK(B191),0,VLOOKUP(B191,Pool_A_Results_Table,VLOOKUP(L191,Pool_A_Offsets_Table,12)))","v":0},{"$f":"IF(ISBLANK(B191),0,VLOOKUP(B191,Pool_A_Results_Table,VLOOKUP(L191,Pool_A_Offsets_Table,13)))","v":0}]
[null,null,{"$f":"IF(ISBLANK(B192),0,VLOOKUP(B192,Pool_A_Results_Table,VLOOKUP(L192,Pool_A_Offsets_Table,6)))","v":0},{"$f":"IF(ISBLANK(B192),0,VLOOKUP(B192,Pool_A_Results_Table,VLOOKUP(L192,Pool_A_Offsets_Table,5)))","v":0},"",{"$f":"IF(ISBLANK(B192),\"\",VLOOKUP(B192,Pool_A_Results_Table,VLOOKUP(L192,Pool_A_Offsets_Table,3)))","v":""},{"$f":"IF(ISBLANK(B192),\"\",IF(VLOOKUP(B192,Pool_A_Results_Table,VLOOKUP(L192,Pool_A_Offsets_Table,8))=0,\"v\",VLOOKUP(B192,Pool_A_Results_Table,VLOOKUP(L192,Pool_A_Offsets_Table,8))))","v":""},{"$f":"IF(ISBLANK(B192),\"\",VLOOKUP(B192,Pool_A_Results_Table,VLOOKUP(L192,Pool_A_Offsets_Table,9)))","v":""},{"$f":"IF(ISBLANK(B192),\"\",VLOOKUP(B192,Pool_A_Results_Table,VLOOKUP(L192,Pool_A_Offsets_Table,10)))","v":""},{"$f":"IF(ISBLANK(B192),0,VLOOKUP(B192,Pool_A_Results_Table,VLOOKUP(L192,Pool_A_Offsets_Table,12)))","v":0},{"$f":"IF(ISBLANK(B192),0,VLOOKUP(B192,Pool_A_Results_Table,VLOOKUP(L192,Pool_A_Offsets_Table,13)))","v":0}]
[]
["Pool B"]
[]
[null,"Eccles",{"$f":"IF(ISBLANK(B196),0,VLOOKUP(B196,Pool_B_Results_Table,VLOOKUP(L196,Pool_B_Offsets_Table,6)))","v":0},{"$f":"IF(ISBLANK(B196),0,VLOOKUP(B196,Pool_B_Results_Table,VLOOKUP(L196,Pool_B_Offsets_Table,5)))","v":0},{"$f":"IF(ISBLANK(B196),\"\",VLOOKUP(B196,Pool_B_Results_Table,VLOOKUP(L196,Pool_B_Offsets_Table,2)))","v":0},{"$f":"IF(ISBLANK(B196),\"\",VLOOKUP(B196,Pool_B_Results_Table,VLOOKUP(L196,Pool_B_Offsets_Table,3)))","v":0},{"$f":"IF(ISBLANK(B196),\"\",IF(VLOOKUP(B196,Pool_B_Results_Table,VLOOKUP(L196,Pool_B_Offsets_Table,8))=0,\"v\",VLOOKUP(B196,Pool_B_Results_Table,VLOOKUP(L196,Pool_B_Offsets_Table,8))))","v":"v"},{"$f":"IF(ISBLANK(B196),\"\",VLOOKUP(B196,Pool_B_Results_Table,VLOOKUP(L196,Pool_B_Offsets_Table,9)))","v":0},{"$f":"IF(ISBLANK(B196),\"\",VLOOKUP(B196,Pool_B_Results_Table,VLOOKUP(L196,Pool_B_Offsets_Table,10)))","v":0},{"$f":"IF(ISBLANK(B196),0,VLOOKUP(B196,Pool_B_Results_Table,VLOOKUP(L196,Pool_B_Offsets_Table,12)))","v":0},{"$f":"IF(ISBLANK(B196),0,VLOOKUP(B196,Pool_B_Results_Table,VLOOKUP(L196,Pool_B_Offsets_Table,13)))","v":0},"Ormskirk"]
[null,"Vale of Lune",{"$f":"IF(ISBLANK(B197),0,VLOOKUP(B197,Pool_B_Results_Table,VLOOKUP(L197,Pool_B_Offsets_Table,6)))","v":0},{"$f":"IF(ISBLANK(B197),0,VLOOKUP(B197,Pool_B_Results_Table,VLOOKUP(L197,Pool_B_Offsets_Table,5)))","v":0},{"$f":"IF(ISBLANK(B197),\"\",VLOOKUP(B197,Pool_B_Results_Table,VLOOKUP(L197,Pool_B_Offsets_Table,2)))","v":0},{"$f":"IF(ISBLANK(B197),\"\",VLOOKUP(B197,Pool_B_Results_Table,VLOOKUP(L197,Pool_B_Offsets_Table,3)))","v":0},{"$f":"IF(ISBLANK(B197),\"\",IF(VLOOKUP(B197,Pool_B_Results_Table,VLOOKUP(L197,Pool_B_Offsets_Table,8))=0,\"v\",VLOOKUP(B197,Pool_B_Results_Table,VLOOKUP(L197,Pool_B_Offsets_Table,8))))","v":"v"},{"$f":"IF(ISBLANK(B197),\"\",VLOOKUP(B197,Pool_B_Results_Table,VLOOKUP(L197,Pool_B_Offsets_Table,9)))","v":0},{"$f":"IF(ISBLANK(B197),\"\",VLOOKUP(B197,Pool_B_Results_Table,VLOOKUP(L197,Pool_B_Offsets_Table,10)))","v":0},{"$f":"IF(ISBLANK(B197),0,VLOOKUP(B197,Pool_B_Results_Table,VLOOKUP(L197,Pool_B_Offsets_Table,12)))","v":0},{"$f":"IF(ISBLANK(B197),0,VLOOKUP(B197,Pool_B_Results_Table,VLOOKUP(L197,Pool_B_Offsets_Table,13)))","v":0},"Bolton"]
[null,null,{"$f":"IF(ISBLANK(B198),0,VLOOKUP(B198,Pool_B_Results_Table,VLOOKUP(L198,Pool_B_Offsets_Table,6)))","v":0},{"$f":"IF(ISBLANK(B198),0,VLOOKUP(B198,Pool_B_Results_Table,VLOOKUP(L198,Pool_B_Offsets_Table,5)))","v":0},{"$f":"IF(ISBLANK(B198),\"\",VLOOKUP(B198,Pool_B_Results_Table,VLOOKUP(L198,Pool_B_Offsets_Table,2)))","v":""},{"$f":"IF(ISBLANK(B198),\"\",VLOOKUP(B198,Pool_B_Results_Table,VLOOKUP(L198,Pool_B_Offsets_Table,3)))","v":""},{"$f":"IF(ISBLANK(B198),\"\",IF(VLOOKUP(B198,Pool_B_Results_Table,VLOOKUP(L198,Pool_B_Offsets_Table,8))=0,\"v\",VLOOKUP(B198,Pool_B_Results_Table,VLOOKUP(L198,Pool_B_Offsets_Table,8))))","v":""},{"$f":"IF(ISBLANK(B198),\"\",VLOOKUP(B198,Pool_B_Results_Table,VLOOKUP(L198,Pool_B_Offsets_Table,9)))","v":""},{"$f":"IF(ISBLANK(B198),\"\",VLOOKUP(B198,Pool_B_Results_Table,VLOOKUP(L198,Pool_B_Offsets_Table,10)))","v":""},{"$f":"IF(ISBLANK(B198),0,VLOOKUP(B198,Pool_B_Results_Table,VLOOKUP(L198,Pool_B_Offsets_Table,12)))","v":0},{"$f":"IF(ISBLANK(B198),0,VLOOKUP(B198,Pool_B_Results_Table,VLOOKUP(L198,Pool_B_Offsets_Table,13)))","v":0}]
[null,null,{"$f":"IF(ISBLANK(B199),0,VLOOKUP(B199,Pool_B_Results_Table,VLOOKUP(L199,Pool_B_Offsets_Table,6)))","v":0},{"$f":"IF(ISBLANK(B199),0,VLOOKUP(B199,Pool_B_Results_Table,VLOOKUP(L199,Pool_B_Offsets_Table,5)))","v":0},{"$f":"IF(ISBLANK(B199),\"\",VLOOKUP(B199,Pool_B_Results_Table,VLOOKUP(L199,Pool_B_Offsets_Table,2)))","v":""},{"$f":"IF(ISBLANK(B199),\"\",VLOOKUP(B199,Pool_B_Results_Table,VLOOKUP(L199,Pool_B_Offsets_Table,3)))","v":""},{"$f":"IF(ISBLANK(B199),\"\",IF(VLOOKUP(B199,Pool_B_Results_Table,VLOOKUP(L199,Pool_B_Offsets_Table,8))=0,\"v\",VLOOKUP(B199,Pool_B_Results_Table,VLOOKUP(L199,Pool_B_Offsets_Table,8))))","v":""},{"$f":"IF(ISBLANK(B199),\"\",VLOOKUP(B199,Pool_B_Results_Table,VLOOKUP(L199,Pool_B_Offsets_Table,9)))","v":""},{"$f":"IF(ISBLANK(B199),\"\",VLOOKUP(B199,Pool_B_Results_Table,VLOOKUP(L199,Pool_B_Offsets_Table,10)))","v":""},{"$f":"IF(ISBLANK(B199),0,VLOOKUP(B199,Pool_B_Results_Table,VLOOKUP(L199,Pool_B_Offsets_Table,12)))","v":0},{"$f":"IF(ISBLANK(B199),0,VLOOKUP(B199,Pool_B_Results_Table,VLOOKUP(L199,Pool_B_Offsets_Table,13)))","v":0}]
[]
["Pool C"]
[]
[null,"Clitheroe",{"$f":"IF(ISBLANK(B203),0,VLOOKUP(B203,Pool_C_Results_Table,VLOOKUP(L203,Pool_C_Offsets_Table,6)))","v":0},{"$f":"IF(ISBLANK(B203),0,VLOOKUP(B203,Pool_C_Results_Table,VLOOKUP(L203,Pool_C_Offsets_Table,5)))","v":0},{"$f":"IF(ISBLANK(B203),\"\",VLOOKUP(B203,Pool_C_Results_Table,VLOOKUP(L203,Pool_C_Offsets_Table,2)))","v":0},{"$f":"IF(ISBLANK(B203),\"\",VLOOKUP(B203,Pool_C_Results_Table,VLOOKUP(L203,Pool_C_Offsets_Table,3)))","v":0},{"$f":"IF(ISBLANK(B203),\"\",IF(VLOOKUP(B203,Pool_C_Results_Table,VLOOKUP(L203,Pool_C_Offsets_Table,8))=0,\"v\",VLOOKUP(B203,Pool_C_Results_Table,VLOOKUP(L203,Pool_C_Offsets_Table,8))))","v":"v"},{"$f":"IF(ISBLANK(B203),\"\",VLOOKUP(B203,Pool_C_Results_Table,VLOOKUP(L203,Pool_C_Offsets_Table,9)))","v":0},{"$f":"IF(ISBLANK(B203),\"\",VLOOKUP(B203,Pool_C_Results_Table,VLOOKUP(L203,Pool_C_Offsets_Table,10)))","v":0},{"$f":"IF(ISBLANK(B203),0,VLOOKUP(B203,Pool_C_Results_Table,VLOOKUP(L203,Pool_C_Offsets_Table,12)))","v":0},{"$f":"IF(ISBLANK(B203),0,VLOOKUP(B203,Pool_C_Results_Table,VLOOKUP(L203,Pool_C_Offsets_Table,13)))","v":0},"Sedgley Park"]
[null,"Preston Grasshoppers",{"$f":"IF(ISBLANK(B204),0,VLOOKUP(B204,Pool_C_Results_Table,VLOOKUP(L204,Pool_C_Offsets_Table,6)))","v":0},{"$f":"IF(ISBLANK(B204),0,VLOOKUP(B204,Pool_C_Results_Table,VLOOKUP(L204,Pool_C_Offsets_Table,5)))","v":0},{"$f":"IF(ISBLANK(B204),\"\",VLOOKUP(B204,Pool_C_Results_Table,VLOOKUP(L204,Pool_C_Offsets_Table,2)))","v":0},{"$f":"IF(ISBLANK(B204),\"\",VLOOKUP(B204,Pool_C_Results_Table,VLOOKUP(L204,Pool_C_Offsets_Table,3)))","v":0},{"$f":"IF(ISBLANK(B204),\"\",IF(VLOOKUP(B204,Pool_C_Results_Table,VLOOKUP(L204,Pool_C_Offsets_Table,8))=0,\"v\",VLOOKUP(B204,Pool_C_Results_Table,VLOOKUP(L204,Pool_C_Offsets_Table,8))))","v":"v"},{"$f":"IF(ISBLANK(B204),\"\",VLOOKUP(B204,Pool_C_Results_Table,VLOOKUP(L204,Pool_C_Offsets_Table,9)))","v":0},{"$f":"IF(ISBLANK(B204),\"\",VLOOKUP(B204,Pool_C_Results_Table,VLOOKUP(L204,Pool_C_Offsets_Table,10)))","v":0},{"$f":"IF(ISBLANK(B204),0,VLOOKUP(B204,Pool_C_Results_Table,VLOOKUP(L204,Pool_C_Offsets_Table,12)))","v":0},{"$f":"IF(ISBLANK(B204),0,VLOOKUP(B204,Pool_C_Results_Table,VLOOKUP(L204,Pool_C_Offsets_Table,13)))","v":0},"Rossendale"]
[null,null,{"$f":"IF(ISBLANK(B205),0,VLOOKUP(B205,Pool_C_Results_Table,VLOOKUP(L205,Pool_C_Offsets_Table,6)))","v":0},{"$f":"IF(ISBLANK(B205),0,VLOOKUP(B205,Pool_C_Results_Table,VLOOKUP(L205,Pool_C_Offsets_Table,5)))","v":0},{"$f":"IF(ISBLANK(B205),\"\",VLOOKUP(B205,Pool_C_Results_Table,VLOOKUP(L205,Pool_C_Offsets_Table,2)))","v":""},{"$f":"IF(ISBLANK(B205),\"\",VLOOKUP(B205,Pool_C_Results_Table,VLOOKUP(L205,Pool_C_Offsets_Table,3)))","v":""},{"$f":"IF(ISBLANK(B205),\"\",IF(VLOOKUP(B205,Pool_C_Results_Table,VLOOKUP(L205,Pool_C_Offsets_Table,8))=0,\"v\",VLOOKUP(B205,Pool_C_Results_Table,VLOOKUP(L205,Pool_C_Offsets_Table,8))))","v":""},{"$f":"IF(ISBLANK(B205),\"\",VLOOKUP(B205,Pool_C_Results_Table,VLOOKUP(L205,Pool_C_Offsets_Table,9)))","v":""},{"$f":"IF(ISBLANK(B205),\"\",VLOOKUP(B205,Pool_C_Results_Table,VLOOKUP(L205,Pool_C_Offsets_Table,10)))","v":""},{"$f":"IF(ISBLANK(B205),0,VLOOKUP(B205,Pool_C_Results_Table,VLOOKUP(L205,Pool_C_Offsets_Table,12)))","v":0},{"$f":"IF(ISBLANK(B205),0,VLOOKUP(B205,Pool_C_Results_Table,VLOOKUP(L205,Pool_C_Offsets_Table,13)))","v":0}]
[null,null,{"$f":"IF(ISBLANK(B206),0,VLOOKUP(B206,Pool_C_Results_Table,VLOOKUP(L206,Pool_C_Offsets_Table,6)))","v":0},{"$f":"IF(ISBLANK(B206),0,VLOOKUP(B206,Pool_C_Results_Table,VLOOKUP(L206,Pool_C_Offsets_Table,5)))","v":0},{"$f":"IF(ISBLANK(B206),\"\",VLOOKUP(B206,Pool_C_Results_Table,VLOOKUP(L206,Pool_C_Offsets_Table,2)))","v":""},{"$f":"IF(ISBLANK(B206),\"\",VLOOKUP(B206,Pool_C_Results_Table,VLOOKUP(L206,Pool_C_Offsets_Table,3)))","v":""},{"$f":"IF(ISBLANK(B206),\"\",IF(VLOOKUP(B206,Pool_C_Results_Table,VLOOKUP(L206,Pool_C_Offsets_Table,8))=0,\"v\",VLOOKUP(B206,Pool_C_Results_Table,VLOOKUP(L206,Pool_C_Offsets_Table,8))))","v":""},{"$f":"IF(ISBLANK(B206),\"\",VLOOKUP(B206,Pool_C_Results_Table,VLOOKUP(L206,Pool_C_Offsets_Table,9)))","v":""},{"$f":"IF(ISBLANK(B206),\"\",VLOOKUP(B206,Pool_C_Results_Table,VLOOKUP(L206,Pool_C_Offsets_Table,10)))","v":""},{"$f":"IF(ISBLANK(B206),0,VLOOKUP(B206,Pool_C_Results_Table,VLOOKUP(L206,Pool_C_Offsets_Table,12)))","v":0},{"$f":"IF(ISBLANK(B206),0,VLOOKUP(B206,Pool_C_Results_Table,VLOOKUP(L206,Pool_C_Offsets_Table,13)))","v":0}]
[]
["Pool D"]
[]
[null,"Didsbury Toc H",{"$f":"IF(ISBLANK(B210),0,VLOOKUP(B210,Pool_D_Results_Table,VLOOKUP(L210,Pool_D_Offsets_Table,6)))","v":0},{"$f":"IF(ISBLANK(B210),0,VLOOKUP(B210,Pool_D_Results_Table,VLOOKUP(L210,Pool_D_Offsets_Table,5)))","v":0},{"$f":"IF(ISBLANK(B210),\"\",VLOOKUP(B210,Pool_D_Results_Table,VLOOKUP(L210,Pool_D_Offsets_Table,2)))","v":0},{"$f":"IF(ISBLANK(B210),\"\",VLOOKUP(B210,Pool_D_Results_Table,VLOOKUP(L210,Pool_D_Offsets_Table,3)))","v":0},{"$f":"IF(ISBLANK(B210),\"\",IF(VLOOKUP(B210,Pool_D_Results_Table,VLOOKUP(L210,Pool_D_Offsets_Table,8))=0,\"v\",VLOOKUP(B210,Pool_D_Results_Table,VLOOKUP(L210,Pool_D_Offsets_Table,8))))","v":"v"},{"$f":"IF(ISBLANK(B210),\"\",VLOOKUP(B210,Pool_D_Results_Table,VLOOKUP(L210,Pool_D_Offsets_Table,9)))","v":0},{"$f":"IF(ISBLANK(B210),\"\",VLOOKUP(B210,Pool_D_Results_Table,VLOOKUP(L210,Pool_D_Offsets_Table,10)))","v":0},{"$f":"IF(ISBLANK(B210),0,VLOOKUP(B210,Pool_D_Results_Table,VLOOKUP(L210,Pool_D_Offsets_Table,12)))","v":0},{"$f":"IF(ISBLANK(B210),0,VLOOKUP(B210,Pool_D_Results_Table,VLOOKUP(L210,Pool_D_Offsets_Table,13)))","v":0},"Liverpool St Helens"]
[null,"Waterloo",{"$f":"IF(ISBLANK(B211),0,VLOOKUP(B211,Pool_D_Results_Table,VLOOKUP(L211,Pool_D_Offsets_Table,6)))","v":0},{"$f":"IF(ISBLANK(B211),0,VLOOKUP(B211,Pool_D_Results_Table,VLOOKUP(L211,Pool_D_Offsets_Table,5)))","v":0},{"$f":"IF(ISBLANK(B211),\"\",VLOOKUP(B211,Pool_D_Results_Table,VLOOKUP(L211,Pool_D_Offsets_Table,2)))","v":0},{"$f":"IF(ISBLANK(B211),\"\",VLOOKUP(B211,Pool_D_Results_Table,VLOOKUP(L211,Pool_D_Offsets_Table,3)))","v":0},{"$f":"IF(ISBLANK(B211),\"\",IF(VLOOKUP(B211,Pool_D_Results_Table,VLOOKUP(L211,Pool_D_Offsets_Table,8))=0,\"v\",VLOOKUP(B211,Pool_D_Results_Table,VLOOKUP(L211,Pool_D_Offsets_Table,8))))","v":"v"},{"$f":"IF(ISBLANK(B211),\"\",VLOOKUP(B211,Pool_D_Results_Table,VLOOKUP(L211,Pool_D_Offsets_Table,9)))","v":0},{"$f":"IF(ISBLANK(B211),\"\",VLOOKUP(B211,Pool_D_Results_Table,VLOOKUP(L211,Pool_D_Offsets_Table,10)))","v":0},{"$f":"IF(ISBLANK(B211),0,VLOOKUP(B211,Pool_D_Results_Table,VLOOKUP(L211,Pool_D_Offsets_Table,12)))","v":0},{"$f":"IF(ISBLANK(B211),0,VLOOKUP(B211,Pool_D_Results_Table,VLOOKUP(L211,Pool_D_Offsets_Table,13)))","v":0},"Orrell"]
[null,null,{"$f":"IF(ISBLANK(B212),0,VLOOKUP(B212,Pool_D_Results_Table,VLOOKUP(L212,Pool_D_Offsets_Table,6)))","v":0},{"$f":"IF(ISBLANK(B212),0,VLOOKUP(B212,Pool_D_Results_Table,VLOOKUP(L212,Pool_D_Offsets_Table,5)))","v":0},{"$f":"IF(ISBLANK(B212),\"\",VLOOKUP(B212,Pool_D_Results_Table,VLOOKUP(L212,Pool_D_Offsets_Table,2)))","v":""},{"$f":"IF(ISBLANK(B212),\"\",VLOOKUP(B212,Pool_D_Results_Table,VLOOKUP(L212,Pool_D_Offsets_Table,3)))","v":""},{"$f":"IF(ISBLANK(B212),\"\",IF(VLOOKUP(B212,Pool_D_Results_Table,VLOOKUP(L212,Pool_D_Offsets_Table,8))=0,\"v\",VLOOKUP(B212,Pool_D_Results_Table,VLOOKUP(L212,Pool_D_Offsets_Table,8))))","v":""},{"$f":"IF(ISBLANK(B212),\"\",VLOOKUP(B212,Pool_D_Results_Table,VLOOKUP(L212,Pool_D_Offsets_Table,9)))","v":""},{"$f":"IF(ISBLANK(B212),\"\",VLOOKUP(B212,Pool_D_Results_Table,VLOOKUP(L212,Pool_D_Offsets_Table,10)))","v":""},{"$f":"IF(ISBLANK(B212),0,VLOOKUP(B212,Pool_D_Results_Table,VLOOKUP(L212,Pool_D_Offsets_Table,12)))","v":0},{"$f":"IF(ISBLANK(B212),0,VLOOKUP(B212,Pool_D_Results_Table,VLOOKUP(L212,Pool_D_Offsets_Table,13)))","v":0}]
[null,null,{"$f":"IF(ISBLANK(B213),0,VLOOKUP(B213,Pool_D_Results_Table,VLOOKUP(L213,Pool_D_Offsets_Table,6)))","v":0},{"$f":"IF(ISBLANK(B213),0,VLOOKUP(B213,Pool_D_Results_Table,VLOOKUP(L213,Pool_D_Offsets_Table,5)))","v":0},{"$f":"IF(ISBLANK(B213),\"\",VLOOKUP(B213,Pool_D_Results_Table,VLOOKUP(L213,Pool_D_Offsets_Table,2)))","v":""},{"$f":"IF(ISBLANK(B213),\"\",VLOOKUP(B213,Pool_D_Results_Table,VLOOKUP(L213,Pool_D_Offsets_Table,3)))","v":""},{"$f":"IF(ISBLANK(B213),\"\",IF(VLOOKUP(B213,Pool_D_Results_Table,VLOOKUP(L213,Pool_D_Offsets_Table,8))=0,\"v\",VLOOKUP(B213,Pool_D_Results_Table,VLOOKUP(L213,Pool_D_Offsets_Table,8))))","v":""},{"$f":"IF(ISBLANK(B213),\"\",VLOOKUP(B213,Pool_D_Results_Table,VLOOKUP(L213,Pool_D_Offsets_Table,9)))","v":""},{"$f":"IF(ISBLANK(B213),\"\",VLOOKUP(B213,Pool_D_Results_Table,VLOOKUP(L213,Pool_D_Offsets_Table,10)))","v":""},{"$f":"IF(ISBLANK(B213),0,VLOOKUP(B213,Pool_D_Results_Table,VLOOKUP(L213,Pool_D_Offsets_Table,12)))","v":0},{"$f":"IF(ISBLANK(B213),0,VLOOKUP(B213,Pool_D_Results_Table,VLOOKUP(L213,Pool_D_Offsets_Table,13)))","v":0}]

{"sheet":"League Tables","index":2,"n_rows":45,"n_cols":13,"rows_kept":45,"cut":false,"hidden":false,"merged":[]}
[{"$f":"Competition","v":"Blacksticks Blue Challenge"},null,null,null,null,null,{"$f":"Age_Group","v":"U15s"},null,null,{"$f":"Season","v":"2015/6"}]
[{"$f":"\"Sponsored by \"&Sponsor","v":"Sponsored by Butlers Farmhouse Cheeses"}]
[null,"Pool A"]
[null,null,"P","W","D","L","NG","F","A","+/-","LB","Ded'ns","Pts"]
[1,{"$f":"Pool_A_Team_3","v":"Liverpool Collegiate"},{"$f":"Pool_A_Team_3_P","v":4},{"$f":"Pool_A_Team_3_W","v":4},{"$f":"Pool_A_Team_3_D","v":0},{"$f":"Pool_A_Team_3_L","v":0},{"$f":"Pool_A_Team_3_NG","v":0},{"$f":"Pool_A_Team_3_F","v":85},{"$f":"Pool_A_Team_3_A","v":58},{"$f":"Pool_A_Team_3_Diff","v":27},{"$f":"Pool_A_Team_3_LB","v":0},{"$f":"Pool_A_Team_3_Ddns","v":0},{"$f":"Pool_A_Team_3_Pts","v":20}]
[{"$f":"IF(ISBLANK(B6),\"\",A5+1)","v":2},{"$f":"Pool_A_Team_4","v":"Manchester"},{"$f":"Pool_A_Team_4_P","v":4},{"$f":"Pool_A_Team_4_W","v":2},{"$f":"Pool_A_Team_4_D","v":0},{"$f":"Pool_A_Team_4_L","v":2},{"$f":"Pool_A_Team_4_NG","v":0},{"$f":"Pool_A_Team_4_F","v":86},{"$f":"Pool_A_Team_4_A","v":72},{"$f":"Pool_A_Team_4_Diff","v":14},{"$f":"Pool_A_Team_4_LB","v":3},{"$f":"Pool_A_Team_4_Ddns","v":0},{"$f":"Pool_A_Team_4_Pts","v":13}]
[3,{"$f":"Pool_A_Team_6","v":"Southport"},{"$f":"Pool_A_Team_6_P","v":2},{"$f":"Pool_A_Team_6_W","v":2},{"$f":"Pool_A_Team_6_D","v":0},{"$f":"Pool_A_Team_6_L","v":0},{"$f":"Pool_A_Team_6_NG","v":0},{"$f":"Pool_A_Team_6_F","v":61},{"$f":"Pool_A_Team_6_A","v":12},{"$f":"Pool_A_Team_6_Diff","v":49},{"$f":"Pool_A_Team_6_LB","v":0},{"$f":"Pool_A_Team_6_Ddns","v":0},{"$f":"Pool_A_Team_6_Pts","v":10}]
[4,{"$f":"Pool_A_Team_2","v":"Fylde"},{"$f":"Pool_A_Team_2_P","v":3},{"$f":"Pool_A_Team_2_W","v":1},{"$f":"Pool_A_Team_2_D","v":0},{"$f":"Pool_A_Team_2_L","v":2},{"$f":"Pool_A_Team_2_NG","v":0},{"$f":"Pool_A_Team_2_F","v":61},{"$f":"Pool_A_Team_2_A","v":49},{"$f":"Pool_A_Team_2_Diff","v":12},{"$f":"Pool_A_Team_2_LB","v":3},{"$f":"Pool_A_Team_2_Ddns","v":0},{"$f":"Pool_A_Team_2_Pts","v":8}]
[5,{"$f":"Pool_A_Team_1","v":"Ashton-u-Lyne"},{"$f":"Pool_A_Team_1_P","v":3},{"$f":"Pool_A_Team_1_W","v":0},{"$f":"Pool_A_Team_1_D","v":0},{"$f":"Pool_A_Team_1_L","v":3},{"$f":"Pool_A_Team_1_NG","v":0},{"$f":"Pool_A_Team_1_F","v":19},{"$f":"Pool_A_Team_1_A","v":86},{"$f":"Pool_A_Team_1_Diff","v":-67},{"$f":"Pool_A_Team_1_LB","v":4},{"$f":"Pool_A_Team_1_Ddns","v":0},{"$f":"Pool_A_Team_1_Pts","v":4}]
[6,{"$f":"Pool_A_Team_5","v":"Rochdale"},{"$f":"Pool_A_Team_5_P","v":2},{"$f":"Pool_A_Team_5_W","v":0},{"$f":"Pool_A_Team_5_D","v":0},{"$f":"Pool_A_Team_5_L","v":2},{"$f":"Pool_A_Team_5_NG","v":0},{"$f":"Pool_A_Team_5_F","v":24},{"$f":"Pool_A_Team_5_A","v":59},{"$f":"Pool_A_Team_5_Diff","v":-35},{"$f":"Pool_A_Team_5_LB","v":3},{"$f":"Pool_A_Team_5_Ddns","v":0},{"$f":"Pool_A_Team_5_Pts","v":3}]
[7,{"$f":"Pool_A_Team_7","v":0},{"$f":"Pool_A_Team_7_P","v":0},{"$f":"Pool_A_Team_7_W","v":0},{"$f":"Pool_A_Team_7_D","v":0},{"$f":"Pool_A_Team_7_L","v":0},{"$f":"Pool_A_Team_7_NG","v":0},{"$f":"Pool_A_Team_7_F","v":0},{"$f":"Pool_A_Team_7_A","v":0},{"$f":"Pool_A_Team_7_Diff","v":0},{"$f":"Pool_A_Team_7_LB","v":0},{"$f":"Pool_A_Team_7_Ddns","v":0},{"$f":"Pool_A_Team_7_Pts","v":0}]
[8,{"$f":"Pool_A_Team_8","v":0},{"$f":"Pool_A_Team_8_P","v":0},{"$f":"Pool_A_Team_8_W","v":0},{"$f":"Pool_A_Team_8_D","v":0},{"$f":"Pool_A_Team_8_L","v":0},{"$f":"Pool_A_Team_8_NG","v":0},{"$f":"Pool_A_Team_8_F","v":0},{"$f":"Pool_A_Team_8_A","v":0},{"$f":"Pool_A_Team_8_Diff","v":0},{"$f":"Pool_A_Team_8_LB","v":0},{"$f":"Pool_A_Team_8_Ddns","v":0},{"$f":"Pool_A_Team_8_Pts","v":0}]
[]
[null,"Pool B"]
[null,null,"P","W","D","L","NG","F","A","+/-","LB","Ded'ns","Pts"]
[1,{"$f":"Pool_B_Team_6","v":"Vale of Lune"},{"$f":"Pool_B_Team_6_P","v":4},{"$f":"Pool_B_Team_6_W","v":4},{"$f":"Pool_B_Team_6_D","v":0},{"$f":"Pool_B_Team_6_L","v":0},{"$f":"Pool_B_Team_6_NG","v":0},{"$f":"Pool_B_Team_6_F","v":94},{"$f":"Pool_B_Team_6_A","v":29},{"$f":"Pool_B_Team_6_Diff","v":65},{"$f":"Pool_B_Team_6_LB","v":0},{"$f":"Pool_B_Team_6_Ddns","v":1},{"$f":"Pool_B_Team_6_Pts","v":19}]
[{"$f":"IF(ISBLANK(B17),\"\",A16+1)","v":2},{"$f":"Pool_B_Team_1","v":"Blackburn"},{"$f":"Pool_B_Team_1_P","v":3},{"$f":"Pool_B_Team_1_W","v":2},{"$f":"Pool_B_Team_1_D","v":0},{"$f":"Pool_B_Team_1_L","v":1},{"$f":"Pool_B_Team_1_NG","v":0},{"$f":"Pool_B_Team_1_F","v":80},{"$f":"Pool_B_Team_1_A","v":44},{"$f":"Pool_B_Team_1_Diff","v":36},{"$f":"Pool_B_Team_1_LB","v":2},{"$f":"Pool_B_Team_1_Ddns","v":0},{"$f":"Pool_B_Team_1_Pts","v":12}]
[3,{"$f":"Pool_B_Team_4","v":"Ormskirk"},{"$f":"Pool_B_Team_4_P","v":4},{"$f":"Pool_B_Team_4_W","v":1},{"$f":"Pool_B_Team_4_D","v":1},{"$f":"Pool_B_Team_4_L","v":2},{"$f":"Pool_B_Team_4_NG","v":0},{"$f":"Pool_B_Team_4_F","v":37},{"$f":"Pool_B_Team_4_A","v":84},{"$f":"Pool_B_Team_4_Diff","v":-47},{"$f":"Pool_B_Team_4_LB","v":2},{"$f":"Pool_B_Team_4_Ddns","v":0},{"$f":"Pool_B_Team_4_Pts","v":10}]
[4,{"$f":"Pool_B_Team_2","v":"Bolton"},{"$f":"Pool_B_Team_2_P","v":2},{"$f":"Pool_B_Team_2_W","v":1},{"$f":"Pool_B_Team_2_D","v":1},{"$f":"Pool_B_Team_2_L","v":0},{"$f":"Pool_B_Team_2_NG","v":0},{"$f":"Pool_B_Team_2_F","v":53},{"$f":"Pool_B_Team_2_A","v":41},{"$f":"Pool_B_Team_2_Diff","v":12},{"$f":"Pool_B_Team_2_LB","v":0},{"$f":"Pool_B_Team_2_Ddns","v":0},{"$f":"Pool_B_Team_2_Pts","v":8}]
[5,{"$f":"Pool_B_Team_3","v":"Eccles"},{"$f":"Pool_B_Team_3_P","v":2},{"$f":"Pool_B_Team_3_W","v":0},{"$f":"Pool_B_Team_3_D","v":0},{"$f":"Pool_B_Team_3_L","v":2},{"$f":"Pool_B_Team_3_NG","v":0},{"$f":"Pool_B_Team_3_F","v":31},{"$f":"Pool_B_Team_3_A","v":73},{"$f":"Pool_B_Team_3_Diff","v":-42},{"$f":"Pool_B_Team_3_LB","v":2},{"$f":"Pool_B_Team_3_Ddns","v":0},{"$f":"Pool_B_Team_3_Pts","v":2}]
[6,{"$f":"Pool_B_Team_5","v":"Sefton"},{"$f":"Pool_B_Team_5_P","v":3},{"$f":"Pool_B_Team_5_W","v":0},{"$f":"Pool_B_Team_5_D","v":0},{"$f":"Pool_B_Team_5_L","v":3},{"$f":"Pool_B_Team_5_NG","v":0},{"$f":"Pool_B_Team_5_F","v":12},{"$f":"Pool_B_Team_5_A","v":36},{"$f":"Pool_B_Team_5_Diff","v":-24},{"$f":"Pool_B_Team_5_LB","v":1},{"$f":"Pool_B_Team_5_Ddns","v":0},{"$f":"Pool_B_Team_5_Pts","v":1}]
[7,{"$f":"Pool_B_Team_7","v":0},{"$f":"Pool_B_Team_7_P","v":0},{"$f":"Pool_B_Team_7_W","v":0},{"$f":"Pool_B_Team_7_D","v":0},{"$f":"Pool_B_Team_7_L","v":0},{"$f":"Pool_B_Team_7_NG","v":0},{"$f":"Pool_B_Team_7_F","v":0},{"$f":"Pool_B_Team_7_A","v":0},{"$f":"Pool_B_Team_7_Diff","v":0},{"$f":"Pool_B_Team_7_LB","v":0},{"$f":"Pool_B_Team_7_Ddns","v":0},{"$f":"Pool_B_Team_7_Pts","v":0}]
[8,{"$f":"Pool_B_Team_8","v":0},{"$f":"Pool_B_Team_8_P","v":0},{"$f":"Pool_B_Team_8_W","v":0},{"$f":"Pool_B_Team_8_D","v":0},{"$f":"Pool_B_Team_8_L","v":0},{"$f":"Pool_B_Team_8_NG","v":0},{"$f":"Pool_B_Team_8_F","v":0},{"$f":"Pool_B_Team_8_A","v":0},{"$f":"Pool_B_Team_8_Diff","v":0},{"$f":"Pool_B_Team_8_LB","v":0},{"$f":"Pool_B_Team_8_Ddns","v":0},{"$f":"Pool_B_Team_8_Pts","v":0}]
[]
[null,"Pool C"]
[{"$f":"IF(ISBLANK(B26),\"\",A22+1)","v":""},null,"P","W","D","L","NG","F","A","+/-","LB","Ded'ns","Pts"]
[1,{"$f":"Pool_C_Team_3","v":"Preston Grasshoppers"},{"$f":"Pool_C_Team_3_P","v":4},{"$f":"Pool_C_Team_3_W","v":4},{"$f":"Pool_C_Team_3_D","v":0},{"$f":"Pool_C_Team_3_L","v":0},{"$f":"Pool_C_Team_3_NG","v":0},{"$f":"Pool_C_Team_3_F","v":35},{"$f":"Pool_C_Team_3_A","v":5},{"$f":"Pool_C_Team_3_Diff","v":30},{"$f":"Pool_C_Team_3_LB","v":0},{"$f":"Pool_C_Team_3_Ddns","v":0},{"$f":"Pool_C_Team_3_Pts","v":20}]
[{"$f":"IF(ISBLANK(B28),\"\",A27+1)","v":2},{"$f":"Pool_C_Team_2","v":"Heaton Moor"},{"$f":"Pool_C_Team_2_P","v":3},{"$f":"Pool_C_Team_2_W","v":2},{"$f":"Pool_C_Team_2_D","v":0},{"$f":"Pool_C_Team_2_L","v":1},{"$f":"Pool_C_Team_2_NG","v":0},{"$f":"Pool_C_Team_2_F","v":75},{"$f":"Pool_C_Team_2_A","v":45},{"$f":"Pool_C_Team_2_Diff","v":30},{"$f":"Pool_C_Team_2_LB","v":1},{"$f":"Pool_C_Team_2_Ddns","v":0},{"$f":"Pool_C_Team_2_Pts","v":11}]
[3,{"$f":"Pool_C_Team_4","v":"Rossendale"},{"$f":"Pool_C_Team_4_P","v":2},{"$f":"Pool_C_Team_4_W","v":2},{"$f":"Pool_C_Team_4_D","v":0},{"$f":"Pool_C_Team_4_L","v":0},{"$f":"Pool_C_Team_4_NG","v":0},{"$f":"Pool_C_Team_4_F","v":30},{"$f":"Pool_C_Team_4_A","v":0},{"$f":"Pool_C_Team_4_Diff","v":30},{"$f":"Pool_C_Team_4_LB","v":0},{"$f":"Pool_C_Team_4_Ddns","v":0},{"$f":"Pool_C_Team_4_Pts","v":10}]
[4,{"$f":"Pool_C_Team_5","v":"Sedgley Park"},{"$f":"Pool_C_Team_5_P","v":4},{"$f":"Pool_C_Team_5_W","v":1},{"$f":"Pool_C_Team_5_D","v":0},{"$f":"Pool_C_Team_5_L","v":3},{"$f":"Pool_C_Team_5_NG","v":0},{"$f":"Pool_C_Team_5_F","v":0},{"$f":"Pool_C_Team_5_A","v":30},{"$f":"Pool_C_Team_5_Diff","v":-30},{"$f":"Pool_C_Team_5_LB","v":1},{"$f":"Pool_C_Team_5_Ddns","v":0},{"$f":"Pool_C_Team_5_Pts","v":6}]
[5,{"$f":"Pool_C_Team_1","v":"Clitheroe"},{"$f":"Pool_C_Team_1_P","v":2},{"$f":"Pool_C_Team_1_W","v":0},{"$f":"Pool_C_Team_1_D","v":0},{"$f":"Pool_C_Team_1_L","v":2},{"$f":"Pool_C_Team_1_NG","v":0},{"$f":"Pool_C_Team_1_F","v":0},{"$f":"Pool_C_Team_1_A","v":30},{"$f":"Pool_C_Team_1_Diff","v":-30},{"$f":"Pool_C_Team_1_LB","v":1},{"$f":"Pool_C_Team_1_Ddns","v":0},{"$f":"Pool_C_Team_1_Pts","v":1}]
[6,{"$f":"Pool_C_Team_6","v":"West Park"},{"$f":"Pool_C_Team_6_P","v":3},{"$f":"Pool_C_Team_6_W","v":0},{"$f":"Pool_C_Team_6_D","v":0},{"$f":"Pool_C_Team_6_L","v":3},{"$f":"Pool_C_Team_6_NG","v":0},{"$f":"Pool_C_Team_6_F","v":10},{"$f":"Pool_C_Team_6_A","v":40},{"$f":"Pool_C_Team_6_Diff","v":-30},{"$f":"Pool_C_Team_6_LB","v":1},{"$f":"Pool_C_Team_6_Ddns","v":0},{"$f":"Pool_C_Team_6_Pts","v":1}]
[7,{"$f":"Pool_C_Team_7","v":0},{"$f":"Pool_C_Team_7_P","v":0},{"$f":"Pool_C_Team_7_W","v":0},{"$f":"Pool_C_Team_7_D","v":0},{"$f":"Pool_C_Team_7_L","v":0},{"$f":"Pool_C_Team_7_NG","v":0},{"$f":"Pool_C_Team_7_F","v":0},{"$f":"Pool_C_Team_7_A","v":0},{"$f":"Pool_C_Team_7_Diff","v":0},{"$f":"Pool_C_Team_7_LB","v":0},{"$f":"Pool_C_Team_7_Ddns","v":0},{"$f":"Pool_C_Team_7_Pts","v":0}]
[8,{"$f":"Pool_C_Team_8","v":0},{"$f":"Pool_C_Team_8_P","v":0},{"$f":"Pool_C_Team_8_W","v":0},{"$f":"Pool_C_Team_8_D","v":0},{"$f":"Pool_C_Team_8_L","v":0},{"$f":"Pool_C_Team_8_NG","v":0},{"$f":"Pool_C_Team_8_F","v":0},{"$f":"Pool_C_Team_8_A","v":0},{"$f":"Pool_C_Team_8_Diff","v":0},{"$f":"Pool_C_Team_8_LB","v":0},{"$f":"Pool_C_Team_8_Ddns","v":0},{"$f":"Pool_C_Team_8_Pts","v":0}]
[]
[null,"Pool D"]
[null,null,"P","W","D","L","NG","F","A","+/-","LB","Ded'ns","Pts"]
[1,{"$f":"Pool_D_Team_6","v":"Waterloo"},{"$f":"Pool_D_Team_6_P","v":4},{"$f":"Pool_D_Team_6_W","v":4},{"$f":"Pool_D_Team_6_D","v":0},{"$f":"Pool_D_Team_6_L","v":0},{"$f":"Pool_D_Team_6_NG","v":0},{"$f":"Pool_D_Team_6_F","v":97},{"$f":"Pool_D_Team_6_A","v":26},{"$f":"Pool_D_Team_6_Diff","v":71},{"$f":"Pool_D_Team_6_LB","v":0},{"$f":"Pool_D_Team_6_Ddns","v":0},{"$f":"Pool_D_Team_6_Pts","v":20}]
[{"$f":"IF(ISBLANK(B39),\"\",A38+1)","v":2},{"$f":"Pool_D_Team_1","v":"Burnley"},{"$f":"Pool_D_Team_1_P","v":2},{"$f":"Pool_D_Team_1_W","v":1},{"$f":"Pool_D_Team_1_D","v":0},{"$f":"Pool_D_Team_1_L","v":1},{"$f":"Pool_D_Team_1_NG","v":1},{"$f":"Pool_D_Team_1_F","v":0},{"$f":"Pool_D_Team_1_A","v":30},{"$f":"Pool_D_Team_1_Diff","v":-30},{"$f":"Pool_D_Team_1_LB","v":1},{"$f":"Pool_D_Team_1_Ddns","v":0},{"$f":"Pool_D_Team_1_Pts","v":8}]
[3,{"$f":"Pool_D_Team_2","v":"Bury"},{"$f":"Pool_D_Team_2_P","v":2},{"$f":"Pool_D_Team_2_W","v":1},{"$f":"Pool_D_Team_2_D","v":0},{"$f":"Pool_D_Team_2_L","v":1},{"$f":"Pool_D_Team_2_NG","v":1},{"$f":"Pool_D_Team_2_F","v":0},{"$f":"Pool_D_Team_2_A","v":30},{"$f":"Pool_D_Team_2_Diff","v":-30},{"$f":"Pool_D_Team_2_LB","v":1},{"$f":"Pool_D_Team_2_Ddns","v":0},{"$f":"Pool_D_Team_2_Pts","v":8}]
[4,{"$f":"Pool_D_Team_5","v":"Orrell"},{"$f":"Pool_D_Team_5_P","v":2},{"$f":"Pool_D_Team_5_W","v":1},{"$f":"Pool_D_Team_5_D","v":0},{"$f":"Pool_D_Team_5_L","v":1},{"$f":"Pool_D_Team_5_NG","v":0},{"$f":"Pool_D_Team_5_F","v":46},{"$f":"Pool_D_Team_5_A","v":27},{"$f":"Pool_D_Team_5_Diff","v":19},{"$f":"Pool_D_Team_5_LB","v":0},{"$f":"Pool_D_Team_5_Ddns","v":0},{"$f":"Pool_D_Team_5_Pts","v":5}]
[5,{"$f":"Pool_D_Team_3","v":"Didsbury Toc H"},{"$f":"Pool_D_Team_3_P","v":2},{"$f":"Pool_D_Team_3_W","v":1},{"$f":"Pool_D_Team_3_D","v":0},{"$f":"Pool_D_Team_3_L","v":1},{"$f":"Pool_D_Team_3_NG","v":0},{"$f":"Pool_D_Team_3_F","v":0},{"$f":"Pool_D_Team_3_A","v":0},{"$f":"Pool_D_Team_3_Diff","v":0},{"$f":"Pool_D_Team_3_LB","v":0},{"$f":"Pool_D_Team_3_Ddns","v":0},{"$f":"Pool_D_Team_3_Pts","v":5}]
[6,{"$f":"Pool_D_Team_4","v":"Liverpool St Helens"},{"$f":"Pool_D_Team_4_P","v":4},{"$f":"Pool_D_Team_4_W","v":0},{"$f":"Pool_D_Team_4_D","v":0},{"$f":"Pool_D_Team_4_L","v":4},{"$f":"Pool_D_Team_4_NG","v":0},{"$f":"Pool_D_Team_4_F","v":53},{"$f":"Pool_D_Team_4_A","v":83},{"$f":"Pool_D_Team_4_Diff","v":-30},{"$f":"Pool_D_Team_4_LB","v":2},{"$f":"Pool_D_Team_4_Ddns","v":0},{"$f":"Pool_D_Team_4_Pts","v":2}]
[7,{"$f":"Pool_D_Team_7","v":0},{"$f":"Pool_D_Team_7_P","v":0},{"$f":"Pool_D_Team_7_W","v":0},{"$f":"Pool_D_Team_7_D","v":0},{"$f":"Pool_D_Team_7_L","v":0},{"$f":"Pool_D_Team_7_NG","v":0},{"$f":"Pool_D_Team_7_F","v":0},{"$f":"Pool_D_Team_7_A","v":0},{"$f":"Pool_D_Team_7_Diff","v":0},{"$f":"Pool_D_Team_7_LB","v":0},{"$f":"Pool_D_Team_7_Ddns","v":0},{"$f":"Pool_D_Team_7_Pts","v":0}]
[8,{"$f":"Pool_D_Team_8","v":0},{"$f":"Pool_D_Team_8_P","v":0},{"$f":"Pool_D_Team_8_W","v":0},{"$f":"Pool_D_Team_8_D","v":0},{"$f":"Pool_D_Team_8_L","v":0},{"$f":"Pool_D_Team_8_NG","v":0},{"$f":"Pool_D_Team_8_F","v":0},{"$f":"Pool_D_Team_8_A","v":0},{"$f":"Pool_D_Team_8_Diff","v":0},{"$f":"Pool_D_Team_8_LB","v":0},{"$f":"Pool_D_Team_8_Ddns","v":0},{"$f":"Pool_D_Team_8_Pts","v":0}]

{"sheet":"Set-up","index":3,"n_rows":44,"n_cols":14,"rows_kept":44,"cut":false,"hidden":false,"merged":[]}
["Competition","Blacksticks Blue Challenge",null,null,null,null,null,null,null,null,null,null,"Points for Win",5]
["Age Group","U15s",null,null,null,null,null,null,null,null,null,null,"Points for Draw",3]
["Season","2015/6",null,null,null,null,null,null,null,null,null,null,"Points for Loss with Bonus Point",2]
["Sponsor","Butlers Farmhouse Cheeses",null,null,null,null,null,null,null,null,null,null,"Points for Loss",1]
[null,null,null,null,null,null,null,null,null,null,null,null,"Points for Match Not Played",2]
["Team Names in Alphabetical Order (max 8 teams per pool)"]
[]
["Pool A"]
["Ashton-u-Lyne"]
["Fylde"]
["Liverpool Collegiate"]
["Manchester"]
["Rochdale"]
["Southport"]
[]
[]
[]
["Pool B"]
["Blackburn"]
["Bolton"]
["Eccles"]
["Ormskirk"]
["Sefton"]
["Vale of Lune"]
[]
[]
[]
["Pool C"]
["Clitheroe"]
["Heaton Moor"]
["Preston Grasshoppers"]
["Rossendale"]
["Sedgley Park"]
["West Park"]
[]
[]
[]
["Pool D"]
["Burnley"]
["Bury"]
["Didsbury Toc H"]
["Liverpool St Helens"]
["Orrell"]
["Waterloo"]

{"sheet":"Offsets","index":4,"n_rows":34,"n_cols":14,"rows_kept":34,"cut":false,"hidden":true,"merged":[[0,1,0,6],[0,8,0,13]]}
["Away Team","H",null,null,null,null,null,null,"A"]
[null,"Pts","*","Tries","Y Cards","R Cards","Ded'ns","NG?","Pts","*","Tries","Y Cards","R Cards","Ded'ns"]
[{"$f":"Pool_A_Team_1","v":"Ashton-u-Lyne"},2,3,4,5,6,7,8,9,10,11,12,13,14]
[{"$f":"Pool_A_Team_2","v":"Fylde"},{"$f":"B3+19","v":21},{"$f":"C3+19","v":22},23,24,25,26,27,28,29,30,31,32,33]
[{"$f":"Pool_A_Team_3","v":"Liverpool Collegiate"},{"$f":"B4+19","v":40},{"$f":"C4+19","v":41},{"$f":"D4+19","v":42},{"$f":"E4+19","v":43},{"$f":"F4+19","v":44},{"$f":"G4+19","v":45},{"$f":"H4+19","v":46},{"$f":"I4+19","v":47},{"$f":"J4+19","v":48},{"$f":"K4+19","v":49},{"$f":"L4+19","v":50},{"$f":"M4+19","v":51},{"$f":"N4+19","v":52}]
[{"$f":"Pool_A_Team_4","v":"Manchester"},59,60,61,62,63,64,65,66,67,68,69,70,71]
[{"$f":"Pool_A_Team_5","v":"Rochdale"},78,79,80,81,82,83,84,85,86,87,88,89,90]
[{"$f":"Pool_A_Team_6","v":"Southport"},97,98,99,100,101,102,103,104,105,106,107,108,109]
[{"$f":"Pool_A_Team_7","v":0},116,117,118,119,120,121,122,123,124,125,126,127,128]
[{"$f":"Pool_A_Team_8","v":0},135,136,137,138,139,140,141,142,143,144,145,146,147]
[{"$f":"Pool_B_Team_1","v":"Blackburn"},154,155,156,157,158,159,160,161,162,163,164,165,166]
[{"$f":"Pool_B_Team_2","v":"Bolton"},173,174,175,176,177,178,179,180,181,182,183,184,185]
[{"$f":"Pool_B_Team_3","v":"Eccles"},192,193,194,195,196,197,198,199,200,201,202,203,204]
[{"$f":"Pool_B_Team_4","v":"Ormskirk"},211,212,213,214,215,216,217,218,219,220,221,222,223]
[{"$f":"Pool_B_Team_5","v":"Sefton"},230,231,232,233,234,235,236,237,238,239,240,241,242]
[{"$f":"Pool_B_Team_6","v":"Vale of Lune"},249,250,251,252,253,254,255,256,257,258,259,260,261]
[{"$f":"Pool_B_Team_7","v":0},268,269,270,271,272,273,274,275,276,277,278,279,280]
[{"$f":"Pool_B_Team_8","v":0},287,288,289,290,291,292,293,294,295,296,297,298,299]
[{"$f":"Pool_C_Team_1","v":"Clitheroe"},306,307,308,309,310,311,312,313,314,315,316,317,318]
[{"$f":"Pool_C_Team_2","v":"Heaton Moor"},325,326,327,328,329,330,331,332,333,334,335,336,337]
[{"$f":"Pool_C_Team_3","v":"Preston Grasshoppers"},344,345,346,347,348,349,350,351,352,353,354,355,356]
[{"$f":"Pool_C_Team_4","v":"Rossendale"},363,364,365,366,367,368,369,370,371,372,373,374,375]
[{"$f":"Pool_C_Team_5","v":"Sedgley Park"},382,383,384,385,386,387,388,389,390,391,392,393,394]
[{"$f":"Pool_C_Team_6","v":"West Park"},401,402,403,404,405,406,407,408,409,410,411,412,413]
[{"$f":"Pool_C_Team_7","v":0},420,421,422,423,424,425,426,427,428,429,430,431,432]
[{"$f":"Pool_C_Team_8","v":0},439,440,441,442,443,444,445,446,447,448,449,450,451]
[{"$f":"Pool_D_Team_1","v":"Burnley"},458,459,460,461,462,463,464,465,466,467,468,469,470]
[{"$f":"Pool_D_Team_2","v":"Bury"},477,478,479,480,481,482,483,484,485,486,487,488,489]
[{"$f":"Pool_D_Team_3","v":"Didsbury Toc H"},496,497,498,499,500,501,502,503,504,505,506,507,508]
[{"$f":"Pool_D_Team_4","v":"Liverpool St Helens"},515,516,517,518,519,520,521,522,523,524,525,526,527]
[{"$f":"Pool_D_Team_5","v":"Orrell"},534,535,536,537,538,539,540,541,542,543,544,545,546]
[{"$f":"Pool_D_Team_6","v":"Waterloo"},553,554,555,556,557,558,559,560,561,562,563,564,565]
[{"$f":"Pool_D_Team_7","v":0},572,573,574,575,576,577,578,579,580,581,582,583,584]
[{"$f":"Pool_D_Team_8","v":0},591,592,593,594,595,596,597,598,599,600,601,602,603]